Workbook

Sheet d4 Isotope Sums
A1: Compound | B1: NTC_1 | C1: NTC_2 | D1: NTC_3 | E1: NTC_4 | F1: NTC_5 | G1: NTC_6 | H1: NTC_7 | J1: Pkm2_1 | K1: Pkm2_2 | L1: Pkm2_3 | M1: Pkm2_4 | N1: Pkm2_5 | O1: Pkm2_6 | P1: Pkm2_7 | R1: Normalized by Isotope Sum | S1: Compound | T1: NTC_1 | U1: NTC_2 | V1: NTC_3 | W1: NTC_4 | X1: NTC_5 | Y1: NTC_6 | Z1: NTC_7 | AB1: Pkm2_1 | AC1: Pkm2_2 | AD1: Pkm2_3 | AE1: Pkm2_4 | AF1: Pkm2_5 | AG1: Pkm2_6 | AH1: Pkm2_7 | AJ1: Fold of NTC | AK1: Compound | AL1: NTC_1 | AM1: NTC_2 | AN1: NTC_3 | AO1: NTC_4 | AP1: NTC_5 | AQ1: NTC_6 | AR1: NTC_7 | AT1: Pkm2_1 | AU1: Pkm2_2 | AV1: Pkm2_3 | AW1: Pkm2_4 | AX1: Pkm2_5 | AY1: Pkm2_6 | AZ1: Pkm2_7
A2: 1-Methyladenosine | B2: 0 | C2: 0 | D2: 0 | E2: 0 | F2: 0 | G2: 0 | H2: 0 | J2: 0 | K2: 0 | L2: 0 | M2: 0 | N2: 0 | O2: 0 | P2: 0 | S2: 1-Methyladenosine | T2: =B2/B$206 -> 0 | U2: =C2/C$206 -> 0 | V2: =D2/D$206 -> 0 | W2: =E2/E$206 -> 0 | X2: =F2/F$206 -> 0 | Y2: =G2/G$206 -> 0 | Z2: =H2/H$206 -> 0 | AB2: =J2/J$206 -> 0 | AC2: =K2/K$206 -> 0 | AD2: =L2/L$206 -> 0 | AE2: =M2/M$206 -> 0 | AF2: =N2/N$206 -> 0 | AG2: =O2/O$206 -> 0 | AH2: =P2/P$206 -> 0 | AK2: 1-Methyladenosine | AL2: =T2/AVERAGE($T2:$Z2) ->  | AM2: =U2/AVERAGE($T2:$Z2) ->  | AN2: =V2/AVERAGE($T2:$Z2) ->  | AO2: =W2/AVERAGE($T2:$Z2) ->  | AP2: =X2/AVERAGE($T2:$Z2) ->  | AQ2: =Y2/AVERAGE($T2:$Z2) ->  | AR2: =Z2/AVERAGE($T2:$Z2) ->  | AT2: =AB2/AVERAGE($T2:$Z2) ->  | AU2: =AC2/AVERAGE($T2:$Z2) ->  | AV2: =AD2/AVERAGE($T2:$Z2) ->  | AW2: =AE2/AVERAGE($T2:$Z2) ->  | AX2: =AF2/AVERAGE($T2:$Z2) ->  | AY2: =AG2/AVERAGE($T2:$Z2) ->  | AZ2: =AH2/AVERAGE($T2:$Z2) -> 
A3: 1-Methylnicotinamide | B3: 0 | C3: 0 | D3: 0 | E3: 0 | F3: 0 | G3: 0 | H3: 0 | J3: 0 | K3: 0 | L3: 0 | M3: 0 | N3: 0 | O3: 0 | P3: 0 | S3: 1-Methylnicotinamide | T3: 0 | U3: 0 | V3: 0 | W3: 0 | X3: 0 | Y3: 0 | Z3: 0 | AB3: 0 | AC3: 0 | AD3: 0 | AE3: 0 | AF3: 0 | AG3: 0 | AH3: 0 | AK3: 1-Methylnicotinamide
A4: 2-Hydroxycaproic acid | B4: 0 | C4: 0 | D4: 0 | E4: 0 | F4: 0 | G4: 0 | H4: 0 | J4: 0 | K4: 0 | L4: 0 | M4: 0 | N4: 0 | O4: 0 | P4: 0 | S4: 2-Hydroxycaproic acid | T4: 0 | U4: 0 | V4: 0 | W4: 0 | X4: 0 | Y4: 0 | Z4: 0 | AB4: 0 | AC4: 0 | AD4: 0 | AE4: 0 | AF4: 0 | AG4: 0 | AH4: 0 | AK4: 2-Hydroxycaproic acid
A5: 2-Hydroxyvaleric acid | B5: 0 | C5: 0 | D5: 0 | E5: 0 | F5: 0 | G5: 0 | H5: 0 | J5: 0 | K5: 0 | L5: 0 | M5: 0 | N5: 0 | O5: 0 | P5: 0 | S5: 2-Hydroxyvaleric acid | T5: 0 | U5: 0 | V5: 0 | W5: 0 | X5: 0 | Y5: 0 | Z5: 0 | AB5: 0 | AC5: 0 | AD5: 0 | AE5: 0 | AF5: 0 | AG5: 0 | AH5: 0 | AK5: 2-Hydroxyvaleric acid
A6: 3-Hydroxymethylglutaric acid | B6: 71512.12496 | C6: 52495.80225 | D6: 84352.51048 | E6: 102175.5263 | F6: 54083.04978 | G6: 81513.87025 | H6: 81237.05917 | J6: 76526.26059 | K6: 60922.98275 | L6: 53998.35807 | M6: 83018.60993 | N6: 34824.36958 | O6: 56493.59016 | P6: 48649.58951 | S6: 3-Hydroxymethylglutaric acid | T6: 0.001556957683 | U6: 0.001066167068 | V6: 0.001337772134 | W6: 0.001529482436 | X6: 0.001211658862 | Y6: 0.001966233436 | Z6: 0.001841810781 | AB6: 0.001680160363 | AC6: 0.001383442168 | AD6: 0.0008809018018 | AE6: 0.001881444329 | AF6: 0.0009322447547 | AG6: 0.001370050721 | AH6: 0.001430149064 | AK6: 3-Hydroxymethylglutaric acid | AL6: 1.036976055 | AM6: 0.7100961907 | AN6: 0.8909925329 | AO6: 1.018676795 | AP6: 0.8069976727 | AQ6: 1.309564809 | AR6: 1.226695945 | AT6: 1.119032382 | AU6: 0.9214100144 | AV6: 0.5867044974 | AW6: 1.253092964 | AX6: 0.6209002969 | AY6: 0.9124909474 | AZ6: 0.9525180743
A7: 3-Indolepropionic acid | B7: 0 | C7: 0 | D7: 0 | E7: 0 | F7: 0 | G7: 0 | H7: 0 | J7: 0 | K7: 0 | L7: 0 | M7: 0 | N7: 0 | O7: 0 | P7: 0 | S7: 3-Indolepropionic acid | T7: 0 | U7: 0 | V7: 0 | W7: 0 | X7: 0 | Y7: 0 | Z7: 0 | AB7: 0 | AC7: 0 | AD7: 0 | AE7: 0 | AF7: 0 | AG7: 0 | AH7: 0 | AK7: 3-Indolepropionic acid
A8: 3-Methylhistidine | B8: 0 | C8: 0 | D8: 0 | E8: 0 | F8: 0 | G8: 0 | H8: 0 | J8: 0 | K8: 0 | L8: 0 | M8: 0 | N8: 0 | O8: 0 | P8: 0 | S8: 3-Methylhistidine | T8: 0 | U8: 0 | V8: 0 | W8: 0 | X8: 0 | Y8: 0 | Z8: 0 | AB8: 0 | AC8: 0 | AD8: 0 | AE8: 0 | AF8: 0 | AG8: 0 | AH8: 0 | AK8: 3-Methylhistidine
A9: 3-Phosphoglyceric acid | B9: 419352.44 | C9: 778627.8434 | D9: 738272.9598 | E9: 1389451.253 | F9: 1268455.459 | G9: 832071.5718 | H9: 624402.2429 | J9: 1691245.315 | K9: 2057740.009 | L9: 1534590.168 | M9: 2305476.136 | N9: 1511220.395 | O9: 1399321.24 | P9: 1202325.54 | S9: 3-Phosphoglyceric acid | T9: 0.009130116099 | U9: 0.01581359517 | V9: 0.01170849554 | W9: 0.02079892674 | X9: 0.02841805898 | Y9: 0.02007077986 | Z9: 0.01415647974 | AB9: 0.03713187239 | AC9: 0.04672726402 | AD9: 0.02503452497 | AE9: 0.05224882719 | AF9: 0.04045521294 | AG9: 0.03393555036 | AH9: 0.03534469178 | AK9: 3-Phosphoglyceric acid | AL9: 0.5321623708 | AM9: 0.9217188702 | AN9: 0.6824470444 | AO9: 1.212296321 | AP9: 1.656388755 | AQ9: 1.1698552 | AR9: 0.8251314376 | AT9: 2.164286306 | AU9: 2.723567952 | AV9: 1.459174453 | AW9: 3.045400458 | AX9: 2.357992143 | AY9: 1.977983931 | AZ9: 2.060117831
A10: 4-Acetamidobutanoic acid | B10: 0 | C10: 0 | D10: 0 | E10: 0 | F10: 0 | G10: 0 | H10: 0 | J10: 0 | K10: 0 | L10: 0 | M10: 0 | N10: 0 | O10: 0 | P10: 0 | S10: 4-Acetamidobutanoic acid | T10: 0 | U10: 0 | V10: 0 | W10: 0 | X10: 0 | Y10: 0 | Z10: 0 | AB10: 0 | AC10: 0 | AD10: 0 | AE10: 0 | AF10: 0 | AG10: 0 | AH10: 0 | AK10: 4-Acetamidobutanoic acid
A11: 4-Guanidinobutanoic acid | B11: 0 | C11: 0 | D11: 0 | E11: 0 | F11: 0 | G11: 0 | H11: 0 | J11: 0 | K11: 0 | L11: 0 | M11: 0 | N11: 0 | O11: 0 | P11: 0 | S11: 4-Guanidinobutanoic acid | T11: 0 | U11: 0 | V11: 0 | W11: 0 | X11: 0 | Y11: 0 | Z11: 0 | AB11: 0 | AC11: 0 | AD11: 0 | AE11: 0 | AF11: 0 | AG11: 0 | AH11: 0 | AK11: 4-Guanidinobutanoic acid
A12: 4-Hydroxyproline | B12: 0 | C12: 0 | D12: 0 | E12: 0 | F12: 0 | G12: 0 | H12: 0 | J12: 0 | K12: 0 | L12: 0 | M12: 0 | N12: 0 | O12: 0 | P12: 0 | S12: 4-Hydroxyproline | T12: 0 | U12: 0 | V12: 0 | W12: 0 | X12: 0 | Y12: 0 | Z12: 0 | AB12: 0 | AC12: 0 | AD12: 0 | AE12: 0 | AF12: 0 | AG12: 0 | AH12: 0 | AK12: 4-Hydroxyproline
A13: 4-Pyridoxic acid | B13: 0 | C13: 0 | D13: 0 | E13: 0 | F13: 0 | G13: 0 | H13: 0 | J13: 0 | K13: 0 | L13: 0 | M13: 0 | N13: 0 | O13: 0 | P13: 0 | S13: 4-Pyridoxic acid | T13: 0 | U13: 0 | V13: 0 | W13: 0 | X13: 0 | Y13: 0 | Z13: 0 | AB13: 0 | AC13: 0 | AD13: 0 | AE13: 0 | AF13: 0 | AG13: 0 | AH13: 0 | AK13: 4-Pyridoxic acid
A14: 4-Trimethylammoniobutanoic acid | B14: 0 | C14: 0 | D14: 0 | E14: 0 | F14: 0 | G14: 0 | H14: 0 | J14: 0 | K14: 0 | L14: 0 | M14: 0 | N14: 0 | O14: 0 | P14: 0 | S14: 4-Trimethylammoniobutanoic acid | T14: 0 | U14: 0 | V14: 0 | W14: 0 | X14: 0 | Y14: 0 | Z14: 0 | AB14: 0 | AC14: 0 | AD14: 0 | AE14: 0 | AF14: 0 | AG14: 0 | AH14: 0 | AK14: 4-Trimethylammoniobutanoic acid
A15: 5-Thymidylic acid | B15: 0 | C15: 0 | D15: 0 | E15: 0 | F15: 0 | G15: 0 | H15: 0 | J15: 0 | K15: 0 | L15: 0 | M15: 0 | N15: 0 | O15: 0 | P15: 0 | S15: 5-Thymidylic acid | T15: 0 | U15: 0 | V15: 0 | W15: 0 | X15: 0 | Y15: 0 | Z15: 0 | AB15: 0 | AC15: 0 | AD15: 0 | AE15: 0 | AF15: 0 | AG15: 0 | AH15: 0 | AK15: 5-Thymidylic acid
A16: 6-Phosphogluconic acid | B16: 0 | C16: 0 | D16: 0 | E16: 0 | F16: 0 | G16: 0 | H16: 0 | J16: 0 | K16: 0 | L16: 0 | M16: 0 | N16: 0 | O16: 0 | P16: 0 | S16: 6-Phosphogluconic acid | T16: 0 | U16: 0 | V16: 0 | W16: 0 | X16: 0 | Y16: 0 | Z16: 0 | AB16: 0 | AC16: 0 | AD16: 0 | AE16: 0 | AF16: 0 | AG16: 0 | AH16: 0 | AK16: 6-Phosphogluconic acid
A17: 6-Phosphonoglucono-D-lactone | B17: 0 | C17: 0 | D17: 0 | E17: 0 | F17: 0 | G17: 0 | H17: 0 | J17: 0 | K17: 0 | L17: 0 | M17: 0 | N17: 0 | O17: 0 | P17: 0 | S17: 6-Phosphonoglucono-D-lactone | T17: 0 | U17: 0 | V17: 0 | W17: 0 | X17: 0 | Y17: 0 | Z17: 0 | AB17: 0 | AC17: 0 | AD17: 0 | AE17: 0 | AF17: 0 | AG17: 0 | AH17: 0 | AK17: 6-Phosphonoglucono-D-lactone
A18: Acetylcholine | B18: 0 | C18: 0 | D18: 0 | E18: 0 | F18: 0 | G18: 0 | H18: 0 | J18: 0 | K18: 0 | L18: 0 | M18: 0 | N18: 0 | O18: 0 | P18: 0 | S18: Acetylcholine | T18: 0 | U18: 0 | V18: 0 | W18: 0 | X18: 0 | Y18: 0 | Z18: 0 | AB18: 0 | AC18: 0 | AD18: 0 | AE18: 0 | AF18: 0 | AG18: 0 | AH18: 0 | AK18: Acetylcholine
A19: Acetyl-CoA | B19: 0 | C19: 0 | D19: 0 | E19: 0 | F19: 0 | G19: 0 | H19: 0 | J19: 0 | K19: 0 | L19: 0 | M19: 0 | N19: 0 | O19: 0 | P19: 0 | S19: Acetyl-CoA | T19: 0 | U19: 0 | V19: 0 | W19: 0 | X19: 0 | Y19: 0 | Z19: 0 | AB19: 0 | AC19: 0 | AD19: 0 | AE19: 0 | AF19: 0 | AG19: 0 | AH19: 0 | AK19: Acetyl-CoA
A20: Acetylcysteine | B20: 0 | C20: 0 | D20: 0 | E20: 0 | F20: 0 | G20: 0 | H20: 0 | J20: 0 | K20: 0 | L20: 0 | M20: 0 | N20: 0 | O20: 0 | P20: 0 | S20: Acetylcysteine | T20: 0 | U20: 0 | V20: 0 | W20: 0 | X20: 0 | Y20: 0 | Z20: 0 | AB20: 0 | AC20: 0 | AD20: 0 | AE20: 0 | AF20: 0 | AG20: 0 | AH20: 0 | AK20: Acetylcysteine
A21: Adenine | B21: 10684.16174 | C21: 0 | D21: 10119.68554 | E21: 0 | F21: 0 | G21: 0 | H21: 10509.43029 | J21: 10465.48913 | K21: 0 | L21: 0 | M21: 13060.9908 | N21: 12036.84523 | O21: 0 | P21: 0 | S21: Adenine | T21: 0.0002326149266 | U21: 0 | V21: 0.0001604911727 | W21: 0 | X21: 0 | Y21: 0 | Z21: 0.0002382703436 | AB21: 0.0002297734121 | AC21: 0 | AD21: 0 | AE21: 0.0002960002232 | AF21: 0.0003222250961 | AG21: 0 | AH21: 0 | AK21: Adenine | AL21: 2.578975672 | AM21: 0 | AN21: 1.77934768 | AO21: 0 | AP21: 0 | AQ21: 0 | AR21: 2.641676648 | AT21: 2.547472118 | AU21: 0 | AV21: 0 | AW21: 3.281721366 | AX21: 3.572473597 | AY21: 0 | AZ21: 0
A22: Adenosine monophosphate | B22: 279180.339 | C22: 205782.2846 | D22: 236438.035 | E22: 261139.9839 | F22: 191306.1196 | G22: 348241.6573 | H22: 392325.5289 | J22: 682792.6393 | K22: 595572.9702 | L22: 536507.1956 | M22: 525589.07 | N22: 575980.2056 | O22: 469746.914 | P22: 387642.225 | S22: Adenosine monophosphate | T22: 0.006078297548 | U22: 0.004179349312 | V22: 0.00374974275 | W22: 0.003909047823 | X22: 0.004285959394 | Y22: 0.008400096674 | Z22: 0.008894824556 | AB22: 0.01499094716 | AC22: 0.01352430108 | AD22: 0.008752306035 | AE22: 0.0119113844 | AF22: 0.01541893025 | AG22: 0.01139203751 | AH22: 0.01139549523 | AK22: Adenosine monophosphate | AL22: 1.077239796 | AM22: 0.740694473 | AN22: 0.664556495 | AO22: 0.6927896907 | AP22: 0.7595886818 | AQ22: 1.488725807 | AR22: 1.576405056 | AT22: 2.656803937 | AU22: 2.396874324 | AV22: 1.551146895 | AW22: 2.111021581 | AX22: 2.732654192 | AY22: 2.018979174 | AZ22: 2.019591976
A23: Adenosine triphosphate | B23: 295269.9148 | C23: 297535.3691 | D23: 139476.8665 | E23: 121776.8425 | F23: 148624.9061 | G23: 109517.242 | H23: 104956.4898 | J23: 142457.7761 | K23: 60787.17677 | L23: 54868.61939 | M23: 161772.2899 | N23: 39542.02711 | O23: 32033.91402 | P23: 38661.50213 | S23: Adenosine triphosphate | T23: 0.006428598824 | U23: 0.006042814825 | V23: 0.002212006072 | W23: 0.001822897796 | X23: 0.003329743521 | Y23: 0.002641715605 | Z23: 0.002379578931 | AB23: 0.003127709455 | AC23: 0.001380358279 | AD23: 0.0008950988031 | AE23: 0.003666232881 | AF23: 0.001058535957 | AG23: 0.0007768684353 | AH23: 0.001136529859 | AK23: Adenosine triphosphate | AL23: 1.81033705 | AM23: 1.701697658 | AN23: 0.6229159195 | AO23: 0.5133403887 | AP23: 0.9376783696 | AQ23: 0.7439250398 | AR23: 0.6701055737 | AT23: 0.8807842058 | AU23: 0.3887182579 | AV23: 0.2520658967 | AW23: 1.032436057 | AX23: 0.2980909082 | AY23: 0.2187714229 | AZ23: 0.3200545202
A24: Adenosine | B24: 0 | C24: 0 | D24: 0 | E24: 0 | F24: 0 | G24: 0 | H24: 13417.52319 | J24: 28247.22724 | K24: 15415.99545 | L24: 10537.36173 | M24: 15013.70631 | N24: 12506.57536 | O24: 0 | P24: 15177.38012 | S24: Adenosine | T24: 0 | U24: 0 | V24: 0 | W24: 0 | X24: 0 | Y24: 0 | Z24: 0.0003042027753 | AB24: 0.0006201775861 | AC24: 0.000350067203 | AD24: 0.00017190117 | AE24: 0.0003402544637 | AF24: 0.0003347997227 | AG24: 0 | AH24: 0.000446168533 | AK24: Adenosine | AL24: 0 | AM24: 0 | AN24: 0 | AO24: 0 | AP24: 0 | AQ24: 0 | AR24: 7 | AT24: 14.27088592 | AU24: 8.055384829 | AV24: 3.955612137 | AW24: 7.82958421 | AX24: 7.704065345 | AY24: 0 | AZ24: 10.26676935
A25: ADP | B25: 232572.0709 | C25: 183175.3284 | D25: 198466.7657 | E25: 223394.6133 | F25: 137946.9634 | G25: 210910.417 | H25: 190559.7704 | J25: 208817.5438 | K25: 203940.5926 | L25: 185154.5401 | M25: 191892.8168 | N25: 149770.9206 | O25: 144245.9569 | P25: 131981.8279 | S25: ADP | T25: 0.005063545138 | U25: 0.003720211796 | V25: 0.003147544835 | W25: 0.003344031096 | X25: 0.003090518404 | Y25: 0.005087466865 | Z25: 0.004320380908 | AB25: 0.00458466097 | AC25: 0.004631093274 | AD25: 0.003020517176 | AE25: 0.004348852052 | AF25: 0.004009351981 | AG25: 0.003498171682 | AH25: 0.003879861877 | AK25: ADP | AL25: 1.276200765 | AM25: 0.9376310492 | AN25: 0.7932977819 | AO25: 0.8428195911 | AP25: 0.7789250108 | AQ25: 1.282229926 | AR25: 1.088895876 | AT25: 1.155504232 | AU25: 1.167206891 | AV25: 0.7612821108 | AW25: 1.096071658 | AX25: 1.010505076 | AY25: 0.8816687231 | AZ25: 0.9778687779
A26: ADP-glucose | B26: 38226.04124 | C26: 14651.83223 | D26: 30343.59061 | E26: 25903.75755 | F26: 29442.72145 | G26: 16741.5338 | H26: 32174.1779 | J26: 33540.52773 | K26: 20219.87479 | L26: 24115.42907 | M26: 16863.50853 | N26: 24922.0164 | O26: 0 | P26: 0 | S26: ADP-glucose | T26: 0.0008322550706 | U26: 0.0002975723836 | V26: 0.0004812282377 | W26: 0.0003877576521 | X26: 0.0006596250492 | Y26: 0.0004038302123 | Z26: 0.000729454615 | AB26: 0.0007363938185 | AC26: 0.0004591539376 | AD26: 0.0003934068679 | AE26: 0.0003821763882 | AF26: 0.0006671597893 | AG26: 0 | AH26: 0 | AK26: ADP-glucose | AL26: 1.536447983 | AM26: 0.5493562067 | AN26: 0.888408111 | AO26: 0.7158496037 | AP26: 1.217751158 | AQ26: 0.74552158 | AR26: 1.346665357 | AT26: 1.359476003 | AU26: 0.8476561649 | AV26: 0.7262787696 | AW26: 0.7055458854 | AX26: 1.23166124 | AY26: 0 | AZ26: 0
A27: AICAR | B27: 0 | C27: 0 | D27: 0 | E27: 0 | F27: 0 | G27: 0 | H27: 0 | J27: 0 | K27: 0 | L27: 0 | M27: 0 | N27: 0 | O27: 0 | P27: 0 | S27: AICAR | T27: 0 | U27: 0 | V27: 0 | W27: 0 | X27: 0 | Y27: 0 | Z27: 0 | AB27: 0 | AC27: 0 | AD27: 0 | AE27: 0 | AF27: 0 | AG27: 0 | AH27: 0 | AK27: AICAR
A28: Allantoin | B28: 0 | C28: 0 | D28: 0 | E28: 0 | F28: 0 | G28: 0 | H28: 0 | J28: 0 | K28: 0 | L28: 0 | M28: 0 | N28: 0 | O28: 0 | P28: 0 | S28: Allantoin | T28: 0 | U28: 0 | V28: 0 | W28: 0 | X28: 0 | Y28: 0 | Z28: 0 | AB28: 0 | AC28: 0 | AD28: 0 | AE28: 0 | AF28: 0 | AG28: 0 | AH28: 0 | AK28: Allantoin
A29: Aminoadipic acid | B29: 0 | C29: 0 | D29: 0 | E29: 0 | F29: 0 | G29: 0 | H29: 0 | J29: 0 | K29: 0 | L29: 0 | M29: 0 | N29: 0 | O29: 0 | P29: 0 | S29: Aminoadipic acid | T29: 0 | U29: 0 | V29: 0 | W29: 0 | X29: 0 | Y29: 0 | Z29: 0 | AB29: 0 | AC29: 0 | AD29: 0 | AE29: 0 | AF29: 0 | AG29: 0 | AH29: 0 | AK29: Aminoadipic acid
A30: Anserine | B30: 0 | C30: 0 | D30: 0 | E30: 0 | F30: 0 | G30: 0 | H30: 0 | J30: 0 | K30: 0 | L30: 0 | M30: 0 | N30: 0 | O30: 0 | P30: 0 | S30: Anserine | T30: 0 | U30: 0 | V30: 0 | W30: 0 | X30: 0 | Y30: 0 | Z30: 0 | AB30: 0 | AC30: 0 | AD30: 0 | AE30: 0 | AF30: 0 | AG30: 0 | AH30: 0 | AK30: Anserine
A31: Argininosuccinic acid | B31: 0 | C31: 0 | D31: 0 | E31: 0 | F31: 0 | G31: 0 | H31: 0 | J31: 0 | K31: 0 | L31: 0 | M31: 0 | N31: 0 | O31: 0 | P31: 0 | S31: Argininosuccinic acid | T31: 0 | U31: 0 | V31: 0 | W31: 0 | X31: 0 | Y31: 0 | Z31: 0 | AB31: 0 | AC31: 0 | AD31: 0 | AE31: 0 | AF31: 0 | AG31: 0 | AH31: 0 | AK31: Argininosuccinic acid
A32: Ascorbic acid | B32: 0 | C32: 0 | D32: 0 | E32: 0 | F32: 0 | G32: 0 | H32: 0 | J32: 0 | K32: 0 | L32: 0 | M32: 0 | N32: 0 | O32: 0 | P32: 0 | S32: Ascorbic acid | T32: 0 | U32: 0 | V32: 0 | W32: 0 | X32: 0 | Y32: 0 | Z32: 0 | AB32: 0 | AC32: 0 | AD32: 0 | AE32: 0 | AF32: 0 | AG32: 0 | AH32: 0 | AK32: Ascorbic acid
A33: Asymmetric dimethylarginine | B33: 0 | C33: 0 | D33: 0 | E33: 0 | F33: 0 | G33: 0 | H33: 0 | J33: 0 | K33: 0 | L33: 0 | M33: 0 | N33: 0 | O33: 0 | P33: 0 | S33: Asymmetric dimethylarginine | T33: 0 | U33: 0 | V33: 0 | W33: 0 | X33: 0 | Y33: 0 | Z33: 0 | AB33: 0 | AC33: 0 | AD33: 0 | AE33: 0 | AF33: 0 | AG33: 0 | AH33: 0 | AK33: Asymmetric dimethylarginine
A34: Betaine | B34: 0 | C34: 0 | D34: 13206.57541 | E34: 0 | F34: 0 | G34: 0 | H34: 0 | J34: 0 | K34: 0 | L34: 43759.60892 | M34: 0 | N34: 0 | O34: 0 | P34: 27509.24842 | S34: Betaine | T34: 0 | U34: 0 | V34: 0.0002094470985 | W34: 0 | X34: 0 | Y34: 0 | Z34: 0 | AB34: 0 | AC34: 0 | AD34: 0.0007138720458 | AE34: 0 | AF34: 0 | AG34: 0 | AH34: 0.0008086877255 | AK34: Betaine | AL34: 0 | AM34: 0 | AN34: 7 | AO34: 0 | AP34: 0 | AQ34: 0 | AR34: 0 | AT34: 0 | AU34: 0 | AV34: 23.85855119 | AW34: 0 | AX34: 0 | AY34: 0 | AZ34: 27.02741704
A35: Butyrylcarnitine | B35: 12483.72266 | C35: 0 | D35: 0 | E35: 10015.10409 | F35: 0 | G35: 0 | H35: 0 | J35: 0 | K35: 0 | L35: 0 | M35: 0 | N35: 0 | O35: 0 | P35: 0 | S35: Butyrylcarnitine | T35: 0.0002717948589 | U35: 0 | V35: 0 | W35: 0.0001499177577 | X35: 0 | Y35: 0 | Z35: 0 | AB35: 0 | AC35: 0 | AD35: 0 | AE35: 0 | AF35: 0 | AG35: 0 | AH35: 0 | AK35: Butyrylcarnitine | AL35: 4.511517885 | AM35: 0 | AN35: 0 | AO35: 2.488482115 | AP35: 0 | AQ35: 0 | AR35: 0 | AT35: 0 | AU35: 0 | AV35: 0 | AW35: 0 | AX35: 0 | AY35: 0 | AZ35: 0
A36: Caprylic acid | B36: 0 | C36: 0 | D36: 0 | E36: 0 | F36: 0 | G36: 0 | H36: 0 | J36: 0 | K36: 0 | L36: 0 | M36: 0 | N36: 0 | O36: 0 | P36: 0 | S36: Caprylic acid | T36: 0 | U36: 0 | V36: 0 | W36: 0 | X36: 0 | Y36: 0 | Z36: 0 | AB36: 0 | AC36: 0 | AD36: 0 | AE36: 0 | AF36: 0 | AG36: 0 | AH36: 0 | AK36: Caprylic acid
A37: Carnosine | B37: 0 | C37: 0 | D37: 10724.0597 | E37: 0 | F37: 0 | G37: 0 | H37: 0 | J37: 0 | K37: 0 | L37: 0 | M37: 0 | N37: 0 | O37: 0 | P37: 0 | S37: Carnosine | T37: 0 | U37: 0 | V37: 0.0001700761263 | W37: 0 | X37: 0 | Y37: 0 | Z37: 0 | AB37: 0 | AC37: 0 | AD37: 0 | AE37: 0 | AF37: 0 | AG37: 0 | AH37: 0 | AK37: Carnosine | AL37: 0 | AM37: 0 | AN37: 7 | AO37: 0 | AP37: 0 | AQ37: 0 | AR37: 0 | AT37: 0 | AU37: 0 | AV37: 0 | AW37: 0 | AX37: 0 | AY37: 0 | AZ37: 0
A38: CDP | B38: 14001.31348 | C38: 16845.64142 | D38: 18285.62388 | E38: 0 | F38: 0 | G38: 28112.53708 | H38: 26084.07677 | J38: 16042.88831 | K38: 11587.48471 | L38: 25997.60437 | M38: 14779.24439 | N38: 13550.66685 | O38: 25055.82783 | P38: 0 | S38: CDP | T38: 0.0003048357549 | U38: 0.0003421277006 | V38: 0.0002899972738 | W38: 0 | X38: 0 | Y38: 0.0006781153957 | Z38: 0.0005913795292 | AB38: 0.0003522271288 | AC38: 0.0002631291878 | AD38: 0.0004241117202 | AE38: 0.0003349408714 | AF38: 0.0003627499433 | AG38: 0.0006076398205 | AH38: 0 | AK38: CDP | AL38: 0.9670941177 | AM38: 1.085403144 | AN38: 0.9200189058 | AO38: 0 | AP38: 0 | AQ38: 2.151327066 | AR38: 1.876156766 | AT38: 1.117443669 | AU38: 0.8347796662 | AV38: 1.345498169 | AW38: 1.062602865 | AX38: 1.150827391 | AY38: 1.927742683 | AZ38: 0
A39: CDP-Ethanolamine | B39: 26778.91505 | C39: 0 | D39: 0 | E39: 0 | F39: 0 | G39: 0 | H39: 0 | J39: 0 | K39: 0 | L39: 0 | M39: 0 | N39: 0 | O39: 0 | P39: 0 | S39: CDP-Ethanolamine | T39: 0.0005830289277 | U39: 0 | V39: 0 | W39: 0 | X39: 0 | Y39: 0 | Z39: 0 | AB39: 0 | AC39: 0 | AD39: 0 | AE39: 0 | AF39: 0 | AG39: 0 | AH39: 0 | AK39: CDP-Ethanolamine | AL39: 7 | AM39: 0 | AN39: 0 | AO39: 0 | AP39: 0 | AQ39: 0 | AR39: 0 | AT39: 0 | AU39: 0 | AV39: 0 | AW39: 0 | AX39: 0 | AY39: 0 | AZ39: 0
A40: Choline | B40: 0 | C40: 0 | D40: 0 | E40: 0 | F40: 0 | G40: 0 | H40: 0 | J40: 0 | K40: 0 | L40: 0 | M40: 0 | N40: 0 | O40: 0 | P40: 0 | S40: Choline | T40: 0 | U40: 0 | V40: 0 | W40: 0 | X40: 0 | Y40: 0 | Z40: 0 | AB40: 0 | AC40: 0 | AD40: 0 | AE40: 0 | AF40: 0 | AG40: 0 | AH40: 0 | AK40: Choline
A41: cis-Aconitic acid | B41: 208597.7888 | C41: 159729.6213 | D41: 149797.3879 | E41: 171872.7762 | F41: 148993.1838 | G41: 124717.2018 | H41: 155692.9031 | J41: 370202.263 | K41: 216993.9804 | L41: 190572.4745 | M41: 197549.4392 | N41: 188836.5603 | O41: 140909.2658 | P41: 127591.4613 | S41: cis-Aconitic acid | T41: 0.00454157851 | U41: 0.003244039613 | V41: 0.002375682361 | W41: 0.002572792153 | X41: 0.003337994295 | Y41: 0.003008360804 | Z41: 0.003529877502 | AB41: 0.008127917969 | AC41: 0.004927510263 | AD41: 0.003108902606 | AE41: 0.004477047647 | AF41: 0.005055135095 | AG41: 0.003417252128 | AH41: 0.003750798534 | AK41: cis-Aconitic acid | AL41: 1.406041233 | AM41: 1.004332182 | AN41: 0.735494795 | AO41: 0.7965186207 | AP41: 1.033419901 | AQ41: 0.9313676564 | AR41: 1.092825612 | AT41: 2.516347075 | AU41: 1.525523029 | AV41: 0.9624947015 | AW41: 1.386062925 | AX41: 1.565034792 | AY41: 1.057957576 | AZ41: 1.161221233
A42: Citicoline | B42: 21635.17053 | C42: 20627.66264 | D42: 34467.12814 | E42: 31017.36459 | F42: 35515.65235 | G42: 26062.72096 | H42: 30977.61566 | J42: 23567.13355 | K42: 19076.94821 | L42: 34930.09722 | M42: 28915.96997 | N42: 24971.38474 | O42: 18660.41646 | P42: 18672.80714 | S42: Citicoline | T42: 0.0004710396315 | U42: 0.0004189389181 | V42: 0.0005466246744 | W42: 0.0004643040858 | X42: 0.0007956809961 | Y42: 0.0006286708413 | Z42: 0.0007023260944 | AB42: 0.0005174245202 | AC42: 0.000433200303 | AD42: 0.0005698318741 | AE42: 0.0006553203888 | AF42: 0.0006684813746 | AG42: 0.0004525419071 | AH42: 0.0005489233911 | AK42: Citicoline | AL42: 0.8186735283 | AM42: 0.728121753 | AN42: 0.9500413998 | AO42: 0.8069670549 | AP42: 1.382904802 | AQ42: 1.092638796 | AR42: 1.220652666 | AT42: 0.8992911196 | AU42: 0.7529082413 | AV42: 0.9903758404 | AW42: 1.138956086 | AX42: 1.161830065 | AY42: 0.7865242223 | AZ42: 0.954036602
A43: Citric acid | B43: 3203802.565 | C43: 2398246.725 | D43: 2193961.929 | E43: 2242772.398 | F43: 1960415.576 | G43: 1813301.837 | H43: 1677638.462 | J43: 3533395.335 | K43: 2368731.85 | L43: 2031273.524 | M43: 2097086.099 | N43: 1811165.044 | O43: 1512593.585 | P43: 1234086.166 | S43: Citric acid | T43: 0.06975299674 | U43: 0.04870735506 | V43: 0.03479470991 | W43: 0.03357243279 | X43: 0.04392050589 | Y43: 0.04373948496 | Z43: 0.03803550543 | AB43: 0.07757690944 | AC43: 0.05378928245 | AD43: 0.03313716511 | AE43: 0.0475260999 | AF43: 0.04848470001 | AG43: 0.03668256746 | AH43: 0.036278357 | AK43: Citric acid | AL43: 1.562352184 | AM43: 1.09096449 | AN43: 0.7793441653 | AO43: 0.751967172 | AP43: 0.9837469572 | AQ43: 0.9796923867 | AR43: 0.8519326445 | AT43: 1.737594936 | AU43: 1.20479129 | AV43: 0.7422178932 | AW43: 1.064506322 | AX43: 1.085977384 | AY43: 0.8216290635 | AZ43: 0.8125754151
A44: Citrulline | B44: 0 | C44: 0 | D44: 0 | E44: 0 | F44: 0 | G44: 0 | H44: 0 | J44: 0 | K44: 0 | L44: 0 | M44: 0 | N44: 0 | O44: 0 | P44: 0 | S44: Citrulline | T44: 0 | U44: 0 | V44: 0 | W44: 0 | X44: 0 | Y44: 0 | Z44: 0 | AB44: 0 | AC44: 0 | AD44: 0 | AE44: 0 | AF44: 0 | AG44: 0 | AH44: 0 | AK44: Citrulline
A45: Coenzyme A | B45: 0 | C45: 0 | D45: 0 | E45: 0 | F45: 13958.19337 | G45: 0 | H45: 0 | J45: 0 | K45: 0 | L45: 0 | M45: 0 | N45: 0 | O45: 0 | P45: 0 | S45: Coenzyme A | T45: 0 | U45: 0 | V45: 0 | W45: 0 | X45: 0.0003127147742 | Y45: 0 | Z45: 0 | AB45: 0 | AC45: 0 | AD45: 0 | AE45: 0 | AF45: 0 | AG45: 0 | AH45: 0 | AK45: Coenzyme A | AL45: 0 | AM45: 0 | AN45: 0 | AO45: 0 | AP45: 7 | AQ45: 0 | AR45: 0 | AT45: 0 | AU45: 0 | AV45: 0 | AW45: 0 | AX45: 0 | AY45: 0 | AZ45: 0
A46: Creatine | B46: 0 | C46: 0 | D46: 0 | E46: 0 | F46: 0 | G46: 0 | H46: 0 | J46: 12189.70769 | K46: 0 | L46: 0 | M46: 0 | N46: 0 | O46: 0 | P46: 0 | S46: Creatine | T46: 0 | U46: 0 | V46: 0 | W46: 0 | X46: 0 | Y46: 0 | Z46: 0 | AB46: 0.0002676292235 | AC46: 0 | AD46: 0 | AE46: 0 | AF46: 0 | AG46: 0 | AH46: 0 | AK46: Creatine
A47: Creatinine | B47: 0 | C47: 0 | D47: 0 | E47: 0 | F47: 0 | G47: 0 | H47: 0 | J47: 0 | K47: 0 | L47: 0 | M47: 0 | N47: 0 | O47: 0 | P47: 0 | S47: Creatinine | T47: 0 | U47: 0 | V47: 0 | W47: 0 | X47: 0 | Y47: 0 | Z47: 0 | AB47: 0 | AC47: 0 | AD47: 0 | AE47: 0 | AF47: 0 | AG47: 0 | AH47: 0 | AK47: Creatinine
A48: Cyclic AMP | B48: 0 | C48: 0 | D48: 0 | E48: 0 | F48: 0 | G48: 0 | H48: 0 | J48: 0 | K48: 0 | L48: 0 | M48: 0 | N48: 0 | O48: 0 | P48: 0 | S48: Cyclic AMP | T48: 0 | U48: 0 | V48: 0 | W48: 0 | X48: 0 | Y48: 0 | Z48: 0 | AB48: 0 | AC48: 0 | AD48: 0 | AE48: 0 | AF48: 0 | AG48: 0 | AH48: 0 | AK48: Cyclic AMP
A49: Cytidine monophosphate | B49: 0 | C49: 0 | D49: 0 | E49: 0 | F49: 11017.61444 | G49: 13726.45618 | H49: 0 | J49: 0 | K49: 0 | L49: 0 | M49: 0 | N49: 0 | O49: 20002.96997 | P49: 0 | S49: Cytidine monophosphate | T49: 0 | U49: 0 | V49: 0 | W49: 0 | X49: 0.0002468350109 | Y49: 0.0003311021427 | Z49: 0 | AB49: 0 | AC49: 0 | AD49: 0 | AE49: 0 | AF49: 0 | AG49: 0.0004851007584 | AH49: 0 | AK49: Cytidine monophosphate | AL49: 0 | AM49: 0 | AN49: 0 | AO49: 0 | AP49: 2.989676413 | AQ49: 4.010323587 | AR49: 0 | AT49: 0 | AU49: 0 | AV49: 0 | AW49: 0 | AX49: 0 | AY49: 5.875561534 | AZ49: 0
A50: Cytidine triphosphate | B50: 0 | C50: 0 | D50: 14602.11499 | E50: 0 | F50: 0 | G50: 0 | H50: 19888.2855 | J50: 0 | K50: 0 | L50: 0 | M50: 14023.92216 | N50: 0 | O50: 11539.35517 | P50: 12062.17588 | S50: Cytidine triphosphate | T50: 0 | U50: 0 | V50: 0.0002315793854 | W50: 0 | X50: 0 | Y50: 0 | Z50: 0.0004509082311 | AB50: 0 | AC50: 0 | AD50: 0 | AE50: 0.0003178230622 | AF50: 0 | AG50: 0.0002798459404 | AH50: 0.0003545910607 | AK50: Cytidine triphosphate | AL50: 0 | AM50: 0 | AN50: 2.375216281 | AO50: 0 | AP50: 0 | AQ50: 0 | AR50: 4.624783719 | AT50: 0 | AU50: 0 | AV50: 0 | AW50: 3.259782862 | AX50: 0 | AY50: 2.870266853 | AZ50: 3.636897381
A51: Cytidine | B51: 0 | C51: 0 | D51: 81197.59903 | E51: 97798.88654 | F51: 0 | G51: 0 | H51: 0 | J51: 0 | K51: 0 | L51: 47150.63521 | M51: 0 | N51: 0 | O51: 21943.97692 | P51: 28358.00738 | S51: Cytidine | T51: 0 | U51: 0 | V51: 0.001287737433 | W51: 0.001463967787 | X51: 0 | Y51: 0 | Z51: 0 | AB51: 0 | AC51: 0 | AD51: 0.0007691915273 | AE51: 0 | AF51: 0 | AG51: 0.0005321729653 | AH51: 0.0008336386416 | AK51: Cytidine | AL51: 0 | AM51: 0 | AN51: 3.275845815 | AO51: 3.724154185 | AP51: 0 | AQ51: 0 | AR51: 0 | AT51: 0 | AU51: 0 | AV51: 1.956728741 | AW51: 0 | AX51: 0 | AY51: 1.35378264 | AZ51: 2.120674281
A52: Cytosine | B52: 0 | C52: 0 | D52: 0 | E52: 0 | F52: 0 | G52: 0 | H52: 0 | J52: 0 | K52: 0 | L52: 0 | M52: 0 | N52: 0 | O52: 0 | P52: 0 | S52: Cytosine | T52: 0 | U52: 0 | V52: 0 | W52: 0 | X52: 0 | Y52: 0 | Z52: 0 | AB52: 0 | AC52: 0 | AD52: 0 | AE52: 0 | AF52: 0 | AG52: 0 | AH52: 0 | AK52: Cytosine
A53: D-2-Hydroxyglutaric acid | B53: 0 | C53: 0 | D53: 0 | E53: 0 | F53: 0 | G53: 0 | H53: 0 | J53: 0 | K53: 0 | L53: 0 | M53: 0 | N53: 0 | O53: 0 | P53: 0 | S53: D-2-Hydroxyglutaric acid | T53: 0 | U53: 0 | V53: 0 | W53: 0 | X53: 0 | Y53: 0 | Z53: 0 | AB53: 0 | AC53: 0 | AD53: 0 | AE53: 0 | AF53: 0 | AG53: 0 | AH53: 0 | AK53: D-2-Hydroxyglutaric acid
A54: dCDP | B54: 0 | C54: 0 | D54: 0 | E54: 0 | F54: 0 | G54: 0 | H54: 0 | J54: 0 | K54: 0 | L54: 0 | M54: 0 | N54: 0 | O54: 0 | P54: 0 | S54: dCDP | T54: 0 | U54: 0 | V54: 0 | W54: 0 | X54: 0 | Y54: 0 | Z54: 0 | AB54: 0 | AC54: 0 | AD54: 0 | AE54: 0 | AF54: 0 | AG54: 0 | AH54: 0 | AK54: dCDP
A55: dCMP | B55: 0 | C55: 0 | D55: 0 | E55: 0 | F55: 0 | G55: 0 | H55: 0 | J55: 0 | K55: 0 | L55: 0 | M55: 0 | N55: 0 | O55: 0 | P55: 0 | S55: dCMP | T55: 0 | U55: 0 | V55: 0 | W55: 0 | X55: 0 | Y55: 0 | Z55: 0 | AB55: 0 | AC55: 0 | AD55: 0 | AE55: 0 | AF55: 0 | AG55: 0 | AH55: 0 | AK55: dCMP
A56: dCTP | B56: 0 | C56: 0 | D56: 0 | E56: 0 | F56: 0 | G56: 0 | H56: 0 | J56: 0 | K56: 0 | L56: 0 | M56: 0 | N56: 0 | O56: 0 | P56: 0 | S56: dCTP | T56: 0 | U56: 0 | V56: 0 | W56: 0 | X56: 0 | Y56: 0 | Z56: 0 | AB56: 0 | AC56: 0 | AD56: 0 | AE56: 0 | AF56: 0 | AG56: 0 | AH56: 0 | AK56: dCTP
A57: Deoxyadenosine monophosphate | B57: 0 | C57: 0 | D57: 0 | E57: 0 | F57: 0 | G57: 0 | H57: 0 | J57: 0 | K57: 0 | L57: 0 | M57: 0 | N57: 0 | O57: 0 | P57: 0 | S57: Deoxyadenosine monophosphate | T57: 0 | U57: 0 | V57: 0 | W57: 0 | X57: 0 | Y57: 0 | Z57: 0 | AB57: 0 | AC57: 0 | AD57: 0 | AE57: 0 | AF57: 0 | AG57: 0 | AH57: 0 | AK57: Deoxyadenosine monophosphate
A58: Deoxyadenosine triphosphate | B58: 0 | C58: 0 | D58: 0 | E58: 0 | F58: 0 | G58: 0 | H58: 0 | J58: 0 | K58: 0 | L58: 0 | M58: 0 | N58: 0 | O58: 0 | P58: 0 | S58: Deoxyadenosine triphosphate | T58: 0 | U58: 0 | V58: 0 | W58: 0 | X58: 0 | Y58: 0 | Z58: 0 | AB58: 0 | AC58: 0 | AD58: 0 | AE58: 0 | AF58: 0 | AG58: 0 | AH58: 0 | AK58: Deoxyadenosine triphosphate
A59: Deoxyadenosine | B59: 0 | C59: 0 | D59: 0 | E59: 0 | F59: 0 | G59: 0 | H59: 0 | J59: 0 | K59: 0 | L59: 0 | M59: 0 | N59: 0 | O59: 0 | P59: 0 | S59: Deoxyadenosine | T59: 0 | U59: 0 | V59: 0 | W59: 0 | X59: 0 | Y59: 0 | Z59: 0 | AB59: 0 | AC59: 0 | AD59: 0 | AE59: 0 | AF59: 0 | AG59: 0 | AH59: 0 | AK59: Deoxyadenosine
A60: Deoxyinosine | B60: 0 | C60: 0 | D60: 0 | E60: 0 | F60: 0 | G60: 0 | H60: 0 | J60: 0 | K60: 0 | L60: 0 | M60: 0 | N60: 0 | O60: 0 | P60: 0 | S60: Deoxyinosine | T60: 0 | U60: 0 | V60: 0 | W60: 0 | X60: 0 | Y60: 0 | Z60: 0 | AB60: 0 | AC60: 0 | AD60: 0 | AE60: 0 | AF60: 0 | AG60: 0 | AH60: 0 | AK60: Deoxyinosine
A61: Deoxyribose 5-phosphate | B61: 0 | C61: 0 | D61: 0 | E61: 0 | F61: 0 | G61: 0 | H61: 0 | J61: 0 | K61: 0 | L61: 0 | M61: 0 | N61: 0 | O61: 0 | P61: 0 | S61: Deoxyribose 5-phosphate | T61: 0 | U61: 0 | V61: 0 | W61: 0 | X61: 0 | Y61: 0 | Z61: 0 | AB61: 0 | AC61: 0 | AD61: 0 | AE61: 0 | AF61: 0 | AG61: 0 | AH61: 0 | AK61: Deoxyribose 5-phosphate
A62: Deoxyuridine | B62: 0 | C62: 0 | D62: 0 | E62: 0 | F62: 0 | G62: 0 | H62: 0 | J62: 0 | K62: 0 | L62: 0 | M62: 0 | N62: 0 | O62: 0 | P62: 0 | S62: Deoxyuridine | T62: 0 | U62: 0 | V62: 0 | W62: 0 | X62: 0 | Y62: 0 | Z62: 0 | AB62: 0 | AC62: 0 | AD62: 0 | AE62: 0 | AF62: 0 | AG62: 0 | AH62: 0 | AK62: Deoxyuridine
A63: D-Erythrose 4-phosphate | B63: 0 | C63: 0 | D63: 0 | E63: 0 | F63: 0 | G63: 0 | H63: 0 | J63: 0 | K63: 0 | L63: 0 | M63: 0 | N63: 0 | O63: 0 | P63: 0 | S63: D-Erythrose 4-phosphate | T63: 0 | U63: 0 | V63: 0 | W63: 0 | X63: 0 | Y63: 0 | Z63: 0 | AB63: 0 | AC63: 0 | AD63: 0 | AE63: 0 | AF63: 0 | AG63: 0 | AH63: 0 | AK63: D-Erythrose 4-phosphate
A64: D-Fructose | B64: 0 | C64: 0 | D64: 0 | E64: 0 | F64: 0 | G64: 0 | H64: 0 | J64: 0 | K64: 0 | L64: 0 | M64: 0 | N64: 0 | O64: 0 | P64: 0 | S64: D-Fructose | T64: 0 | U64: 0 | V64: 0 | W64: 0 | X64: 0 | Y64: 0 | Z64: 0 | AB64: 0 | AC64: 0 | AD64: 0 | AE64: 0 | AF64: 0 | AG64: 0 | AH64: 0 | AK64: D-Fructose
A65: D-Glucose | B65: 2642303.596 | C65: 9712758.311 | D65: 25076151.77 | E65: 25153121.86 | F65: 7867517.437 | G65: 6268451.364 | H65: 8232831.486 | J65: 1899016.128 | K65: 4163488.683 | L65: 23989001.36 | M65: 3964210.204 | N65: 2992161.568 | O65: 7263987.864 | P65: 3672840.655 | S65: D-Glucose | T65: 0.05752807495 | U65: 0.1972619258 | V65: 0.3976903222 | W65: 0.3765212618 | X65: 0.1762612735 | Y65: 0.1512041893 | Z65: 0.1866551786 | AB65: 0.04169355202 | AC65: 0.09454471121 | AD65: 0.3913443903 | AE65: 0.08984058894 | AF65: 0.08009985425 | AG65: 0.1761621413 | AH65: 0.1079702764 | AK65: D-Glucose | AL65: 0.26096217 | AM65: 0.8948309198 | AN65: 1.804025766 | AO65: 1.707997453 | AP65: 0.7995665498 | AQ65: 0.6859011599 | AR65: 0.8467159815 | AT65: 0.1891326942 | AU65: 0.4288791693 | AV65: 1.775238984 | AW65: 0.4075400587 | AX65: 0.3633535765 | AY65: 0.7991168607 | AZ65: 0.4897809921
A66: D-Glucuronic acid | B66: 0 | C66: 0 | D66: 0 | E66: 0 | F66: 0 | G66: 0 | H66: 0 | J66: 0 | K66: 0 | L66: 0 | M66: 0 | N66: 0 | O66: 0 | P66: 0 | S66: D-Glucuronic acid | T66: =B66/B$206 -> 0 | U66: =C66/C$206 -> 0 | V66: =D66/D$206 -> 0 | W66: =E66/E$206 -> 0 | X66: =F66/F$206 -> 0 | Y66: =G66/G$206 -> 0 | Z66: =H66/H$206 -> 0 | AB66: =J66/J$206 -> 0 | AC66: =K66/K$206 -> 0 | AD66: =L66/L$206 -> 0 | AE66: =M66/M$206 -> 0 | AF66: =N66/N$206 -> 0 | AG66: =O66/O$206 -> 0 | AH66: =P66/P$206 -> 0 | AK66: D-Glucuronic acid | AL66: =T66/AVERAGE($T66:$Z66) ->  | AM66: =U66/AVERAGE($T66:$Z66) ->  | AN66: =V66/AVERAGE($T66:$Z66) ->  | AO66: =W66/AVERAGE($T66:$Z66) ->  | AP66: =X66/AVERAGE($T66:$Z66) ->  | AQ66: =Y66/AVERAGE($T66:$Z66) ->  | AR66: =Z66/AVERAGE($T66:$Z66) ->  | AT66: =AB66/AVERAGE($T66:$Z66) ->  | AU66: =AC66/AVERAGE($T66:$Z66) ->  | AV66: =AD66/AVERAGE($T66:$Z66) ->  | AW66: =AE66/AVERAGE($T66:$Z66) ->  | AX66: =AF66/AVERAGE($T66:$Z66) ->  | AY66: =AG66/AVERAGE($T66:$Z66) ->  | AZ66: =AH66/AVERAGE($T66:$Z66) -> 
A67: D-Glyceraldehyde 3-phosphate | B67: 612793.624 | C67: 910279.7541 | D67: 715153.6957 | E67: 1509708.222 | F67: 1125072.746 | G67: 966765.0804 | H67: 873482.0364 | J67: 1286459.204 | K67: 1517461.839 | L67: 1456475.713 | M67: 1798898.748 | N67: 1394233.505 | O67: 1271628.297 | P67: 698688.8823 | S67: D-Glyceraldehyde 3-phosphate | T67: 0.01334170592 | U67: 0.01848738861 | V67: 0.0113418401 | W67: 0.02259907329 | X67: 0.02520575982 | Y67: 0.02331978374 | Z67: 0.01980362962 | AB67: 0.02824465414 | AC67: 0.03445860006 | AD67: 0.02376020542 | AE67: 0.04076830306 | AF67: 0.03732348605 | AG67: 0.03083881304 | AH67: 0.02053931515 | AK67: D-Glyceraldehyde 3-phosphate | AL67: 0.6964393122 | AM67: 0.9650448212 | AN67: 0.5920459769 | AO67: 1.179675459 | AP67: 1.315744938 | AQ67: 1.217296667 | AR67: 1.033752826 | AT67: 1.474375737 | AU67: 1.798744768 | AV67: 1.240286753 | AW67: 2.128112335 | AX67: 1.948292303 | AY67: 1.609791272 | AZ67: 1.072155735
A68: D-Ribose 5-phosphate | B68: 139167.1756 | C68: 126759.9965 | D68: 116430.8884 | E68: 144279.4743 | F68: 158254.4717 | G68: 86075.47843 | H68: 144408.7626 | J68: 159827.504 | K68: 170463.5829 | L68: 173505.0729 | M68: 197896.4168 | N68: 141320.7503 | O68: 144680.8839 | P68: 100130.1941 | S68: D-Ribose 5-phosphate | T68: 0.003029939376 | U68: 0.002574440775 | V68: 0.001846512891 | W68: 0.00215974343 | X68: 0.003545481142 | Y68: 0.002076266078 | Z68: 0.003274042888 | AB68: 0.003509067804 | AC68: 0.003870895646 | AD68: 0.002830473681 | AE68: 0.004484911173 | AF68: 0.0037831418 | AG68: 0.003508719286 | AH68: 0.00294352131 | AK68: D-Ribose 5-phosphate | AL68: 1.146065424 | AM68: 0.9737744531 | AN68: 0.6984379283 | AO68: 0.8169164343 | AP68: 1.341067541 | AQ68: 0.7853413778 | AR68: 1.238396841 | AT68: 1.327294306 | AU68: 1.464154595 | AV68: 1.070618127 | AW68: 1.696404115 | AX68: 1.430961968 | AY68: 1.32716248 | AZ68: 1.113378052
A69: D-Ribose | B69: 0 | C69: 0 | D69: 0 | E69: 0 | F69: 0 | G69: 0 | H69: 0 | J69: 0 | K69: 0 | L69: 0 | M69: 0 | N69: 0 | O69: 0 | P69: 0 | S69: D-Ribose | T69: 0 | U69: 0 | V69: 0 | W69: 0 | X69: 0 | Y69: 0 | Z69: 0 | AB69: 0 | AC69: 0 | AD69: 0 | AE69: 0 | AF69: 0 | AG69: 0 | AH69: 0 | AK69: D-Ribose
A70: D-Ribulose 5-phosphate | B70: 161616.861 | C70: 101275.5633 | D70: 146488.5229 | E70: 676606.8954 | F70: 775653.9783 | G70: 262968.5876 | H70: 250497.8698 | J70: 99092.63572 | K70: 419952.6228 | L70: 390528.6316 | M70: 136594.4448 | N70: 104984.3369 | O70: 128291.7433 | P70: 35639.52865 | S70: D-Ribulose 5-phosphate | T70: 0.003518712576 | U70: 0.002056862943 | V70: 0.002323206064 | W70: 0.01012824107 | X70: 0.01737749666 | Y70: 0.006343185865 | Z70: 0.00567930058 | AB70: 0.002175612888 | AC70: 0.009536305361 | AD70: 0.006370885847 | AE70: 0.003095629326 | AF70: 0.00281041979 | AG70: 0.003111259081 | AH70: 0.001047693086 | AK70: D-Ribulose 5-phosphate | AL70: 0.519345205 | AM70: 0.3035831669 | AN70: 0.342894142 | AO70: 1.494880108 | AP70: 2.564835681 | AQ70: 0.9362240003 | AR70: 0.8382376965 | AT70: 0.3211100927 | AU70: 1.407513219 | AV70: 0.9403123856 | AW70: 0.4569001339 | AX70: 0.4148045657 | AY70: 0.4592070113 | AZ70: 0.1546345058
A71: D-Ribulose | B71: 0 | C71: 0 | D71: 0 | E71: 0 | F71: 0 | G71: 0 | H71: 0 | J71: 0 | K71: 0 | L71: 0 | M71: 0 | N71: 0 | O71: 0 | P71: 0 | S71: D-Ribulose | T71: 0 | U71: 0 | V71: 0 | W71: 0 | X71: 0 | Y71: 0 | Z71: 0 | AB71: 0 | AC71: 0 | AD71: 0 | AE71: 0 | AF71: 0 | AG71: 0 | AH71: 0 | AK71: D-Ribulose
A72: D-Sedoheptulose 7-phosphate | B72: 3146548.132 | C72: 3834107.22 | D72: 3678167.01 | E72: 3683763.197 | F72: 3601358.555 | G72: 2595474.999 | H72: 1981984.354 | J72: 2150022.799 | K72: 1834333.309 | L72: 2253681.569 | M72: 1928545.424 | N72: 1292103.317 | O72: 1018337.356 | P72: 765913.5675 | S72: D-Sedoheptulose 7-phosphate | T72: 0.06850645666 | U72: 0.07786906148 | V72: 0.05833316996 | W72: 0.05514286356 | X72: 0.08068365277 | Y72: 0.06260664241 | Z72: 0.04493565115 | AB72: 0.04720448978 | AC72: 0.04165413339 | AD72: 0.03676541706 | AE72: 0.04370647563 | AF72: 0.03458947153 | AG72: 0.02469614385 | AH72: 0.02251551519 | AK72: D-Sedoheptulose 7-phosphate | AL72: 1.07022825 | AM72: 1.216493649 | AN72: 0.9112981383 | AO72: 0.8614582224 | AP72: 1.260464031 | AQ72: 0.9780595964 | AR72: 0.701998113 | AT72: 0.7374425851 | AU72: 0.6507332662 | AV72: 0.5743602849 | AW72: 0.6827955673 | AX72: 0.5403670164 | AY72: 0.3858105076 | AZ72: 0.3517440779
A73: FAD | B73: 0 | C73: 0 | D73: 0 | E73: 0 | F73: 0 | G73: 0 | H73: 0 | J73: 0 | K73: 0 | L73: 0 | M73: 0 | N73: 0 | O73: 0 | P73: 0 | S73: FAD | T73: 0 | U73: 0 | V73: 0 | W73: 0 | X73: 0 | Y73: 0 | Z73: 0 | AB73: 0 | AC73: 0 | AD73: 0 | AE73: 0 | AF73: 0 | AG73: 0 | AH73: 0 | AK73: FAD
A74: Flavin Mononucleotide | B74: 0 | C74: 0 | D74: 0 | E74: 0 | F74: 0 | G74: 0 | H74: 0 | J74: 0 | K74: 0 | L74: 0 | M74: 0 | N74: 0 | O74: 0 | P74: 0 | S74: Flavin Mononucleotide | T74: 0 | U74: 0 | V74: 0 | W74: 0 | X74: 0 | Y74: 0 | Z74: 0 | AB74: 0 | AC74: 0 | AD74: 0 | AE74: 0 | AF74: 0 | AG74: 0 | AH74: 0 | AK74: Flavin Mononucleotide
A75: Fructose 1,6-bisphosphate | B75: 88873.0241 | C75: 108543.7975 | D75: 133163.5502 | E75: 297528.5197 | F75: 173666.4137 | G75: 109135.4287 | H75: 63376.9898 | J75: 58743.35115 | K75: 84680.89039 | L75: 122013.8627 | M75: 103767.707 | N75: 78289.63884 | O75: 69943.09697 | P75: 51281.33222 | S75: Fructose 1,6-bisphosphate | T75: 0.001934938135 | U75: 0.002204477641 | V75: 0.002111881268 | W75: 0.004453753862 | X75: 0.003890765224 | Y75: 0.002632505712 | Z75: 0.00143688637 | AB75: 0.001289730472 | AC75: 0.001922937934 | AD75: 0.001990472216 | AE75: 0.00235167951 | AF75: 0.002095805496 | AG75: 0.001696220583 | AH75: 0.001507514247 | AK75: Fructose 1,6-bisphosphate | AL75: 0.7256584974 | AM75: 0.82674371 | AN75: 0.792017357 | AO75: 1.6702882 | AP75: 1.459150965 | AQ75: 0.9872667786 | AR75: 0.5388744919 | AT75: 0.4836867182 | AU75: 0.7211580706 | AV75: 0.7464854052 | AW75: 0.8819487243 | AX75: 0.7859884715 | AY75: 0.6361324206 | AZ75: 0.5653620151
A76: Fructose 6-phosphate | B76: 266742.8576 | C76: 324189.0588 | D76: 343992.066 | E76: 512927.4705 | F76: 339491.3426 | G76: 253970.8616 | H76: 191799.8024 | J76: 427870.5793 | K76: 337467.1871 | L76: 522096.1653 | M76: 300796.8424 | N76: 193155.2893 | O76: 230123.0674 | P76: 169988.9557 | S76: Fructose 6-phosphate | T76: 0.005807509451 | U76: 0.00658413975 | V76: 0.00545547486 | W76: 0.007678096558 | X76: 0.007605852399 | Y76: 0.00612614759 | Z76: 0.004348494979 | AB76: 0.009394045682 | AC76: 0.007663221922 | AD76: 0.008517211803 | AE76: 0.006816935552 | AF76: 0.005170747022 | AG76: 0.005580814984 | AH76: 0.004997155132 | AK76: Fructose 6-phosphate | AL76: 0.932276093 | AM76: 1.0569481 | AN76: 0.875764186 | AO76: 1.232560346 | AP76: 1.220963034 | AQ76: 0.9834268869 | AR76: 0.6980613537 | AT76: 1.508020655 | AU76: 1.23017253 | AV76: 1.367263026 | AW76: 1.094318674 | AX76: 0.8300569929 | AY76: 0.8958849628 | AZ76: 0.8021903885
A77: Fumaric acid | B77: 27688.79103 | C77: 21220.71052 | D77: 21531.37131 | E77: 16373.74897 | F77: 19857.77288 | G77: 15442.0992 | H77: 17115.72392 | J77: 27093.73792 | K77: 16279.07228 | L77: 19410.18321 | M77: 26679.84829 | N77: 20000.61389 | O77: 33850.63111 | P77: 0 | S77: Fumaric acid | T77: 0.0006028386927 | U77: 0.0004309834643 | V77: 0.0003414725701 | W77: 0.0002451013698 | X77: 0.0004448870134 | Y77: 0.0003724859545 | Z77: 0.0003880485725 | AB77: 0.0005948523316 | AC77: 0.0003696659953 | AD77: 0.0003166478755 | AE77: 0.0006046433362 | AF77: 0.0005354143555 | AG77: 0.0008209264348 | AH77: 0 | AK77: Fumaric acid | AL77: 1.49332738 | AM77: 1.06761463 | AN77: 0.8458818994 | AO77: 0.6071550993 | AP77: 1.102055933 | AQ77: 0.9227069883 | AR77: 0.9612580697 | AT77: 1.473543893 | AU77: 0.9157215006 | AV77: 0.7843871803 | AW77: 1.497797769 | AX77: 1.326306567 | AY77: 2.033565425 | AZ77: 0
A78: Galactonic acid | B78: 0 | C78: 0 | D78: 0 | E78: 0 | F78: 0 | G78: 0 | H78: 0 | J78: 0 | K78: 0 | L78: 0 | M78: 0 | N78: 0 | O78: 0 | P78: 0 | S78: Galactonic acid | T78: 0 | U78: 0 | V78: 0 | W78: 0 | X78: 0 | Y78: 0 | Z78: 0 | AB78: 0 | AC78: 0 | AD78: 0 | AE78: 0 | AF78: 0 | AG78: 0 | AH78: 0 | AK78: Galactonic acid
A79: GDP-glucose | B79: 101200.6832 | C79: 103940.4312 | D79: 79183.72191 | E79: 83531.82759 | F79: 102345.7674 | G79: 90713.18074 | H79: 73395.64306 | J79: 78012.4776 | K79: 80682.58165 | L79: 72140.96443 | M79: 85439.62812 | N79: 82087.50994 | O79: 61719.28769 | P79: 55442.19658 | S79: GDP-glucose | T79: 0.002203335187 | U79: 0.00211098526 | V79: 0.001255798743 | W79: 0.001250401811 | X79: 0.002292920917 | Y79: 0.002188134222 | Z79: 0.001664029792 | AB79: 0.001712790768 | AC79: 0.001832144138 | AD79: 0.001176871072 | AE79: 0.001936311677 | AF79: 0.002197474111 | AG79: 0.001496781393 | AH79: 0.001629830927 | AK79: GDP-glucose | AL79: 1.189558467 | AM79: 1.139699671 | AN79: 0.6779930879 | AO79: 0.6750793384 | AP79: 1.237924899 | AQ79: 1.181351619 | AR79: 0.8983929177 | AT79: 0.9247184776 | AU79: 0.989156159 | AV79: 0.6353808335 | AW79: 1.045395164 | AX79: 1.18639413 | AY79: 0.8080971926 | AZ79: 0.879929295
A80: Gluconic acid | B80: 162609.824 | C80: 116828.0617 | D80: 105989.8589 | E80: 95223.69672 | F80: 111020.8706 | G80: 66658.08463 | H80: 87754.87898 | J80: 116235.2962 | K80: 102485.9168 | L80: 99092.09691 | M80: 57509.19288 | N80: 80076.82624 | O80: 94072.05859 | P80: 71076.59015 | S80: Gluconic acid | T80: 0.003540331308 | U80: 0.002372727468 | V80: 0.001680925428 | W80: 0.001425419343 | X80: 0.002487275076 | Y80: 0.00160789022 | Z80: 0.001989583127 | AB80: 0.002551985894 | AC80: 0.002327255372 | AD80: 0.001616538166 | AE80: 0.001303326386 | AF80: 0.002143648317 | AG80: 0.002281382566 | AH80: 0.002089434257 | AK80: Gluconic acid | AL80: 1.640762037 | AM80: 1.099637524 | AN80: 0.7790227495 | AO80: 0.6606087797 | AP80: 1.152724467 | AQ80: 0.7451746754 | AR80: 0.9220697669 | AT80: 1.182714613 | AU80: 1.078563539 | AV80: 0.7491825548 | AW80: 0.6040249542 | AX80: 0.9934710833 | AY80: 1.057303846 | AZ80: 0.968345646
A81: Glucosamine 6-phosphate | B81: 0 | C81: 0 | D81: 0 | E81: 0 | F81: 0 | G81: 0 | H81: 0 | J81: 0 | K81: 0 | L81: 0 | M81: 0 | N81: 0 | O81: 0 | P81: 0 | S81: Glucosamine 6-phosphate | T81: 0 | U81: 0 | V81: 0 | W81: 0 | X81: 0 | Y81: 0 | Z81: 0 | AB81: 0 | AC81: 0 | AD81: 0 | AE81: 0 | AF81: 0 | AG81: 0 | AH81: 0 | AK81: Glucosamine 6-phosphate
A82: Glucosamine | B82: 0 | C82: 0 | D82: 0 | E82: 0 | F82: 0 | G82: 0 | H82: 0 | J82: 0 | K82: 0 | L82: 0 | M82: 0 | N82: 0 | O82: 0 | P82: 0 | S82: Glucosamine | T82: 0 | U82: 0 | V82: 0 | W82: 0 | X82: 0 | Y82: 0 | Z82: 0 | AB82: 0 | AC82: 0 | AD82: 0 | AE82: 0 | AF82: 0 | AG82: 0 | AH82: 0 | AK82: Glucosamine
A83: Glucose 6-phosphate | B83: 326890.5456 | C83: 688751.3673 | D83: 734217.1263 | E83: 1500335.201 | F83: 568667.9836 | G83: 500074.811 | H83: 386986.5255 | J83: 1130814.08 | K83: 913090.6602 | L83: 1596113.218 | M83: 700171.4671 | N83: 466193.4714 | O83: 652610.2189 | P83: 305513.6286 | S83: Glucose 6-phosphate | T83: 0.007117041296 | U83: 0.01398824276 | V83: 0.01164417285 | W83: 0.02245876698 | X83: 0.0127402505 | Y83: 0.01206253379 | Z83: 0.008773778396 | AB83: 0.02482741193 | AC83: 0.02073450881 | AD83: 0.02603818078 | AE83: 0.01586793175 | AF83: 0.01247995078 | AG83: 0.01582673536 | AH83: 0.008981165811 | AK83: Glucose 6-phosphate | AL83: 0.5611241632 | AM83: 1.10286574 | AN83: 0.9180537913 | AO83: 1.770701659 | AP83: 1.004471114 | AQ83: 0.9510383453 | AR83: 0.6917451868 | AT83: 1.95745116 | AU83: 1.634757117 | AV83: 2.052911006 | AW83: 1.251064811 | AX83: 0.9839484765 | AY83: 1.247816791 | AZ83: 0.7080960951
A84: Glutathione | B84: 160400.5156 | C84: 104769.9315 | D84: 112784.3607 | E84: 0 | F84: 124096.3927 | G84: 0 | H84: 86290.38614 | J84: 108265.4149 | K84: 131648.699 | L84: 0 | M84: 107972.7474 | N84: 96246.3563 | O84: 0 | P84: 0 | S84: Glutathione | T84: 0.003492230377 | U84: 0.002127832053 | V84: 0.001788681499 | W84: 0 | X84: 0.002780214774 | Y84: 0 | Z84: 0.00195638007 | AB84: 0.002377004408 | AC84: 0.002989485303 | AD84: 0 | AE84: 0.002446978014 | AF84: 0.002576504957 | AG84: 0 | AH84: 0 | AK84: Glutathione | AL84: 2.012756753 | AM84: 1.22638196 | AN84: 1.030911589 | AO84: 0 | AP84: 1.602384568 | AQ84: 0 | AR84: 1.12756513 | AT84: 1.369993144 | AU84: 1.722998223 | AV84: 0 | AW84: 1.410322628 | AX84: 1.484975844 | AY84: 0 | AZ84: 0
A85: Glycerol 3-phosphate | B85: 187097.6632 | C85: 251767.6381 | D85: 193235.776 | E85: 394636.4396 | F85: 432273.1945 | G85: 313560.7733 | H85: 307173.352 | J85: 726136.4769 | K85: 984333.672 | L85: 736925.3081 | M85: 1443771.492 | N85: 923294.6666 | O85: 692764.0078 | P85: 944406.0648 | S85: Glycerol 3-phosphate | T85: 0.00407347907 | U85: 0.005113291979 | V85: 0.003064584978 | W85: 0.005907378456 | X85: 0.009684506498 | Y85: 0.007563543172 | Z85: 0.006964250025 | AB85: 0.01594257602 | AC85: 0.02235229872 | AD85: 0.01202182538 | AE85: 0.03272008155 | AF85: 0.02471650228 | AG85: 0.01680052242 | AH85: 0.02776264843 | AK85: Glycerol 3-phosphate | AL85: 0.6729680793 | AM85: 0.8447526606 | AN85: 0.5062915093 | AO85: 0.9759414655 | AP85: 1.599950221 | AQ85: 1.249551804 | AR85: 1.15054426 | AT85: 2.633828375 | AU85: 3.692760728 | AV85: 1.986092134 | AW85: 5.40559312 | AX85: 4.083344183 | AY85: 2.775567301 | AZ85: 4.586589465
A86: Glycerophosphocholine | B86: 33364.01499 | C86: 68094.08249 | D86: 118492.3414 | E86: 117417.719 | F86: 54853.25634 | G86: 59987.28291 | H86: 63092.42825 | J86: 32998.55182 | K86: 49491.81653 | L86: 110928.6993 | M86: 42180.65158 | N86: 48641.69416 | O86: 64586.07519 | P86: 43332.83865 | S86: Glycerophosphocholine | T86: 0.0007263993274 | U86: 0.001382961402 | V86: 0.001879206103 | W86: 0.001757645352 | X86: 0.001228914317 | Y86: 0.001446980754 | Z86: 0.001430434776 | AB86: 0.0007244945509 | AC86: 0.001123862669 | AD86: 0.001809634489 | AE86: 0.0009559368413 | AF86: 0.001302133098 | AG86: 0.001566305109 | AH86: 0.001273852858 | AK86: Glycerophosphocholine | AL86: 0.5160896829 | AM86: 0.9825616357 | AN86: 1.335131855 | AO86: 1.248765793 | AP86: 0.8731147952 | AQ86: 1.028045883 | AR86: 1.016290354 | AT86: 0.5147363838 | AU86: 0.7984780634 | AV86: 1.285702855 | AW86: 0.6791707021 | AX86: 0.9251350218 | AY86: 1.112823039 | AZ86: 0.9050425747
A87: Glycine | B87: 796353.7901 | C87: 617208.738 | D87: 801423.387 | E87: 741495.5198 | F87: 631792.3458 | G87: 693706.0027 | H87: 678397.05 | J87: 822478.808 | K87: 842717.0431 | L87: 818378.211 | M87: 893948.2073 | N87: 934366.3534 | O87: 929091.0877 | P87: 1042032.736 | S87: Glycine | T87: 0.01733816682 | U87: 0.01253524286 | V87: 0.01271001739 | W87: 0.01109956968 | X87: 0.01415446795 | Y87: 0.01673320053 | Z87: 0.01538065279 | AB87: 0.01805780502 | AC87: 0.01913646116 | AD87: 0.01335060669 | AE87: 0.02025947901 | AF87: 0.02501289018 | AG87: 0.02253179362 | AH87: 0.03063257383 | AK87: Glycine | AL87: 1.214262804 | AM87: 0.8778943768 | AN87: 0.8901345522 | AO87: 0.777348306 | AP87: 0.9912953389 | AQ87: 1.171894539 | AR87: 1.077170083 | AT87: 1.264662014 | AU87: 1.34020472 | AV87: 0.9349976439 | AW87: 1.418854257 | AX87: 1.751755102 | AY87: 1.577993752 | AZ87: 2.145324554
A88: Guanidoacetic acid | B88: 0 | C88: 0 | D88: 0 | E88: 0 | F88: 0 | G88: 0 | H88: 0 | J88: 0 | K88: 0 | L88: 0 | M88: 0 | N88: 0 | O88: 0 | P88: 0 | S88: Guanidoacetic acid | T88: 0 | U88: 0 | V88: 0 | W88: 0 | X88: 0 | Y88: 0 | Z88: 0 | AB88: 0 | AC88: 0 | AD88: 0 | AE88: 0 | AF88: 0 | AG88: 0 | AH88: 0 | AK88: Guanidoacetic acid
A89: Guanine | B89: 0 | C89: 0 | D89: 0 | E89: 0 | F89: 0 | G89: 0 | H89: 0 | J89: 0 | K89: 0 | L89: 0 | M89: 0 | N89: 0 | O89: 0 | P89: 0 | S89: Guanine | T89: 0 | U89: 0 | V89: 0 | W89: 0 | X89: 0 | Y89: 0 | Z89: 0 | AB89: 0 | AC89: 0 | AD89: 0 | AE89: 0 | AF89: 0 | AG89: 0 | AH89: 0 | AK89: Guanine
A90: Guanosine diphosphate | B90: 59100.57443 | C90: 45092.02296 | D90: 62482.34547 | E90: 46865.82245 | F90: 38723.44559 | G90: 39038.07045 | H90: 40524.48774 | J90: 55787.26968 | K90: 39881.54796 | L90: 43844.06545 | M90: 50816.84811 | N90: 23480.91034 | O90: 24281.18288 | P90: 22234.9341 | S90: Guanosine diphosphate | T90: 0.001286734152 | U90: 0.0009157995087 | V90: 0.0009909265316 | W90: 0.0007015422857 | X90: 0.0008675473409 | Y90: 0.0009416551951 | Z90: 0.0009187732688 | AB90: 0.001224828687 | AC90: 0.0009056322045 | AD90: 0.0007152498268 | AE90: 0.001151658295 | AF90: 0.0006285815298 | AG90: 0.0005888535676 | AH90: 0.0006536390239 | AK90: Guanosine diphosphate | AL90: 1.359983179 | AM90: 0.9679325959 | AN90: 1.047336323 | AO90: 0.7414784996 | AP90: 0.9169336101 | AQ90: 0.995260151 | AR90: 0.9710756411 | AT90: 1.294553665 | AU90: 0.9571865046 | AV90: 0.7559663604 | AW90: 1.217217952 | AX90: 0.6643643571 | AY90: 0.6223748286 | AZ90: 0.6908482819
A91: Guanosine monophosphate | B91: 75564.27317 | C91: 32745.44149 | D91: 34733.14784 | E91: 13659.18403 | F91: 27743.26611 | G91: 66043.83976 | H91: 53004.87432 | J91: 117449.9784 | K91: 144809.3715 | L91: 129428.5684 | M91: 100363.3317 | N91: 106637.124 | O91: 48738.05464 | P91: 44783.61412 | S91: Guanosine monophosphate | T91: 0.00164518081 | U91: 0.0006650457722 | V91: 0.0005508435617 | W91: 0.000204466596 | X91: 0.0006215510106 | Y91: 0.001593073738 | Z91: 0.001201729235 | AB91: 0.002578654658 | AC91: 0.003288338519 | AD91: 0.002111431961 | AE91: 0.002274526416 | AF91: 0.002854664727 | AG91: 0.001181967843 | AH91: 0.001316501218 | AK91: Guanosine monophosphate | AL91: 1.776683095 | AM91: 0.7182040865 | AN91: 0.5948734862 | AO91: 0.2208099817 | AP91: 0.6712327097 | AQ91: 1.72041101 | AR91: 1.297785631 | AT91: 2.784771199 | AU91: 3.551181378 | AV91: 2.280202546 | AW91: 2.456333436 | AX91: 3.082843254 | AY91: 1.276444675 | AZ91: 1.421731547
A92: Guanosine triphosphate | B92: 40936.52761 | C92: 44683.82613 | D92: 46424.58932 | E92: 35387.92914 | F92: 39478.51456 | G92: 18136.66397 | H92: 37901.83222 | J92: 10931.49481 | K92: 14249.08825 | L92: 10308.99073 | M92: 21652.95492 | N92: 11952.42645 | O92: 11130.82995 | P92: 10158.1718 | S92: Guanosine triphosphate | T92: 0.0008912676168 | U92: 0.0009075092075 | V92: 0.0007362616902 | W92: 0.0005297277929 | X92: 0.0008844636579 | Y92: 0.0004374827867 | Z92: 0.0008593122881 | AB92: 0.0002400047272 | AC92: 0.0003235690153 | AD92: 0.0001681756415 | AE92: 0.000490719241 | AF92: 0.000319965214 | AG92: 0.0002699386169 | AH92: 0.000298619167 | AK92: Guanosine triphosphate | AL92: 1.189257251 | AM92: 1.210929114 | AN92: 0.9824260829 | AO92: 0.7068388965 | AP92: 1.180178432 | AQ92: 0.5837523617 | AR92: 1.146617862 | AT92: 0.3202487745 | AU92: 0.4317522486 | AV92: 0.2244040929 | AW92: 0.6547880844 | AX92: 0.4269435394 | AY92: 0.3601908691 | AZ92: 0.3984605778
A93: Guanosine | B93: 0 | C93: 0 | D93: 0 | E93: 0 | F93: 0 | G93: 0 | H93: 0 | J93: 11462.1894 | K93: 0 | L93: 0 | M93: 0 | N93: 0 | O93: 10536.6784 | P93: 0 | S93: Guanosine | T93: 0 | U93: 0 | V93: 0 | W93: 0 | X93: 0 | Y93: 0 | Z93: 0 | AB93: 0.0002516563092 | AC93: 0 | AD93: 0 | AE93: 0 | AF93: 0 | AG93: 0.0002555295885 | AH93: 0 | AK93: Guanosine
A94: Hexanoylcarnitine | B94: 0 | C94: 0 | D94: 0 | E94: 0 | F94: 0 | G94: 0 | H94: 0 | J94: 0 | K94: 0 | L94: 0 | M94: 0 | N94: 0 | O94: 0 | P94: 0 | S94: Hexanoylcarnitine | T94: 0 | U94: 0 | V94: 0 | W94: 0 | X94: 0 | Y94: 0 | Z94: 0 | AB94: 0 | AC94: 0 | AD94: 0 | AE94: 0 | AF94: 0 | AG94: 0 | AH94: 0 | AK94: Hexanoylcarnitine
A95: Hippuric acid | B95: 0 | C95: 0 | D95: 0 | E95: 0 | F95: 0 | G95: 0 | H95: 0 | J95: 0 | K95: 0 | L95: 0 | M95: 0 | N95: 0 | O95: 0 | P95: 0 | S95: Hippuric acid | T95: 0 | U95: 0 | V95: 0 | W95: 0 | X95: 0 | Y95: 0 | Z95: 0 | AB95: 0 | AC95: 0 | AD95: 0 | AE95: 0 | AF95: 0 | AG95: 0 | AH95: 0 | AK95: Hippuric acid
A96: Hypotaurine | B96: 0 | C96: 0 | D96: 0 | E96: 0 | F96: 0 | G96: 0 | H96: 0 | J96: 0 | K96: 0 | L96: 0 | M96: 0 | N96: 0 | O96: 0 | P96: 0 | S96: Hypotaurine | T96: 0 | U96: 0 | V96: 0 | W96: 0 | X96: 0 | Y96: 0 | Z96: 0 | AB96: 0 | AC96: 0 | AD96: 0 | AE96: 0 | AF96: 0 | AG96: 0 | AH96: 0 | AK96: Hypotaurine
A97: Hypoxanthine | B97: 27518.59389 | C97: 0 | D97: 0 | E97: 0 | F97: 0 | G97: 0 | H97: 0 | J97: 14935.90137 | K97: 0 | L97: 0 | M97: 0 | N97: 0 | O97: 15063.11462 | P97: 0 | S97: Hypoxanthine | T97: 0.000599133171 | U97: 0 | V97: 0 | W97: 0 | X97: 0 | Y97: 0 | Z97: 0 | AB97: 0.00032792285 | AC97: 0 | AD97: 0 | AE97: 0 | AF97: 0 | AG97: 0.0003653021694 | AH97: 0 | AK97: Hypoxanthine | AL97: 7 | AM97: 0 | AN97: 0 | AO97: 0 | AP97: 0 | AQ97: 0 | AR97: 0 | AT97: 3.831301722 | AU97: 0 | AV97: 0 | AW97: 0 | AX97: 0 | AY97: 4.268024723 | AZ97: 0
A98: IDP | B98: 0 | C98: 0 | D98: 0 | E98: 0 | F98: 0 | G98: 0 | H98: 0 | J98: 0 | K98: 0 | L98: 0 | M98: 0 | N98: 0 | O98: 0 | P98: 0 | S98: IDP | T98: 0 | U98: 0 | V98: 0 | W98: 0 | X98: 0 | Y98: 0 | Z98: 0 | AB98: 0 | AC98: 0 | AD98: 0 | AE98: 0 | AF98: 0 | AG98: 0 | AH98: 0 | AK98: IDP
A99: Imidazoleacetic acid | B99: 0 | C99: 0 | D99: 0 | E99: 0 | F99: 0 | G99: 0 | H99: 0 | J99: 0 | K99: 0 | L99: 0 | M99: 0 | N99: 0 | O99: 0 | P99: 0 | S99: Imidazoleacetic acid | T99: 0 | U99: 0 | V99: 0 | W99: 0 | X99: 0 | Y99: 0 | Z99: 0 | AB99: 0 | AC99: 0 | AD99: 0 | AE99: 0 | AF99: 0 | AG99: 0 | AH99: 0 | AK99: Imidazoleacetic acid
A100: Indoxyl sulfate | B100: 0 | C100: 0 | D100: 0 | E100: 0 | F100: 0 | G100: 0 | H100: 0 | J100: 0 | K100: 0 | L100: 0 | M100: 0 | N100: 0 | O100: 0 | P100: 0 | S100: Indoxyl sulfate | T100: 0 | U100: 0 | V100: 0 | W100: 0 | X100: 0 | Y100: 0 | Z100: 0 | AB100: 0 | AC100: 0 | AD100: 0 | AE100: 0 | AF100: 0 | AG100: 0 | AH100: 0 | AK100: Indoxyl sulfate
A101: Inosine | B101: 0 | C101: 0 | D101: 0 | E101: 0 | F101: 0 | G101: 0 | H101: 0 | J101: 23902.25063 | K101: 0 | L101: 62058.27661 | M101: 0 | N101: 10093.68836 | O101: 0 | P101: 0 | S101: Inosine | T101: 0 | U101: 0 | V101: 0 | W101: 0 | X101: 0 | Y101: 0 | Z101: 0 | AB101: 0.0005247821309 | AC101: 0 | AD101: 0.001012387221 | AE101: 0 | AF101: 0.0002702069886 | AG101: 0 | AH101: 0 | AK101: Inosine
A102: Inosinic acid | B102: 0 | C102: 0 | D102: 0 | E102: 0 | F102: 0 | G102: 0 | H102: 0 | J102: 0 | K102: 0 | L102: 0 | M102: 0 | N102: 0 | O102: 0 | P102: 0 | S102: Inosinic acid | T102: 0 | U102: 0 | V102: 0 | W102: 0 | X102: 0 | Y102: 0 | Z102: 0 | AB102: 0 | AC102: 0 | AD102: 0 | AE102: 0 | AF102: 0 | AG102: 0 | AH102: 0 | AK102: Inosinic acid
A103: Isovalerylcarnitine | B103: 0 | C103: 0 | D103: 0 | E103: 0 | F103: 0 | G103: 0 | H103: 0 | J103: 0 | K103: 0 | L103: 0 | M103: 0 | N103: 0 | O103: 0 | P103: 0 | S103: Isovalerylcarnitine | T103: 0 | U103: 0 | V103: 0 | W103: 0 | X103: 0 | Y103: 0 | Z103: 0 | AB103: 0 | AC103: 0 | AD103: 0 | AE103: 0 | AF103: 0 | AG103: 0 | AH103: 0 | AK103: Isovalerylcarnitine
A104: Kynurenic acid | B104: 0 | C104: 0 | D104: 0 | E104: 0 | F104: 0 | G104: 0 | H104: 0 | J104: 0 | K104: 0 | L104: 0 | M104: 0 | N104: 0 | O104: 0 | P104: 0 | S104: Kynurenic acid | T104: 0 | U104: 0 | V104: 0 | W104: 0 | X104: 0 | Y104: 0 | Z104: 0 | AB104: 0 | AC104: 0 | AD104: 0 | AE104: 0 | AF104: 0 | AG104: 0 | AH104: 0 | AK104: Kynurenic acid
A105: L-Acetylcarnitine | B105: 170897.6108 | C105: 121331.6435 | D105: 125550.9038 | E105: 92044.42226 | F105: 68015.01529 | G105: 78751.7067 | H105: 64218.7721 | J105: 148248.1604 | K105: 112781.9536 | L105: 100565.4403 | M105: 93671.5491 | N105: 122073.5653 | O105: 80671.9801 | P105: 64841.17767 | S105: L-Acetylcarnitine | T105: 0.003720772503 | U105: 0.002464193269 | V105: 0.001991149991 | W105: 0.001377828255 | X105: 0.001523786036 | Y105: 0.001899606023 | Z105: 0.001455971302 | AB105: 0.003254839334 | AC105: 0.002561058296 | AD105: 0.001640573541 | AE105: 0.002122871065 | AF105: 0.003267896658 | AG105: 0.001956411412 | AH105: 0.00190613221 | AK105: L-Acetylcarnitine | AL105: 1.804534944 | AM105: 1.19510743 | AN105: 0.9656864897 | AO105: 0.6682319951 | AP105: 0.7390199608 | AQ105: 0.9212886422 | AR105: 0.7061305385 | AT105: 1.578562331 | AU105: 1.242085933 | AV105: 0.7956606541 | AW105: 1.029569804 | AX105: 1.584894993 | AY105: 0.9488386497 | AZ105: 0.9244537734
A106: L-Alanine | B106: 653192.0915 | C106: 608457.0168 | D106: 625033.1551 | E106: 611900.413 | F106: 550263.1529 | G106: 539513.1195 | H106: 548913.9346 | J106: 510432.1544 | K106: 419150.2504 | L106: 403888.0383 | M106: 421368.9123 | N106: 399739.3568 | O106: 424564.739 | P106: 386926.6592 | S106: L-Alanine | T106: 0.01422125893 | U106: 0.01235749919 | V106: 0.009912591019 | W106: 0.009159638984 | X106: 0.01232791473 | Y106: 0.01301384331 | Z106: 0.01244500494 | AB106: 0.01120671345 | AC106: 0.009518085049 | AD106: 0.006588824426 | AE106: 0.009549451037 | AF106: 0.01070098104 | AG106: 0.01029630486 | AH106: 0.01137445979 | AK106: L-Alanine | AL106: 1.193090792 | AM106: 1.036730894 | AN106: 0.8316156204 | AO106: 0.7684468008 | AP106: 1.03424891 | AQ106: 1.091794805 | AR106: 1.044072179 | AT106: 0.9401858647 | AU106: 0.7985185899 | AV106: 0.5527686255 | AW106: 0.8011500357 | AX106: 0.8977575056 | AY106: 0.8638072463 | AZ106: 0.9542589232
A107: L-Arginine | B107: 0 | C107: 0 | D107: 0 | E107: 0 | F107: 0 | G107: 0 | H107: 0 | J107: 0 | K107: 0 | L107: 0 | M107: 0 | N107: 0 | O107: 0 | P107: 0 | S107: L-Arginine | T107: 0 | U107: 0 | V107: 0 | W107: 0 | X107: 0 | Y107: 0 | Z107: 0 | AB107: 0 | AC107: 0 | AD107: 0 | AE107: 0 | AF107: 0 | AG107: 0 | AH107: 0 | AK107: L-Arginine
A108: L-Asparagine | B108: 0 | C108: 0 | D108: 0 | E108: 14656.92805 | F108: 0 | G108: 12381.3665 | H108: 11541.19157 | J108: 0 | K108: 0 | L108: 0 | M108: 32451.59492 | N108: 0 | O108: 0 | P108: 14550.1264 | S108: L-Asparagine | T108: 0 | U108: 0 | V108: 0 | W108: 0.0002194019921 | X108: 0 | Y108: 0.0002986566179 | Z108: 0.0002616624884 | AB108: 0 | AC108: 0 | AD108: 0 | AE108: 0.0007354479833 | AF108: 0 | AG108: 0 | AH108: 0.0004277291929 | AK108: L-Asparagine | AL108: 0 | AM108: 0 | AN108: 0 | AO108: 1.969696534 | AP108: 0 | AQ108: 2.681210409 | AR108: 2.349093057 | AT108: 0 | AU108: 0 | AV108: 0 | AW108: 6.602535051 | AX108: 0 | AY108: 0 | AZ108: 3.839968364
A109: L-Aspartic acid | B109: 2779497.804 | C109: 2232005.396 | D109: 2252334.481 | E109: 2142813.892 | F109: 2266289.12 | G109: 2261175.334 | H109: 1959103.644 | J109: 1707090.027 | K109: 1639629.451 | L109: 1222823.92 | M109: 1492043.607 | N109: 1237093.27 | O109: 1171375.612 | P109: 1209842.289 | S109: L-Aspartic acid | T109: 0.060515059 | U109: 0.04533106548 | V109: 0.03572045797 | W109: 0.0320761373 | X109: 0.0507731962 | Y109: 0.05454284691 | Z109: 0.04441689851 | AB109: 0.03747974848 | AC109: 0.03723278836 | AD109: 0.01994852867 | AE109: 0.03381406875 | AF109: 0.03311685827 | AG109: 0.02840754141 | AH109: 0.03556566118 | AK109: L-Aspartic acid | AL109: 1.309948347 | AM109: 0.9812657421 | AN109: 0.7732282781 | AO109: 0.6943409412 | AP109: 1.099069645 | AQ109: 1.180669958 | AR109: 0.9614770891 | AT109: 0.8113110252 | AU109: 0.8059651659 | AV109: 0.4318188329 | AW109: 0.7319613365 | AX109: 0.7168690646 | AY109: 0.6149281273 | AZ109: 0.769877446
A110: L-Carnitine | B110: 0 | C110: 0 | D110: 0 | E110: 0 | F110: 0 | G110: 0 | H110: 0 | J110: 0 | K110: 0 | L110: 0 | M110: 0 | N110: 0 | O110: 0 | P110: 0 | S110: L-Carnitine | T110: 0 | U110: 0 | V110: 0 | W110: 0 | X110: 0 | Y110: 0 | Z110: 0 | AB110: 0 | AC110: 0 | AD110: 0 | AE110: 0 | AF110: 0 | AG110: 0 | AH110: 0 | AK110: L-Carnitine
A111: L-Cystathionine | B111: 0 | C111: 0 | D111: 0 | E111: 0 | F111: 0 | G111: 0 | H111: 0 | J111: 0 | K111: 0 | L111: 0 | M111: 0 | N111: 0 | O111: 0 | P111: 0 | S111: L-Cystathionine | T111: 0 | U111: 0 | V111: 0 | W111: 0 | X111: 0 | Y111: 0 | Z111: 0 | AB111: 0 | AC111: 0 | AD111: 0 | AE111: 0 | AF111: 0 | AG111: 0 | AH111: 0 | AK111: L-Cystathionine
A112: L-Cysteine | B112: 0 | C112: 0 | D112: 0 | E112: 0 | F112: 0 | G112: 0 | H112: 0 | J112: 0 | K112: 0 | L112: 0 | M112: 0 | N112: 0 | O112: 0 | P112: 0 | S112: L-Cysteine | T112: 0 | U112: 0 | V112: 0 | W112: 0 | X112: 0 | Y112: 0 | Z112: 0 | AB112: 0 | AC112: 0 | AD112: 0 | AE112: 0 | AF112: 0 | AG112: 0 | AH112: 0 | AK112: L-Cysteine
A113: L-Cystine | B113: 0 | C113: 0 | D113: 0 | E113: 0 | F113: 0 | G113: 0 | H113: 0 | J113: 0 | K113: 0 | L113: 0 | M113: 0 | N113: 0 | O113: 0 | P113: 0 | S113: L-Cystine | T113: 0 | U113: 0 | V113: 0 | W113: 0 | X113: 0 | Y113: 0 | Z113: 0 | AB113: 0 | AC113: 0 | AD113: 0 | AE113: 0 | AF113: 0 | AG113: 0 | AH113: 0 | AK113: L-Cystine
A114: L-Dihydroorotic acid | B114: 0 | C114: 0 | D114: 0 | E114: 0 | F114: 0 | G114: 0 | H114: 0 | J114: 0 | K114: 0 | L114: 0 | M114: 0 | N114: 0 | O114: 0 | P114: 0 | S114: L-Dihydroorotic acid | T114: 0 | U114: 0 | V114: 0 | W114: 0 | X114: 0 | Y114: 0 | Z114: 0 | AB114: 0 | AC114: 0 | AD114: 0 | AE114: 0 | AF114: 0 | AG114: 0 | AH114: 0 | AK114: L-Dihydroorotic acid
A115: L-Glutamic acid | B115: 11159761.97 | C115: 8586855.298 | D115: 8669684.319 | E115: 9556622.472 | F115: 7741076.748 | G115: 7525092.222 | H115: 7561962.296 | J115: 8301714.179 | K115: 7106234.776 | L115: 6118778.598 | M115: 7204861.125 | N115: 5878376.593 | O115: 6076939.864 | P115: 6151658.947 | S115: L-Glutamic acid | T115: 0.2429696664 | U115: 0.174395322 | V115: 0.137495162 | W115: 0.1430546702 | X115: 0.1734285378 | Y115: 0.1815161995 | Z115: 0.1714451978 | AB115: 0.1822669891 | AC115: 0.1613687381 | AD115: 0.0998186479 | AE115: 0.1632832099 | AF115: 0.1573635305 | AG115: 0.1473745219 | AH115: 0.180839949 | AK115: L-Glutamic acid | AL115: 1.389186521 | AM115: 0.9971106036 | AN115: 0.7861328068 | AO115: 0.8179194652 | AP115: 0.9915829855 | AQ115: 1.037824439 | AR115: 0.9802431782 | AT115: 1.042117102 | AU115: 0.9226307103 | AV115: 0.5707161816 | AW115: 0.9335767617 | AX115: 0.8997308134 | AY115: 0.8426183502 | AZ115: 1.033957956
A116: L-Glutamine | B116: 212055.1221 | C116: 207230.017 | D116: 166630.0755 | E116: 143334.337 | F116: 252052.4543 | G116: 141130.8596 | H116: 115910.4082 | J116: 321687.3535 | K116: 98121.03774 | L116: 0 | M116: 159166.3145 | N116: 163222.984 | O116: 144115.9324 | P116: 26654.87648 | S116: L-Glutamine | T116: 0.004616851363 | U116: 0.004208752131 | V116: 0.002642637077 | W116: 0.002145595514 | X116: 0.0056469003 | Y116: 0.003404282169 | Z116: 0.002627926733 | AB116: 0.00706275645 | AC116: 0.002228137479 | AD116: 0 | AE116: 0.003607173862 | AF116: 0.00436946232 | AG116: 0.003495018401 | AH116: 0.0007835718049 | AK116: L-Glutamine | AL116: 1.277745995 | AM116: 1.16480167 | AN116: 0.7313683452 | AO116: 0.5938086067 | AP116: 1.562819263 | AQ116: 0.9421589661 | AR116: 0.7272971543 | AT116: 1.954667382 | AU116: 0.6166526743 | AV116: 0 | AW116: 0.9983106653 | AX116: 1.209279342 | AY116: 0.9672708548 | AZ116: 0.2168589926
A117: L-Glyceric acid | B117: 0 | C117: 18475.85531 | D117: 18465.95467 | E117: 11447.02617 | F117: 0 | G117: 0 | H117: 0 | J117: 0 | K117: 0 | L117: 18833.89383 | M117: 38821.77381 | N117: 22647.99574 | O117: 12841.58517 | P117: 11715.26649 | S117: L-Glyceric acid | T117: 0 | U117: 0.0003752366406 | V117: 0.0002928571948 | W117: 0.0001713524373 | X117: 0 | Y117: 0 | Z117: 0 | AB117: 0 | AC117: 0 | AD117: 0.0003072465831 | AE117: 0.0008798148543 | AF117: 0.0006062844924 | AG117: 0.0003114268889 | AH117: 0.0003443929863 | AK117: L-Glyceric acid | AL117: 0 | AM117: 3.129034662 | AN117: 2.442086445 | AO117: 1.428878893 | AP117: 0 | AQ117: 0 | AR117: 0 | AT117: 0 | AU117: 0 | AV117: 2.562077112 | AW117: 7.336626751 | AX117: 5.055703486 | AY117: 2.596935972 | AZ117: 2.871834664
A118: L-Histidine | B118: 0 | C118: 0 | D118: 0 | E118: 0 | F118: 0 | G118: 0 | H118: 0 | J118: 0 | K118: 43187.42924 | L118: 0 | M118: 0 | N118: 0 | O118: 0 | P118: 0 | S118: L-Histidine | T118: 0 | U118: 0 | V118: 0 | W118: 0 | X118: 0 | Y118: 0 | Z118: 0 | AB118: 0 | AC118: 0.0009807023237 | AD118: 0 | AE118: 0 | AF118: 0 | AG118: 0 | AH118: 0 | AK118: L-Histidine
A119: L-Homoserine | B119: 0 | C119: 0 | D119: 0 | E119: 0 | F119: 0 | G119: 0 | H119: 0 | J119: 0 | K119: 0 | L119: 0 | M119: 0 | N119: 0 | O119: 0 | P119: 0 | S119: L-Homoserine | T119: 0 | U119: 0 | V119: 0 | W119: 0 | X119: 0 | Y119: 0 | Z119: 0 | AB119: 0 | AC119: 0 | AD119: 0 | AE119: 0 | AF119: 0 | AG119: 0 | AH119: 0 | AK119: L-Homoserine
A120: L-Isoleucine | B120: 0 | C120: 0 | D120: 0 | E120: 0 | F120: 0 | G120: 0 | H120: 0 | J120: 0 | K120: 0 | L120: 0 | M120: 0 | N120: 0 | O120: 0 | P120: 0 | S120: L-Isoleucine | T120: 0 | U120: 0 | V120: 0 | W120: 0 | X120: 0 | Y120: 0 | Z120: 0 | AB120: 0 | AC120: 0 | AD120: 0 | AE120: 0 | AF120: 0 | AG120: 0 | AH120: 0 | AK120: L-Isoleucine
A121: L-Kynurenine | B121: 0 | C121: 0 | D121: 0 | E121: 0 | F121: 0 | G121: 0 | H121: 0 | J121: 0 | K121: 0 | L121: 0 | M121: 0 | N121: 0 | O121: 0 | P121: 0 | S121: L-Kynurenine | T121: 0 | U121: 0 | V121: 0 | W121: 0 | X121: 0 | Y121: 0 | Z121: 0 | AB121: 0 | AC121: 0 | AD121: 0 | AE121: 0 | AF121: 0 | AG121: 0 | AH121: 0 | AK121: L-Kynurenine
A122: L-Lactic acid | B122: 7372217.342 | C122: 5133089.096 | D122: 4936216.893 | E122: 4966899.981 | F122: 3778565.791 | G122: 5516144.17 | H122: 7892701.948 | J122: 7214314.784 | K122: 6707362.006 | L122: 6550438.966 | M122: 6137153.7 | N122: 7068151.348 | O122: 7739860.147 | P122: 6617284.352 | S122: L-Lactic acid | T122: 0.1605074725 | U122: 0.1042508223 | V122: 0.07828496592 | W122: 0.07435035135 | X122: 0.08465374541 | Y122: 0.1330574425 | Z122: 0.1789437442 | AB122: 0.1583927616 | AC122: 0.1523111151 | AD122: 0.106860536 | AE122: 0.1390858392 | AF122: 0.1892136771 | AG122: 0.1877027278 | AH122: 0.1945279111 | AK122: L-Lactic acid | AL122: 1.38020308 | AM122: 0.8964523814 | AN122: 0.6731720919 | AO122: 0.6393383578 | AP122: 0.7279371999 | AQ122: 1.144160387 | AR122: 1.538736502 | AT122: 1.362018689 | AU122: 1.309722636 | AV122: 0.9188932987 | AW122: 1.195998545 | AX122: 1.627047612 | AY122: 1.614054965 | AZ122: 1.672744687
A123: L-Leucine | B123: 0 | C123: 0 | D123: 0 | E123: 0 | F123: 0 | G123: 0 | H123: 0 | J123: 0 | K123: 0 | L123: 0 | M123: 0 | N123: 0 | O123: 0 | P123: 0 | S123: L-Leucine | T123: 0 | U123: 0 | V123: 0 | W123: 0 | X123: 0 | Y123: 0 | Z123: 0 | AB123: 0 | AC123: 0 | AD123: 0 | AE123: 0 | AF123: 0 | AG123: 0 | AH123: 0 | AK123: L-Leucine
A124: L-Lysine | B124: 0 | C124: 0 | D124: 0 | E124: 0 | F124: 0 | G124: 0 | H124: 0 | J124: 0 | K124: 0 | L124: 0 | M124: 0 | N124: 0 | O124: 0 | P124: 0 | S124: L-Lysine | T124: 0 | U124: 0 | V124: 0 | W124: 0 | X124: 0 | Y124: 0 | Z124: 0 | AB124: 0 | AC124: 0 | AD124: 0 | AE124: 0 | AF124: 0 | AG124: 0 | AH124: 0 | AK124: L-Lysine
A125: L-Methionine | B125: 0 | C125: 0 | D125: 0 | E125: 0 | F125: 0 | G125: 0 | H125: 0 | J125: 0 | K125: 0 | L125: 0 | M125: 0 | N125: 0 | O125: 0 | P125: 0 | S125: L-Methionine | T125: 0 | U125: 0 | V125: 0 | W125: 0 | X125: 0 | Y125: 0 | Z125: 0 | AB125: 0 | AC125: 0 | AD125: 0 | AE125: 0 | AF125: 0 | AG125: 0 | AH125: 0 | AK125: L-Methionine
A126: L-Palmitoylcarnitine | B126: 0 | C126: 0 | D126: 0 | E126: 0 | F126: 0 | G126: 0 | H126: 0 | J126: 0 | K126: 0 | L126: 0 | M126: 0 | N126: 0 | O126: 0 | P126: 0 | S126: L-Palmitoylcarnitine | T126: 0 | U126: 0 | V126: 0 | W126: 0 | X126: 0 | Y126: 0 | Z126: 0 | AB126: 0 | AC126: 0 | AD126: 0 | AE126: 0 | AF126: 0 | AG126: 0 | AH126: 0 | AK126: L-Palmitoylcarnitine
A127: L-Phenylalanine | B127: 0 | C127: 0 | D127: 0 | E127: 0 | F127: 0 | G127: 0 | H127: 0 | J127: 0 | K127: 19935.50016 | L127: 10502.37892 | M127: 0 | N127: 0 | O127: 0 | P127: 0 | S127: L-Phenylalanine | T127: 0 | U127: 0 | V127: 0 | W127: 0 | X127: 0 | Y127: 0 | Z127: 0 | AB127: 0 | AC127: 0.000452696344 | AD127: 0.0001713304783 | AE127: 0 | AF127: 0 | AG127: 0 | AH127: 0 | AK127: L-Phenylalanine
A128: L-Pipecolic acid | B128: 0 | C128: 0 | D128: 0 | E128: 0 | F128: 0 | G128: 0 | H128: 0 | J128: 0 | K128: 0 | L128: 0 | M128: 0 | N128: 0 | O128: 0 | P128: 0 | S128: L-Pipecolic acid | T128: 0 | U128: 0 | V128: 0 | W128: 0 | X128: 0 | Y128: 0 | Z128: 0 | AB128: 0 | AC128: 0 | AD128: 0 | AE128: 0 | AF128: 0 | AG128: 0 | AH128: 0 | AK128: L-Pipecolic acid
A129: L-Proline | B129: 1359587.789 | C129: 2253227.678 | D129: 1021612.833 | E129: 1177289.389 | F129: 1067524.157 | G129: 923287.0425 | H129: 918384.8829 | J129: 805339.8608 | K129: 679943.4017 | L129: 555193.4102 | M129: 703458.6529 | N129: 642525.0998 | O129: 637401.376 | P129: 552845.1504 | S129: L-Proline | T129: 0.02960086356 | U129: 0.04576208085 | V129: 0.01620206881 | W129: 0.01762304054 | X129: 0.02391646016 | Y129: 0.02227103005 | Z129: 0.02082166927 | AB129: 0.01768151354 | AC129: 0.01544018909 | AD129: 0.009057143455 | AE129: 0.01594242899 | AF129: 0.01720033015 | AG129: 0.01545789907 | AH129: 0.01625195572 | AK129: L-Proline | AL129: 1.175989342 | AM129: 1.818045587 | AN129: 0.6436792025 | AO129: 0.7001318664 | AP129: 0.9501581667 | AQ129: 0.8847881729 | AR129: 0.8272076623 | AT129: 0.7024548942 | AU129: 0.6134110845 | AV129: 0.3598241029 | AW129: 0.6333641769 | AX129: 0.6833383392 | AY129: 0.6141146701 | AZ129: 0.64566112
A130: L-Serine | B130: 617904.4493 | C130: 715332.3479 | D130: 574664.712 | E130: 523308.8471 | F130: 671994.4143 | G130: 633523.7786 | H130: 541025.6471 | J130: 1370439.759 | K130: 1019267.997 | L130: 846838.7037 | M130: 1196951.006 | N130: 883764.8883 | O130: 1010883.557 | P130: 720184.6427 | S130: L-Serine | T130: =B130/B$206 -> 0.0134529785 | U130: =C130/C$206 -> 0.014528091 | V130: =D130/D$206 -> 0.009113782552 | W130: =E130/E$206 -> 0.007833497109 | X130: =F130/F$206 -> 0.01505514187 | Y130: =G130/G$206 -> 0.01528151752 | Z130: =H130/H$206 -> 0.01226616128 | AB130: =J130/J$206 -> 0.0300884761 | AC130: =K130/K$206 -> 0.02314558914 | AD130: =L130/L$206 -> 0.01381489672 | AE130: =M130/M$206 -> 0.02712640799 | AF130: =N130/N$206 -> 0.02365829422 | AG130: =O130/O$206 -> 0.02451537851 | AH130: =P130/P$206 -> 0.02117122473 | AK130: L-Serine | AL130: =T130/AVERAGE($T130:$Z130) -> 1.075855032 | AM130: =U130/AVERAGE($T130:$Z130) -> 1.161833404 | AN130: =V130/AVERAGE($T130:$Z130) -> 0.7288429709 | AO130: =W130/AVERAGE($T130:$Z130) -> 0.6264566082 | AP130: =X130/AVERAGE($T130:$Z130) -> 1.203982459 | AQ130: =Y130/AVERAGE($T130:$Z130) -> 1.222086062 | AR130: =Z130/AVERAGE($T130:$Z130) -> 0.9809434641 | AT130: =AB130/AVERAGE($T130:$Z130) -> 2.406220928 | AU130: =AC130/AVERAGE($T130:$Z130) -> 1.85098776 | AV130: =AD130/AVERAGE($T130:$Z130) -> 1.104798179 | AW130: =AE130/AVERAGE($T130:$Z130) -> 2.169339862 | AX130: =AF130/AVERAGE($T130:$Z130) -> 1.891989561 | AY130: =AG130/AVERAGE($T130:$Z130) -> 1.960531887 | AZ130: =AH130/AVERAGE($T130:$Z130) -> 1.693094853
A131: L-Threonine | B131: 0 | C131: 0 | D131: 0 | E131: 0 | F131: 0 | G131: 0 | H131: 0 | J131: 0 | K131: 0 | L131: 0 | M131: 0 | N131: 0 | O131: 0 | P131: 0 | S131: L-Threonine | T131: 0 | U131: 0 | V131: 0 | W131: 0 | X131: 0 | Y131: 0 | Z131: 0 | AB131: 0 | AC131: 0 | AD131: 0 | AE131: 0 | AF131: 0 | AG131: 0 | AH131: 0 | AK131: L-Threonine
A132: L-Tryptophan | B132: 0 | C132: 0 | D132: 0 | E132: 0 | F132: 0 | G132: 0 | H132: 0 | J132: 0 | K132: 0 | L132: 0 | M132: 0 | N132: 0 | O132: 0 | P132: 0 | S132: L-Tryptophan | T132: 0 | U132: 0 | V132: 0 | W132: 0 | X132: 0 | Y132: 0 | Z132: 0 | AB132: 0 | AC132: 0 | AD132: 0 | AE132: 0 | AF132: 0 | AG132: 0 | AH132: 0 | AK132: L-Tryptophan
A133: L-Tyrosine | B133: 0 | C133: 0 | D133: 0 | E133: 0 | F133: 0 | G133: 0 | H133: 0 | J133: 0 | K133: 0 | L133: 0 | M133: 0 | N133: 0 | O133: 0 | P133: 0 | S133: L-Tyrosine | T133: 0 | U133: 0 | V133: 0 | W133: 0 | X133: 0 | Y133: 0 | Z133: 0 | AB133: 0 | AC133: 0 | AD133: 0 | AE133: 0 | AF133: 0 | AG133: 0 | AH133: 0 | AK133: L-Tyrosine
A134: L-Valine | B134: 0 | C134: 0 | D134: 0 | E134: 0 | F134: 0 | G134: 0 | H134: 0 | J134: 0 | K134: 0 | L134: 0 | M134: 0 | N134: 0 | O134: 0 | P134: 0 | S134: L-Valine | T134: 0 | U134: 0 | V134: 0 | W134: 0 | X134: 0 | Y134: 0 | Z134: 0 | AB134: 0 | AC134: 0 | AD134: 0 | AE134: 0 | AF134: 0 | AG134: 0 | AH134: 0 | AK134: L-Valine
A135: Malic acid | B135: 1001873.582 | C135: 750538.3689 | D135: 777624.5172 | E135: 693028.1886 | F135: 697255.2262 | G135: 781744.7082 | H135: 809787.9798 | J135: 903486.653 | K135: 722753.7204 | L135: 571364.815 | M135: 736904.0811 | N135: 712682.5032 | O135: 756688.2459 | P135: 761204.3764 | S135: Malic acid | T135: 0.02181273135 | U135: 0.01524311007 | V135: 0.01233258387 | W135: 0.01037405414 | X135: 0.0156210768 | Y135: 0.01885682252 | Z135: 0.0183595547 | AB135: 0.01983636011 | AC135: 0.01641232797 | AD135: 0.009320955543 | AE135: 0.01670040014 | AF135: 0.01907843655 | AG135: 0.01835077703 | AH135: 0.02237707939 | AK135: Malic acid | AL135: 1.356032058 | AM135: 0.9476184155 | AN135: 0.7666797344 | AO135: 0.644923818 | AP135: 0.9711154726 | AQ135: 1.172272075 | AR135: 1.141358427 | AT135: 1.233166988 | AU135: 1.020305184 | AV135: 0.5794558381 | AW135: 1.038213766 | AX135: 1.186049154 | AY135: 1.140812746 | AZ135: 1.391115882
A136: Myoinositol | B136: 0 | C136: 0 | D136: 0 | E136: 0 | F136: 0 | G136: 0 | H136: 0 | J136: 0 | K136: 0 | L136: 0 | M136: 0 | N136: 0 | O136: 0 | P136: 0 | S136: Myoinositol | T136: 0 | U136: 0 | V136: 0 | W136: 0 | X136: 0 | Y136: 0 | Z136: 0 | AB136: 0 | AC136: 0 | AD136: 0 | AE136: 0 | AF136: 0 | AG136: 0 | AH136: 0 | AK136: Myoinositol
A137: N6,N6,N6-Trimethyl-L-lysine | B137: 0 | C137: 0 | D137: 0 | E137: 0 | F137: 0 | G137: 0 | H137: 0 | J137: 0 | K137: 0 | L137: 0 | M137: 0 | N137: 0 | O137: 0 | P137: 0 | S137: N6,N6,N6-Trimethyl-L-lysine | T137: 0 | U137: 0 | V137: 0 | W137: 0 | X137: 0 | Y137: 0 | Z137: 0 | AB137: 0 | AC137: 0 | AD137: 0 | AE137: 0 | AF137: 0 | AG137: 0 | AH137: 0 | AK137: N6,N6,N6-Trimethyl-L-lysine
A138: N6-Acetyl-L-lysine | B138: 0 | C138: 0 | D138: 0 | E138: 0 | F138: 0 | G138: 0 | H138: 0 | J138: 0 | K138: 0 | L138: 0 | M138: 0 | N138: 0 | O138: 0 | P138: 0 | S138: N6-Acetyl-L-lysine | T138: 0 | U138: 0 | V138: 0 | W138: 0 | X138: 0 | Y138: 0 | Z138: 0 | AB138: 0 | AC138: 0 | AD138: 0 | AE138: 0 | AF138: 0 | AG138: 0 | AH138: 0 | AK138: N6-Acetyl-L-lysine
A139: N-Acetylasparagine | B139: 0 | C139: 0 | D139: 0 | E139: 0 | F139: 0 | G139: 0 | H139: 0 | J139: 0 | K139: 0 | L139: 0 | M139: 0 | N139: 0 | O139: 0 | P139: 0 | S139: N-Acetylasparagine | T139: 0 | U139: 0 | V139: 0 | W139: 0 | X139: 0 | Y139: 0 | Z139: 0 | AB139: 0 | AC139: 0 | AD139: 0 | AE139: 0 | AF139: 0 | AG139: 0 | AH139: 0 | AK139: N-Acetylasparagine
A140: N-Acetylaspartylglutamic acid | B140: 0 | C140: 0 | D140: 0 | E140: 0 | F140: 0 | G140: 0 | H140: 0 | J140: 0 | K140: 0 | L140: 0 | M140: 0 | N140: 0 | O140: 0 | P140: 0 | S140: N-Acetylaspartylglutamic acid | T140: 0 | U140: 0 | V140: 0 | W140: 0 | X140: 0 | Y140: 0 | Z140: 0 | AB140: 0 | AC140: 0 | AD140: 0 | AE140: 0 | AF140: 0 | AG140: 0 | AH140: 0 | AK140: N-Acetylaspartylglutamic acid
A141: N-Acetyl-D-glucosamine | B141: 0 | C141: 0 | D141: 0 | E141: 0 | F141: 0 | G141: 0 | H141: 0 | J141: 0 | K141: 0 | L141: 0 | M141: 0 | N141: 0 | O141: 0 | P141: 0 | S141: N-Acetyl-D-glucosamine | T141: 0 | U141: 0 | V141: 0 | W141: 0 | X141: 0 | Y141: 0 | Z141: 0 | AB141: 0 | AC141: 0 | AD141: 0 | AE141: 0 | AF141: 0 | AG141: 0 | AH141: 0 | AK141: N-Acetyl-D-glucosamine
A142: N-Acetyl-glucosamine 1-phosphate | B142: 26055.32979 | C142: 31456.06765 | D142: 31491.90749 | E142: 39747.19548 | F142: 16778.27838 | G142: 36595.28222 | H142: 26779.13649 | J142: 30132.82272 | K142: 34378.30758 | L142: 37069.88794 | M142: 36463.97366 | N142: 53973.25881 | O142: 30782.90791 | P142: 37859.09904 | S142: N-Acetyl-glucosamine 1-phosphate | T142: 0.0005672750729 | U142: 0.0006388591464 | V142: 0.0004994397446 | W142: 0.0005949823754 | X142: 0.0003758950313 | Y142: 0.0008827315804 | Z142: 0.0006071379589 | AB142: 0.0006615764834 | AC142: 0.0007806643442 | AD142: 0.0006047393336 | AE142: 0.000826380212 | AF142: 0.00144485853 | AG142: 0.0007465297399 | AH142: 0.001112941663 | AK142: N-Acetyl-glucosamine 1-phosphate | AL142: 0.9531012123 | AM142: 1.073372436 | AN142: 0.8391284032 | AO142: 0.9996533435 | AP142: 0.6315560602 | AQ142: 1.483112126 | AR142: 1.020076419 | AT142: 1.111540729 | AU142: 1.311624939 | AV142: 1.016046394 | AW142: 1.388433971 | AX142: 2.427563773 | AY142: 1.254274045 | AZ142: 1.869897161
A143: N-Acetylglutamic acid | B143: 0 | C143: 0 | D143: 0 | E143: 0 | F143: 0 | G143: 0 | H143: 0 | J143: 0 | K143: 14216.61956 | L143: 0 | M143: 0 | N143: 0 | O143: 0 | P143: 0 | S143: N-Acetylglutamic acid | T143: 0 | U143: 0 | V143: 0 | W143: 0 | X143: 0 | Y143: 0 | Z143: 0 | AB143: 0 | AC143: 0.0003228317147 | AD143: 0 | AE143: 0 | AF143: 0 | AG143: 0 | AH143: 0 | AK143: N-Acetylglutamic acid
A144: N-Acetylglutamine | B144: 0 | C144: 0 | D144: 0 | E144: 0 | F144: 0 | G144: 0 | H144: 0 | J144: 0 | K144: 15304.3214 | L144: 0 | M144: 0 | N144: 0 | O144: 0 | P144: 0 | S144: N-Acetylglutamine | T144: 0 | U144: 0 | V144: 0 | W144: 0 | X144: 0 | Y144: 0 | Z144: 0 | AB144: 0 | AC144: 0.000347531303 | AD144: 0 | AE144: 0 | AF144: 0 | AG144: 0 | AH144: 0 | AK144: N-Acetylglutamine
A145: N-Acetyl-L-alanine | B145: 0 | C145: 0 | D145: 0 | E145: 0 | F145: 0 | G145: 0 | H145: 0 | J145: 0 | K145: 0 | L145: 0 | M145: 0 | N145: 0 | O145: 0 | P145: 14265.51405 | S145: N-Acetyl-L-alanine | T145: 0 | U145: 0 | V145: 0 | W145: 0 | X145: 0 | Y145: 0 | Z145: 0 | AB145: 0 | AC145: 0 | AD145: 0 | AE145: 0 | AF145: 0 | AG145: 0 | AH145: 0.0004193624607 | AK145: N-Acetyl-L-alanine
A146: N-Acetyl-L-aspartic acid | B146: 0 | C146: 0 | D146: 0 | E146: 0 | F146: 0 | G146: 0 | H146: 0 | J146: 0 | K146: 0 | L146: 0 | M146: 0 | N146: 0 | O146: 0 | P146: 0 | S146: N-Acetyl-L-aspartic acid | T146: 0 | U146: 0 | V146: 0 | W146: 0 | X146: 0 | Y146: 0 | Z146: 0 | AB146: 0 | AC146: 0 | AD146: 0 | AE146: 0 | AF146: 0 | AG146: 0 | AH146: 0 | AK146: N-Acetyl-L-aspartic acid
A147: N-Acetyl-L-methionine | B147: 0 | C147: 0 | D147: 0 | E147: 0 | F147: 0 | G147: 0 | H147: 0 | J147: 0 | K147: 0 | L147: 0 | M147: 0 | N147: 0 | O147: 0 | P147: 0 | S147: N-Acetyl-L-methionine | T147: 0 | U147: 0 | V147: 0 | W147: 0 | X147: 0 | Y147: 0 | Z147: 0 | AB147: 0 | AC147: 0 | AD147: 0 | AE147: 0 | AF147: 0 | AG147: 0 | AH147: 0 | AK147: N-Acetyl-L-methionine
A148: N-Acetylornithine | B148: 0 | C148: 0 | D148: 0 | E148: 0 | F148: 0 | G148: 0 | H148: 0 | J148: 0 | K148: 0 | L148: 0 | M148: 0 | N148: 0 | O148: 0 | P148: 0 | S148: N-Acetylornithine | T148: 0 | U148: 0 | V148: 0 | W148: 0 | X148: 0 | Y148: 0 | Z148: 0 | AB148: 0 | AC148: 0 | AD148: 0 | AE148: 0 | AF148: 0 | AG148: 0 | AH148: 0 | AK148: N-Acetylornithine
A149: N-Acetylputrescine | B149: 0 | C149: 0 | D149: 0 | E149: 0 | F149: 0 | G149: 0 | H149: 0 | J149: 0 | K149: 0 | L149: 0 | M149: 0 | N149: 0 | O149: 0 | P149: 0 | S149: N-Acetylputrescine | T149: 0 | U149: 0 | V149: 0 | W149: 0 | X149: 0 | Y149: 0 | Z149: 0 | AB149: 0 | AC149: 0 | AD149: 0 | AE149: 0 | AF149: 0 | AG149: 0 | AH149: 0 | AK149: N-Acetylputrescine
A150: N-acetyltryptophan | B150: 0 | C150: 0 | D150: 0 | E150: 0 | F150: 0 | G150: 0 | H150: 0 | J150: 0 | K150: 0 | L150: 0 | M150: 0 | N150: 0 | O150: 0 | P150: 0 | S150: N-acetyltryptophan | T150: 0 | U150: 0 | V150: 0 | W150: 0 | X150: 0 | Y150: 0 | Z150: 0 | AB150: 0 | AC150: 0 | AD150: 0 | AE150: 0 | AF150: 0 | AG150: 0 | AH150: 0 | AK150: N-acetyltryptophan
A151: NAD | B151: 267294.2393 | C151: 277583.2273 | D151: 291137.2685 | E151: 279523.2068 | F151: 341787.2078 | G151: 139585.1722 | H151: 128473.5303 | J151: 157096.3736 | K151: 80493.02038 | L151: 87260.84372 | M151: 145487.7553 | N151: 42847.77646 | O151: 45983.60683 | P151: 47890.73239 | S151: NAD | T151: 0.0058195141 | U151: 0.005637595443 | V151: 0.004617234541 | W151: 0.004184229341 | X151: 0.007657288207 | Y151: 0.003366997933 | Z151: 0.002912758482 | AB151: 0.003449104897 | AC151: 0.001827839571 | AD151: 0.001423529107 | AE151: 0.003297177735 | AF151: 0.001147030523 | AG151: 0.001115168526 | AH151: 0.001407840987 | AK151: NAD | AL151: 1.191281253 | AM151: 1.154041668 | AN151: 0.9451691073 | AO151: 0.8565309551 | AP151: 1.567482049 | AQ151: 0.6892399342 | AR151: 0.5962550332 | AT151: 0.7060476065 | AU151: 0.3741671514 | AV151: 0.2914029434 | AW151: 0.6749474191 | AX151: 0.2348024139 | AY151: 0.2282801169 | AZ151: 0.2881915131
A152: NADH | B152: 0 | C152: 0 | D152: 0 | E152: 0 | F152: 0 | G152: 0 | H152: 0 | J152: 0 | K152: 0 | L152: 0 | M152: 0 | N152: 0 | O152: 0 | P152: 0 | S152: NADH | T152: 0 | U152: 0 | V152: 0 | W152: 0 | X152: 0 | Y152: 0 | Z152: 0 | AB152: 0 | AC152: 0 | AD152: 0 | AE152: 0 | AF152: 0 | AG152: 0 | AH152: 0 | AK152: NADH
A153: NADP | B153: 0 | C153: 0 | D153: 0 | E153: 0 | F153: 0 | G153: 0 | H153: 0 | J153: 0 | K153: 0 | L153: 0 | M153: 0 | N153: 0 | O153: 0 | P153: 0 | S153: NADP | T153: 0 | U153: 0 | V153: 0 | W153: 0 | X153: 0 | Y153: 0 | Z153: 0 | AB153: 0 | AC153: 0 | AD153: 0 | AE153: 0 | AF153: 0 | AG153: 0 | AH153: 0 | AK153: NADP
A154: NADPH | B154: 0 | C154: 0 | D154: 0 | E154: 0 | F154: 0 | G154: 0 | H154: 0 | J154: 0 | K154: 0 | L154: 0 | M154: 0 | N154: 0 | O154: 0 | P154: 0 | S154: NADPH | T154: 0 | U154: 0 | V154: 0 | W154: 0 | X154: 0 | Y154: 0 | Z154: 0 | AB154: 0 | AC154: 0 | AD154: 0 | AE154: 0 | AF154: 0 | AG154: 0 | AH154: 0 | AK154: NADPH
A155: N-Formyl-L-methionine | B155: 0 | C155: 0 | D155: 0 | E155: 0 | F155: 0 | G155: 0 | H155: 0 | J155: 0 | K155: 0 | L155: 0 | M155: 0 | N155: 0 | O155: 0 | P155: 0 | S155: N-Formyl-L-methionine | T155: 0 | U155: 0 | V155: 0 | W155: 0 | X155: 0 | Y155: 0 | Z155: 0 | AB155: 0 | AC155: 0 | AD155: 0 | AE155: 0 | AF155: 0 | AG155: 0 | AH155: 0 | AK155: N-Formyl-L-methionine
A156: Niacinamide | B156: 0 | C156: 0 | D156: 0 | E156: 0 | F156: 0 | G156: 0 | H156: 0 | J156: 0 | K156: 0 | L156: 0 | M156: 0 | N156: 0 | O156: 0 | P156: 0 | S156: Niacinamide | T156: 0 | U156: 0 | V156: 0 | W156: 0 | X156: 0 | Y156: 0 | Z156: 0 | AB156: 0 | AC156: 0 | AD156: 0 | AE156: 0 | AF156: 0 | AG156: 0 | AH156: 0 | AK156: Niacinamide
A157: Nicotinamide riboside | B157: 0 | C157: 0 | D157: 0 | E157: 0 | F157: 0 | G157: 0 | H157: 0 | J157: 0 | K157: 0 | L157: 0 | M157: 0 | N157: 0 | O157: 0 | P157: 0 | S157: Nicotinamide riboside | T157: 0 | U157: 0 | V157: 0 | W157: 0 | X157: 0 | Y157: 0 | Z157: 0 | AB157: 0 | AC157: 0 | AD157: 0 | AE157: 0 | AF157: 0 | AG157: 0 | AH157: 0 | AK157: Nicotinamide riboside
A158: Nicotinamide ribotide | B158: 0 | C158: 0 | D158: 0 | E158: 0 | F158: 0 | G158: 0 | H158: 0 | J158: 0 | K158: 0 | L158: 0 | M158: 0 | N158: 0 | O158: 0 | P158: 0 | S158: Nicotinamide ribotide | T158: 0 | U158: 0 | V158: 0 | W158: 0 | X158: 0 | Y158: 0 | Z158: 0 | AB158: 0 | AC158: 0 | AD158: 0 | AE158: 0 | AF158: 0 | AG158: 0 | AH158: 0 | AK158: Nicotinamide ribotide
A159: Nicotinic acid adenine dinucleotide | B159: 0 | C159: 0 | D159: 0 | E159: 0 | F159: 0 | G159: 0 | H159: 0 | J159: 0 | K159: 0 | L159: 0 | M159: 0 | N159: 0 | O159: 0 | P159: 0 | S159: Nicotinic acid adenine dinucleotide | T159: 0 | U159: 0 | V159: 0 | W159: 0 | X159: 0 | Y159: 0 | Z159: 0 | AB159: 0 | AC159: 0 | AD159: 0 | AE159: 0 | AF159: 0 | AG159: 0 | AH159: 0 | AK159: Nicotinic acid adenine dinucleotide
A160: Nicotinic acid mononucleotide | B160: 0 | C160: 0 | D160: 0 | E160: 0 | F160: 0 | G160: 0 | H160: 0 | J160: 0 | K160: 0 | L160: 0 | M160: 0 | N160: 0 | O160: 0 | P160: 0 | S160: Nicotinic acid mononucleotide | T160: 0 | U160: 0 | V160: 0 | W160: 0 | X160: 0 | Y160: 0 | Z160: 0 | AB160: 0 | AC160: 0 | AD160: 0 | AE160: 0 | AF160: 0 | AG160: 0 | AH160: 0 | AK160: Nicotinic acid mononucleotide
A161: Nicotinic acid | B161: 0 | C161: 0 | D161: 0 | E161: 0 | F161: 0 | G161: 0 | H161: 0 | J161: 0 | K161: 0 | L161: 0 | M161: 0 | N161: 0 | O161: 0 | P161: 0 | S161: Nicotinic acid | T161: 0 | U161: 0 | V161: 0 | W161: 0 | X161: 0 | Y161: 0 | Z161: 0 | AB161: 0 | AC161: 0 | AD161: 0 | AE161: 0 | AF161: 0 | AG161: 0 | AH161: 0 | AK161: Nicotinic acid
A162: O-Phosphoethanolamine | B162: 0 | C162: 0 | D162: 0 | E162: 0 | F162: 0 | G162: 0 | H162: 0 | J162: 0 | K162: 0 | L162: 0 | M162: 0 | N162: 0 | O162: 0 | P162: 0 | S162: O-Phosphoethanolamine | T162: 0 | U162: 0 | V162: 0 | W162: 0 | X162: 0 | Y162: 0 | Z162: 0 | AB162: 0 | AC162: 0 | AD162: 0 | AE162: 0 | AF162: 0 | AG162: 0 | AH162: 0 | AK162: O-Phosphoethanolamine
A163: Ornithine | B163: 54991.46004 | C163: 50923.83185 | D163: 64607.92031 | E163: 20294.88481 | F163: 20145.69123 | G163: 24909.5514 | H163: 16528.75445 | J163: 35030.44899 | K163: 26028.87006 | L163: 0 | M163: 29459.92823 | N163: 25479.61441 | O163: 14527.5215 | P163: 10087.47806 | S163: Ornithine | T163: 0.00119727076 | U163: 0.001034241028 | V163: 0.00102463667 | W163: 0.0003037975039 | X163: 0.0004513374415 | Y163: 0.0006008547096 | Z163: 0.0003747407704 | AB163: 0.0007691055519 | AC163: 0.0005910648954 | AD163: 0 | AE163: 0.0006676480728 | AF163: 0.00068208663 | AG163: 0.0003523132668 | AH163: 0.0002965409872 | AK163: Ornithine | AL163: 1.680589306 | AM163: 1.451747148 | AN163: 1.438265668 | AO163: 0.4264355676 | AP163: 0.6335349553 | AQ163: 0.8434098892 | AR163: 0.5260174659 | AT163: 1.079580834 | AU163: 0.8296680878 | AV163: 0 | AW163: 0.9371666364 | AX163: 0.957433802 | AY163: 0.4945363473 | AZ163: 0.4162497143
A164: Orotic acid | B164: 0 | C164: 0 | D164: 0 | E164: 0 | F164: 0 | G164: 0 | H164: 0 | J164: 0 | K164: 0 | L164: 0 | M164: 0 | N164: 0 | O164: 0 | P164: 0 | S164: Orotic acid | T164: 0 | U164: 0 | V164: 0 | W164: 0 | X164: 0 | Y164: 0 | Z164: 0 | AB164: 0 | AC164: 0 | AD164: 0 | AE164: 0 | AF164: 0 | AG164: 0 | AH164: 0 | AK164: Orotic acid
A165: Oxalacetic acid | B165: 0 | C165: 0 | D165: 0 | E165: 0 | F165: 0 | G165: 0 | H165: 0 | J165: 0 | K165: 0 | L165: 0 | M165: 0 | N165: 0 | O165: 0 | P165: 0 | S165: Oxalacetic acid | T165: 0 | U165: 0 | V165: 0 | W165: 0 | X165: 0 | Y165: 0 | Z165: 0 | AB165: 0 | AC165: 0 | AD165: 0 | AE165: 0 | AF165: 0 | AG165: 0 | AH165: 0 | AK165: Oxalacetic acid
A166: Oxidized glutathione | B166: 11621.24256 | C166: 0 | D166: 0 | E166: 0 | F166: 10960.73869 | G166: 0 | H166: 12428.01896 | J166: 16336.41914 | K166: 13009.49763 | L166: 10225.21777 | M166: 0 | N166: 0 | O166: 0 | P166: 0 | S166: Oxidized glutathione | T166: 0.0002530169941 | U166: 0 | V166: 0 | W166: 0 | X166: 0.0002455607851 | Y166: 0 | Z166: 0.0002817686845 | AB166: 0.000358671699 | AC166: 0.000295420329 | AD166: 0.0001668090119 | AE166: 0 | AF166: 0 | AG166: 0 | AH166: 0 | AK166: Oxidized glutathione | AL166: 2.269657186 | AM166: 0 | AN166: 0 | AO166: 0 | AP166: 2.202772199 | AQ166: 0 | AR166: 2.527570616 | AT166: 3.217419454 | AU166: 2.650030978 | AV166: 1.496339303 | AW166: 0 | AX166: 0 | AY166: 0 | AZ166: 0
A167: Oxoglutaric acid | B167: 73683.65533 | C167: 69348.27173 | D167: 57969.7562 | E167: 68321.16277 | F167: 66246.75009 | G167: 68010.01849 | H167: 58102.37917 | J167: 86043.71337 | K167: 85703.16207 | L167: 85916.38552 | M167: 81257.8478 | N167: 72012.60866 | O167: 68721.97685 | P167: 66193.68096 | S167: Oxoglutaric acid | T167: 0.001604236112 | U167: 0.001408433444 | V167: 0.0009193600051 | W167: 0.001022710841 | X167: 0.001484170404 | Y167: 0.001640500837 | Z167: 0.001317300127 | AB167: 0.001889119311 | AC167: 0.001946151731 | AD167: 0.001401596299 | AE167: 0.001841540314 | AF167: 0.001927770051 | AG167: 0.001666606666 | AH167: 0.001945891668 | AK167: Oxoglutaric acid | AL167: 1.19506196 | AM167: 1.049200438 | AN167: 0.6848693664 | AO167: 0.761859687 | AP167: 1.105620039 | AQ167: 1.222077056 | AR167: 0.9813114539 | AT167: 1.407283261 | AU167: 1.449769074 | AV167: 1.044107166 | AW167: 1.371839694 | AX167: 1.436075798 | AY167: 1.24152437 | AZ167: 1.449575342
A168: Palmitic acid | B168: 0 | C168: 0 | D168: 0 | E168: 0 | F168: 0 | G168: 0 | H168: 0 | J168: 0 | K168: 0 | L168: 0 | M168: 0 | N168: 0 | O168: 0 | P168: 0 | S168: Palmitic acid | T168: 0 | U168: 0 | V168: 0 | W168: 0 | X168: 0 | Y168: 0 | Z168: 0 | AB168: 0 | AC168: 0 | AD168: 0 | AE168: 0 | AF168: 0 | AG168: 0 | AH168: 0 | AK168: Palmitic acid
A169: Pantothenic acid | B169: 0 | C169: 0 | D169: 0 | E169: 0 | F169: 0 | G169: 0 | H169: 16114.22975 | J169: 0 | K169: 0 | L169: 0 | M169: 0 | N169: 0 | O169: 0 | P169: 0 | S169: Pantothenic acid | T169: 0 | U169: 0 | V169: 0 | W169: 0 | X169: 0 | Y169: 0 | Z169: 0.0003653426451 | AB169: 0 | AC169: 0 | AD169: 0 | AE169: 0 | AF169: 0 | AG169: 0 | AH169: 0 | AK169: Pantothenic acid | AL169: 0 | AM169: 0 | AN169: 0 | AO169: 0 | AP169: 0 | AQ169: 0 | AR169: 7 | AT169: 0 | AU169: 0 | AV169: 0 | AW169: 0 | AX169: 0 | AY169: 0 | AZ169: 0
A170: Phosphocreatine | B170: 0 | C170: 0 | D170: 0 | E170: 0 | F170: 0 | G170: 0 | H170: 0 | J170: 0 | K170: 0 | L170: 0 | M170: 0 | N170: 0 | O170: 0 | P170: 0 | S170: Phosphocreatine | T170: 0 | U170: 0 | V170: 0 | W170: 0 | X170: 0 | Y170: 0 | Z170: 0 | AB170: 0 | AC170: 0 | AD170: 0 | AE170: 0 | AF170: 0 | AG170: 0 | AH170: 0 | AK170: Phosphocreatine
A171: Phosphoenolpyruvic acid | B171: 494096.3803 | C171: 805742.3342 | D171: 863940.1288 | E171: 1379050.374 | F171: 1162863.946 | G171: 828200.8265 | H171: 718471.3555 | J171: 2609126.889 | K171: 2842675.095 | L171: 2772821.507 | M171: 3392199.617 | N171: 2445891.731 | O171: 2281205.856 | P171: 2261757.592 | S171: Phosphoenolpyruvic acid | T171: 0.01075743667 | U171: 0.01636427876 | V171: 0.01370148942 | W171: 0.02064323425 | X171: 0.02605242145 | Y171: 0.01997741184 | Z171: 0.0162892195 | AB171: 0.05728427794 | AC171: 0.06455160958 | AD171: 0.04523440246 | AE171: 0.0768771573 | AF171: 0.06547626747 | AG171: 0.05532251923 | AH171: 0.06648875223 | AK171: Phosphoenolpyruvic acid | AL171: 0.6083269981 | AM171: 0.9253907675 | AN171: 0.7748115265 | AO171: 1.167363296 | AP171: 1.473249792 | AQ171: 1.129711412 | AR171: 0.9211462082 | AT171: 3.239393724 | AU171: 3.650357244 | AV171: 2.557980038 | AW171: 4.34736004 | AX171: 3.702646128 | AY171: 3.128457371 | AZ171: 3.759901572
A172: Phosphorylcholine | B172: 0 | C172: 0 | D172: 0 | E172: 0 | F172: 0 | G172: 0 | H172: 0 | J172: 0 | K172: 0 | L172: 0 | M172: 0 | N172: 0 | O172: 0 | P172: 0 | S172: Phosphorylcholine | T172: 0 | U172: 0 | V172: 0 | W172: 0 | X172: 0 | Y172: 0 | Z172: 0 | AB172: 0 | AC172: 0 | AD172: 0 | AE172: 0 | AF172: 0 | AG172: 0 | AH172: 0 | AK172: Phosphorylcholine
A173: Phosphoserine | B173: 0 | C173: 0 | D173: 0 | E173: 0 | F173: 0 | G173: 0 | H173: 0 | J173: 0 | K173: 0 | L173: 0 | M173: 0 | N173: 0 | O173: 0 | P173: 0 | S173: Phosphoserine | T173: 0 | U173: 0 | V173: 0 | W173: 0 | X173: 0 | Y173: 0 | Z173: 0 | AB173: 0 | AC173: 0 | AD173: 0 | AE173: 0 | AF173: 0 | AG173: 0 | AH173: 0 | AK173: Phosphoserine
A174: Propionylcarnitine | B174: 0 | C174: 0 | D174: 0 | E174: 0 | F174: 0 | G174: 0 | H174: 0 | J174: 0 | K174: 0 | L174: 0 | M174: 0 | N174: 0 | O174: 0 | P174: 0 | S174: Propionylcarnitine | T174: 0 | U174: 0 | V174: 0 | W174: 0 | X174: 0 | Y174: 0 | Z174: 0 | AB174: 0 | AC174: 0 | AD174: 0 | AE174: 0 | AF174: 0 | AG174: 0 | AH174: 0 | AK174: Propionylcarnitine
A175: Purine | B175: 0 | C175: 0 | D175: 0 | E175: 0 | F175: 0 | G175: 0 | H175: 0 | J175: 0 | K175: 0 | L175: 0 | M175: 0 | N175: 0 | O175: 0 | P175: 0 | S175: Purine | T175: 0 | U175: 0 | V175: 0 | W175: 0 | X175: 0 | Y175: 0 | Z175: 0 | AB175: 0 | AC175: 0 | AD175: 0 | AE175: 0 | AF175: 0 | AG175: 0 | AH175: 0 | AK175: Purine
A176: Pyridoxine | B176: 0 | C176: 0 | D176: 0 | E176: 0 | F176: 0 | G176: 0 | H176: 0 | J176: 0 | K176: 0 | L176: 0 | M176: 0 | N176: 0 | O176: 0 | P176: 0 | S176: Pyridoxine | T176: 0 | U176: 0 | V176: 0 | W176: 0 | X176: 0 | Y176: 0 | Z176: 0 | AB176: 0 | AC176: 0 | AD176: 0 | AE176: 0 | AF176: 0 | AG176: 0 | AH176: 0 | AK176: Pyridoxine
A177: Pyroglutamic acid | B177: 193523.663 | C177: 159765.0126 | D177: 152618.3551 | E177: 142876.8968 | F177: 131592.3522 | G177: 134205.1572 | H177: 116783.0988 | J177: 131904.6489 | K177: 121113.4646 | L177: 118951.5124 | M177: 125938.3029 | N177: 106936.3751 | O177: 105794.0612 | P177: 114198.2053 | S177: Pyroglutamic acid | T177: 0.00421338555 | U177: 0.003244758395 | V177: 0.002420420939 | W177: 0.002138748015 | X177: 0.002948151786 | Y177: 0.003237224126 | Z177: 0.002647712419 | AB177: 0.002896011919 | AC177: 0.002750250669 | AD177: 0.001940514589 | AE177: 0.002854130008 | AF177: 0.00286267565 | AG177: 0.002565657969 | AH177: 0.003357077789 | AK177: Pyroglutamic acid | AL177: 1.414538671 | AM177: 1.089346364 | AN177: 0.8125957092 | AO177: 0.7180310797 | AP177: 0.9897681235 | AQ177: 1.086816922 | AR177: 0.8889031308 | AT177: 0.9722634694 | AU177: 0.9233277803 | AV177: 0.6514791717 | AW177: 0.9582026665 | AX177: 0.9610716517 | AY177: 0.8613554046 | AZ177: 1.127054787
A178: Pyruvic acid | B178: 322019.2512 | C178: 252247.879 | D178: 374340.6608 | E178: 255611.088 | F178: 164233.0373 | G178: 291993.4825 | H178: 225183.1823 | J178: 128888.8733 | K178: 216525.9136 | L178: 375933.1261 | M178: 204634.5044 | N178: 318035.2649 | O178: 210178.9218 | P178: 307397.2396 | S178: Pyruvic acid | T178: 0.007010983768 | U178: 0.005123045463 | V178: 0.00593678246 | W178: 0.003826284861 | X178: 0.003679422959 | Y178: 0.007043308663 | Z178: 0.005105364682 | AB178: 0.00282979953 | AC178: 0.004916881377 | AD178: 0.006132782181 | AE178: 0.00463761593 | AF178: 0.008513770992 | AG178: 0.0050971408 | AH178: 0.009036538211 | AK178: Pyruvic acid | AL178: 1.300904851 | AM178: 0.9505933707 | AN178: 1.101584222 | AO178: 0.7099763314 | AP178: 0.6827257534 | AQ178: 1.306902812 | AR178: 0.9473126595 | AT178: 0.5250760886 | AU178: 0.9123391302 | AV178: 1.13795244 | AW178: 0.8605207569 | AX178: 1.579750624 | AY178: 0.9457866985 | AZ178: 1.676751335
A179: Riboflavin | B179: 0 | C179: 0 | D179: 0 | E179: 0 | F179: 0 | G179: 0 | H179: 0 | J179: 0 | K179: 0 | L179: 0 | M179: 0 | N179: 0 | O179: 0 | P179: 0 | S179: Riboflavin | T179: 0 | U179: 0 | V179: 0 | W179: 0 | X179: 0 | Y179: 0 | Z179: 0 | AB179: 0 | AC179: 0 | AD179: 0 | AE179: 0 | AF179: 0 | AG179: 0 | AH179: 0 | AK179: Riboflavin
A180: S-Adenosylhomocysteine | B180: 0 | C180: 0 | D180: 0 | E180: 0 | F180: 0 | G180: 0 | H180: 0 | J180: 0 | K180: 0 | L180: 0 | M180: 0 | N180: 0 | O180: 0 | P180: 0 | S180: S-Adenosylhomocysteine | T180: 0 | U180: 0 | V180: 0 | W180: 0 | X180: 0 | Y180: 0 | Z180: 0 | AB180: 0 | AC180: 0 | AD180: 0 | AE180: 0 | AF180: 0 | AG180: 0 | AH180: 0 | AK180: S-Adenosylhomocysteine
A181: S-Adenosylmethionine | B181: 228981.8937 | C181: 145665.1416 | D181: 170502.2599 | E181: 157143.6756 | F181: 83106.76869 | G181: 145143.3008 | H181: 104913.7762 | J181: 184580.2951 | K181: 157587.7394 | L181: 138828.2353 | M181: 116733.2618 | N181: 121941.5157 | O181: 107851.1304 | P181: 99393.15403 | S181: S-Adenosylmethionine | T181: 0.004985380016 | U181: 0.002958396105 | V181: 0.002704047228 | W181: 0.002352309799 | X181: 0.001861896716 | Y181: 0.003501068102 | Z181: 0.002378610527 | AB181: 0.004052523842 | AC181: 0.003578510342 | AD181: 0.002264773356 | AE181: 0.002645516874 | AF181: 0.003264361703 | AG181: 0.002615544852 | AH181: 0.002921854586 | AK181: S-Adenosylmethionine | AL181: 1.682487251 | AM181: 0.9984121002 | AN181: 0.9125733591 | AO181: 0.7938675157 | AP181: 0.6283608228 | AQ181: 1.181555354 | AR181: 0.8027435972 | AT181: 1.367662982 | AU181: 1.20769089 | AV181: 0.7643253445 | AW181: 0.8928202866 | AX181: 1.101670671 | AY181: 0.8827052009 | AZ181: 0.9860799127
A182: Sedoheptulose 1,7-bisphosphate | B182: 45785.20179 | C182: 41825.91898 | D182: 20782.29823 | E182: 44125.36981 | F182: 41072.92531 | G182: 37448.50829 | H182: 0 | J182: 0 | K182: 12533.86642 | L182: 28512.55389 | M182: 23604.83481 | N182: 17504.66569 | O182: 0 | P182: 0 | S182: Sedoheptulose 1,7-bisphosphate | T182: 0.0009968326593 | U182: 0.0008494663476 | V182: 0.0003295927922 | W182: 0.0006605199947 | X182: 0.0009201843119 | Y182: 0.0009033126376 | Z182: 0 | AB182: 0 | AC182: 0.0002846196714 | AD182: 0.0004651393301 | AE182: 0.0005349545438 | AF182: 0.0004685980814 | AG182: 0 | AH182: 0 | AK182: Sedoheptulose 1,7-bisphosphate | AL182: 1.497417439 | AM182: 1.276047399 | AN182: 0.4951061647 | AO182: 0.9922168475 | AP182: 1.382278181 | AQ182: 1.356933968 | AR182: 0 | AT182: 0 | AU182: 0.4275486516 | AV182: 0.6987208312 | AW182: 0.8035955236 | AX182: 0.7039164821 | AY182: 0 | AZ182: 0
A183: Succinic acid | B183: 0 | C183: 50742.59165 | D183: 0 | E183: 0 | F183: 49622.77921 | G183: 0 | H183: 63705.12585 | J183: 40899.16131 | K183: 0 | L183: 54157.73904 | M183: 46267.73051 | N183: 0 | O183: 40019.7895 | P183: 0 | S183: Succinic acid | T183: 0 | U183: 0.001030560118 | V183: 0 | W183: 0 | X183: 0.001111732427 | Y183: 0 | Z183: 0.001444325888 | AB183: 0.0008979551487 | AC183: 0 | AD183: 0.0008835018619 | AE183: 0.001048561995 | AF183: 0 | AG183: 0.0009705373883 | AH183: 0 | AK183: Succinic acid | AL183: 0 | AM183: 2.011343264 | AN183: 0 | AO183: 0 | AP183: 2.169767188 | AQ183: 0 | AR183: 2.818889548 | AT183: 1.752538264 | AU183: 0 | AV183: 1.724329797 | AW183: 2.046477511 | AX183: 0 | AY183: 1.894196956 | AZ183: 0
A184: Succinyl-CoA | B184: 0 | C184: 0 | D184: 0 | E184: 0 | F184: 0 | G184: 0 | H184: 0 | J184: 0 | K184: 0 | L184: 0 | M184: 0 | N184: 0 | O184: 0 | P184: 0 | S184: Succinyl-CoA | T184: 0 | U184: 0 | V184: 0 | W184: 0 | X184: 0 | Y184: 0 | Z184: 0 | AB184: 0 | AC184: 0 | AD184: 0 | AE184: 0 | AF184: 0 | AG184: 0 | AH184: 0 | AK184: Succinyl-CoA
A185: Taurine | B185: 0 | C185: 0 | D185: 0 | E185: 0 | F185: 0 | G185: 0 | H185: 0 | J185: 0 | K185: 0 | L185: 0 | M185: 0 | N185: 0 | O185: 0 | P185: 0 | S185: Taurine | T185: 0 | U185: 0 | V185: 0 | W185: 0 | X185: 0 | Y185: 0 | Z185: 0 | AB185: 0 | AC185: 0 | AD185: 0 | AE185: 0 | AF185: 0 | AG185: 0 | AH185: 0 | AK185: Taurine
A186: Thiamine monophosphate | B186: 0 | C186: 0 | D186: 0 | E186: 0 | F186: 0 | G186: 0 | H186: 0 | J186: 0 | K186: 0 | L186: 0 | M186: 0 | N186: 0 | O186: 0 | P186: 0 | S186: Thiamine monophosphate | T186: 0 | U186: 0 | V186: 0 | W186: 0 | X186: 0 | Y186: 0 | Z186: 0 | AB186: 0 | AC186: 0 | AD186: 0 | AE186: 0 | AF186: 0 | AG186: 0 | AH186: 0 | AK186: Thiamine monophosphate
A187: Thiamine | B187: 0 | C187: 0 | D187: 0 | E187: 0 | F187: 0 | G187: 0 | H187: 0 | J187: 0 | K187: 0 | L187: 0 | M187: 0 | N187: 0 | O187: 0 | P187: 0 | S187: Thiamine | T187: 0 | U187: 0 | V187: 0 | W187: 0 | X187: 0 | Y187: 0 | Z187: 0 | AB187: 0 | AC187: 0 | AD187: 0 | AE187: 0 | AF187: 0 | AG187: 0 | AH187: 0 | AK187: Thiamine
A188: Thymidine 5-triphosphate | B188: 0 | C188: 13180.61448 | D188: 13571.42405 | E188: 0 | F188: 11579.20583 | G188: 0 | H188: 0 | J188: 0 | K188: 0 | L188: 0 | M188: 0 | N188: 0 | O188: 0 | P188: 0 | S188: Thymidine 5-triphosphate | T188: 0 | U188: 0.0002676925867 | V188: 0.0002152333441 | W188: 0 | X188: 0.0002594167197 | Y188: 0 | Z188: 0 | AB188: 0 | AC188: 0 | AD188: 0 | AE188: 0 | AF188: 0 | AG188: 0 | AH188: 0 | AK188: Thymidine 5-triphosphate | AL188: 0 | AM188: 2.524236087 | AN188: 2.029566006 | AO188: 0 | AP188: 2.446197907 | AQ188: 0 | AR188: 0 | AT188: 0 | AU188: 0 | AV188: 0 | AW188: 0 | AX188: 0 | AY188: 0 | AZ188: 0
A189: Thymidine | B189: 0 | C189: 0 | D189: 0 | E189: 0 | F189: 0 | G189: 0 | H189: 0 | J189: 0 | K189: 0 | L189: 0 | M189: 0 | N189: 0 | O189: 0 | P189: 0 | S189: Thymidine | T189: 0 | U189: 0 | V189: 0 | W189: 0 | X189: 0 | Y189: 0 | Z189: 0 | AB189: 0 | AC189: 0 | AD189: 0 | AE189: 0 | AF189: 0 | AG189: 0 | AH189: 0 | AK189: Thymidine
A190: Thymine | B190: 0 | C190: 0 | D190: 0 | E190: 0 | F190: 0 | G190: 0 | H190: 0 | J190: 0 | K190: 0 | L190: 0 | M190: 0 | N190: 0 | O190: 0 | P190: 0 | S190: Thymine | T190: 0 | U190: 0 | V190: 0 | W190: 0 | X190: 0 | Y190: 0 | Z190: 0 | AB190: 0 | AC190: 0 | AD190: 0 | AE190: 0 | AF190: 0 | AG190: 0 | AH190: 0 | AK190: Thymine
A191: Uracil | B191: 0 | C191: 11828.91393 | D191: 0 | E191: 0 | F191: 0 | G191: 15619.83348 | H191: 10169.56915 | J191: 17819.30303 | K191: 19774.51017 | L191: 0 | M191: 13302.67291 | N191: 15640.0762 | O191: 15143.77719 | P191: 20948.41007 | S191: Uracil | T191: 0 | U191: 0.0002402401324 | V191: 0 | W191: 0 | X191: 0 | Y191: 0.0003767731647 | Z191: 0.0002305649944 | AB191: 0.0003912289248 | AC191: 0.0004490405753 | AD191: 0 | AE191: 0.0003014774462 | AF191: 0.0004186832146 | AG191: 0.0003672583527 | AH191: 0.0006158191541 | AK191: Uracil | AL191: 0 | AM191: 1.984100989 | AN191: 0 | AO191: 0 | AP191: 0 | AQ191: 3.111703284 | AR191: 1.904195727 | AT191: 3.231090863 | AU191: 3.708547114 | AV191: 0 | AW191: 2.489849191 | AX191: 3.457831012 | AY191: 3.033122126 | AZ191: 5.085942056
A192: Ureidopropionic acid | B192: 0 | C192: 0 | D192: 0 | E192: 0 | F192: 0 | G192: 0 | H192: 0 | J192: 0 | K192: 0 | L192: 0 | M192: 0 | N192: 0 | O192: 0 | P192: 0 | S192: Ureidopropionic acid | T192: 0 | U192: 0 | V192: 0 | W192: 0 | X192: 0 | Y192: 0 | Z192: 0 | AB192: 0 | AC192: 0 | AD192: 0 | AE192: 0 | AF192: 0 | AG192: 0 | AH192: 0 | AK192: Ureidopropionic acid
A193: Ureidosuccinic acid | B193: 10195.25563 | C193: 0 | D193: 15489.16645 | E193: 0 | F193: 0 | G193: 0 | H193: 0 | J193: 11622.22903 | K193: 0 | L193: 10839.33157 | M193: 10772.27841 | N193: 0 | O193: 13861.77376 | P193: 12224.5573 | S193: Ureidosuccinic acid | T193: 0.0002219704923 | U193: 0 | V193: 0.0002456474044 | W193: 0 | X193: 0 | Y193: 0 | Z193: 0 | AB193: 0.0002551700343 | AC193: 0 | AD193: 0.0001768273527 | AE193: 0.0002441313115 | AF193: 0 | AG193: 0.0003361679278 | AH193: 0.0003593645774 | AK193: Ureidosuccinic acid | AL193: 3.322784387 | AM193: 0 | AN193: 3.677215613 | AO193: 0 | AP193: 0 | AQ193: 0 | AR193: 0 | AT193: 3.819764497 | AU193: 0 | AV193: 2.647014748 | AW193: 3.654520481 | AX193: 0 | AY193: 5.032261406 | AZ193: 5.37950335
A194: Uric acid | B194: 0 | C194: 0 | D194: 0 | E194: 0 | F194: 0 | G194: 0 | H194: 16332.86988 | J194: 0 | K194: 0 | L194: 0 | M194: 0 | N194: 15159.69669 | O194: 0 | P194: 0 | S194: Uric acid | T194: =B194/B$206 -> 0 | U194: =C194/C$206 -> 0 | V194: =D194/D$206 -> 0 | W194: =E194/E$206 -> 0 | X194: =F194/F$206 -> 0 | Y194: =G194/G$206 -> 0 | Z194: =H194/H$206 -> 0.0003702996654 | AB194: =J194/J$206 -> 0 | AC194: =K194/K$206 -> 0 | AD194: =L194/L$206 -> 0 | AE194: =M194/M$206 -> 0 | AF194: =N194/N$206 -> 0.000405823505 | AG194: =O194/O$206 -> 0 | AH194: =P194/P$206 -> 0 | AK194: Uric acid | AL194: =T194/AVERAGE($T194:$Z194) -> 0 | AM194: =U194/AVERAGE($T194:$Z194) -> 0 | AN194: =V194/AVERAGE($T194:$Z194) -> 0 | AO194: =W194/AVERAGE($T194:$Z194) -> 0 | AP194: =X194/AVERAGE($T194:$Z194) -> 0 | AQ194: =Y194/AVERAGE($T194:$Z194) -> 0 | AR194: =Z194/AVERAGE($T194:$Z194) -> 7 | AT194: =AB194/AVERAGE($T194:$Z194) -> 0 | AU194: =AC194/AVERAGE($T194:$Z194) -> 0 | AV194: =AD194/AVERAGE($T194:$Z194) -> 0 | AW194: =AE194/AVERAGE($T194:$Z194) -> 0 | AX194: =AF194/AVERAGE($T194:$Z194) -> 7.671528765 | AY194: =AG194/AVERAGE($T194:$Z194) -> 0 | AZ194: =AH194/AVERAGE($T194:$Z194) -> 0
A195: Uridine 5-diphosphate | B195: 501763.415 | C195: 421241.746 | D195: 339246.1612 | E195: 370699.9739 | F195: 357317.17 | G195: 520339.9504 | H195: 343945.3973 | J195: 452231.4961 | K195: 457255.2721 | L195: 326082.3541 | M195: 302695.7733 | N195: 305456.9971 | O195: 244715.0895 | P195: 287651.8618 | S195: Uridine 5-diphosphate | T195: 0.01092436289 | U195: 0.008555237904 | V195: 0.005380208111 | W195: 0.005549069523 | X195: 0.008005216376 | Y195: 0.0125513585 | Z195: 0.007797947726 | AB195: 0.009928897985 | AC195: 0.0103833758 | AD195: 0.005319541993 | AE195: 0.006859970877 | AF195: 0.00817705207 | AG195: 0.005934692482 | AH195: 0.008456084524 | AK195: Uridine 5-diphosphate | AL195: 1.30132938 | AM195: 1.019115032 | AN195: 0.6408998819 | AO195: 0.6610149511 | AP195: 0.9535954972 | AQ195: 1.495139968 | AR195: 0.9289052901 | AT195: 1.182747844 | AU195: 1.236886044 | AV195: 0.6336732268 | AW195: 0.817171833 | AX195: 0.9740648683 | AY195: 0.7069510382 | AZ195: 1.007303706
A196: Uridine 5-monophosphate | B196: 70585.45589 | C196: 26566.49829 | D196: 34881.11992 | E196: 46354.49991 | F196: 25261.30031 | G196: 66885.63397 | H196: 77497.05922 | J196: 131084.2033 | K196: 122318.8061 | L196: 114065.9637 | M196: 122517.9728 | N196: 103363.7139 | O196: 106691.1925 | P196: 104221.8131 | S196: Uridine 5-monophosphate | T196: 0.0015367823 | U196: 0.0005395541047 | V196: 0.0005531902959 | W196: 0.0006938882136 | X196: 0.000565945865 | Y196: 0.001613379042 | Z196: 0.00175701731 | AB196: 0.002877998752 | AC196: 0.002777621624 | AD196: 0.001860814227 | AE196: 0.002776615332 | AF196: 0.002767035879 | AG196: 0.002587414692 | AH196: 0.003063802386 | AK196: Uridine 5-monophosphate | AL196: 1.48179559 | AM196: 0.5202486343 | AN196: 0.533396917 | AO196: 0.6690606045 | AP196: 0.5456960865 | AQ196: 1.555651669 | AR196: 1.694150499 | AT196: 2.77502276 | AU196: 2.678237167 | AV196: 1.79423352 | AW196: 2.67726688 | AX196: 2.668030184 | AY196: 2.494835918 | AZ196: 2.954178262
A197: Uridine diphosphate glucose | B197: 2533276.927 | C197: 2826297.451 | D197: 2714864.216 | E197: 2658431.627 | F197: 2943440.57 | G197: 2790831.213 | H197: 2744339.42 | J197: 2140969.229 | K197: 1867616.795 | L197: 1578205.812 | M197: 1962233.458 | N197: 1563232.665 | O197: 1458813.087 | P197: 1293057.528 | S197: Uridine diphosphate glucose | T197: 0.05515435287 | U197: 0.05740088041 | V197: 0.04305585779 | W197: 0.03979450488 | X197: 0.06594387459 | Y197: 0.06731891921 | Z197: 0.06221980437 | AB197: 0.04700571554 | AC197: 0.04240993646 | AD197: 0.02574604846 | AE197: 0.04446994494 | AF197: 0.04184757599 | AG197: 0.03537831311 | AH197: 0.03801193457 | AK197: Uridine diphosphate glucose | AL197: 0.9877005135 | AM197: 1.027931181 | AN197: 0.7710414616 | AO197: 0.7126373687 | AP197: 1.180918557 | AQ197: 1.205542765 | AR197: 1.114228153 | AT197: 0.8417752537 | AU197: 0.7594743451 | AV197: 0.4610585377 | AW197: 0.796364841 | AX197: 0.7494036308 | AY197: 0.6335524978 | AZ197: 0.6807152173
A198: Uridine diphosphate glucuronic acid | B198: 0 | C198: 0 | D198: 0 | E198: 0 | F198: 0 | G198: 0 | H198: 0 | J198: 0 | K198: 0 | L198: 0 | M198: 0 | N198: 0 | O198: 0 | P198: 0 | S198: Uridine diphosphate glucuronic acid | T198: 0 | U198: 0 | V198: 0 | W198: 0 | X198: 0 | Y198: 0 | Z198: 0 | AB198: 0 | AC198: 0 | AD198: 0 | AE198: 0 | AF198: 0 | AG198: 0 | AH198: 0 | AK198: Uridine diphosphate glucuronic acid
A199: Uridine diphosphate-N-acetylglucosamine | B199: 1729340.737 | C199: 1899408.824 | D199: 2079993.613 | E199: 1572280.468 | F199: 1709115.169 | G199: 1818663.479 | H199: 1932239.728 | J199: 1714310.314 | K199: 1804132.355 | L199: 1654550.051 | M199: 1549918.15 | N199: 1479471.65 | O199: 1652762.972 | P199: 1352658.086 | S199: Uridine diphosphate-N-acetylglucosamine | T199: 0.0376511025 | U199: 0.03857617276 | V199: 0.0329872517 | W199: 0.02353572765 | X199: 0.03829045421 | Y199: 0.04386881559 | Z199: 0.04380783843 | AB199: 0.03763827237 | AC199: 0.0409683286 | AD199: 0.02699148962 | AE199: 0.03512567503 | AF199: 0.03960530233 | AG199: 0.04008187646 | AH199: 0.03976400859 | AK199: Uridine diphosphate-N-acetylglucosamine | AL199: 1.018709044 | AM199: 1.043738257 | AN199: 0.892521319 | AO199: 0.636795659 | AP199: 1.036007698 | AQ199: 1.186938927 | AR199: 1.185289096 | AT199: 1.018361905 | AU199: 1.108461748 | AV199: 0.7302966653 | AW199: 0.9503796828 | AX199: 1.071582955 | AY199: 1.084477409 | AZ199: 1.075877
A200: Uridine triphosphate | B200: 107648.5024 | C200: 163843.3724 | D200: 168677.127 | E200: 136000.4701 | F200: 200281.6864 | G200: 72299.9916 | H200: 109870.9046 | J200: 56569.20076 | K200: 63245.66201 | L200: 50238.43833 | M200: 55946.58255 | N200: 48641.78961 | O200: 35180.8709 | P200: 40172.81383 | S200: Uridine triphosphate | T200: 0.00234371672 | U200: 0.00332758812 | V200: 0.00267510189 | W200: 0.002035813641 | X200: 0.004487045041 | Y200: 0.001743981245 | Z200: 0.002490998796 | AB200: 0.001241996253 | AC200: 0.001436185686 | AD200: 0.0008195643798 | AE200: 0.001267913069 | AF200: 0.001302135653 | AG200: 0.0008531866606 | AH200: 0.001180957798 | AK200: Uridine triphosphate | AL200: 0.85876289 | AM200: 1.219263901 | AN200: 0.9801859632 | AO200: 0.7459439067 | AP200: 1.644101326 | AQ200: 0.6390133933 | AR200: 0.9127286192 | AT200: 0.4550807196 | AU200: 0.5262338063 | AV200: 0.3002971603 | AW200: 0.4645769185 | AX200: 0.4771164395 | AY200: 0.3126167238 | AZ200: 0.4327155766
... 239 more rows

Sheet d4 Isotope Charges
A1: Compound | B1: NTC_1 | C1: NTC_2 | D1: NTC_3 | E1: NTC_4 | F1: NTC_5 | G1: NTC_6 | H1: NTC_7 | J1: Pkm2_1 | K1: Pkm2_2 | L1: Pkm2_3 | M1: Pkm2_4 | N1: Pkm2_5 | O1: Pkm2_6 | P1: Pkm2_7 | R1: NORMALIZED BY SUM | S1: Compound | T1: NTC_1 | U1: NTC_2 | V1: NTC_3 | W1: NTC_4 | X1: NTC_5 | Y1: NTC_6 | Z1: NTC_7 | AB1: Pkm2_1 | AC1: Pkm2_2 | AD1: Pkm2_3 | AE1: Pkm2_4 | AF1: Pkm2_5 | AG1: Pkm2_6 | AH1: Pkm2_7 | AJ1: FOLD OF NTC | AK1: Compound | AL1: NTC_1 | AM1: NTC_2 | AN1: NTC_3 | AO1: NTC_4 | AP1: NTC_5 | AQ1: NTC_6 | AR1: NTC_7 | AT1: Pkm2_1 | AU1: Pkm2_2 | AV1: Pkm2_3 | AW1: Pkm2_4 | AX1: Pkm2_5 | AY1: Pkm2_6 | AZ1: Pkm2_7
A2: 1-Methyladenosine_1 | B2: 0 | C2: 0 | D2: 0 | E2: 0 | F2: 0 | G2: 0 | H2: 0 | J2: 0 | K2: 0 | L2: 0 | M2: 0 | N2: 0 | O2: 0 | P2: 0 | S2: 1-Methyladenosine_1 | T2: =B2/B$1659 -> 0 | U2: =C2/C$1659 -> 0 | V2: =D2/D$1659 -> 0 | W2: =E2/E$1659 -> 0 | X2: =F2/F$1659 -> 0 | Y2: =G2/G$1659 -> 0 | Z2: =H2/H$1659 -> 0 | AB2: =J2/J$1659 -> 0 | AC2: =K2/K$1659 -> 0 | AD2: =L2/L$1659 -> 0 | AE2: =M2/M$1659 -> 0 | AF2: =N2/N$1659 -> 0 | AG2: =O2/O$1659 -> 0 | AH2: =P2/P$1659 -> 0 | AK2: 1-Methyladenosine_1 | AL2: =T2/AVERAGE($T2:$Z2) ->  | AM2: =U2/AVERAGE($T2:$Z2) ->  | AT2: =AB2/AVERAGE($T2:$Z2) -> 
A3: 1-Methyladenosine_2 | B3: 0 | C3: 0 | D3: 0 | E3: 0 | F3: 0 | G3: 0 | H3: 0 | J3: 0 | K3: 0 | L3: 0 | M3: 0 | N3: 0 | O3: 0 | P3: 0 | S3: 1-Methyladenosine_2 | T3: 0 | U3: 0 | V3: 0 | W3: 0 | X3: 0 | Y3: 0 | Z3: 0 | AB3: 0 | AC3: 0 | AD3: 0 | AE3: 0 | AF3: 0 | AG3: 0 | AH3: 0 | AK3: 1-Methyladenosine_2 | AL3: =T3/AVERAGE($T3:$Z3) -> 
A4: 1-Methyladenosine_3 | B4: 0 | C4: 0 | D4: 0 | E4: 0 | F4: 0 | G4: 0 | H4: 0 | J4: 0 | K4: 0 | L4: 0 | M4: 0 | N4: 0 | O4: 0 | P4: 0 | S4: 1-Methyladenosine_3 | T4: 0 | U4: 0 | V4: 0 | W4: 0 | X4: 0 | Y4: 0 | Z4: 0 | AB4: 0 | AC4: 0 | AD4: 0 | AE4: 0 | AF4: 0 | AG4: 0 | AH4: 0 | AK4: 1-Methyladenosine_3
A5: 1-Methyladenosine_4 | B5: 0 | C5: 0 | D5: 0 | E5: 0 | F5: 0 | G5: 0 | H5: 0 | J5: 0 | K5: 0 | L5: 0 | M5: 0 | N5: 0 | O5: 0 | P5: 0 | S5: 1-Methyladenosine_4 | T5: 0 | U5: 0 | V5: 0 | W5: 0 | X5: 0 | Y5: 0 | Z5: 0 | AB5: 0 | AC5: 0 | AD5: 0 | AE5: 0 | AF5: 0 | AG5: 0 | AH5: 0 | AK5: 1-Methyladenosine_4
A6: 1-Methyladenosine_5 | B6: 0 | C6: 0 | D6: 0 | E6: 0 | F6: 0 | G6: 0 | H6: 0 | J6: 0 | K6: 0 | L6: 0 | M6: 0 | N6: 0 | O6: 0 | P6: 0 | S6: 1-Methyladenosine_5 | T6: 0 | U6: 0 | V6: 0 | W6: 0 | X6: 0 | Y6: 0 | Z6: 0 | AB6: 0 | AC6: 0 | AD6: 0 | AE6: 0 | AF6: 0 | AG6: 0 | AH6: 0 | AK6: 1-Methyladenosine_5
A7: 1-Methyladenosine_6 | B7: 0 | C7: 0 | D7: 0 | E7: 0 | F7: 0 | G7: 0 | H7: 0 | J7: 0 | K7: 0 | L7: 0 | M7: 0 | N7: 0 | O7: 0 | P7: 0 | S7: 1-Methyladenosine_6 | T7: 0 | U7: 0 | V7: 0 | W7: 0 | X7: 0 | Y7: 0 | Z7: 0 | AB7: 0 | AC7: 0 | AD7: 0 | AE7: 0 | AF7: 0 | AG7: 0 | AH7: 0 | AK7: 1-Methyladenosine_6
A8: 1-Methyladenosine_7 | B8: 0 | C8: 0 | D8: 0 | E8: 0 | F8: 0 | G8: 0 | H8: 0 | J8: 0 | K8: 0 | L8: 0 | M8: 0 | N8: 0 | O8: 0 | P8: 0 | S8: 1-Methyladenosine_7 | T8: 0 | U8: 0 | V8: 0 | W8: 0 | X8: 0 | Y8: 0 | Z8: 0 | AB8: 0 | AC8: 0 | AD8: 0 | AE8: 0 | AF8: 0 | AG8: 0 | AH8: 0 | AK8: 1-Methyladenosine_7
A9: 1-Methyladenosine_8 | B9: 0 | C9: 0 | D9: 0 | E9: 0 | F9: 0 | G9: 0 | H9: 0 | J9: 0 | K9: 0 | L9: 0 | M9: 0 | N9: 0 | O9: 0 | P9: 0 | S9: 1-Methyladenosine_8 | T9: 0 | U9: 0 | V9: 0 | W9: 0 | X9: 0 | Y9: 0 | Z9: 0 | AB9: 0 | AC9: 0 | AD9: 0 | AE9: 0 | AF9: 0 | AG9: 0 | AH9: 0 | AK9: 1-Methyladenosine_8
A10: 1-Methyladenosine_9 | B10: 0 | C10: 0 | D10: 0 | E10: 0 | F10: 0 | G10: 0 | H10: 0 | J10: 0 | K10: 0 | L10: 0 | M10: 0 | N10: 0 | O10: 0 | P10: 0 | S10: 1-Methyladenosine_9 | T10: 0 | U10: 0 | V10: 0 | W10: 0 | X10: 0 | Y10: 0 | Z10: 0 | AB10: 0 | AC10: 0 | AD10: 0 | AE10: 0 | AF10: 0 | AG10: 0 | AH10: 0 | AK10: 1-Methyladenosine_9
A11: 1-Methyladenosine_10 | B11: 0 | C11: 0 | D11: 0 | E11: 0 | F11: 0 | G11: 0 | H11: 0 | J11: 0 | K11: 0 | L11: 0 | M11: 0 | N11: 0 | O11: 0 | P11: 0 | S11: 1-Methyladenosine_10 | T11: 0 | U11: 0 | V11: 0 | W11: 0 | X11: 0 | Y11: 0 | Z11: 0 | AB11: 0 | AC11: 0 | AD11: 0 | AE11: 0 | AF11: 0 | AG11: 0 | AH11: 0 | AK11: 1-Methyladenosine_10
A12: 1-Methyladenosine_11 | B12: 0 | C12: 0 | D12: 0 | E12: 0 | F12: 0 | G12: 0 | H12: 0 | J12: 0 | K12: 0 | L12: 0 | M12: 0 | N12: 0 | O12: 0 | P12: 0 | S12: 1-Methyladenosine_11 | T12: 0 | U12: 0 | V12: 0 | W12: 0 | X12: 0 | Y12: 0 | Z12: 0 | AB12: 0 | AC12: 0 | AD12: 0 | AE12: 0 | AF12: 0 | AG12: 0 | AH12: 0 | AK12: 1-Methyladenosine_11
A13: 1-Methylnicotinamide_1 | B13: 0 | C13: 0 | D13: 0 | E13: 0 | F13: 0 | G13: 0 | H13: 0 | J13: 0 | K13: 0 | L13: 0 | M13: 0 | N13: 0 | O13: 0 | P13: 0 | S13: 1-Methylnicotinamide_1 | T13: 0 | U13: 0 | V13: 0 | W13: 0 | X13: 0 | Y13: 0 | Z13: 0 | AB13: 0 | AC13: 0 | AD13: 0 | AE13: 0 | AF13: 0 | AG13: 0 | AH13: 0 | AK13: 1-Methylnicotinamide_1
A14: 1-Methylnicotinamide_2 | B14: 0 | C14: 0 | D14: 0 | E14: 0 | F14: 0 | G14: 0 | H14: 0 | J14: 0 | K14: 0 | L14: 0 | M14: 0 | N14: 0 | O14: 0 | P14: 0 | S14: 1-Methylnicotinamide_2 | T14: 0 | U14: 0 | V14: 0 | W14: 0 | X14: 0 | Y14: 0 | Z14: 0 | AB14: 0 | AC14: 0 | AD14: 0 | AE14: 0 | AF14: 0 | AG14: 0 | AH14: 0 | AK14: 1-Methylnicotinamide_2
A15: 1-Methylnicotinamide_3 | B15: 0 | C15: 0 | D15: 0 | E15: 0 | F15: 0 | G15: 0 | H15: 0 | J15: 0 | K15: 0 | L15: 0 | M15: 0 | N15: 0 | O15: 0 | P15: 0 | S15: 1-Methylnicotinamide_3 | T15: 0 | U15: 0 | V15: 0 | W15: 0 | X15: 0 | Y15: 0 | Z15: 0 | AB15: 0 | AC15: 0 | AD15: 0 | AE15: 0 | AF15: 0 | AG15: 0 | AH15: 0 | AK15: 1-Methylnicotinamide_3
A16: 1-Methylnicotinamide_4 | B16: 0 | C16: 0 | D16: 0 | E16: 0 | F16: 0 | G16: 0 | H16: 0 | J16: 0 | K16: 0 | L16: 0 | M16: 0 | N16: 0 | O16: 0 | P16: 0 | S16: 1-Methylnicotinamide_4 | T16: 0 | U16: 0 | V16: 0 | W16: 0 | X16: 0 | Y16: 0 | Z16: 0 | AB16: 0 | AC16: 0 | AD16: 0 | AE16: 0 | AF16: 0 | AG16: 0 | AH16: 0 | AK16: 1-Methylnicotinamide_4
A17: 1-Methylnicotinamide_5 | B17: 0 | C17: 0 | D17: 0 | E17: 0 | F17: 0 | G17: 0 | H17: 0 | J17: 0 | K17: 0 | L17: 0 | M17: 0 | N17: 0 | O17: 0 | P17: 0 | S17: 1-Methylnicotinamide_5 | T17: 0 | U17: 0 | V17: 0 | W17: 0 | X17: 0 | Y17: 0 | Z17: 0 | AB17: 0 | AC17: 0 | AD17: 0 | AE17: 0 | AF17: 0 | AG17: 0 | AH17: 0 | AK17: 1-Methylnicotinamide_5
A18: 1-Methylnicotinamide_6 | B18: 0 | C18: 0 | D18: 0 | E18: 0 | F18: 0 | G18: 0 | H18: 0 | J18: 0 | K18: 0 | L18: 0 | M18: 0 | N18: 0 | O18: 0 | P18: 0 | S18: 1-Methylnicotinamide_6 | T18: 0 | U18: 0 | V18: 0 | W18: 0 | X18: 0 | Y18: 0 | Z18: 0 | AB18: 0 | AC18: 0 | AD18: 0 | AE18: 0 | AF18: 0 | AG18: 0 | AH18: 0 | AK18: 1-Methylnicotinamide_6 | AT18: =AB18/AVERAGE($T18:$Z18) -> 
A19: 1-Methylnicotinamide_7 | B19: 0 | C19: 0 | D19: 0 | E19: 0 | F19: 0 | G19: 0 | H19: 0 | J19: 0 | K19: 0 | L19: 0 | M19: 0 | N19: 0 | O19: 0 | P19: 0 | S19: 1-Methylnicotinamide_7 | T19: 0 | U19: 0 | V19: 0 | W19: 0 | X19: 0 | Y19: 0 | Z19: 0 | AB19: 0 | AC19: 0 | AD19: 0 | AE19: 0 | AF19: 0 | AG19: 0 | AH19: 0 | AK19: 1-Methylnicotinamide_7
A20: 2-Hydroxycaproic acid_1 | B20: 0 | C20: 0 | D20: 0 | E20: 0 | F20: 0 | G20: 0 | H20: 0 | J20: 0 | K20: 0 | L20: 0 | M20: 0 | N20: 0 | O20: 0 | P20: 0 | S20: 2-Hydroxycaproic acid_1 | T20: 0 | U20: 0 | V20: 0 | W20: 0 | X20: 0 | Y20: 0 | Z20: 0 | AB20: 0 | AC20: 0 | AD20: 0 | AE20: 0 | AF20: 0 | AG20: 0 | AH20: 0 | AK20: 2-Hydroxycaproic acid_1
A21: 2-Hydroxycaproic acid_2 | B21: 0 | C21: 0 | D21: 0 | E21: 0 | F21: 0 | G21: 0 | H21: 0 | J21: 0 | K21: 0 | L21: 0 | M21: 0 | N21: 0 | O21: 0 | P21: 0 | S21: 2-Hydroxycaproic acid_2 | T21: 0 | U21: 0 | V21: 0 | W21: 0 | X21: 0 | Y21: 0 | Z21: 0 | AB21: 0 | AC21: 0 | AD21: 0 | AE21: 0 | AF21: 0 | AG21: 0 | AH21: 0 | AK21: 2-Hydroxycaproic acid_2
A22: 2-Hydroxycaproic acid_3 | B22: 0 | C22: 0 | D22: 0 | E22: 0 | F22: 0 | G22: 0 | H22: 0 | J22: 0 | K22: 0 | L22: 0 | M22: 0 | N22: 0 | O22: 0 | P22: 0 | S22: 2-Hydroxycaproic acid_3 | T22: 0 | U22: 0 | V22: 0 | W22: 0 | X22: 0 | Y22: 0 | Z22: 0 | AB22: 0 | AC22: 0 | AD22: 0 | AE22: 0 | AF22: 0 | AG22: 0 | AH22: 0 | AK22: 2-Hydroxycaproic acid_3
A23: 2-Hydroxycaproic acid_4 | B23: 0 | C23: 0 | D23: 0 | E23: 0 | F23: 0 | G23: 0 | H23: 0 | J23: 0 | K23: 0 | L23: 0 | M23: 0 | N23: 0 | O23: 0 | P23: 0 | S23: 2-Hydroxycaproic acid_4 | T23: 0 | U23: 0 | V23: 0 | W23: 0 | X23: 0 | Y23: 0 | Z23: 0 | AB23: 0 | AC23: 0 | AD23: 0 | AE23: 0 | AF23: 0 | AG23: 0 | AH23: 0 | AK23: 2-Hydroxycaproic acid_4
A24: 2-Hydroxycaproic acid_5 | B24: 0 | C24: 0 | D24: 0 | E24: 0 | F24: 0 | G24: 0 | H24: 0 | J24: 0 | K24: 0 | L24: 0 | M24: 0 | N24: 0 | O24: 0 | P24: 0 | S24: 2-Hydroxycaproic acid_5 | T24: 0 | U24: 0 | V24: 0 | W24: 0 | X24: 0 | Y24: 0 | Z24: 0 | AB24: 0 | AC24: 0 | AD24: 0 | AE24: 0 | AF24: 0 | AG24: 0 | AH24: 0 | AK24: 2-Hydroxycaproic acid_5
A25: 2-Hydroxycaproic acid_6 | B25: 0 | C25: 0 | D25: 0 | E25: 0 | F25: 0 | G25: 0 | H25: 0 | J25: 0 | K25: 0 | L25: 0 | M25: 0 | N25: 0 | O25: 0 | P25: 0 | S25: 2-Hydroxycaproic acid_6 | T25: 0 | U25: 0 | V25: 0 | W25: 0 | X25: 0 | Y25: 0 | Z25: 0 | AB25: 0 | AC25: 0 | AD25: 0 | AE25: 0 | AF25: 0 | AG25: 0 | AH25: 0 | AK25: 2-Hydroxycaproic acid_6
A26: 2-Hydroxyvaleric acid_1 | B26: 0 | C26: 0 | D26: 0 | E26: 0 | F26: 0 | G26: 0 | H26: 0 | J26: 0 | K26: 0 | L26: 0 | M26: 0 | N26: 0 | O26: 0 | P26: 0 | S26: 2-Hydroxyvaleric acid_1 | T26: 0 | U26: 0 | V26: 0 | W26: 0 | X26: 0 | Y26: 0 | Z26: 0 | AB26: 0 | AC26: 0 | AD26: 0 | AE26: 0 | AF26: 0 | AG26: 0 | AH26: 0 | AK26: 2-Hydroxyvaleric acid_1
A27: 2-Hydroxyvaleric acid_2 | B27: 0 | C27: 0 | D27: 0 | E27: 0 | F27: 0 | G27: 0 | H27: 0 | J27: 0 | K27: 0 | L27: 0 | M27: 0 | N27: 0 | O27: 0 | P27: 0 | S27: 2-Hydroxyvaleric acid_2 | T27: 0 | U27: 0 | V27: 0 | W27: 0 | X27: 0 | Y27: 0 | Z27: 0 | AB27: 0 | AC27: 0 | AD27: 0 | AE27: 0 | AF27: 0 | AG27: 0 | AH27: 0 | AK27: 2-Hydroxyvaleric acid_2
A28: 2-Hydroxyvaleric acid_3 | B28: 0 | C28: 0 | D28: 0 | E28: 0 | F28: 0 | G28: 0 | H28: 0 | J28: 0 | K28: 0 | L28: 0 | M28: 0 | N28: 0 | O28: 0 | P28: 0 | S28: 2-Hydroxyvaleric acid_3 | T28: 0 | U28: 0 | V28: 0 | W28: 0 | X28: 0 | Y28: 0 | Z28: 0 | AB28: 0 | AC28: 0 | AD28: 0 | AE28: 0 | AF28: 0 | AG28: 0 | AH28: 0 | AK28: 2-Hydroxyvaleric acid_3
A29: 2-Hydroxyvaleric acid_4 | B29: 0 | C29: 0 | D29: 0 | E29: 0 | F29: 0 | G29: 0 | H29: 0 | J29: 0 | K29: 0 | L29: 0 | M29: 0 | N29: 0 | O29: 0 | P29: 0 | S29: 2-Hydroxyvaleric acid_4 | T29: 0 | U29: 0 | V29: 0 | W29: 0 | X29: 0 | Y29: 0 | Z29: 0 | AB29: 0 | AC29: 0 | AD29: 0 | AE29: 0 | AF29: 0 | AG29: 0 | AH29: 0 | AK29: 2-Hydroxyvaleric acid_4
A30: 2-Hydroxyvaleric acid_5 | B30: 0 | C30: 0 | D30: 0 | E30: 0 | F30: 0 | G30: 0 | H30: 0 | J30: 0 | K30: 0 | L30: 0 | M30: 0 | N30: 0 | O30: 0 | P30: 0 | S30: 2-Hydroxyvaleric acid_5 | T30: 0 | U30: 0 | V30: 0 | W30: 0 | X30: 0 | Y30: 0 | Z30: 0 | AB30: 0 | AC30: 0 | AD30: 0 | AE30: 0 | AF30: 0 | AG30: 0 | AH30: 0 | AK30: 2-Hydroxyvaleric acid_5
A31: 3-Hydroxymethylglutaric acid_1 | B31: 0 | C31: 0 | D31: 19946.53096 | E31: 26331.39679 | F31: 0 | G31: 21653.37407 | H31: 24981.2445 | J31: 18717.02599 | K31: 18615.24262 | L31: 0 | M31: 19663.1826 | N31: 0 | O31: 0 | P31: 0 | S31: 3-Hydroxymethylglutaric acid_1 | T31: 0 | U31: 0 | V31: 0.0003163381046 | W31: 0.000394159055 | X31: 0 | Y31: 0.0005223109634 | Z31: 0.0005663760594 | AB31: 0.000410938741 | AC31: 0.0004227158692 | AD31: 0 | AE31: 0.000445625185 | AF31: 0 | AG31: 0 | AH31: 0 | AK31: 3-Hydroxymethylglutaric acid_1 | AL31: 0 | AM31: 0 | AN31: 1.230761561 | AO31: 1.533535817 | AP31: 0 | AQ31: 2.032130329 | AR31: 2.203572294 | AT31: 1.59881974 | AU31: 1.644640451 | AV31: 0 | AW31: 1.733772632 | AX31: 0 | AY31: 0 | AZ31: 0
A32: 3-Hydroxymethylglutaric acid_2 | B32: 60365.27221 | C32: 41489.80754 | D32: 52717.94702 | E32: 59161.7621 | F32: 54083.04978 | G32: 48032.36853 | H32: 43481.26264 | J32: 28982.67827 | K32: 23075.29724 | L32: 40734.76906 | M32: 42390.08114 | N32: 22784.11364 | O32: 44564.41178 | P32: 27645.86978 | S32: 3-Hydroxymethylglutaric acid_2 | T32: 0.001314269076 | U32: 0.0008426400695 | V32: 0.0008360699651 | W32: 0.00088560225 | X32: 0.001211658862 | Y32: 0.001158610783 | Z32: 0.0009858094213 | AB32: 0.0006363246664 | AC32: 0.0005239950147 | AD32: 0.0006645263437 | AE32: 0.000960683127 | AF32: 0.0006099283544 | AG32: 0.001080751008 | AH32: 0.0008127039754 | AK32: 3-Hydroxymethylglutaric acid_2 | AL32: 1.271639992 | AM32: 0.8153085478 | AN32: 0.8089515486 | AO32: 0.8568772249 | AP32: 1.172358001 | AQ32: 1.121030567 | AR32: 0.9538341183 | AT32: 0.615685105 | AU32: 0.506998931 | AV32: 0.6429720445 | AW32: 0.9295228099 | AX32: 0.5901449728 | AY32: 1.045696219 | AZ32: 0.7863434484
A33: 3-Hydroxymethylglutaric acid_3 | B33: 0 | C33: 0 | D33: 0 | E33: 0 | F33: 0 | G33: 0 | H33: 0 | J33: 10347.79085 | K33: 0 | L33: 0 | M33: 0 | N33: 0 | O33: 0 | P33: 0 | S33: 3-Hydroxymethylglutaric acid_3 | T33: 0 | U33: 0 | V33: 0 | W33: 0 | X33: 0 | Y33: 0 | Z33: 0 | AB33: 0.0002271893059 | AC33: 0 | AD33: 0 | AE33: 0 | AF33: 0 | AG33: 0 | AH33: 0 | AK33: 3-Hydroxymethylglutaric acid_3
A34: 3-Hydroxymethylglutaric acid_4 | B34: 0 | C34: 0 | D34: 0 | E34: 0 | F34: 0 | G34: 0 | H34: 0 | J34: 0 | K34: 0 | L34: 0 | M34: 0 | N34: 0 | O34: 0 | P34: 0 | S34: 3-Hydroxymethylglutaric acid_4 | T34: 0 | U34: 0 | V34: 0 | W34: 0 | X34: 0 | Y34: 0 | Z34: 0 | AB34: 0 | AC34: 0 | AD34: 0 | AE34: 0 | AF34: 0 | AG34: 0 | AH34: 0 | AK34: 3-Hydroxymethylglutaric acid_4
A35: 3-Hydroxymethylglutaric acid_5 | B35: 11146.85275 | C35: 11005.99471 | D35: 11688.0325 | E35: 16682.36743 | F35: 0 | G35: 11828.12764 | H35: 12774.55203 | J35: 18478.76548 | K35: 19232.44289 | L35: 13263.58902 | M35: 20965.34619 | N35: 12040.25594 | O35: 11929.17838 | P35: 21003.71973 | S35: 3-Hydroxymethylglutaric acid_5 | T35: 0.0002426886076 | U35: 0.0002235269985 | V35: 0.0001853640644 | W35: 0.0002497211308 | X35: 0 | Y35: 0.0002853116897 | Z35: 0.0002896253002 | AB35: 0.0004057076495 | AC35: 0.0004367312841 | AD35: 0.0002163754581 | AE35: 0.0004751360176 | AF35: 0.0003223164003 | AG35: 0.0002892997133 | AH35: 0.0006174450887 | AK35: 3-Hydroxymethylglutaric acid_5 | AL35: 1.150776835 | AM35: 1.059916633 | AN35: 0.8789562618 | AO35: 1.184123537 | AP35: 0 | AQ35: 1.352886263 | AR35: 1.37334047 | AT35: 1.923777838 | AU35: 2.070885197 | AV35: 1.026005577 | AW35: 2.252992128 | AX35: 1.528354588 | AY35: 1.371796607 | AZ35: 2.927790934
A36: 3-Hydroxymethylglutaric acid_6 | B36: 0 | C36: 0 | D36: 0 | E36: 0 | F36: 0 | G36: 0 | H36: 0 | J36: 0 | K36: 0 | L36: 0 | M36: 0 | N36: 0 | O36: 0 | P36: 0 | S36: 3-Hydroxymethylglutaric acid_6 | T36: 0 | U36: 0 | V36: 0 | W36: 0 | X36: 0 | Y36: 0 | Z36: 0 | AB36: 0 | AC36: 0 | AD36: 0 | AE36: 0 | AF36: 0 | AG36: 0 | AH36: 0 | AK36: 3-Hydroxymethylglutaric acid_6
A37: 3-Indolepropionic acid_1 | B37: 0 | C37: 0 | D37: 0 | E37: 0 | F37: 0 | G37: 0 | H37: 0 | J37: 0 | K37: 0 | L37: 0 | M37: 0 | N37: 0 | O37: 0 | P37: 0 | S37: 3-Indolepropionic acid_1 | T37: 0 | U37: 0 | V37: 0 | W37: 0 | X37: 0 | Y37: 0 | Z37: 0 | AB37: 0 | AC37: 0 | AD37: 0 | AE37: 0 | AF37: 0 | AG37: 0 | AH37: 0 | AK37: 3-Indolepropionic acid_1
A38: 3-Indolepropionic acid_10 | B38: 0 | C38: 0 | D38: 0 | E38: 0 | F38: 0 | G38: 0 | H38: 0 | J38: 0 | K38: 0 | L38: 0 | M38: 0 | N38: 0 | O38: 0 | P38: 0 | S38: 3-Indolepropionic acid_10 | T38: 0 | U38: 0 | V38: 0 | W38: 0 | X38: 0 | Y38: 0 | Z38: 0 | AB38: 0 | AC38: 0 | AD38: 0 | AE38: 0 | AF38: 0 | AG38: 0 | AH38: 0 | AK38: 3-Indolepropionic acid_10
A39: 3-Indolepropionic acid_11 | B39: 0 | C39: 0 | D39: 0 | E39: 0 | F39: 0 | G39: 0 | H39: 0 | J39: 0 | K39: 0 | L39: 0 | M39: 0 | N39: 0 | O39: 0 | P39: 0 | S39: 3-Indolepropionic acid_11 | T39: 0 | U39: 0 | V39: 0 | W39: 0 | X39: 0 | Y39: 0 | Z39: 0 | AB39: 0 | AC39: 0 | AD39: 0 | AE39: 0 | AF39: 0 | AG39: 0 | AH39: 0 | AK39: 3-Indolepropionic acid_11
A40: 3-Indolepropionic acid_2 | B40: 0 | C40: 0 | D40: 0 | E40: 0 | F40: 0 | G40: 0 | H40: 0 | J40: 0 | K40: 0 | L40: 0 | M40: 0 | N40: 0 | O40: 0 | P40: 0 | S40: 3-Indolepropionic acid_2 | T40: 0 | U40: 0 | V40: 0 | W40: 0 | X40: 0 | Y40: 0 | Z40: 0 | AB40: 0 | AC40: 0 | AD40: 0 | AE40: 0 | AF40: 0 | AG40: 0 | AH40: 0 | AK40: 3-Indolepropionic acid_2
A41: 3-Indolepropionic acid_3 | B41: 0 | C41: 0 | D41: 0 | E41: 0 | F41: 0 | G41: 0 | H41: 0 | J41: 0 | K41: 0 | L41: 0 | M41: 0 | N41: 0 | O41: 0 | P41: 0 | S41: 3-Indolepropionic acid_3 | T41: 0 | U41: 0 | V41: 0 | W41: 0 | X41: 0 | Y41: 0 | Z41: 0 | AB41: 0 | AC41: 0 | AD41: 0 | AE41: 0 | AF41: 0 | AG41: 0 | AH41: 0 | AK41: 3-Indolepropionic acid_3
A42: 3-Indolepropionic acid_4 | B42: 0 | C42: 0 | D42: 0 | E42: 0 | F42: 0 | G42: 0 | H42: 0 | J42: 0 | K42: 0 | L42: 0 | M42: 0 | N42: 0 | O42: 0 | P42: 0 | S42: 3-Indolepropionic acid_4 | T42: 0 | U42: 0 | V42: 0 | W42: 0 | X42: 0 | Y42: 0 | Z42: 0 | AB42: 0 | AC42: 0 | AD42: 0 | AE42: 0 | AF42: 0 | AG42: 0 | AH42: 0 | AK42: 3-Indolepropionic acid_4
A43: 3-Indolepropionic acid_5 | B43: 0 | C43: 0 | D43: 0 | E43: 0 | F43: 0 | G43: 0 | H43: 0 | J43: 0 | K43: 0 | L43: 0 | M43: 0 | N43: 0 | O43: 0 | P43: 0 | S43: 3-Indolepropionic acid_5 | T43: 0 | U43: 0 | V43: 0 | W43: 0 | X43: 0 | Y43: 0 | Z43: 0 | AB43: 0 | AC43: 0 | AD43: 0 | AE43: 0 | AF43: 0 | AG43: 0 | AH43: 0 | AK43: 3-Indolepropionic acid_5
A44: 3-Indolepropionic acid_6 | B44: 0 | C44: 0 | D44: 0 | E44: 0 | F44: 0 | G44: 0 | H44: 0 | J44: 0 | K44: 0 | L44: 0 | M44: 0 | N44: 0 | O44: 0 | P44: 0 | S44: 3-Indolepropionic acid_6 | T44: 0 | U44: 0 | V44: 0 | W44: 0 | X44: 0 | Y44: 0 | Z44: 0 | AB44: 0 | AC44: 0 | AD44: 0 | AE44: 0 | AF44: 0 | AG44: 0 | AH44: 0 | AK44: 3-Indolepropionic acid_6
A45: 3-Indolepropionic acid_7 | B45: 0 | C45: 0 | D45: 0 | E45: 0 | F45: 0 | G45: 0 | H45: 0 | J45: 0 | K45: 0 | L45: 0 | M45: 0 | N45: 0 | O45: 0 | P45: 0 | S45: 3-Indolepropionic acid_7 | T45: 0 | U45: 0 | V45: 0 | W45: 0 | X45: 0 | Y45: 0 | Z45: 0 | AB45: 0 | AC45: 0 | AD45: 0 | AE45: 0 | AF45: 0 | AG45: 0 | AH45: 0 | AK45: 3-Indolepropionic acid_7
A46: 3-Indolepropionic acid_8 | B46: 0 | C46: 0 | D46: 0 | E46: 0 | F46: 0 | G46: 0 | H46: 0 | J46: 0 | K46: 0 | L46: 0 | M46: 0 | N46: 0 | O46: 0 | P46: 0 | S46: 3-Indolepropionic acid_8 | T46: 0 | U46: 0 | V46: 0 | W46: 0 | X46: 0 | Y46: 0 | Z46: 0 | AB46: 0 | AC46: 0 | AD46: 0 | AE46: 0 | AF46: 0 | AG46: 0 | AH46: 0 | AK46: 3-Indolepropionic acid_8
A47: 3-Indolepropionic acid_9 | B47: 0 | C47: 0 | D47: 0 | E47: 0 | F47: 0 | G47: 0 | H47: 0 | J47: 0 | K47: 0 | L47: 0 | M47: 0 | N47: 0 | O47: 0 | P47: 0 | S47: 3-Indolepropionic acid_9 | T47: 0 | U47: 0 | V47: 0 | W47: 0 | X47: 0 | Y47: 0 | Z47: 0 | AB47: 0 | AC47: 0 | AD47: 0 | AE47: 0 | AF47: 0 | AG47: 0 | AH47: 0 | AK47: 3-Indolepropionic acid_9
A48: 3-Methylhistidine_1 | B48: 0 | C48: 0 | D48: 0 | E48: 0 | F48: 0 | G48: 0 | H48: 0 | J48: 0 | K48: 0 | L48: 0 | M48: 0 | N48: 0 | O48: 0 | P48: 0 | S48: 3-Methylhistidine_1 | T48: 0 | U48: 0 | V48: 0 | W48: 0 | X48: 0 | Y48: 0 | Z48: 0 | AB48: 0 | AC48: 0 | AD48: 0 | AE48: 0 | AF48: 0 | AG48: 0 | AH48: 0 | AK48: 3-Methylhistidine_1
A49: 3-Methylhistidine_2 | B49: 0 | C49: 0 | D49: 0 | E49: 0 | F49: 0 | G49: 0 | H49: 0 | J49: 0 | K49: 0 | L49: 0 | M49: 0 | N49: 0 | O49: 0 | P49: 0 | S49: 3-Methylhistidine_2 | T49: 0 | U49: 0 | V49: 0 | W49: 0 | X49: 0 | Y49: 0 | Z49: 0 | AB49: 0 | AC49: 0 | AD49: 0 | AE49: 0 | AF49: 0 | AG49: 0 | AH49: 0 | AK49: 3-Methylhistidine_2
A50: 3-Methylhistidine_3 | B50: 0 | C50: 0 | D50: 0 | E50: 0 | F50: 0 | G50: 0 | H50: 0 | J50: 0 | K50: 0 | L50: 0 | M50: 0 | N50: 0 | O50: 0 | P50: 0 | S50: 3-Methylhistidine_3 | T50: 0 | U50: 0 | V50: 0 | W50: 0 | X50: 0 | Y50: 0 | Z50: 0 | AB50: 0 | AC50: 0 | AD50: 0 | AE50: 0 | AF50: 0 | AG50: 0 | AH50: 0 | AK50: 3-Methylhistidine_3
A51: 3-Methylhistidine_4 | B51: 0 | C51: 0 | D51: 0 | E51: 0 | F51: 0 | G51: 0 | H51: 0 | J51: 0 | K51: 0 | L51: 0 | M51: 0 | N51: 0 | O51: 0 | P51: 0 | S51: 3-Methylhistidine_4 | T51: 0 | U51: 0 | V51: 0 | W51: 0 | X51: 0 | Y51: 0 | Z51: 0 | AB51: 0 | AC51: 0 | AD51: 0 | AE51: 0 | AF51: 0 | AG51: 0 | AH51: 0 | AK51: 3-Methylhistidine_4
A52: 3-Methylhistidine_5 | B52: 0 | C52: 0 | D52: 0 | E52: 0 | F52: 0 | G52: 0 | H52: 0 | J52: 0 | K52: 0 | L52: 0 | M52: 0 | N52: 0 | O52: 0 | P52: 0 | S52: 3-Methylhistidine_5 | T52: 0 | U52: 0 | V52: 0 | W52: 0 | X52: 0 | Y52: 0 | Z52: 0 | AB52: 0 | AC52: 0 | AD52: 0 | AE52: 0 | AF52: 0 | AG52: 0 | AH52: 0 | AK52: 3-Methylhistidine_5 | AN52: =V52/AVERAGE($T52:$Z52) -> 
A53: 3-Methylhistidine_6 | B53: 0 | C53: 0 | D53: 0 | E53: 0 | F53: 0 | G53: 0 | H53: 0 | J53: 0 | K53: 0 | L53: 0 | M53: 0 | N53: 0 | O53: 0 | P53: 0 | S53: 3-Methylhistidine_6 | T53: 0 | U53: 0 | V53: 0 | W53: 0 | X53: 0 | Y53: 0 | Z53: 0 | AB53: 0 | AC53: 0 | AD53: 0 | AE53: 0 | AF53: 0 | AG53: 0 | AH53: 0 | AK53: 3-Methylhistidine_6 | AL53: =T53/AVERAGE($T53:$Z53) -> 
A54: 3-Methylhistidine_7 | B54: 0 | C54: 0 | D54: 0 | E54: 0 | F54: 0 | G54: 0 | H54: 0 | J54: 0 | K54: 0 | L54: 0 | M54: 0 | N54: 0 | O54: 0 | P54: 0 | S54: 3-Methylhistidine_7 | T54: 0 | U54: 0 | V54: 0 | W54: 0 | X54: 0 | Y54: 0 | Z54: 0 | AB54: 0 | AC54: 0 | AD54: 0 | AE54: 0 | AF54: 0 | AG54: 0 | AH54: 0 | AK54: 3-Methylhistidine_7 | AW54: =AE54/AVERAGE($T54:$Z54) -> 
A55: 3-Phosphoglyceric acid_1 | B55: 203746.0254 | C55: 363817.0302 | D55: 334779.2687 | E55: 408748.7671 | F55: 533105.2878 | G55: 329340.9564 | H55: 242594.2052 | J55: 617622.1681 | K55: 713541.2516 | L55: 444404.4199 | M55: 833512.01 | N55: 511746.2384 | O55: 475506.931 | P55: 476557.4279 | S55: 3-Phosphoglyceric acid_1 | T55: 0.004435946209 | U55: 0.007388966731 | V55: 0.005309366303 | W55: 0.006118628231 | X55: 0.01194351556 | Y55: 0.007944184204 | Z55: 0.00550010829 | AB55: 0.01356010706 | AC55: 0.01620313076 | AD55: 0.007249788108 | AE55: 0.01888981815 | AF55: 0.01369939362 | AG55: 0.0115317262 | AH55: 0.01400933012 | AK55: 3-Phosphoglyceric acid_1 | AL55: 0.6383874728 | AM55: 1.063363615 | AN55: 0.764083417 | AO55: 0.8805462081 | AP55: 1.718819471 | AQ55: 1.14326627 | AR55: 0.7915335457 | AT55: =AB55/AVERAGE($T55:$Z55) -> 1.951466963 | AU55: 2.331830733 | AV55: 1.043334092 | AW55: 2.718478247 | AX55: 1.971512021 | AY55: 1.659557893 | AZ55: 2.016115712
A56: 3-Phosphoglyceric acid_2 | B56: 215606.4146 | C56: 393441.2408 | D56: 385625.8611 | E56: 958126.182 | F56: 714488.936 | G56: 489794.8016 | H56: 367566.1438 | J56: 1040531.801 | K56: 1310691.016 | L56: 1066135.481 | M56: 1422542.164 | N56: 969798.9695 | O56: 898988.2151 | P56: 702598.3902 | S56: 3-Phosphoglyceric acid_2 | T56: 0.004694169891 | U56: 0.007990621653 | V56: 0.006115757885 | W56: 0.01434235007 | X56: 0.01600717516 | Y56: 0.01181456497 | Z56: 0.008333478504 | AB56: 0.02284523344 | AC56: 0.02976323777 | AD56: 0.01739239303 | AE56: 0.03223896294 | AF56: 0.02596141763 | AG56: 0.02180175572 | AH56: 0.02065424273 | AK56: 3-Phosphoglyceric acid_2 | AL56: 0.4741714511 | AM56: 0.8071554189 | AN56: 0.6177700975 | AO56: 1.448761571 | AP56: 1.616930289 | AQ56: 1.193422809 | AR56: 0.8417883646 | AT56: 2.307662003 | AU56: 3.006469296 | AV56: 1.756855085 | AW56: 3.256549336 | AX56: 2.622436631 | AY56: 2.20225735 | AZ56: 2.086343799
A57: 3-Phosphoglyceric acid_3 | B57: 0 | C57: 21369.57236 | D57: 17867.83007 | E57: 22576.30343 | F57: 20861.23542 | G57: 12935.81371 | H57: 14241.89387 | J57: 33091.34651 | K57: 33507.74152 | L57: 24050.2663 | M57: 49421.96196 | N57: 29675.1875 | O57: 24826.09399 | P57: 23169.72239 | S57: 3-Phosphoglyceric acid_3 | T57: 0 | U57: 0.0004340067839 | V57: 0.0002833713547 | W57: 0.0003379484383 | X57: 0.0004673682583 | Y57: 0.0003120306931 | Z57: 0.0003228929499 | AB57: 0.0007265318903 | AC57: 0.0007608954861 | AD57: 0.0003923438355 | AE57: 0.001120046098 | AF57: 0.0007944016857 | AG57: 0.0006020684449 | AH57: 0.0006811189391 | AK57: 3-Phosphoglyceric acid_3 | AL57: 0 | AM57: 1.408055927 | AN57: 0.9193467255 | AO57: 1.096412129 | AP57: 1.516291152 | AQ57: 1.012326727 | AR57: 1.04756734 | AT57: 2.357100332 | AU57: 2.468586757 | AV57: 1.272888083 | AW57: 3.633785474 | AX57: 2.577291517 | AY57: 1.953301363 | AZ57: 2.209766287
A58: 4-Acetamidobutanoic acid_1 | B58: 0 | C58: 0 | D58: 0 | E58: 0 | F58: 0 | G58: 0 | H58: 0 | J58: 0 | K58: 0 | L58: 0 | M58: 0 | N58: 0 | O58: 0 | P58: 0 | S58: 4-Acetamidobutanoic acid_1 | T58: 0 | U58: 0 | V58: 0 | W58: 0 | X58: 0 | Y58: 0 | Z58: 0 | AB58: 0 | AC58: 0 | AD58: 0 | AE58: 0 | AF58: 0 | AG58: 0 | AH58: 0 | AK58: 4-Acetamidobutanoic acid_1
A59: 4-Acetamidobutanoic acid_2 | B59: 0 | C59: 0 | D59: 0 | E59: 0 | F59: 0 | G59: 0 | H59: 0 | J59: 0 | K59: 0 | L59: 0 | M59: 0 | N59: 0 | O59: 0 | P59: 0 | S59: 4-Acetamidobutanoic acid_2 | T59: 0 | U59: 0 | V59: 0 | W59: 0 | X59: 0 | Y59: 0 | Z59: 0 | AB59: 0 | AC59: 0 | AD59: 0 | AE59: 0 | AF59: 0 | AG59: 0 | AH59: 0 | AK59: 4-Acetamidobutanoic acid_2
A60: 4-Acetamidobutanoic acid_3 | B60: 0 | C60: 0 | D60: 0 | E60: 0 | F60: 0 | G60: 0 | H60: 0 | J60: 0 | K60: 0 | L60: 0 | M60: 0 | N60: 0 | O60: 0 | P60: 0 | S60: 4-Acetamidobutanoic acid_3 | T60: 0 | U60: 0 | V60: 0 | W60: 0 | X60: 0 | Y60: 0 | Z60: 0 | AB60: 0 | AC60: 0 | AD60: 0 | AE60: 0 | AF60: 0 | AG60: 0 | AH60: 0 | AK60: 4-Acetamidobutanoic acid_3
A61: 4-Acetamidobutanoic acid_4 | B61: 0 | C61: 0 | D61: 0 | E61: 0 | F61: 0 | G61: 0 | H61: 0 | J61: 0 | K61: 0 | L61: 0 | M61: 0 | N61: 0 | O61: 0 | P61: 0 | S61: 4-Acetamidobutanoic acid_4 | T61: 0 | U61: 0 | V61: 0 | W61: 0 | X61: 0 | Y61: 0 | Z61: 0 | AB61: 0 | AC61: 0 | AD61: 0 | AE61: 0 | AF61: 0 | AG61: 0 | AH61: 0 | AK61: 4-Acetamidobutanoic acid_4
A62: 4-Acetamidobutanoic acid_5 | B62: 0 | C62: 0 | D62: 0 | E62: 0 | F62: 0 | G62: 0 | H62: 0 | J62: 0 | K62: 0 | L62: 0 | M62: 0 | N62: 0 | O62: 0 | P62: 0 | S62: 4-Acetamidobutanoic acid_5 | T62: 0 | U62: 0 | V62: 0 | W62: 0 | X62: 0 | Y62: 0 | Z62: 0 | AB62: 0 | AC62: 0 | AD62: 0 | AE62: 0 | AF62: 0 | AG62: 0 | AH62: 0 | AK62: 4-Acetamidobutanoic acid_5
A63: 4-Acetamidobutanoic acid_6 | B63: 0 | C63: 0 | D63: 0 | E63: 0 | F63: 0 | G63: 0 | H63: 0 | J63: 0 | K63: 0 | L63: 0 | M63: 0 | N63: 0 | O63: 0 | P63: 0 | S63: 4-Acetamidobutanoic acid_6 | T63: 0 | U63: 0 | V63: 0 | W63: 0 | X63: 0 | Y63: 0 | Z63: 0 | AB63: 0 | AC63: 0 | AD63: 0 | AE63: 0 | AF63: 0 | AG63: 0 | AH63: 0 | AK63: 4-Acetamidobutanoic acid_6
A64: 4-Guanidinobutanoic acid_1 | B64: 0 | C64: 0 | D64: 0 | E64: 0 | F64: 0 | G64: 0 | H64: 0 | J64: 0 | K64: 0 | L64: 0 | M64: 0 | N64: 0 | O64: 0 | P64: 0 | S64: 4-Guanidinobutanoic acid_1 | T64: 0 | U64: 0 | V64: 0 | W64: 0 | X64: 0 | Y64: 0 | Z64: 0 | AB64: 0 | AC64: 0 | AD64: 0 | AE64: 0 | AF64: 0 | AG64: 0 | AH64: 0 | AK64: 4-Guanidinobutanoic acid_1
A65: 4-Guanidinobutanoic acid_2 | B65: 0 | C65: 0 | D65: 0 | E65: 0 | F65: 0 | G65: 0 | H65: 0 | J65: 0 | K65: 0 | L65: 0 | M65: 0 | N65: 0 | O65: 0 | P65: 0 | S65: 4-Guanidinobutanoic acid_2 | T65: 0 | U65: 0 | V65: 0 | W65: 0 | X65: 0 | Y65: 0 | Z65: 0 | AB65: 0 | AC65: 0 | AD65: 0 | AE65: 0 | AF65: 0 | AG65: 0 | AH65: 0 | AK65: 4-Guanidinobutanoic acid_2
A66: 4-Guanidinobutanoic acid_3 | B66: 0 | C66: 0 | D66: 0 | E66: 0 | F66: 0 | G66: 0 | H66: 0 | J66: 0 | K66: 0 | L66: 0 | M66: 0 | N66: 0 | O66: 0 | P66: 0 | S66: 4-Guanidinobutanoic acid_3 | T66: =B66/B$1659 -> 0 | U66: =C66/C$1659 -> 0 | V66: =D66/D$1659 -> 0 | W66: =E66/E$1659 -> 0 | X66: =F66/F$1659 -> 0 | Y66: =G66/G$1659 -> 0 | Z66: =H66/H$1659 -> 0 | AB66: =J66/J$1659 -> 0 | AC66: =K66/K$1659 -> 0 | AD66: =L66/L$1659 -> 0 | AE66: =M66/M$1659 -> 0 | AF66: =N66/N$1659 -> 0 | AG66: =O66/O$1659 -> 0 | AH66: =P66/P$1659 -> 0 | AK66: 4-Guanidinobutanoic acid_3
A67: 4-Guanidinobutanoic acid_4 | B67: 0 | C67: 0 | D67: 0 | E67: 0 | F67: 0 | G67: 0 | H67: 0 | J67: 0 | K67: 0 | L67: 0 | M67: 0 | N67: 0 | O67: 0 | P67: 0 | S67: 4-Guanidinobutanoic acid_4 | T67: 0 | U67: 0 | V67: 0 | W67: 0 | X67: 0 | Y67: 0 | Z67: 0 | AB67: 0 | AC67: 0 | AD67: 0 | AE67: 0 | AF67: 0 | AG67: 0 | AH67: 0 | AK67: 4-Guanidinobutanoic acid_4
A68: 4-Guanidinobutanoic acid_5 | B68: 0 | C68: 0 | D68: 0 | E68: 0 | F68: 0 | G68: 0 | H68: 0 | J68: 0 | K68: 0 | L68: 0 | M68: 0 | N68: 0 | O68: 0 | P68: 0 | S68: 4-Guanidinobutanoic acid_5 | T68: 0 | U68: 0 | V68: 0 | W68: 0 | X68: 0 | Y68: 0 | Z68: 0 | AB68: 0 | AC68: 0 | AD68: 0 | AE68: 0 | AF68: 0 | AG68: 0 | AH68: 0 | AK68: 4-Guanidinobutanoic acid_5
A69: 4-Hydroxyproline_1 | B69: 0 | C69: 0 | D69: 0 | E69: 0 | F69: 0 | G69: 0 | H69: 0 | J69: 0 | K69: 0 | L69: 0 | M69: 0 | N69: 0 | O69: 0 | P69: 0 | S69: 4-Hydroxyproline_1 | T69: 0 | U69: 0 | V69: 0 | W69: 0 | X69: 0 | Y69: 0 | Z69: 0 | AB69: 0 | AC69: 0 | AD69: 0 | AE69: 0 | AF69: 0 | AG69: 0 | AH69: 0 | AK69: 4-Hydroxyproline_1
A70: 4-Hydroxyproline_2 | B70: 0 | C70: 0 | D70: 0 | E70: 0 | F70: 0 | G70: 0 | H70: 0 | J70: 0 | K70: 0 | L70: 0 | M70: 0 | N70: 0 | O70: 0 | P70: 0 | S70: 4-Hydroxyproline_2 | T70: 0 | U70: 0 | V70: 0 | W70: 0 | X70: 0 | Y70: 0 | Z70: 0 | AB70: 0 | AC70: 0 | AD70: 0 | AE70: 0 | AF70: 0 | AG70: 0 | AH70: 0 | AK70: 4-Hydroxyproline_2
A71: 4-Hydroxyproline_3 | B71: 0 | C71: 0 | D71: 0 | E71: 0 | F71: 0 | G71: 0 | H71: 0 | J71: 0 | K71: 0 | L71: 0 | M71: 0 | N71: 0 | O71: 0 | P71: 0 | S71: 4-Hydroxyproline_3 | T71: 0 | U71: 0 | V71: 0 | W71: 0 | X71: 0 | Y71: 0 | Z71: 0 | AB71: 0 | AC71: 0 | AD71: 0 | AE71: 0 | AF71: 0 | AG71: 0 | AH71: 0 | AK71: 4-Hydroxyproline_3
A72: 4-Hydroxyproline_4 | B72: 0 | C72: 0 | D72: 0 | E72: 0 | F72: 0 | G72: 0 | H72: 0 | J72: 0 | K72: 0 | L72: 0 | M72: 0 | N72: 0 | O72: 0 | P72: 0 | S72: 4-Hydroxyproline_4 | T72: 0 | U72: 0 | V72: 0 | W72: 0 | X72: 0 | Y72: 0 | Z72: 0 | AB72: 0 | AC72: 0 | AD72: 0 | AE72: 0 | AF72: 0 | AG72: 0 | AH72: 0 | AK72: 4-Hydroxyproline_4
A73: 4-Hydroxyproline_5 | B73: 0 | C73: 0 | D73: 0 | E73: 0 | F73: 0 | G73: 0 | H73: 0 | J73: 0 | K73: 0 | L73: 0 | M73: 0 | N73: 0 | O73: 0 | P73: 0 | S73: 4-Hydroxyproline_5 | T73: 0 | U73: 0 | V73: 0 | W73: 0 | X73: 0 | Y73: 0 | Z73: 0 | AB73: 0 | AC73: 0 | AD73: 0 | AE73: 0 | AF73: 0 | AG73: 0 | AH73: 0 | AK73: 4-Hydroxyproline_5
A74: 4-Pyridoxic acid_1 | B74: 0 | C74: 0 | D74: 0 | E74: 0 | F74: 0 | G74: 0 | H74: 0 | J74: 0 | K74: 0 | L74: 0 | M74: 0 | N74: 0 | O74: 0 | P74: 0 | S74: 4-Pyridoxic acid_1 | T74: 0 | U74: 0 | V74: 0 | W74: 0 | X74: 0 | Y74: 0 | Z74: 0 | AB74: 0 | AC74: 0 | AD74: 0 | AE74: 0 | AF74: 0 | AG74: 0 | AH74: 0 | AK74: 4-Pyridoxic acid_1
A75: 4-Pyridoxic acid_2 | B75: 0 | C75: 0 | D75: 0 | E75: 0 | F75: 0 | G75: 0 | H75: 0 | J75: 0 | K75: 0 | L75: 0 | M75: 0 | N75: 0 | O75: 0 | P75: 0 | S75: 4-Pyridoxic acid_2 | T75: 0 | U75: 0 | V75: 0 | W75: 0 | X75: 0 | Y75: 0 | Z75: 0 | AB75: 0 | AC75: 0 | AD75: 0 | AE75: 0 | AF75: 0 | AG75: 0 | AH75: 0 | AK75: 4-Pyridoxic acid_2
A76: 4-Pyridoxic acid_3 | B76: 0 | C76: 0 | D76: 0 | E76: 0 | F76: 0 | G76: 0 | H76: 0 | J76: 0 | K76: 0 | L76: 0 | M76: 0 | N76: 0 | O76: 0 | P76: 0 | S76: 4-Pyridoxic acid_3 | T76: 0 | U76: 0 | V76: 0 | W76: 0 | X76: 0 | Y76: 0 | Z76: 0 | AB76: 0 | AC76: 0 | AD76: 0 | AE76: 0 | AF76: 0 | AG76: 0 | AH76: 0 | AK76: 4-Pyridoxic acid_3
A77: 4-Pyridoxic acid_4 | B77: 0 | C77: 0 | D77: 0 | E77: 0 | F77: 0 | G77: 0 | H77: 0 | J77: 0 | K77: 0 | L77: 0 | M77: 0 | N77: 0 | O77: 0 | P77: 0 | S77: 4-Pyridoxic acid_4 | T77: 0 | U77: 0 | V77: 0 | W77: 0 | X77: 0 | Y77: 0 | Z77: 0 | AB77: 0 | AC77: 0 | AD77: 0 | AE77: 0 | AF77: 0 | AG77: 0 | AH77: 0 | AK77: 4-Pyridoxic acid_4
A78: 4-Pyridoxic acid_5 | B78: 0 | C78: 0 | D78: 0 | E78: 0 | F78: 0 | G78: 0 | H78: 0 | J78: 0 | K78: 0 | L78: 0 | M78: 0 | N78: 0 | O78: 0 | P78: 0 | S78: 4-Pyridoxic acid_5 | T78: 0 | U78: 0 | V78: 0 | W78: 0 | X78: 0 | Y78: 0 | Z78: 0 | AB78: 0 | AC78: 0 | AD78: 0 | AE78: 0 | AF78: 0 | AG78: 0 | AH78: 0 | AK78: 4-Pyridoxic acid_5
A79: 4-Pyridoxic acid_6 | B79: 0 | C79: 0 | D79: 0 | E79: 0 | F79: 0 | G79: 0 | H79: 0 | J79: 0 | K79: 0 | L79: 0 | M79: 0 | N79: 0 | O79: 0 | P79: 0 | S79: 4-Pyridoxic acid_6 | T79: 0 | U79: 0 | V79: 0 | W79: 0 | X79: 0 | Y79: 0 | Z79: 0 | AB79: 0 | AC79: 0 | AD79: 0 | AE79: 0 | AF79: 0 | AG79: 0 | AH79: 0 | AK79: 4-Pyridoxic acid_6
A80: 4-Pyridoxic acid_7 | B80: 0 | C80: 0 | D80: 0 | E80: 0 | F80: 0 | G80: 0 | H80: 0 | J80: 0 | K80: 0 | L80: 0 | M80: 0 | N80: 0 | O80: 0 | P80: 0 | S80: 4-Pyridoxic acid_7 | T80: 0 | U80: 0 | V80: 0 | W80: 0 | X80: 0 | Y80: 0 | Z80: 0 | AB80: 0 | AC80: 0 | AD80: 0 | AE80: 0 | AF80: 0 | AG80: 0 | AH80: 0 | AK80: 4-Pyridoxic acid_7
A81: 4-Pyridoxic acid_8 | B81: 0 | C81: 0 | D81: 0 | E81: 0 | F81: 0 | G81: 0 | H81: 0 | J81: 0 | K81: 0 | L81: 0 | M81: 0 | N81: 0 | O81: 0 | P81: 0 | S81: 4-Pyridoxic acid_8 | T81: 0 | U81: 0 | V81: 0 | W81: 0 | X81: 0 | Y81: 0 | Z81: 0 | AB81: 0 | AC81: 0 | AD81: 0 | AE81: 0 | AF81: 0 | AG81: 0 | AH81: 0 | AK81: 4-Pyridoxic acid_8
A82: 4-Trimethylammoniobutanoic acid_1 | B82: 0 | C82: 0 | D82: 0 | E82: 0 | F82: 0 | G82: 0 | H82: 0 | J82: 0 | K82: 0 | L82: 0 | M82: 0 | N82: 0 | O82: 0 | P82: 0 | S82: 4-Trimethylammoniobutanoic acid_1 | T82: 0 | U82: 0 | V82: 0 | W82: 0 | X82: 0 | Y82: 0 | Z82: 0 | AB82: 0 | AC82: 0 | AD82: 0 | AE82: 0 | AF82: 0 | AG82: 0 | AH82: 0 | AK82: 4-Trimethylammoniobutanoic acid_1
A83: 4-Trimethylammoniobutanoic acid_2 | B83: 0 | C83: 0 | D83: 0 | E83: 0 | F83: 0 | G83: 0 | H83: 0 | J83: 0 | K83: 0 | L83: 0 | M83: 0 | N83: 0 | O83: 0 | P83: 0 | S83: 4-Trimethylammoniobutanoic acid_2 | T83: 0 | U83: 0 | V83: 0 | W83: 0 | X83: 0 | Y83: 0 | Z83: 0 | AB83: 0 | AC83: 0 | AD83: 0 | AE83: 0 | AF83: 0 | AG83: 0 | AH83: 0 | AK83: 4-Trimethylammoniobutanoic acid_2
A84: 4-Trimethylammoniobutanoic acid_3 | B84: 0 | C84: 0 | D84: 0 | E84: 0 | F84: 0 | G84: 0 | H84: 0 | J84: 0 | K84: 0 | L84: 0 | M84: 0 | N84: 0 | O84: 0 | P84: 0 | S84: 4-Trimethylammoniobutanoic acid_3 | T84: 0 | U84: 0 | V84: 0 | W84: 0 | X84: 0 | Y84: 0 | Z84: 0 | AB84: 0 | AC84: 0 | AD84: 0 | AE84: 0 | AF84: 0 | AG84: 0 | AH84: 0 | AK84: 4-Trimethylammoniobutanoic acid_3
A85: 4-Trimethylammoniobutanoic acid_4 | B85: 0 | C85: 0 | D85: 0 | E85: 0 | F85: 0 | G85: 0 | H85: 0 | J85: 0 | K85: 0 | L85: 0 | M85: 0 | N85: 0 | O85: 0 | P85: 0 | S85: 4-Trimethylammoniobutanoic acid_4 | T85: 0 | U85: 0 | V85: 0 | W85: 0 | X85: 0 | Y85: 0 | Z85: 0 | AB85: 0 | AC85: 0 | AD85: 0 | AE85: 0 | AF85: 0 | AG85: 0 | AH85: 0 | AK85: 4-Trimethylammoniobutanoic acid_4
A86: 4-Trimethylammoniobutanoic acid_5 | B86: 0 | C86: 0 | D86: 0 | E86: 0 | F86: 0 | G86: 0 | H86: 0 | J86: 0 | K86: 0 | L86: 0 | M86: 0 | N86: 0 | O86: 0 | P86: 0 | S86: 4-Trimethylammoniobutanoic acid_5 | T86: 0 | U86: 0 | V86: 0 | W86: 0 | X86: 0 | Y86: 0 | Z86: 0 | AB86: 0 | AC86: 0 | AD86: 0 | AE86: 0 | AF86: 0 | AG86: 0 | AH86: 0 | AK86: 4-Trimethylammoniobutanoic acid_5
A87: 4-Trimethylammoniobutanoic acid_6 | B87: 0 | C87: 0 | D87: 0 | E87: 0 | F87: 0 | G87: 0 | H87: 0 | J87: 0 | K87: 0 | L87: 0 | M87: 0 | N87: 0 | O87: 0 | P87: 0 | S87: 4-Trimethylammoniobutanoic acid_6 | T87: 0 | U87: 0 | V87: 0 | W87: 0 | X87: 0 | Y87: 0 | Z87: 0 | AB87: 0 | AC87: 0 | AD87: 0 | AE87: 0 | AF87: 0 | AG87: 0 | AH87: 0 | AK87: 4-Trimethylammoniobutanoic acid_6
A88: 4-Trimethylammoniobutanoic acid_7 | B88: 0 | C88: 0 | D88: 0 | E88: 0 | F88: 0 | G88: 0 | H88: 0 | J88: 0 | K88: 0 | L88: 0 | M88: 0 | N88: 0 | O88: 0 | P88: 0 | S88: 4-Trimethylammoniobutanoic acid_7 | T88: 0 | U88: 0 | V88: 0 | W88: 0 | X88: 0 | Y88: 0 | Z88: 0 | AB88: 0 | AC88: 0 | AD88: 0 | AE88: 0 | AF88: 0 | AG88: 0 | AH88: 0 | AK88: 4-Trimethylammoniobutanoic acid_7
A89: 5-Thymidylic acid_1 | B89: 0 | C89: 0 | D89: 0 | E89: 0 | F89: 0 | G89: 0 | H89: 0 | J89: 0 | K89: 0 | L89: 0 | M89: 0 | N89: 0 | O89: 0 | P89: 0 | S89: 5-Thymidylic acid_1 | T89: 0 | U89: 0 | V89: 0 | W89: 0 | X89: 0 | Y89: 0 | Z89: 0 | AB89: 0 | AC89: 0 | AD89: 0 | AE89: 0 | AF89: 0 | AG89: 0 | AH89: 0 | AK89: 5-Thymidylic acid_1
A90: 5-Thymidylic acid_2 | B90: 0 | C90: 0 | D90: 0 | E90: 0 | F90: 0 | G90: 0 | H90: 0 | J90: 0 | K90: 0 | L90: 0 | M90: 0 | N90: 0 | O90: 0 | P90: 0 | S90: 5-Thymidylic acid_2 | T90: 0 | U90: 0 | V90: 0 | W90: 0 | X90: 0 | Y90: 0 | Z90: 0 | AB90: 0 | AC90: 0 | AD90: 0 | AE90: 0 | AF90: 0 | AG90: 0 | AH90: 0 | AK90: 5-Thymidylic acid_2
A91: 5-Thymidylic acid_3 | B91: 0 | C91: 0 | D91: 0 | E91: 0 | F91: 0 | G91: 0 | H91: 0 | J91: 0 | K91: 0 | L91: 0 | M91: 0 | N91: 0 | O91: 0 | P91: 0 | S91: 5-Thymidylic acid_3 | T91: 0 | U91: 0 | V91: 0 | W91: 0 | X91: 0 | Y91: 0 | Z91: 0 | AB91: 0 | AC91: 0 | AD91: 0 | AE91: 0 | AF91: 0 | AG91: 0 | AH91: 0 | AK91: 5-Thymidylic acid_3
A92: 5-Thymidylic acid_4 | B92: 0 | C92: 0 | D92: 0 | E92: 0 | F92: 0 | G92: 0 | H92: 0 | J92: 0 | K92: 0 | L92: 0 | M92: 0 | N92: 0 | O92: 0 | P92: 0 | S92: 5-Thymidylic acid_4 | T92: 0 | U92: 0 | V92: 0 | W92: 0 | X92: 0 | Y92: 0 | Z92: 0 | AB92: 0 | AC92: 0 | AD92: 0 | AE92: 0 | AF92: 0 | AG92: 0 | AH92: 0 | AK92: 5-Thymidylic acid_4
A93: 5-Thymidylic acid_5 | B93: 0 | C93: 0 | D93: 0 | E93: 0 | F93: 0 | G93: 0 | H93: 0 | J93: 0 | K93: 0 | L93: 0 | M93: 0 | N93: 0 | O93: 0 | P93: 0 | S93: 5-Thymidylic acid_5 | T93: 0 | U93: 0 | V93: 0 | W93: 0 | X93: 0 | Y93: 0 | Z93: 0 | AB93: 0 | AC93: 0 | AD93: 0 | AE93: 0 | AF93: 0 | AG93: 0 | AH93: 0 | AK93: 5-Thymidylic acid_5
A94: 5-Thymidylic acid_6 | B94: 0 | C94: 0 | D94: 0 | E94: 0 | F94: 0 | G94: 0 | H94: 0 | J94: 0 | K94: 0 | L94: 0 | M94: 0 | N94: 0 | O94: 0 | P94: 0 | S94: 5-Thymidylic acid_6 | T94: 0 | U94: 0 | V94: 0 | W94: 0 | X94: 0 | Y94: 0 | Z94: 0 | AB94: 0 | AC94: 0 | AD94: 0 | AE94: 0 | AF94: 0 | AG94: 0 | AH94: 0 | AK94: 5-Thymidylic acid_6
A95: 5-Thymidylic acid_7 | B95: 0 | C95: 0 | D95: 0 | E95: 0 | F95: 0 | G95: 0 | H95: 0 | J95: 0 | K95: 0 | L95: 0 | M95: 0 | N95: 0 | O95: 0 | P95: 0 | S95: 5-Thymidylic acid_7 | T95: 0 | U95: 0 | V95: 0 | W95: 0 | X95: 0 | Y95: 0 | Z95: 0 | AB95: 0 | AC95: 0 | AD95: 0 | AE95: 0 | AF95: 0 | AG95: 0 | AH95: 0 | AK95: 5-Thymidylic acid_7
A96: 5-Thymidylic acid_8 | B96: 0 | C96: 0 | D96: 0 | E96: 0 | F96: 0 | G96: 0 | H96: 0 | J96: 0 | K96: 0 | L96: 0 | M96: 0 | N96: 0 | O96: 0 | P96: 0 | S96: 5-Thymidylic acid_8 | T96: 0 | U96: 0 | V96: 0 | W96: 0 | X96: 0 | Y96: 0 | Z96: 0 | AB96: 0 | AC96: 0 | AD96: 0 | AE96: 0 | AF96: 0 | AG96: 0 | AH96: 0 | AK96: 5-Thymidylic acid_8
A97: 5-Thymidylic acid_9 | B97: 0 | C97: 0 | D97: 0 | E97: 0 | F97: 0 | G97: 0 | H97: 0 | J97: 0 | K97: 0 | L97: 0 | M97: 0 | N97: 0 | O97: 0 | P97: 0 | S97: 5-Thymidylic acid_9 | T97: 0 | U97: 0 | V97: 0 | W97: 0 | X97: 0 | Y97: 0 | Z97: 0 | AB97: 0 | AC97: 0 | AD97: 0 | AE97: 0 | AF97: 0 | AG97: 0 | AH97: 0 | AK97: 5-Thymidylic acid_9
A98: 5-Thymidylic acid_10 | B98: 0 | C98: 0 | D98: 0 | E98: 0 | F98: 0 | G98: 0 | H98: 0 | J98: 0 | K98: 0 | L98: 0 | M98: 0 | N98: 0 | O98: 0 | P98: 0 | S98: 5-Thymidylic acid_10 | T98: 0 | U98: 0 | V98: 0 | W98: 0 | X98: 0 | Y98: 0 | Z98: 0 | AB98: 0 | AC98: 0 | AD98: 0 | AE98: 0 | AF98: 0 | AG98: 0 | AH98: 0 | AK98: 5-Thymidylic acid_10
A99: 6-Phosphogluconic acid_1 | B99: 0 | C99: 0 | D99: 0 | E99: 0 | F99: 0 | G99: 0 | H99: 0 | J99: 0 | K99: 0 | L99: 0 | M99: 0 | N99: 0 | O99: 0 | P99: 0 | S99: 6-Phosphogluconic acid_1 | T99: 0 | U99: 0 | V99: 0 | W99: 0 | X99: 0 | Y99: 0 | Z99: 0 | AB99: 0 | AC99: 0 | AD99: 0 | AE99: 0 | AF99: 0 | AG99: 0 | AH99: 0 | AK99: 6-Phosphogluconic acid_1
A100: 6-Phosphogluconic acid_2 | B100: 0 | C100: 0 | D100: 0 | E100: 0 | F100: 0 | G100: 0 | H100: 0 | J100: 0 | K100: 0 | L100: 0 | M100: 0 | N100: 0 | O100: 0 | P100: 0 | S100: 6-Phosphogluconic acid_2 | T100: 0 | U100: 0 | V100: 0 | W100: 0 | X100: 0 | Y100: 0 | Z100: 0 | AB100: 0 | AC100: 0 | AD100: 0 | AE100: 0 | AF100: 0 | AG100: 0 | AH100: 0 | AK100: 6-Phosphogluconic acid_2
A101: 6-Phosphogluconic acid_3 | B101: 0 | C101: 0 | D101: 0 | E101: 0 | F101: 0 | G101: 0 | H101: 0 | J101: 0 | K101: 0 | L101: 0 | M101: 0 | N101: 0 | O101: 0 | P101: 0 | S101: 6-Phosphogluconic acid_3 | T101: 0 | U101: 0 | V101: 0 | W101: 0 | X101: 0 | Y101: 0 | Z101: 0 | AB101: 0 | AC101: 0 | AD101: 0 | AE101: 0 | AF101: 0 | AG101: 0 | AH101: 0 | AK101: 6-Phosphogluconic acid_3
A102: 6-Phosphogluconic acid_4 | B102: 0 | C102: 0 | D102: 0 | E102: 0 | F102: 0 | G102: 0 | H102: 0 | J102: 0 | K102: 0 | L102: 0 | M102: 0 | N102: 0 | O102: 0 | P102: 0 | S102: 6-Phosphogluconic acid_4 | T102: 0 | U102: 0 | V102: 0 | W102: 0 | X102: 0 | Y102: 0 | Z102: 0 | AB102: 0 | AC102: 0 | AD102: 0 | AE102: 0 | AF102: 0 | AG102: 0 | AH102: 0 | AK102: 6-Phosphogluconic acid_4
A103: 6-Phosphogluconic acid_5 | B103: 0 | C103: 0 | D103: 0 | E103: 0 | F103: 0 | G103: 0 | H103: 0 | J103: 0 | K103: 0 | L103: 0 | M103: 0 | N103: 0 | O103: 0 | P103: 0 | S103: 6-Phosphogluconic acid_5 | T103: 0 | U103: 0 | V103: 0 | W103: 0 | X103: 0 | Y103: 0 | Z103: 0 | AB103: 0 | AC103: 0 | AD103: 0 | AE103: 0 | AF103: 0 | AG103: 0 | AH103: 0 | AK103: 6-Phosphogluconic acid_5
A104: 6-Phosphogluconic acid_6 | B104: 0 | C104: 0 | D104: 0 | E104: 0 | F104: 0 | G104: 0 | H104: 0 | J104: 0 | K104: 0 | L104: 0 | M104: 0 | N104: 0 | O104: 0 | P104: 0 | S104: 6-Phosphogluconic acid_6 | T104: 0 | U104: 0 | V104: 0 | W104: 0 | X104: 0 | Y104: 0 | Z104: 0 | AB104: 0 | AC104: 0 | AD104: 0 | AE104: 0 | AF104: 0 | AG104: 0 | AH104: 0 | AK104: 6-Phosphogluconic acid_6
A105: 6-Phosphonoglucono-D-lactone_1 | B105: 0 | C105: 0 | D105: 0 | E105: 0 | F105: 0 | G105: 0 | H105: 0 | J105: 0 | K105: 0 | L105: 0 | M105: 0 | N105: 0 | O105: 0 | P105: 0 | S105: 6-Phosphonoglucono-D-lactone_1 | T105: 0 | U105: 0 | V105: 0 | W105: 0 | X105: 0 | Y105: 0 | Z105: 0 | AB105: 0 | AC105: 0 | AD105: 0 | AE105: 0 | AF105: 0 | AG105: 0 | AH105: 0 | AK105: 6-Phosphonoglucono-D-lactone_1
A106: 6-Phosphonoglucono-D-lactone_2 | B106: 0 | C106: 0 | D106: 0 | E106: 0 | F106: 0 | G106: 0 | H106: 0 | J106: 0 | K106: 0 | L106: 0 | M106: 0 | N106: 0 | O106: 0 | P106: 0 | S106: 6-Phosphonoglucono-D-lactone_2 | T106: 0 | U106: 0 | V106: 0 | W106: 0 | X106: 0 | Y106: 0 | Z106: 0 | AB106: 0 | AC106: 0 | AD106: 0 | AE106: 0 | AF106: 0 | AG106: 0 | AH106: 0 | AK106: 6-Phosphonoglucono-D-lactone_2
A107: 6-Phosphonoglucono-D-lactone_3 | B107: 0 | C107: 0 | D107: 0 | E107: 0 | F107: 0 | G107: 0 | H107: 0 | J107: 0 | K107: 0 | L107: 0 | M107: 0 | N107: 0 | O107: 0 | P107: 0 | S107: 6-Phosphonoglucono-D-lactone_3 | T107: 0 | U107: 0 | V107: 0 | W107: 0 | X107: 0 | Y107: 0 | Z107: 0 | AB107: 0 | AC107: 0 | AD107: 0 | AE107: 0 | AF107: 0 | AG107: 0 | AH107: 0 | AK107: 6-Phosphonoglucono-D-lactone_3
A108: 6-Phosphonoglucono-D-lactone_4 | B108: 0 | C108: 0 | D108: 0 | E108: 0 | F108: 0 | G108: 0 | H108: 0 | J108: 0 | K108: 0 | L108: 0 | M108: 0 | N108: 0 | O108: 0 | P108: 0 | S108: 6-Phosphonoglucono-D-lactone_4 | T108: 0 | U108: 0 | V108: 0 | W108: 0 | X108: 0 | Y108: 0 | Z108: 0 | AB108: 0 | AC108: 0 | AD108: 0 | AE108: 0 | AF108: 0 | AG108: 0 | AH108: 0 | AK108: 6-Phosphonoglucono-D-lactone_4
A109: 6-Phosphonoglucono-D-lactone_5 | B109: 0 | C109: 0 | D109: 0 | E109: 0 | F109: 0 | G109: 0 | H109: 0 | J109: 0 | K109: 0 | L109: 0 | M109: 0 | N109: 0 | O109: 0 | P109: 0 | S109: 6-Phosphonoglucono-D-lactone_5 | T109: 0 | U109: 0 | V109: 0 | W109: 0 | X109: 0 | Y109: 0 | Z109: 0 | AB109: 0 | AC109: 0 | AD109: 0 | AE109: 0 | AF109: 0 | AG109: 0 | AH109: 0 | AK109: 6-Phosphonoglucono-D-lactone_5
A110: 6-Phosphonoglucono-D-lactone_6 | B110: 0 | C110: 0 | D110: 0 | E110: 0 | F110: 0 | G110: 0 | H110: 0 | J110: 0 | K110: 0 | L110: 0 | M110: 0 | N110: 0 | O110: 0 | P110: 0 | S110: 6-Phosphonoglucono-D-lactone_6 | T110: 0 | U110: 0 | V110: 0 | W110: 0 | X110: 0 | Y110: 0 | Z110: 0 | AB110: 0 | AC110: 0 | AD110: 0 | AE110: 0 | AF110: 0 | AG110: 0 | AH110: 0 | AK110: 6-Phosphonoglucono-D-lactone_6
A111: Acetyl-CoA_1 | B111: 0 | C111: 0 | D111: 0 | E111: 0 | F111: 0 | G111: 0 | H111: 0 | J111: 0 | K111: 0 | L111: 0 | M111: 0 | N111: 0 | O111: 0 | P111: 0 | S111: Acetyl-CoA_1 | T111: 0 | U111: 0 | V111: 0 | W111: 0 | X111: 0 | Y111: 0 | Z111: 0 | AB111: 0 | AC111: 0 | AD111: 0 | AE111: 0 | AF111: 0 | AG111: 0 | AH111: 0 | AK111: Acetyl-CoA_1
A112: Acetyl-CoA_2 | B112: 0 | C112: 0 | D112: 0 | E112: 0 | F112: 0 | G112: 0 | H112: 0 | J112: 0 | K112: 0 | L112: 0 | M112: 0 | N112: 0 | O112: 0 | P112: 0 | S112: Acetyl-CoA_2 | T112: 0 | U112: 0 | V112: 0 | W112: 0 | X112: 0 | Y112: 0 | Z112: 0 | AB112: 0 | AC112: 0 | AD112: 0 | AE112: 0 | AF112: 0 | AG112: 0 | AH112: 0 | AK112: Acetyl-CoA_2
A113: Acetyl-CoA_3 | B113: 0 | C113: 0 | D113: 0 | E113: 0 | F113: 0 | G113: 0 | H113: 0 | J113: 0 | K113: 0 | L113: 0 | M113: 0 | N113: 0 | O113: 0 | P113: 0 | S113: Acetyl-CoA_3 | T113: 0 | U113: 0 | V113: 0 | W113: 0 | X113: 0 | Y113: 0 | Z113: 0 | AB113: 0 | AC113: 0 | AD113: 0 | AE113: 0 | AF113: 0 | AG113: 0 | AH113: 0 | AK113: Acetyl-CoA_3
A114: Acetyl-CoA_4 | B114: 0 | C114: 0 | D114: 0 | E114: 0 | F114: 0 | G114: 0 | H114: 0 | J114: 0 | K114: 0 | L114: 0 | M114: 0 | N114: 0 | O114: 0 | P114: 0 | S114: Acetyl-CoA_4 | T114: 0 | U114: 0 | V114: 0 | W114: 0 | X114: 0 | Y114: 0 | Z114: 0 | AB114: 0 | AC114: 0 | AD114: 0 | AE114: 0 | AF114: 0 | AG114: 0 | AH114: 0 | AK114: Acetyl-CoA_4
A115: Acetyl-CoA_5 | B115: 0 | C115: 0 | D115: 0 | E115: 0 | F115: 0 | G115: 0 | H115: 0 | J115: 0 | K115: 0 | L115: 0 | M115: 0 | N115: 0 | O115: 0 | P115: 0 | S115: Acetyl-CoA_5 | T115: 0 | U115: 0 | V115: 0 | W115: 0 | X115: 0 | Y115: 0 | Z115: 0 | AB115: 0 | AC115: 0 | AD115: 0 | AE115: 0 | AF115: 0 | AG115: 0 | AH115: 0 | AK115: Acetyl-CoA_5
A116: Acetyl-CoA_6 | B116: 0 | C116: 0 | D116: 0 | E116: 0 | F116: 0 | G116: 0 | H116: 0 | J116: 0 | K116: 0 | L116: 0 | M116: 0 | N116: 0 | O116: 0 | P116: 0 | S116: Acetyl-CoA_6 | T116: 0 | U116: 0 | V116: 0 | W116: 0 | X116: 0 | Y116: 0 | Z116: 0 | AB116: 0 | AC116: 0 | AD116: 0 | AE116: 0 | AF116: 0 | AG116: 0 | AH116: 0 | AK116: Acetyl-CoA_6
A117: Acetyl-CoA_7 | B117: 0 | C117: 0 | D117: 0 | E117: 0 | F117: 0 | G117: 0 | H117: 0 | J117: 0 | K117: 0 | L117: 0 | M117: 0 | N117: 0 | O117: 0 | P117: 0 | S117: Acetyl-CoA_7 | T117: 0 | U117: 0 | V117: 0 | W117: 0 | X117: 0 | Y117: 0 | Z117: 0 | AB117: 0 | AC117: 0 | AD117: 0 | AE117: 0 | AF117: 0 | AG117: 0 | AH117: 0 | AK117: Acetyl-CoA_7 | AL117: =T117/AVERAGE($T117:$Z117) ->  | AZ117: =AH117/AVERAGE($T117:$Z117) -> 
A118: Acetyl-CoA_8 | B118: 0 | C118: 0 | D118: 0 | E118: 0 | F118: 0 | G118: 0 | H118: 0 | J118: 0 | K118: 0 | L118: 0 | M118: 0 | N118: 0 | O118: 0 | P118: 0 | S118: Acetyl-CoA_8 | T118: 0 | U118: 0 | V118: 0 | W118: 0 | X118: 0 | Y118: 0 | Z118: 0 | AB118: 0 | AC118: 0 | AD118: 0 | AE118: 0 | AF118: 0 | AG118: 0 | AH118: 0 | AK118: Acetyl-CoA_8
A119: Acetyl-CoA_9 | B119: 0 | C119: 0 | D119: 0 | E119: 0 | F119: 0 | G119: 0 | H119: 0 | J119: 0 | K119: 0 | L119: 0 | M119: 0 | N119: 0 | O119: 0 | P119: 0 | S119: Acetyl-CoA_9 | T119: 0 | U119: 0 | V119: 0 | W119: 0 | X119: 0 | Y119: 0 | Z119: 0 | AB119: 0 | AC119: 0 | AD119: 0 | AE119: 0 | AF119: 0 | AG119: 0 | AH119: 0 | AK119: Acetyl-CoA_9 | AT119: =AB119/AVERAGE($T119:$Z119) -> 
A120: Acetyl-CoA_10 | B120: 0 | C120: 0 | D120: 0 | E120: 0 | F120: 0 | G120: 0 | H120: 0 | J120: 0 | K120: 0 | L120: 0 | M120: 0 | N120: 0 | O120: 0 | P120: 0 | S120: Acetyl-CoA_10 | T120: 0 | U120: 0 | V120: 0 | W120: 0 | X120: 0 | Y120: 0 | Z120: 0 | AB120: 0 | AC120: 0 | AD120: 0 | AE120: 0 | AF120: 0 | AG120: 0 | AH120: 0 | AK120: Acetyl-CoA_10
A121: Acetyl-CoA_11 | B121: 0 | C121: 0 | D121: 0 | E121: 0 | F121: 0 | G121: 0 | H121: 0 | J121: 0 | K121: 0 | L121: 0 | M121: 0 | N121: 0 | O121: 0 | P121: 0 | S121: Acetyl-CoA_11 | T121: 0 | U121: 0 | V121: 0 | W121: 0 | X121: 0 | Y121: 0 | Z121: 0 | AB121: 0 | AC121: 0 | AD121: 0 | AE121: 0 | AF121: 0 | AG121: 0 | AH121: 0 | AK121: Acetyl-CoA_11
A122: Acetyl-CoA_12 | B122: 0 | C122: 0 | D122: 0 | E122: 0 | F122: 0 | G122: 0 | H122: 0 | J122: 0 | K122: 0 | L122: 0 | M122: 0 | N122: 0 | O122: 0 | P122: 0 | S122: Acetyl-CoA_12 | T122: 0 | U122: 0 | V122: 0 | W122: 0 | X122: 0 | Y122: 0 | Z122: 0 | AB122: 0 | AC122: 0 | AD122: 0 | AE122: 0 | AF122: 0 | AG122: 0 | AH122: 0 | AK122: Acetyl-CoA_12
A123: Acetyl-CoA_13 | B123: 0 | C123: 0 | D123: 0 | E123: 0 | F123: 0 | G123: 0 | H123: 0 | J123: 0 | K123: 0 | L123: 0 | M123: 0 | N123: 0 | O123: 0 | P123: 0 | S123: Acetyl-CoA_13 | T123: 0 | U123: 0 | V123: 0 | W123: 0 | X123: 0 | Y123: 0 | Z123: 0 | AB123: 0 | AC123: 0 | AD123: 0 | AE123: 0 | AF123: 0 | AG123: 0 | AH123: 0 | AK123: Acetyl-CoA_13
A124: Acetyl-CoA_14 | B124: 0 | C124: 0 | D124: 0 | E124: 0 | F124: 0 | G124: 0 | H124: 0 | J124: 0 | K124: 0 | L124: 0 | M124: 0 | N124: 0 | O124: 0 | P124: 0 | S124: Acetyl-CoA_14 | T124: 0 | U124: 0 | V124: 0 | W124: 0 | X124: 0 | Y124: 0 | Z124: 0 | AB124: 0 | AC124: 0 | AD124: 0 | AE124: 0 | AF124: 0 | AG124: 0 | AH124: 0 | AK124: Acetyl-CoA_14
A125: Acetyl-CoA_15 | B125: 0 | C125: 0 | D125: 0 | E125: 0 | F125: 0 | G125: 0 | H125: 0 | J125: 0 | K125: 0 | L125: 0 | M125: 0 | N125: 0 | O125: 0 | P125: 0 | S125: Acetyl-CoA_15 | T125: 0 | U125: 0 | V125: 0 | W125: 0 | X125: 0 | Y125: 0 | Z125: 0 | AB125: 0 | AC125: 0 | AD125: 0 | AE125: 0 | AF125: 0 | AG125: 0 | AH125: 0 | AK125: Acetyl-CoA_15
A126: Acetyl-CoA_16 | B126: 0 | C126: 0 | D126: 0 | E126: 0 | F126: 0 | G126: 0 | H126: 0 | J126: 0 | K126: 0 | L126: 0 | M126: 0 | N126: 0 | O126: 0 | P126: 0 | S126: Acetyl-CoA_16 | T126: 0 | U126: 0 | V126: 0 | W126: 0 | X126: 0 | Y126: 0 | Z126: 0 | AB126: 0 | AC126: 0 | AD126: 0 | AE126: 0 | AF126: 0 | AG126: 0 | AH126: 0 | AK126: Acetyl-CoA_16
A127: Acetyl-CoA_17 | B127: 0 | C127: 0 | D127: 0 | E127: 0 | F127: 0 | G127: 0 | H127: 0 | J127: 0 | K127: 0 | L127: 0 | M127: 0 | N127: 0 | O127: 0 | P127: 0 | S127: Acetyl-CoA_17 | T127: 0 | U127: 0 | V127: 0 | W127: 0 | X127: 0 | Y127: 0 | Z127: 0 | AB127: 0 | AC127: 0 | AD127: 0 | AE127: 0 | AF127: 0 | AG127: 0 | AH127: 0 | AK127: Acetyl-CoA_17
A128: Acetyl-CoA_18 | B128: 0 | C128: 0 | D128: 0 | E128: 0 | F128: 0 | G128: 0 | H128: 0 | J128: 0 | K128: 0 | L128: 0 | M128: 0 | N128: 0 | O128: 0 | P128: 0 | S128: Acetyl-CoA_18 | T128: 0 | U128: 0 | V128: 0 | W128: 0 | X128: 0 | Y128: 0 | Z128: 0 | AB128: 0 | AC128: 0 | AD128: 0 | AE128: 0 | AF128: 0 | AG128: 0 | AH128: 0 | AK128: Acetyl-CoA_18
A129: Acetyl-CoA_19 | B129: 0 | C129: 0 | D129: 0 | E129: 0 | F129: 0 | G129: 0 | H129: 0 | J129: 0 | K129: 0 | L129: 0 | M129: 0 | N129: 0 | O129: 0 | P129: 0 | S129: Acetyl-CoA_19 | T129: 0 | U129: 0 | V129: 0 | W129: 0 | X129: 0 | Y129: 0 | Z129: 0 | AB129: 0 | AC129: 0 | AD129: 0 | AE129: 0 | AF129: 0 | AG129: 0 | AH129: 0 | AK129: Acetyl-CoA_19
A130: Acetyl-CoA_20 | B130: 0 | C130: 0 | D130: 0 | E130: 0 | F130: 0 | G130: 0 | H130: 0 | J130: 0 | K130: 0 | L130: 0 | M130: 0 | N130: 0 | O130: 0 | P130: 0 | S130: Acetyl-CoA_20 | T130: =B130/B$1659 -> 0 | U130: =C130/C$1659 -> 0 | V130: =D130/D$1659 -> 0 | W130: =E130/E$1659 -> 0 | X130: =F130/F$1659 -> 0 | Y130: =G130/G$1659 -> 0 | Z130: =H130/H$1659 -> 0 | AB130: =J130/J$1659 -> 0 | AC130: =K130/K$1659 -> 0 | AD130: =L130/L$1659 -> 0 | AE130: =M130/M$1659 -> 0 | AF130: =N130/N$1659 -> 0 | AG130: =O130/O$1659 -> 0 | AH130: =P130/P$1659 -> 0 | AK130: Acetyl-CoA_20
A131: Acetyl-CoA_21 | B131: 0 | C131: 0 | D131: 0 | E131: 0 | F131: 0 | G131: 0 | H131: 0 | J131: 0 | K131: 0 | L131: 0 | M131: 0 | N131: 0 | O131: 0 | P131: 0 | S131: Acetyl-CoA_21 | T131: 0 | U131: 0 | V131: 0 | W131: 0 | X131: 0 | Y131: 0 | Z131: 0 | AB131: 0 | AC131: 0 | AD131: 0 | AE131: 0 | AF131: 0 | AG131: 0 | AH131: 0 | AK131: Acetyl-CoA_21
A132: Acetyl-CoA_22 | B132: 0 | C132: 0 | D132: 0 | E132: 0 | F132: 0 | G132: 0 | H132: 0 | J132: 0 | K132: 0 | L132: 0 | M132: 0 | N132: 0 | O132: 0 | P132: 0 | S132: Acetyl-CoA_22 | T132: 0 | U132: 0 | V132: 0 | W132: 0 | X132: 0 | Y132: 0 | Z132: 0 | AB132: 0 | AC132: 0 | AD132: 0 | AE132: 0 | AF132: 0 | AG132: 0 | AH132: 0 | AK132: Acetyl-CoA_22
A133: Acetyl-CoA_23 | B133: 0 | C133: 0 | D133: 0 | E133: 0 | F133: 0 | G133: 0 | H133: 0 | J133: 0 | K133: 0 | L133: 0 | M133: 0 | N133: 0 | O133: 0 | P133: 0 | S133: Acetyl-CoA_23 | T133: 0 | U133: 0 | V133: 0 | W133: 0 | X133: 0 | Y133: 0 | Z133: 0 | AB133: 0 | AC133: 0 | AD133: 0 | AE133: 0 | AF133: 0 | AG133: 0 | AH133: 0 | AK133: Acetyl-CoA_23
A134: Acetylcholine_1 | B134: 0 | C134: 0 | D134: 0 | E134: 0 | F134: 0 | G134: 0 | H134: 0 | J134: 0 | K134: 0 | L134: 0 | M134: 0 | N134: 0 | O134: 0 | P134: 0 | S134: Acetylcholine_1 | T134: 0 | U134: 0 | V134: 0 | W134: 0 | X134: 0 | Y134: 0 | Z134: 0 | AB134: 0 | AC134: 0 | AD134: 0 | AE134: 0 | AF134: 0 | AG134: 0 | AH134: 0 | AK134: Acetylcholine_1
A135: Acetylcholine_2 | B135: 0 | C135: 0 | D135: 0 | E135: 0 | F135: 0 | G135: 0 | H135: 0 | J135: 0 | K135: 0 | L135: 0 | M135: 0 | N135: 0 | O135: 0 | P135: 0 | S135: Acetylcholine_2 | T135: 0 | U135: 0 | V135: 0 | W135: 0 | X135: 0 | Y135: 0 | Z135: 0 | AB135: 0 | AC135: 0 | AD135: 0 | AE135: 0 | AF135: 0 | AG135: 0 | AH135: 0 | AK135: Acetylcholine_2
A136: Acetylcholine_3 | B136: 0 | C136: 0 | D136: 0 | E136: 0 | F136: 0 | G136: 0 | H136: 0 | J136: 0 | K136: 0 | L136: 0 | M136: 0 | N136: 0 | O136: 0 | P136: 0 | S136: Acetylcholine_3 | T136: 0 | U136: 0 | V136: 0 | W136: 0 | X136: 0 | Y136: 0 | Z136: 0 | AB136: 0 | AC136: 0 | AD136: 0 | AE136: 0 | AF136: 0 | AG136: 0 | AH136: 0 | AK136: Acetylcholine_3
A137: Acetylcholine_4 | B137: 0 | C137: 0 | D137: 0 | E137: 0 | F137: 0 | G137: 0 | H137: 0 | J137: 0 | K137: 0 | L137: 0 | M137: 0 | N137: 0 | O137: 0 | P137: 0 | S137: Acetylcholine_4 | T137: 0 | U137: 0 | V137: 0 | W137: 0 | X137: 0 | Y137: 0 | Z137: 0 | AB137: 0 | AC137: 0 | AD137: 0 | AE137: 0 | AF137: 0 | AG137: 0 | AH137: 0 | AK137: Acetylcholine_4
A138: Acetylcholine_5 | B138: 0 | C138: 0 | D138: 0 | E138: 0 | F138: 0 | G138: 0 | H138: 0 | J138: 0 | K138: 0 | L138: 0 | M138: 0 | N138: 0 | O138: 0 | P138: 0 | S138: Acetylcholine_5 | T138: 0 | U138: 0 | V138: 0 | W138: 0 | X138: 0 | Y138: 0 | Z138: 0 | AB138: 0 | AC138: 0 | AD138: 0 | AE138: 0 | AF138: 0 | AG138: 0 | AH138: 0 | AK138: Acetylcholine_5
A139: Acetylcholine_6 | B139: 0 | C139: 0 | D139: 0 | E139: 0 | F139: 0 | G139: 0 | H139: 0 | J139: 0 | K139: 0 | L139: 0 | M139: 0 | N139: 0 | O139: 0 | P139: 0 | S139: Acetylcholine_6 | T139: 0 | U139: 0 | V139: 0 | W139: 0 | X139: 0 | Y139: 0 | Z139: 0 | AB139: 0 | AC139: 0 | AD139: 0 | AE139: 0 | AF139: 0 | AG139: 0 | AH139: 0 | AK139: Acetylcholine_6
A140: Acetylcholine_7 | B140: 0 | C140: 0 | D140: 0 | E140: 0 | F140: 0 | G140: 0 | H140: 0 | J140: 0 | K140: 0 | L140: 0 | M140: 0 | N140: 0 | O140: 0 | P140: 0 | S140: Acetylcholine_7 | T140: 0 | U140: 0 | V140: 0 | W140: 0 | X140: 0 | Y140: 0 | Z140: 0 | AB140: 0 | AC140: 0 | AD140: 0 | AE140: 0 | AF140: 0 | AG140: 0 | AH140: 0 | AK140: Acetylcholine_7
A141: Acetylcysteine_1 | B141: 0 | C141: 0 | D141: 0 | E141: 0 | F141: 0 | G141: 0 | H141: 0 | J141: 0 | K141: 0 | L141: 0 | M141: 0 | N141: 0 | O141: 0 | P141: 0 | S141: Acetylcysteine_1 | T141: 0 | U141: 0 | V141: 0 | W141: 0 | X141: 0 | Y141: 0 | Z141: 0 | AB141: 0 | AC141: 0 | AD141: 0 | AE141: 0 | AF141: 0 | AG141: 0 | AH141: 0 | AK141: Acetylcysteine_1
A142: Acetylcysteine_2 | B142: 0 | C142: 0 | D142: 0 | E142: 0 | F142: 0 | G142: 0 | H142: 0 | J142: 0 | K142: 0 | L142: 0 | M142: 0 | N142: 0 | O142: 0 | P142: 0 | S142: Acetylcysteine_2 | T142: 0 | U142: 0 | V142: 0 | W142: 0 | X142: 0 | Y142: 0 | Z142: 0 | AB142: 0 | AC142: 0 | AD142: 0 | AE142: 0 | AF142: 0 | AG142: 0 | AH142: 0 | AK142: Acetylcysteine_2
A143: Acetylcysteine_3 | B143: 0 | C143: 0 | D143: 0 | E143: 0 | F143: 0 | G143: 0 | H143: 0 | J143: 0 | K143: 0 | L143: 0 | M143: 0 | N143: 0 | O143: 0 | P143: 0 | S143: Acetylcysteine_3 | T143: 0 | U143: 0 | V143: 0 | W143: 0 | X143: 0 | Y143: 0 | Z143: 0 | AB143: 0 | AC143: 0 | AD143: 0 | AE143: 0 | AF143: 0 | AG143: 0 | AH143: 0 | AK143: Acetylcysteine_3
A144: Acetylcysteine_4 | B144: 0 | C144: 0 | D144: 0 | E144: 0 | F144: 0 | G144: 0 | H144: 0 | J144: 0 | K144: 0 | L144: 0 | M144: 0 | N144: 0 | O144: 0 | P144: 0 | S144: Acetylcysteine_4 | T144: 0 | U144: 0 | V144: 0 | W144: 0 | X144: 0 | Y144: 0 | Z144: 0 | AB144: 0 | AC144: 0 | AD144: 0 | AE144: 0 | AF144: 0 | AG144: 0 | AH144: 0 | AK144: Acetylcysteine_4
A145: Acetylcysteine_5 | B145: 0 | C145: 0 | D145: 0 | E145: 0 | F145: 0 | G145: 0 | H145: 0 | J145: 0 | K145: 0 | L145: 0 | M145: 0 | N145: 0 | O145: 0 | P145: 0 | S145: Acetylcysteine_5 | T145: 0 | U145: 0 | V145: 0 | W145: 0 | X145: 0 | Y145: 0 | Z145: 0 | AB145: 0 | AC145: 0 | AD145: 0 | AE145: 0 | AF145: 0 | AG145: 0 | AH145: 0 | AK145: Acetylcysteine_5
A146: Adenine_1 | B146: 10684.16174 | C146: 0 | D146: 10119.68554 | E146: 0 | F146: 0 | G146: 0 | H146: 10509.43029 | J146: 10465.48913 | K146: 0 | L146: 0 | M146: 13060.9908 | N146: 12036.84523 | O146: 0 | P146: 0 | S146: Adenine_1 | T146: 0.0002326149266 | U146: 0 | V146: 0.0001604911727 | W146: 0 | X146: 0 | Y146: 0 | Z146: 0.0002382703436 | AB146: 0.0002297734121 | AC146: 0 | AD146: 0 | AE146: 0.0002960002232 | AF146: 0.0003222250961 | AG146: 0 | AH146: 0 | AK146: Adenine_1 | AL146: 2.578975672 | AM146: 0 | AN146: 1.77934768 | AO146: 0 | AP146: 0 | AQ146: 0 | AR146: 2.641676648 | AT146: 2.547472118 | AU146: 0 | AV146: 0 | AW146: 3.281721366 | AX146: 3.572473597 | AY146: 0 | AZ146: 0
A147: Adenine_2 | B147: 0 | C147: 0 | D147: 0 | E147: 0 | F147: 0 | G147: 0 | H147: 0 | J147: 0 | K147: 0 | L147: 0 | M147: 0 | N147: 0 | O147: 0 | P147: 0 | S147: Adenine_2 | T147: 0 | U147: 0 | V147: 0 | W147: 0 | X147: 0 | Y147: 0 | Z147: 0 | AB147: 0 | AC147: 0 | AD147: 0 | AE147: 0 | AF147: 0 | AG147: 0 | AH147: 0 | AK147: Adenine_2
A148: Adenine_3 | B148: 0 | C148: 0 | D148: 0 | E148: 0 | F148: 0 | G148: 0 | H148: 0 | J148: 0 | K148: 0 | L148: 0 | M148: 0 | N148: 0 | O148: 0 | P148: 0 | S148: Adenine_3 | T148: 0 | U148: 0 | V148: 0 | W148: 0 | X148: 0 | Y148: 0 | Z148: 0 | AB148: 0 | AC148: 0 | AD148: 0 | AE148: 0 | AF148: 0 | AG148: 0 | AH148: 0 | AK148: Adenine_3
A149: Adenine_4 | B149: 0 | C149: 0 | D149: 0 | E149: 0 | F149: 0 | G149: 0 | H149: 0 | J149: 0 | K149: 0 | L149: 0 | M149: 0 | N149: 0 | O149: 0 | P149: 0 | S149: Adenine_4 | T149: 0 | U149: 0 | V149: 0 | W149: 0 | X149: 0 | Y149: 0 | Z149: 0 | AB149: 0 | AC149: 0 | AD149: 0 | AE149: 0 | AF149: 0 | AG149: 0 | AH149: 0 | AK149: Adenine_4
A150: Adenine_5 | B150: 0 | C150: 0 | D150: 0 | E150: 0 | F150: 0 | G150: 0 | H150: 0 | J150: 0 | K150: 0 | L150: 0 | M150: 0 | N150: 0 | O150: 0 | P150: 0 | S150: Adenine_5 | T150: 0 | U150: 0 | V150: 0 | W150: 0 | X150: 0 | Y150: 0 | Z150: 0 | AB150: 0 | AC150: 0 | AD150: 0 | AE150: 0 | AF150: 0 | AG150: 0 | AH150: 0 | AK150: Adenine_5
A151: Adenosine monophosphate_1 | B151: 0 | C151: 0 | D151: 0 | E151: 0 | F151: 0 | G151: 0 | H151: 0 | J151: 0 | K151: 0 | L151: 0 | M151: 0 | N151: 0 | O151: 0 | P151: 0 | S151: Adenosine monophosphate_1 | T151: 0 | U151: 0 | V151: 0 | W151: 0 | X151: 0 | Y151: 0 | Z151: 0 | AB151: 0 | AC151: 0 | AD151: 0 | AE151: 0 | AF151: 0 | AG151: 0 | AH151: 0 | AK151: Adenosine monophosphate_1
A152: Adenosine monophosphate_2 | B152: 0 | C152: 0 | D152: 0 | E152: 0 | F152: 0 | G152: 0 | H152: 0 | J152: 0 | K152: 0 | L152: 0 | M152: 0 | N152: 0 | O152: 0 | P152: 0 | S152: Adenosine monophosphate_2 | T152: 0 | U152: 0 | V152: 0 | W152: 0 | X152: 0 | Y152: 0 | Z152: 0 | AB152: 0 | AC152: 0 | AD152: 0 | AE152: 0 | AF152: 0 | AG152: 0 | AH152: 0 | AK152: Adenosine monophosphate_2
A153: Adenosine monophosphate_3 | B153: 155701.4559 | C153: 126472.9688 | D153: 150275.4928 | E153: 158103.1969 | F153: 118183.4043 | G153: 207018.1109 | H153: 242974.975 | J153: 416804.5427 | K153: 358094.5242 | L153: 336384.8982 | M153: 320793.3083 | N153: 372131.3761 | O153: 270103.0135 | P153: 251439.151 | S153: Adenosine monophosphate_3 | T153: 0.003389922733 | U153: 0.002568611367 | V153: 0.002383264773 | W153: 0.002366673032 | X153: 0.002647742125 | Y153: 0.004993578764 | Z153: 0.005508741122 | AB153: 0.009151087043 | AC153: 0.008131628534 | AD153: 0.005487612467 | AE153: 0.00727011391 | AF153: 0.009961918266 | AG153: 0.006550386113 | AH153: 0.007391541636 | AK153: Adenosine monophosphate_3 | AL153: 0.994589995 | AM153: 0.753620471 | AN153: 0.6992405095 | AO153: =W153/AVERAGE($T153:$Z153) -> 0.694372558 | AP153: 0.7768371243 | AQ153: 1.465096367 | AR153: 1.616242976 | AT153: 2.684892942 | AU153: 2.385787825 | AV153: 1.610043912 | AW153: 2.133022823 | AX153: 2.922787633 | AY153: 1.921857519 | AZ153: 2.16864924
A154: Adenosine monophosphate_4 | B154: 104645.5713 | C154: 67732.27726 | D154: 72319.96202 | E154: 87438.72856 | F154: 58362.13381 | G154: 122852.7276 | H154: 111641.615 | J154: 215279.8181 | K154: 201598.5458 | L154: 148053.7485 | M154: 178251.0573 | N154: 174787.2271 | O154: 155792.2306 | P154: 107523.7278 | S154: Adenosine monophosphate_4 | T154: 0.002278337084 | U154: 0.001375613294 | V154: 0.001146944286 | W154: 0.001308884861 | X154: 0.001307526054 | Y154: 0.002963386968 | Z154: 0.002531144433 | AB154: 0.004726542426 | AC154: 0.004577909956 | AD154: 0.002415273695 | AE154: 0.00403968991 | AF154: 0.004679035906 | AG154: 0.003778185406 | AH154: 0.003160868576 | AK154: Adenosine monophosphate_4 | AL154: =T154/AVERAGE($T154:$Z154) -> 1.235173555 | AM154: 0.7457725088 | AN154: 0.6218023056 | AO154: 0.7095964764 | AP154: 0.7088598152 | AQ154: 1.606565263 | AR154: 1.372230075 | AT154: 2.562439181 | AU154: 2.481859842 | AV154: 1.309412122 | AW154: 2.190070198 | AX154: 2.536684082 | AY154: 2.048298618 | AZ154: 1.713627586
A155: Adenosine monophosphate_5 | B155: 18833.31178 | C155: 11577.03851 | D155: 13842.58012 | E155: 15598.05849 | F155: 14760.58155 | G155: 18370.81876 | H155: 37708.93893 | J155: 50708.27847 | K155: 35879.90023 | L155: 52068.54884 | M155: 26544.70446 | N155: 29061.60244 | O155: 43851.66985 | P155: 28679.34622 | S155: Adenosine monophosphate_5 | T155: 0.0004100377312 | U155: 0.0002351246514 | V155: 0.0002195336907 | W155: 0.00023348993 | X155: 0.000330691215 | Y155: 0.0004431309418 | Z155: 0.0008549390015 | AB155: 0.001113317689 | AC155: 0.0008147625858 | AD155: 0.0008494198736 | AE155: 0.000601580582 | AF155: 0.0007779760772 | AG155: 0.001063465992 | AH155: 0.0008430850202 | AK155: Adenosine monophosphate_5 | AL155: 1.052555825 | AM155: 0.6035586545 | AN155: 0.5635370778 | AO155: 0.5993623688 | AP155: 0.8488754522 | AQ155: 1.137505206 | AR155: 2.194605416 | AT155: 2.857856555 | AU155: 2.091473638 | AV155: 2.180437963 | AW155: 1.54424117 | AX155: 1.99704366 | AY155: 2.729888591 | AZ155: 2.164176565
A156: Adenosine monophosphate_6 | B156: 0 | C156: 0 | D156: 0 | E156: 0 | F156: 0 | G156: 0 | H156: 0 | J156: 0 | K156: 0 | L156: 0 | M156: 0 | N156: 0 | O156: 0 | P156: 0 | S156: Adenosine monophosphate_6 | T156: 0 | U156: 0 | V156: 0 | W156: 0 | X156: 0 | Y156: 0 | Z156: 0 | AB156: 0 | AC156: 0 | AD156: 0 | AE156: 0 | AF156: 0 | AG156: 0 | AH156: 0 | AK156: Adenosine monophosphate_6
A157: Adenosine monophosphate_7 | B157: 0 | C157: 0 | D157: 0 | E157: 0 | F157: 0 | G157: 0 | H157: 0 | J157: 0 | K157: 0 | L157: 0 | M157: 0 | N157: 0 | O157: 0 | P157: 0 | S157: Adenosine monophosphate_7 | T157: 0 | U157: 0 | V157: 0 | W157: 0 | X157: 0 | Y157: 0 | Z157: 0 | AB157: 0 | AC157: 0 | AD157: 0 | AE157: 0 | AF157: 0 | AG157: 0 | AH157: 0 | AK157: Adenosine monophosphate_7
A158: Adenosine monophosphate_8 | B158: 0 | C158: 0 | D158: 0 | E158: 0 | F158: 0 | G158: 0 | H158: 0 | J158: 0 | K158: 0 | L158: 0 | M158: 0 | N158: 0 | O158: 0 | P158: 0 | S158: Adenosine monophosphate_8 | T158: 0 | U158: 0 | V158: 0 | W158: 0 | X158: 0 | Y158: 0 | Z158: 0 | AB158: 0 | AC158: 0 | AD158: 0 | AE158: 0 | AF158: 0 | AG158: 0 | AH158: 0 | AK158: Adenosine monophosphate_8
A159: Adenosine monophosphate_9 | B159: 0 | C159: 0 | D159: 0 | E159: 0 | F159: 0 | G159: 0 | H159: 0 | J159: 0 | K159: 0 | L159: 0 | M159: 0 | N159: 0 | O159: 0 | P159: 0 | S159: Adenosine monophosphate_9 | T159: 0 | U159: 0 | V159: 0 | W159: 0 | X159: 0 | Y159: 0 | Z159: 0 | AB159: 0 | AC159: 0 | AD159: 0 | AE159: 0 | AF159: 0 | AG159: 0 | AH159: 0 | AK159: Adenosine monophosphate_9
A160: Adenosine monophosphate_10 | B160: 0 | C160: 0 | D160: 0 | E160: 0 | F160: 0 | G160: 0 | H160: 0 | J160: 0 | K160: 0 | L160: 0 | M160: 0 | N160: 0 | O160: 0 | P160: 0 | S160: Adenosine monophosphate_10 | T160: 0 | U160: 0 | V160: 0 | W160: 0 | X160: 0 | Y160: 0 | Z160: 0 | AB160: 0 | AC160: 0 | AD160: 0 | AE160: 0 | AF160: 0 | AG160: 0 | AH160: 0 | AK160: Adenosine monophosphate_10
A161: Adenosine triphosphate_1 | B161: 151078.7163 | C161: 165253.0934 | D161: 0 | E161: 0 | F161: 0 | G161: 0 | H161: 0 | J161: 78319.21998 | K161: 0 | L161: 0 | M161: 86977.34891 | N161: 0 | O161: 0 | P161: 0 | S161: Adenosine triphosphate_1 | T161: 0.003289276723 | U161: 0.003356218945 | V161: 0 | W161: 0 | X161: 0 | Y161: 0 | Z161: 0 | AB161: 0.001719525403 | AC161: 0 | AD161: 0 | AE161: 0.001971160925 | AF161: 0 | AG161: 0 | AH161: 0 | AK161: Adenosine triphosphate_1 | AL161: 3.464743371 | AM161: 3.535256629 | AN161: 0 | AO161: 0 | AP161: 0 | AQ161: 0 | AR161: 0 | AT161: 1.81125358 | AU161: 0 | AV161: 0 | AW161: =AE161/AVERAGE($T161:$Z161) -> 2.076312613 | AX161: 0 | AY161: 0 | AZ161: 0
A162: Adenosine triphosphate_2 | B162: 0 | C162: 0 | D162: 0 | E162: 0 | F162: 0 | G162: 0 | H162: 0 | J162: 0 | K162: 0 | L162: 0 | M162: 0 | N162: 0 | O162: 0 | P162: 0 | S162: Adenosine triphosphate_2 | T162: 0 | U162: 0 | V162: 0 | W162: 0 | X162: 0 | Y162: 0 | Z162: 0 | AB162: 0 | AC162: 0 | AD162: 0 | AE162: 0 | AF162: 0 | AG162: 0 | AH162: 0 | AK162: Adenosine triphosphate_2 | AT162: =AB162/AVERAGE($T162:$Z162) -> 
A163: Adenosine triphosphate_3 | B163: 94156.53394 | C163: 91932.78123 | D163: 97893.9458 | E163: 86759.62979 | F163: 108970.0852 | G163: 76918.04349 | H163: 72098.8075 | J163: 46387.62706 | K163: 41756.53436 | L163: 37777.14271 | M163: 54696.28284 | N163: 26690.19094 | O163: 21736.41157 | P163: 25616.25432 | S163: Adenosine triphosphate_3 | T163: 0.002049970393 | U163: 0.001867115076 | V163: 0.001552529878 | W163: 0.001298719318 | X163: 0.002441329954 | Y163: 0.001855375392 | Z163: 0.001634627869 | AB163: 0.001018456301 | AC163: 0.0009482094903 | AD163: 0.0006162771289 | AE163: 0.001239577623 | AF163: 0.000714493638 | AG163: 0.0005271392075 | AH163: 0.0007530394914 | AK163: Adenosine triphosphate_3 | AL163: 1.12993449 | AM163: 1.029145459 | AN163: 0.8557475083 | AO163: 0.7158482658 | AP163: 1.345650125 | AQ163: 1.022674598 | AR163: 0.9009995531 | AT163: 0.5613685473 | AU163: 0.52264882 | AV163: 0.3396891905 | AW163: 0.6832496287 | AX163: 0.39382569 | AY163: 0.2905567679 | AZ163: 0.4150719916
A164: Adenosine triphosphate_4 | B164: 39531.93532 | C164: 40349.49447 | D164: 41582.92071 | E164: 35017.21275 | F164: 39654.82091 | G164: 32599.19851 | H164: 32857.6823 | J164: 17750.92908 | K164: 19030.64242 | L164: 17091.47668 | M164: 20098.65813 | N164: 12851.83617 | O164: 10297.50244 | P164: 13045.24781 | S164: Adenosine triphosphate_4 | T164: 0.0008606869179 | U164: 0.0008194808036 | V164: 0.0006594761941 | W164: 0.0005241784777 | X164: 0.0008884135673 | Y164: 0.0007863402132 | Z164: 0.0007449510619 | AB164: 0.0003897277512 | AC164: 0.0004321487888 | AD164: 0.0002788216742 | AE164: 0.0004554943331 | AF164: 0.0003440423188 | AG164: 0.0002497292278 | AH164: 0.0003834903672 | AK164: Adenosine triphosphate_4 | AL164: 1.140300439 | AM164: 1.085707591 | AN164: 0.8737218818 | AO164: 0.6944696564 | AP164: 1.177034714 | AQ164: 1.041800533 | AR164: 0.9869651846 | AT164: 0.5163395846 | AU164: 0.5725420512 | AV164: 0.3694031719 | AW164: 0.6034719212 | AX164: 0.4558122111 | AY164: 0.3308593893 | AZ164: 0.5080758461
A165: Adenosine triphosphate_5 | B165: 10502.72925 | C165: 0 | D165: 0 | E165: 0 | F165: 0 | G165: 0 | H165: 0 | J165: 0 | K165: 0 | L165: 0 | M165: 0 | N165: 0 | O165: 0 | P165: 0 | S165: Adenosine triphosphate_5 | T165: 0.0002286647895 | U165: 0 | V165: 0 | W165: 0 | X165: 0 | Y165: 0 | Z165: 0 | AB165: 0 | AC165: 0 | AD165: 0 | AE165: 0 | AF165: 0 | AG165: 0 | AH165: 0 | AK165: Adenosine triphosphate_5 | AL165: 7 | AM165: 0 | AN165: 0 | AO165: 0 | AP165: 0 | AQ165: 0 | AR165: 0 | AT165: 0 | AU165: 0 | AV165: 0 | AW165: 0 | AX165: 0 | AY165: 0 | AZ165: 0
A166: Adenosine triphosphate_6 | B166: 0 | C166: 0 | D166: 0 | E166: 0 | F166: 0 | G166: 0 | H166: 0 | J166: 0 | K166: 0 | L166: 0 | M166: 0 | N166: 0 | O166: 0 | P166: 0 | S166: Adenosine triphosphate_6 | T166: 0 | U166: 0 | V166: 0 | W166: 0 | X166: 0 | Y166: 0 | Z166: 0 | AB166: 0 | AC166: 0 | AD166: 0 | AE166: 0 | AF166: 0 | AG166: 0 | AH166: 0 | AK166: Adenosine triphosphate_6
A167: Adenosine triphosphate_7 | B167: 0 | C167: 0 | D167: 0 | E167: 0 | F167: 0 | G167: 0 | H167: 0 | J167: 0 | K167: 0 | L167: 0 | M167: 0 | N167: 0 | O167: 0 | P167: 0 | S167: Adenosine triphosphate_7 | T167: 0 | U167: 0 | V167: 0 | W167: 0 | X167: 0 | Y167: 0 | Z167: 0 | AB167: 0 | AC167: 0 | AD167: 0 | AE167: 0 | AF167: 0 | AG167: 0 | AH167: 0 | AK167: Adenosine triphosphate_7
A168: Adenosine triphosphate_8 | B168: 0 | C168: 0 | D168: 0 | E168: 0 | F168: 0 | G168: 0 | H168: 0 | J168: 0 | K168: 0 | L168: 0 | M168: 0 | N168: 0 | O168: 0 | P168: 0 | S168: Adenosine triphosphate_8 | T168: 0 | U168: 0 | V168: 0 | W168: 0 | X168: 0 | Y168: 0 | Z168: 0 | AB168: 0 | AC168: 0 | AD168: 0 | AE168: 0 | AF168: 0 | AG168: 0 | AH168: 0 | AK168: Adenosine triphosphate_8
A169: Adenosine triphosphate_9 | B169: 0 | C169: 0 | D169: 0 | E169: 0 | F169: 0 | G169: 0 | H169: 0 | J169: 0 | K169: 0 | L169: 0 | M169: 0 | N169: 0 | O169: 0 | P169: 0 | S169: Adenosine triphosphate_9 | T169: 0 | U169: 0 | V169: 0 | W169: 0 | X169: 0 | Y169: 0 | Z169: 0 | AB169: 0 | AC169: 0 | AD169: 0 | AE169: 0 | AF169: 0 | AG169: 0 | AH169: 0 | AK169: Adenosine triphosphate_9
A170: Adenosine triphosphate_10 | B170: 0 | C170: 0 | D170: 0 | E170: 0 | F170: 0 | G170: 0 | H170: 0 | J170: 0 | K170: 0 | L170: 0 | M170: 0 | N170: 0 | O170: 0 | P170: 0 | S170: Adenosine triphosphate_10 | T170: 0 | U170: 0 | V170: 0 | W170: 0 | X170: 0 | Y170: 0 | Z170: 0 | AB170: 0 | AC170: 0 | AD170: 0 | AE170: 0 | AF170: 0 | AG170: 0 | AH170: 0 | AK170: Adenosine triphosphate_10
A171: Adenosine_1 | B171: 0 | C171: 0 | D171: 0 | E171: 0 | F171: 0 | G171: 0 | H171: 0 | J171: 0 | K171: 0 | L171: 0 | M171: 0 | N171: 0 | O171: 0 | P171: 0 | S171: Adenosine_1 | T171: 0 | U171: 0 | V171: 0 | W171: 0 | X171: 0 | Y171: 0 | Z171: 0 | AB171: 0 | AC171: 0 | AD171: 0 | AE171: 0 | AF171: 0 | AG171: 0 | AH171: 0 | AK171: Adenosine_1
A172: Adenosine_2 | B172: 0 | C172: 0 | D172: 0 | E172: 0 | F172: 0 | G172: 0 | H172: 0 | J172: 17019.54593 | K172: 0 | L172: 0 | M172: 0 | N172: 0 | O172: 0 | P172: 0 | S172: Adenosine_2 | T172: 0 | U172: 0 | V172: 0 | W172: 0 | X172: 0 | Y172: 0 | Z172: 0 | AB172: 0.0003736699826 | AC172: 0 | AD172: 0 | AE172: 0 | AF172: 0 | AG172: 0 | AH172: 0 | AK172: Adenosine_2
A173: Adenosine_3 | B173: 0 | C173: 0 | D173: 0 | E173: 0 | F173: 0 | G173: 0 | H173: 13417.52319 | J173: 11227.68131 | K173: 15415.99545 | L173: 10537.36173 | M173: 15013.70631 | N173: 12506.57536 | O173: 0 | P173: 15177.38012 | S173: Adenosine_3 | T173: 0 | U173: 0 | V173: 0 | W173: 0 | X173: 0 | Y173: 0 | Z173: 0.0003042027753 | AB173: 0.0002465076035 | AC173: 0.000350067203 | AD173: 0.00017190117 | AE173: 0.0003402544637 | AF173: 0.0003347997227 | AG173: 0 | AH173: 0.000446168533 | AK173: Adenosine_3 | AL173: 0 | AM173: 0 | AN173: 0 | AO173: 0 | AP173: 0 | AQ173: 0 | AR173: 7 | AT173: 5.67237831 | AU173: 8.055384829 | AV173: 3.955612137 | AW173: 7.82958421 | AX173: 7.704065345 | AY173: 0 | AZ173: 10.26676935
A174: Adenosine_4 | B174: 0 | C174: 0 | D174: 0 | E174: 0 | F174: 0 | G174: 0 | H174: 0 | J174: 0 | K174: 0 | L174: 0 | M174: 0 | N174: 0 | O174: 0 | P174: 0 | S174: Adenosine_4 | T174: 0 | U174: 0 | V174: 0 | W174: 0 | X174: 0 | Y174: 0 | Z174: 0 | AB174: 0 | AC174: 0 | AD174: 0 | AE174: 0 | AF174: 0 | AG174: 0 | AH174: 0 | AK174: Adenosine_4
A175: Adenosine_5 | B175: 0 | C175: 0 | D175: 0 | E175: 0 | F175: 0 | G175: 0 | H175: 0 | J175: 0 | K175: 0 | L175: 0 | M175: 0 | N175: 0 | O175: 0 | P175: 0 | S175: Adenosine_5 | T175: 0 | U175: 0 | V175: 0 | W175: 0 | X175: 0 | Y175: 0 | Z175: 0 | AB175: 0 | AC175: 0 | AD175: 0 | AE175: 0 | AF175: 0 | AG175: 0 | AH175: 0 | AK175: Adenosine_5
A176: Adenosine_6 | B176: 0 | C176: 0 | D176: 0 | E176: 0 | F176: 0 | G176: 0 | H176: 0 | J176: 0 | K176: 0 | L176: 0 | M176: 0 | N176: 0 | O176: 0 | P176: 0 | S176: Adenosine_6 | T176: 0 | U176: 0 | V176: 0 | W176: 0 | X176: 0 | Y176: 0 | Z176: 0 | AB176: 0 | AC176: 0 | AD176: 0 | AE176: 0 | AF176: 0 | AG176: 0 | AH176: 0 | AK176: Adenosine_6
A177: Adenosine_7 | B177: 0 | C177: 0 | D177: 0 | E177: 0 | F177: 0 | G177: 0 | H177: 0 | J177: 0 | K177: 0 | L177: 0 | M177: 0 | N177: 0 | O177: 0 | P177: 0 | S177: Adenosine_7 | T177: 0 | U177: 0 | V177: 0 | W177: 0 | X177: 0 | Y177: 0 | Z177: 0 | AB177: 0 | AC177: 0 | AD177: 0 | AE177: 0 | AF177: 0 | AG177: 0 | AH177: 0 | AK177: Adenosine_7
A178: Adenosine_8 | B178: 0 | C178: 0 | D178: 0 | E178: 0 | F178: 0 | G178: 0 | H178: 0 | J178: 0 | K178: 0 | L178: 0 | M178: 0 | N178: 0 | O178: 0 | P178: 0 | S178: Adenosine_8 | T178: 0 | U178: 0 | V178: 0 | W178: 0 | X178: 0 | Y178: 0 | Z178: 0 | AB178: 0 | AC178: 0 | AD178: 0 | AE178: 0 | AF178: 0 | AG178: 0 | AH178: 0 | AK178: Adenosine_8
A179: Adenosine_9 | B179: 0 | C179: 0 | D179: 0 | E179: 0 | F179: 0 | G179: 0 | H179: 0 | J179: 0 | K179: 0 | L179: 0 | M179: 0 | N179: 0 | O179: 0 | P179: 0 | S179: Adenosine_9 | T179: 0 | U179: 0 | V179: 0 | W179: 0 | X179: 0 | Y179: 0 | Z179: 0 | AB179: 0 | AC179: 0 | AD179: 0 | AE179: 0 | AF179: 0 | AG179: 0 | AH179: 0 | AK179: Adenosine_9
A180: Adenosine_10 | B180: 0 | C180: 0 | D180: 0 | E180: 0 | F180: 0 | G180: 0 | H180: 0 | J180: 0 | K180: 0 | L180: 0 | M180: 0 | N180: 0 | O180: 0 | P180: 0 | S180: Adenosine_10 | T180: 0 | U180: 0 | V180: 0 | W180: 0 | X180: 0 | Y180: 0 | Z180: 0 | AB180: 0 | AC180: 0 | AD180: 0 | AE180: 0 | AF180: 0 | AG180: 0 | AH180: 0 | AK180: Adenosine_10
A181: ADP-glucose_1 | B181: 10317.00272 | C181: 0 | D181: 12508.90188 | E181: 0 | F181: 10444.60158 | G181: 0 | H181: 11006.51583 | J181: 14850.40112 | K181: 0 | L181: 10566.7719 | M181: 0 | N181: 0 | O181: 0 | P181: 0 | S181: ADP-glucose_1 | T181: 0.0002246211625 | U181: 0 | V181: 0.0001983824816 | W181: 0 | X181: 0.0002339974191 | Y181: 0 | Z181: 0.0002495402926 | AB181: 0.0003260456626 | AC181: 0 | AD181: 0.0001723809526 | AE181: 0 | AF181: 0 | AG181: 0 | AH181: 0 | AK181: ADP-glucose_1 | AL181: 1.734447224 | AM181: 0 | AN181: 1.53184117 | AO181: 0 | AP181: 1.806847446 | AQ181: 0 | AR181: 1.92686416 | AT181: 2.517612267 | AU181: 0 | AV181: 1.331066322 | AW181: 0 | AX181: 0 | AY181: 0 | AZ181: 0
A182: ADP-glucose_2 | B182: 27909.03853 | C182: 14651.83223 | D182: 17834.68873 | E182: 25903.75755 | F182: 18998.11987 | G182: 16741.5338 | H182: 21167.66207 | J182: 18690.12661 | K182: 20219.87479 | L182: 13548.65717 | M182: 16863.50853 | N182: 24922.0164 | O182: 0 | P182: 0 | S182: ADP-glucose_2 | T182: 0.000607633908 | U182: 0.0002975723836 | V182: 0.0002828457561 | W182: 0.0003877576521 | X182: 0.0004256276302 | Y182: 0.0004038302123 | Z182: 0.0004799143224 | AB182: 0.0004103481558 | AC182: 0.0004591539376 | AD182: 0.0002210259153 | AE182: 0.0003821763882 | AF182: 0.0006671597893 | AG182: 0 | AH182: 0 | AK182: ADP-glucose_2 | AL182: 1.47423544 | AM182: 0.7219672045 | AN182: 0.6862376049 | AO182: 0.9407738202 | AP182: 1.03265359 | AQ182: 0.9797689084 | AR182: 1.164363432 | AT182: 0.9955826792 | AU182: 1.113994789 | AV182: 0.5362509123 | AW182: 0.9272326122 | AX182: 1.618656551 | AY182: 0 | AZ182: 0
A183: ADP-glucose_3 | B183: 0 | C183: 0 | D183: 0 | E183: 0 | F183: 0 | G183: 0 | H183: 0 | J183: 0 | K183: 0 | L183: 0 | M183: 0 | N183: 0 | O183: 0 | P183: 0 | S183: ADP-glucose_3 | T183: 0 | U183: 0 | V183: 0 | W183: 0 | X183: 0 | Y183: 0 | Z183: 0 | AB183: 0 | AC183: 0 | AD183: 0 | AE183: 0 | AF183: 0 | AG183: 0 | AH183: 0 | AK183: ADP-glucose_3
A184: ADP-glucose_4 | B184: 0 | C184: 0 | D184: 0 | E184: 0 | F184: 0 | G184: 0 | H184: 0 | J184: 0 | K184: 0 | L184: 0 | M184: 0 | N184: 0 | O184: 0 | P184: 0 | S184: ADP-glucose_4 | T184: 0 | U184: 0 | V184: 0 | W184: 0 | X184: 0 | Y184: 0 | Z184: 0 | AB184: 0 | AC184: 0 | AD184: 0 | AE184: 0 | AF184: 0 | AG184: 0 | AH184: 0 | AK184: ADP-glucose_4
A185: ADP-glucose_5 | B185: 0 | C185: 0 | D185: 0 | E185: 0 | F185: 0 | G185: 0 | H185: 0 | J185: 0 | K185: 0 | L185: 0 | M185: 0 | N185: 0 | O185: 0 | P185: 0 | S185: ADP-glucose_5 | T185: 0 | U185: 0 | V185: 0 | W185: 0 | X185: 0 | Y185: 0 | Z185: 0 | AB185: 0 | AC185: 0 | AD185: 0 | AE185: 0 | AF185: 0 | AG185: 0 | AH185: 0 | AK185: ADP-glucose_5
A186: ADP-glucose_6 | B186: 0 | C186: 0 | D186: 0 | E186: 0 | F186: 0 | G186: 0 | H186: 0 | J186: 0 | K186: 0 | L186: 0 | M186: 0 | N186: 0 | O186: 0 | P186: 0 | S186: ADP-glucose_6 | T186: 0 | U186: 0 | V186: 0 | W186: 0 | X186: 0 | Y186: 0 | Z186: 0 | AB186: 0 | AC186: 0 | AD186: 0 | AE186: 0 | AF186: 0 | AG186: 0 | AH186: 0 | AK186: ADP-glucose_6
A187: ADP-glucose_7 | B187: 0 | C187: 0 | D187: 0 | E187: 0 | F187: 0 | G187: 0 | H187: 0 | J187: 0 | K187: 0 | L187: 0 | M187: 0 | N187: 0 | O187: 0 | P187: 0 | S187: ADP-glucose_7 | T187: 0 | U187: 0 | V187: 0 | W187: 0 | X187: 0 | Y187: 0 | Z187: 0 | AB187: 0 | AC187: 0 | AD187: 0 | AE187: 0 | AF187: 0 | AG187: 0 | AH187: 0 | AK187: ADP-glucose_7
A188: ADP-glucose_8 | B188: 0 | C188: 0 | D188: 0 | E188: 0 | F188: 0 | G188: 0 | H188: 0 | J188: 0 | K188: 0 | L188: 0 | M188: 0 | N188: 0 | O188: 0 | P188: 0 | S188: ADP-glucose_8 | T188: 0 | U188: 0 | V188: 0 | W188: 0 | X188: 0 | Y188: 0 | Z188: 0 | AB188: 0 | AC188: 0 | AD188: 0 | AE188: 0 | AF188: 0 | AG188: 0 | AH188: 0 | AK188: ADP-glucose_8
A189: ADP-glucose_9 | B189: 0 | C189: 0 | D189: 0 | E189: 0 | F189: 0 | G189: 0 | H189: 0 | J189: 0 | K189: 0 | L189: 0 | M189: 0 | N189: 0 | O189: 0 | P189: 0 | S189: ADP-glucose_9 | T189: 0 | U189: 0 | V189: 0 | W189: 0 | X189: 0 | Y189: 0 | Z189: 0 | AB189: 0 | AC189: 0 | AD189: 0 | AE189: 0 | AF189: 0 | AG189: 0 | AH189: 0 | AK189: ADP-glucose_9
A190: ADP-glucose_10 | B190: 0 | C190: 0 | D190: 0 | E190: 0 | F190: 0 | G190: 0 | H190: 0 | J190: 0 | K190: 0 | L190: 0 | M190: 0 | N190: 0 | O190: 0 | P190: 0 | S190: ADP-glucose_10 | T190: 0 | U190: 0 | V190: 0 | W190: 0 | X190: 0 | Y190: 0 | Z190: 0 | AB190: 0 | AC190: 0 | AD190: 0 | AE190: 0 | AF190: 0 | AG190: 0 | AH190: 0 | AK190: ADP-glucose_10
A191: ADP-glucose_11 | B191: 0 | C191: 0 | D191: 0 | E191: 0 | F191: 0 | G191: 0 | H191: 0 | J191: 0 | K191: 0 | L191: 0 | M191: 0 | N191: 0 | O191: 0 | P191: 0 | S191: ADP-glucose_11 | T191: 0 | U191: 0 | V191: 0 | W191: 0 | X191: 0 | Y191: 0 | Z191: 0 | AB191: 0 | AC191: 0 | AD191: 0 | AE191: 0 | AF191: 0 | AG191: 0 | AH191: 0 | AK191: ADP-glucose_11
A192: ADP-glucose_12 | B192: 0 | C192: 0 | D192: 0 | E192: 0 | F192: 0 | G192: 0 | H192: 0 | J192: 0 | K192: 0 | L192: 0 | M192: 0 | N192: 0 | O192: 0 | P192: 0 | S192: ADP-glucose_12 | T192: 0 | U192: 0 | V192: 0 | W192: 0 | X192: 0 | Y192: 0 | Z192: 0 | AB192: 0 | AC192: 0 | AD192: 0 | AE192: 0 | AF192: 0 | AG192: 0 | AH192: 0 | AK192: ADP-glucose_12
A193: ADP-glucose_13 | B193: 0 | C193: 0 | D193: 0 | E193: 0 | F193: 0 | G193: 0 | H193: 0 | J193: 0 | K193: 0 | L193: 0 | M193: 0 | N193: 0 | O193: 0 | P193: 0 | S193: ADP-glucose_13 | T193: 0 | U193: 0 | V193: 0 | W193: 0 | X193: 0 | Y193: 0 | Z193: 0 | AB193: 0 | AC193: 0 | AD193: 0 | AE193: 0 | AF193: 0 | AG193: 0 | AH193: 0 | AK193: ADP-glucose_13
A194: ADP-glucose_14 | B194: 0 | C194: 0 | D194: 0 | E194: 0 | F194: 0 | G194: 0 | H194: 0 | J194: 0 | K194: 0 | L194: 0 | M194: 0 | N194: 0 | O194: 0 | P194: 0 | S194: ADP-glucose_14 | T194: =B194/B$1659 -> 0 | U194: =C194/C$1659 -> 0 | V194: =D194/D$1659 -> 0 | W194: =E194/E$1659 -> 0 | X194: =F194/F$1659 -> 0 | Y194: =G194/G$1659 -> 0 | Z194: =H194/H$1659 -> 0 | AB194: =J194/J$1659 -> 0 | AC194: =K194/K$1659 -> 0 | AD194: =L194/L$1659 -> 0 | AE194: =M194/M$1659 -> 0 | AF194: =N194/N$1659 -> 0 | AG194: =O194/O$1659 -> 0 | AH194: =P194/P$1659 -> 0 | AK194: ADP-glucose_14
A195: ADP-glucose_15 | B195: 0 | C195: 0 | D195: 0 | E195: 0 | F195: 0 | G195: 0 | H195: 0 | J195: 0 | K195: 0 | L195: 0 | M195: 0 | N195: 0 | O195: 0 | P195: 0 | S195: ADP-glucose_15 | T195: 0 | U195: 0 | V195: 0 | W195: 0 | X195: 0 | Y195: 0 | Z195: 0 | AB195: 0 | AC195: 0 | AD195: 0 | AE195: 0 | AF195: 0 | AG195: 0 | AH195: 0 | AK195: ADP-glucose_15
A196: ADP-glucose_16 | B196: 0 | C196: 0 | D196: 0 | E196: 0 | F196: 0 | G196: 0 | H196: 0 | J196: 0 | K196: 0 | L196: 0 | M196: 0 | N196: 0 | O196: 0 | P196: 0 | S196: ADP-glucose_16 | T196: 0 | U196: 0 | V196: 0 | W196: 0 | X196: 0 | Y196: 0 | Z196: 0 | AB196: 0 | AC196: 0 | AD196: 0 | AE196: 0 | AF196: 0 | AG196: 0 | AH196: 0 | AK196: ADP-glucose_16
A197: ADP_1 | B197: 0 | C197: 0 | D197: 0 | E197: 0 | F197: 0 | G197: 0 | H197: 0 | J197: 0 | K197: 0 | L197: 0 | M197: 0 | N197: 0 | O197: 0 | P197: 0 | S197: ADP_1 | T197: 0 | U197: 0 | V197: 0 | W197: 0 | X197: 0 | Y197: 0 | Z197: 0 | AB197: 0 | AC197: 0 | AD197: 0 | AE197: 0 | AF197: 0 | AG197: 0 | AH197: 0 | AK197: ADP_1
A198: ADP_2 | B198: 0 | C198: 0 | D198: 0 | E198: 0 | F198: 0 | G198: 0 | H198: 0 | J198: 0 | K198: 0 | L198: 0 | M198: 0 | N198: 0 | O198: 0 | P198: 0 | S198: ADP_2 | T198: 0 | U198: 0 | V198: 0 | W198: 0 | X198: 0 | Y198: 0 | Z198: 0 | AB198: 0 | AC198: 0 | AD198: 0 | AE198: 0 | AF198: 0 | AG198: 0 | AH198: 0 | AK198: ADP_2
A199: ADP_3 | B199: 151491.5224 | C199: 124166.9911 | D199: 136208.3212 | E199: 140786.355 | F199: 90341.00513 | G199: 150601.8381 | H199: 133704.4633 | J199: 142360.5671 | K199: 140683.9412 | L199: 120509.1272 | M199: 131827.3559 | N199: 102805.4374 | O199: 97233.17217 | P199: 94372.35067 | S199: ADP_3 | T199: 0.003298264313 | U199: 0.002521777955 | V199: 0.002160169216 | W199: 0.002107454348 | X199: 0.002023970171 | Y199: 0.003632735984 | Z199: 0.003031354465 | AB199: 0.003125575197 | AC199: 0.00319465804 | AD199: 0.001965924725 | AE199: 0.002987593162 | AF199: 0.002752090875 | AG199: 0.002358044112 | AH199: 0.002774258331 | AK199: ADP_3 | AL199: 1.229664815 | AM199: 0.9401737787 | AN199: 0.8053581604 | AO199: 0.7857049084 | AP199: 0.7545801879 | AQ199: 1.354363143 | AR199: 1.130155007 | AT199: 1.165282549 | AU199: 1.191038138 | AV199: 0.7329395808 | AW199: 1.113839839 | AX199: 1.026039454 | AY199: 0.8791302336 | AZ199: 1.034303965
A200: ADP_4 | B200: 59324.56601 | C200: 59008.33726 | D200: 62258.44454 | E200: 62258.08328 | F200: 47605.95823 | G200: 60308.57887 | H200: 56855.30703 | J200: 66456.9767 | K200: 63256.65141 | L200: 64645.41298 | M200: 60065.46089 | N200: 46965.48327 | O200: 47012.78477 | P200: 37609.47725 | S200: ADP_4 | T200: 0.001291610883 | U200: 0.001198433841 | V200: 0.0009873756186 | W200: 0.0009319515963 | X200: 0.001066548233 | Y200: 0.001454730881 | Z200: 0.001289026443 | AB200: 0.001459085773 | AC200: 0.001436435234 | AD200: 0.001054592451 | AE200: 0.00136125889 | AF200: 0.001257261107 | AG200: 0.00114012757 | AH200: 0.001105603546 | AK200: ADP_4 | AL200: 1.0999551 | AM200: 1.020604141 | AN200: 0.8408638093 | AO200: 0.793663885 | AP200: 0.9082883891 | AQ200: 1.238870524 | AR200: 1.097754152 | AT200: 1.242579215 | AU200: 1.223289678 | AV200: 0.8981066665 | AW200: 1.159268382 | AX200: 1.070702318 | AY200: 0.9709496502 | AZ200: 0.9415484767
... 1458 more rows

Sheet d6 Isotope Sums Batch 1
A1: Compound | B1: NTC_1 | C1: NTC_2 | D1: NTC_3 | F1: Pkm2_1 | G1: Pkm2_2 | H1: Pkm2_3 | J1: NORMALIZED BY SUM | K1: Compound | L1: NTC_1 | M1: NTC_2 | N1: NTC_3 | P1: Pkm2_1 | Q1: Pkm2_2 | R1: Pkm2_3 | T1: FOLD OF NTC | U1: Compound | V1: NTC_1 | W1: NTC_2 | X1: NTC_3 | Z1: Pkm2_1 | AA1: Pkm2_2 | AB1: Pkm2_3
A2: 1-Methyladenosine | B2: 0 | C2: 0 | D2: 0 | F2: 0 | G2: 0 | H2: 0 | K2: 1-Methyladenosine | L2: =B2/B$206 -> 0 | M2: =C2/C$206 -> 0 | N2: =D2/D$206 -> 0 | P2: =F2/F$206 -> 0 | Q2: =G2/G$206 -> 0 | R2: =H2/H$206 -> 0 | U2: 1-Methyladenosine | V2: =L2/AVERAGE($L2:$N2) ->  | W2: =M2/AVERAGE($L2:$N2) ->  | X2: =N2/AVERAGE($L2:$N2) ->  | Z2: =P2/AVERAGE($L2:$N2) -> 
A3: 1-Methylnicotinamide | B3: 0 | C3: 0 | D3: 0 | F3: 0 | G3: 0 | H3: 0 | K3: 1-Methylnicotinamide | L3: 0 | M3: 0 | N3: 0 | P3: 0 | Q3: 0 | R3: 0 | U3: 1-Methylnicotinamide
A4: 2-Hydroxycaproic acid | B4: 0 | C4: 0 | D4: 0 | F4: 0 | G4: 0 | H4: 0 | K4: 2-Hydroxycaproic acid | L4: 0 | M4: 0 | N4: 0 | P4: 0 | Q4: 0 | R4: 0 | U4: 2-Hydroxycaproic acid
A5: 2-Hydroxyvaleric acid | B5: 0 | C5: 0 | D5: 0 | F5: 0 | G5: 0 | H5: 0 | K5: 2-Hydroxyvaleric acid | L5: 0 | M5: 0 | N5: 0 | P5: 0 | Q5: 0 | R5: 0 | U5: 2-Hydroxyvaleric acid
A6: 3-Hydroxymethylglutaric acid | B6: 2952863.84 | C6: 3062700.328 | D6: 2894000.155 | F6: 1995010.745 | G6: 1941381.068 | H6: 1826010.774 | K6: 3-Hydroxymethylglutaric acid | L6: 0.008420171441 | M6: 0.009609957815 | N6: 0.01015669641 | P6: 0.006765855581 | Q6: 0.008282598805 | R6: 0.008193482842 | U6: 3-Hydroxymethylglutaric acid | V6: 0.8961815927 | W6: 1.022813771 | X6: 1.081004637 | Z6: 0.7201082868 | AA6: 0.8815393654 | AB6: 0.8720545128
A7: 3-Indolepropionic acid | B7: 0 | C7: 0 | D7: 0 | F7: 0 | G7: 0 | H7: 0 | K7: 3-Indolepropionic acid | L7: 0 | M7: 0 | N7: 0 | P7: 0 | Q7: 0 | R7: 0 | U7: 3-Indolepropionic acid
A8: 3-Methylhistidine | B8: 0 | C8: 0 | D8: 0 | F8: 0 | G8: 0 | H8: 0 | K8: 3-Methylhistidine | L8: 0 | M8: 0 | N8: 0 | P8: 0 | Q8: 0 | R8: 0 | U8: 3-Methylhistidine
A9: 3-Phosphoglyceric acid | B9: 986378.1929 | C9: 1022065.121 | D9: 1540247.431 | F9: 2440151.322 | G9: 1766958.983 | H9: 2763559.216 | K9: 3-Phosphoglyceric acid | L9: 0.002812684208 | M9: 0.003206974775 | N9: 0.005405606329 | P9: 0.008275500011 | Q9: 0.007538454248 | R9: 0.01240035127 | U9: 3-Phosphoglyceric acid | V9: 0.7385432542 | W9: 0.8420744781 | X9: 1.419382268 | Z9: 2.172947354 | AA9: 1.979416856 | AB9: 3.256034132
A10: 4-Acetamidobutanoic acid | B10: 0 | C10: 0 | D10: 0 | F10: 0 | G10: 0 | H10: 0 | K10: 4-Acetamidobutanoic acid | L10: 0 | M10: 0 | N10: 0 | P10: 0 | Q10: 0 | R10: 0 | U10: 4-Acetamidobutanoic acid
A11: 4-Guanidinobutanoic acid | B11: 0 | C11: 0 | D11: 0 | F11: 0 | G11: 0 | H11: 0 | K11: 4-Guanidinobutanoic acid | L11: 0 | M11: 0 | N11: 0 | P11: 0 | Q11: 0 | R11: 0 | U11: 4-Guanidinobutanoic acid
A12: 4-Hydroxyproline | B12: 0 | C12: 15029.07723 | D12: 0 | F12: 0 | G12: 0 | H12: 0 | K12: 4-Hydroxyproline | L12: 0 | M12: 4.715733917e-05 | N12: 0 | P12: 0 | Q12: 0 | R12: 0 | U12: 4-Hydroxyproline | V12: 0 | W12: 3 | X12: 0 | Z12: 0 | AA12: 0 | AB12: 0
A13: 4-Pyridoxic acid | B13: 0 | C13: 0 | D13: 0 | F13: 0 | G13: 0 | H13: 0 | K13: 4-Pyridoxic acid | L13: 0 | M13: 0 | N13: 0 | P13: 0 | Q13: 0 | R13: 0 | U13: 4-Pyridoxic acid
A14: 4-Trimethylammoniobutanoic acid | B14: 0 | C14: 0 | D14: 0 | F14: 0 | G14: 0 | H14: 0 | K14: 4-Trimethylammoniobutanoic acid | L14: 0 | M14: 0 | N14: 0 | P14: 0 | Q14: 0 | R14: 0 | U14: 4-Trimethylammoniobutanoic acid
A15: 5-Thymidylic acid | B15: 753056.3466 | C15: 811612.5668 | D15: 427817.5938 | F15: 262906.5337 | G15: 83008.4426 | H15: 340965.1933 | K15: 5-Thymidylic acid | L15: 0.002147360626 | M15: 0.002546629345 | N15: 0.001501455835 | P15: 0.0008916180743 | Q15: 0.0003541425426 | R15: 0.001529943033 | U15: 5-Thymidylic acid | V15: 1.039809253 | W15: 1.23314581 | X15: 0.7270449371 | Z15: 0.4317452378 | AA15: 0.1714852588 | AB15: 0.7408391975
A16: 6-Phosphogluconic acid | B16: 32491.04986 | C16: 28401.73142 | D16: 33891.89009 | F16: 44921.11061 | G16: 26653.72317 | H16: 28718.83056 | K16: 6-Phosphogluconic acid | L16: 9.264911114e-05 | M16: 8.911725328e-05 | N16: 0.0001189459641 | P16: 0.0001523449173 | Q16: 0.0001137139428 | R16: 0.0001288641058 | U16: 6-Phosphogluconic acid | V16: 0.9242964357 | W16: 0.8890615199 | X16: 1.186642044 | Z16: 1.519840421 | AA16: 1.134445768 | AB16: 1.28558852
A17: 6-Phosphonoglucono-D-lactone | B17: 0 | C17: 0 | D17: 0 | F17: 0 | G17: 0 | H17: 0 | K17: 6-Phosphonoglucono-D-lactone | L17: 0 | M17: 0 | N17: 0 | P17: 0 | Q17: 0 | R17: 0 | U17: 6-Phosphonoglucono-D-lactone
A18: Acetylcholine | B18: 0 | C18: 0 | D18: 0 | F18: 0 | G18: 0 | H18: 0 | K18: Acetylcholine | L18: 0 | M18: 0 | N18: 0 | P18: 0 | Q18: 0 | R18: 0 | U18: Acetylcholine | Z18: =P18/AVERAGE($L18:$N18) -> 
A19: Acetyl-CoA | B19: 37241.32516 | C19: 30033.06783 | D19: 51013.73097 | F19: 14868.7653 | G19: 0 | H19: 31565.63771 | K19: Acetyl-CoA | L19: 0.0001061946502 | M19: 9.423596305e-05 | N19: 0.0001790362649 | P19: 5.042575281e-05 | Q19: 0 | R19: 0.0001416379984 | U19: Acetyl-CoA | V19: 0.8395566753 | W19: 0.7450133474 | X19: 1.415429977 | Z19: 0.3986573457 | AA19: 0 | AB19: 1.119765702
A20: Acetylcysteine | B20: 14009.07669 | C20: 14940.71849 | D20: 12690.18758 | F20: 0 | G20: 10019.15522 | H20: 0 | K20: Acetylcysteine | L20: 3.994726267e-05 | M20: 4.688009241e-05 | N20: 4.453710291e-05 | P20: 0 | Q20: 4.274515933e-05 | R20: 0 | U20: Acetylcysteine | V20: 0.9122847218 | W20: 1.070611331 | X20: 1.017103947 | Z20: 0 | AA20: 0.9761809241 | AB20: 0
A21: Adenine | B21: 171736.7321 | C21: 146052.1926 | D21: 122313.9387 | F21: 31147.61857 | G21: 29592.93212 | H21: 43951.99639 | K21: Adenine | L21: 0.0004897119559 | M21: 0.00045827383 | N21: 0.0004292693422 | P21: 0.0001056336611 | Q21: 0.0001262536182 | R21: 0.0001972167599 | U21: Adenine | V21: 1.066712941 | W21: 0.9982329794 | X21: 0.9350540799 | Z21: 0.2300960635 | AA21: 0.2750113955 | AB21: 0.4295865505
A22: Adenosine monophosphate | B22: 10508233.21 | C22: 9232243.13 | D22: 10113637.37 | F22: 1668449.27 | G22: 2148113.929 | H22: 3169298.879 | K22: Adenosine monophosphate | L22: 0.0299645124 | M22: 0.02896838003 | N22: 0.03549451933 | P22: 0.005658358901 | Q22: 0.009164592236 | R22: 0.01422094347 | U22: Adenosine monophosphate | V22: 0.9519856101 | W22: 0.9203380509 | X22: 1.127676339 | Z22: 0.1797685268 | AA22: 0.291163087 | AB22: 0.4518055681
A23: Adenosine triphosphate | B23: 2468772.531 | C23: 1977645.592 | D23: 2482974.388 | F23: 2871282.309 | G23: 2637603.583 | H23: 2020086.656 | K23: Adenosine triphosphate | L23: 0.007039771926 | M23: 0.006205337995 | N23: 0.008714172671 | P23: 0.009737632486 | Q23: 0.01125292332 | R23: 0.009064319662 | U23: Adenosine triphosphate | V23: 0.9617488955 | W23: 0.8477514649 | X23: 1.19049964 | Z23: 1.330321122 | AA23: 1.537334829 | AB23: 1.238335491
A24: Adenosine | B24: 768849.1031 | C24: 524191.763 | D24: 825029.7968 | F24: 143026.1966 | G24: 314075.908 | H24: 577729.8849 | K24: Adenosine | L24: 0.0021923941 | M24: 0.001644777546 | N24: 0.002895499907 | P24: 0.0004850573327 | Q24: 0.001339955758 | R24: 0.002592328571 | U24: Adenosine | V24: 0.9769052669 | W24: 0.7328937108 | X24: 1.290201022 | Z24: 0.216135896 | AA24: 0.5970686736 | AB24: 1.155111407
A25: ADP | B25: 5771137.917 | C25: 5418541.302 | D25: 5486360.405 | F25: 2481238.152 | G25: 2591606.448 | H25: 3111032.179 | K25: ADP | L25: 0.01645655652 | M25: 0.01700197465 | N25: 0.01925476644 | P25: 0.008414841395 | Q25: 0.01105668373 | R25: 0.01395949528 | U25: ADP | V25: 0.9365695527 | W25: 0.9676101907 | X25: 1.095820257 | Z25: 0.4789023896 | AA25: 0.6292539588 | AB25: 0.7944577126
A26: ADP-glucose | B26: 105317.3664 | C26: 92803.84878 | D26: 106052.7827 | F26: 84461.27884 | G26: 62604.69981 | H26: 77085.05043 | K26: ADP-glucose | L26: 0.0003003153307 | M26: 0.0002911943633 | N26: 0.0003721996752 | P26: 0.000286440971 | Q26: 0.0002670931639 | R26: 0.0003458879034 | U26: ADP-glucose | V26: 0.9348731276 | W26: 0.9064798142 | X26: 1.158647058 | Z26: 0.8916826386 | AA26: 0.8314534625 | AB26: 1.076739257
A27: AICAR | B27: 0 | C27: 0 | D27: 0 | F27: 0 | G27: 0 | H27: 0 | K27: AICAR | L27: 0 | M27: 0 | N27: 0 | P27: 0 | Q27: 0 | R27: 0 | U27: AICAR
A28: Allantoin | B28: 0 | C28: 0 | D28: 0 | F28: 0 | G28: 0 | H28: 0 | K28: Allantoin | L28: 0 | M28: 0 | N28: 0 | P28: 0 | Q28: 0 | R28: 0 | U28: Allantoin
A29: Aminoadipic acid | B29: 0 | C29: 0 | D29: 0 | F29: 0 | G29: 0 | H29: 0 | K29: Aminoadipic acid | L29: 0 | M29: 0 | N29: 0 | P29: 0 | Q29: 0 | R29: 0 | U29: Aminoadipic acid
A30: Anserine | B30: 0 | C30: 0 | D30: 0 | F30: 0 | G30: 0 | H30: 0 | K30: Anserine | L30: 0 | M30: 0 | N30: 0 | P30: 0 | Q30: 0 | R30: 0 | U30: Anserine
A31: Argininosuccinic acid | B31: 126831.7234 | C31: 101270.9812 | D31: 59642.24804 | F31: 110309.0899 | G31: 63955.48934 | H31: 27784.03794 | K31: Argininosuccinic acid | L31: 0.0003616641041 | M31: 0.0003177620248 | N31: 0.0002093186504 | P31: 0.0003741009284 | Q31: 0.0002728560963 | R31: 0.000124669603 | U31: Argininosuccinic acid | V31: 1.220814274 | W31: 1.07262073 | X31: 0.7065649957 | Z31: 1.262795362 | AA31: 0.9210386466 | AB31: 0.420828136
A32: Ascorbic acid | B32: 0 | C32: 0 | D32: 0 | F32: 0 | G32: 0 | H32: 0 | K32: Ascorbic acid | L32: 0 | M32: 0 | N32: 0 | P32: 0 | Q32: 0 | R32: 0 | U32: Ascorbic acid
A33: Asymmetric dimethylarginine | B33: 0 | C33: 0 | D33: 0 | F33: 0 | G33: 0 | H33: 0 | K33: Asymmetric dimethylarginine | L33: 0 | M33: 0 | N33: 0 | P33: 0 | Q33: 0 | R33: 0 | U33: Asymmetric dimethylarginine
A34: Betaine | B34: 0 | C34: 0 | D34: 0 | F34: 0 | G34: 0 | H34: 0 | K34: Betaine | L34: 0 | M34: 0 | N34: 0 | P34: 0 | Q34: 0 | R34: 0 | U34: Betaine
A35: Butyrylcarnitine | B35: 144600.9057 | C35: 142325.4567 | D35: 134480.1051 | F35: 130487.9158 | G35: 111361.805 | H35: 114921.5666 | K35: Butyrylcarnitine | L35: 0.00041233341 | M35: 0.000446580301 | N35: 0.0004719673558 | P35: 0.0004425351573 | Q35: 0.0004751077305 | R35: 0.0005156639258 | U35: Butyrylcarnitine | V35: 0.9294596345 | W35: 1.006657121 | X35: 1.063883245 | Z35: 0.9975387771 | AA35: 1.070962107 | AB35: 1.162381685
A36: Caprylic acid | B36: 0 | C36: 0 | D36: 0 | F36: 0 | G36: 0 | H36: 0 | K36: Caprylic acid | L36: 0 | M36: 0 | N36: 0 | P36: 0 | Q36: 0 | R36: 0 | U36: Caprylic acid
A37: Carnosine | B37: 24490.55098 | C37: 0 | D37: 0 | F37: 0 | G37: 0 | H37: 0 | K37: Carnosine | L37: 6.983547129e-05 | M37: 0 | N37: 0 | P37: 0 | Q37: 0 | R37: 0 | U37: Carnosine | V37: 3 | W37: 0 | X37: 0 | Z37: 0 | AA37: 0 | AB37: 0
A38: CDP | B38: 304139.2182 | C38: 287254.3585 | D38: 402634.0455 | F38: 125823.154 | G38: 173334.1695 | H38: 228964.7393 | K38: CDP | L38: 0.0008672612413 | M38: 0.0009013295367 | N38: 0.001413072407 | P38: 0.0004267151398 | Q38: 0.0007395031346 | R38: 0.001027386415 | U38: CDP | V38: 0.8177432909 | W38: 0.8498663914 | X38: 1.332390318 | Z38: 0.4023510173 | AA38: 0.6972797793 | AB38: 0.9687258096
A39: CDP-Ethanolamine | B39: 497456.444 | C39: 418825.6664 | D39: 321486.4701 | F39: 297664.3576 | G39: 280443.3687 | H39: 269701.1105 | K39: CDP-Ethanolamine | L39: 0.001418510561 | M39: 0.001314166113 | N39: 0.001128279303 | P39: 0.001009495343 | Q39: 0.001196467787 | R39: 0.001210174361 | U39: CDP-Ethanolamine | V39: 1.102196375 | W39: 1.021119734 | X39: 0.8766838908 | Z39: 0.784387609 | AA39: 0.9296670003 | AB39: 0.9403171401
A40: Choline | B40: 0 | C40: 0 | D40: 0 | F40: 0 | G40: 0 | H40: 0 | K40: Choline | L40: 0 | M40: 0 | N40: 0 | P40: 0 | Q40: 0 | R40: 0 | U40: Choline
A41: cis-Aconitic acid | B41: 2415666.889 | C41: 2042792.899 | D41: 2569450.081 | F41: 1884262.638 | G41: 2306757.115 | H41: 2504605.365 | K41: cis-Aconitic acid | L41: 0.006888339744 | M41: 0.006409753316 | N41: 0.009017665178 | P41: 0.006390265776 | Q41: 0.009841418586 | R41: 0.01123840088 | U41: cis-Aconitic acid | V41: 0.9260281014 | W41: 0.8616897415 | X41: 1.212282157 | Z41: 0.8590699506 | AA41: 1.323022747 | AB41: 1.510824874
A42: Citicoline | B42: 870362.1943 | C42: 813864.1248 | D42: 701134.3004 | F42: 303290.441 | G42: 346034.5025 | H42: 644542.8765 | K42: Citicoline | L42: 0.002481861437 | M42: 0.002553694149 | N42: 0.002460679977 | P42: 0.001028575575 | Q42: 0.001476302105 | R42: 0.002892124776 | U42: Citicoline | V42: 0.9932431082 | W42: 1.021990622 | X42: 0.9847662696 | Z42: 0.4116368407 | AA42: 0.590817388 | AB42: 1.157430854
A43: Citric acid | B43: 22482076.49 | C43: 20790309.25 | D43: 20936539.89 | F43: 20813403.73 | G43: 22024770.85 | H43: 20802259.14 | K43: Citric acid | L43: 0.06410825173 | M43: 0.06523458826 | N43: 0.0734782544 | P43: 0.07058632849 | Q43: 0.0939652414 | R43: 0.0933417019 | U43: Citric acid | V43: 0.9482482864 | W43: 0.9649083365 | X43: 1.086843377 | Z43: 1.044067857 | AA43: 1.389873795 | AB43: 1.380650797
A44: Citrulline | B44: 0 | C44: 0 | D44: 0 | F44: 0 | G44: 0 | H44: 0 | K44: Citrulline | L44: 0 | M44: 0 | N44: 0 | P44: 0 | Q44: 0 | R44: 0 | U44: Citrulline
A45: Coenzyme A | B45: 23748.32433 | C45: 10165.40954 | D45: 0 | F45: 22185.52569 | G45: 12474.03344 | H45: 0 | K45: Coenzyme A | L45: 6.771899185e-05 | M45: 3.189641375e-05 | N45: 0 | P45: 7.523972651e-05 | Q45: 5.321851346e-05 | R45: 0 | U45: Coenzyme A | V45: 2.039413225 | W45: 0.9605867755 | X45: 0 | Z45: 2.265906344 | AA45: 1.602719373 | AB45: 0
A46: Creatine | B46: 0 | C46: 0 | D46: 0 | F46: 0 | G46: 10001.65266 | H46: 0 | K46: Creatine | L46: 0 | M46: 0 | N46: 0 | P46: 0 | Q46: 4.267048738e-05 | R46: 0 | U46: Creatine
A47: Creatinine | B47: 0 | C47: 0 | D47: 0 | F47: 0 | G47: 0 | H47: 0 | K47: Creatinine | L47: 0 | M47: 0 | N47: 0 | P47: 0 | Q47: 0 | R47: 0 | U47: Creatinine
A48: Cyclic AMP | B48: 0 | C48: 0 | D48: 0 | F48: 0 | G48: 0 | H48: 0 | K48: Cyclic AMP | L48: 0 | M48: 0 | N48: 0 | P48: 0 | Q48: 0 | R48: 0 | U48: Cyclic AMP
A49: Cytidine monophosphate | B49: 501949.0345 | C49: 434255.8069 | D49: 458812.7764 | F49: 98528.88519 | G49: 120797.0282 | H49: 189485.5334 | K49: Cytidine monophosphate | L49: 0.001431321305 | M49: 0.001362581885 | N49: 0.001610235602 | P49: 0.000334149683 | Q49: 0.0005153616351 | R49: 0.000850239489 | U49: Cytidine monophosphate | V49: 0.9749837865 | W49: 0.928160044 | X49: 1.09685617 | Z49: 0.2276152266 | AA49: 0.3510527207 | AB49: 0.5791639609
A50: Cytidine triphosphate | B50: 125883.0216 | C50: 110887.1875 | D50: 180643.0661 | F50: 141304.0888 | G50: 140635.5942 | H50: 158645.44 | K50: Cytidine triphosphate | L50: 0.0003589588551 | M50: 0.0003479351814 | N50: 0.0006339795035 | P50: 0.000479216997 | Q50: 0.0005999997754 | R50: 0.0007118570765 | U50: Cytidine triphosphate | V50: 0.8031156803 | W50: 0.7784518921 | X50: 1.418432428 | Z50: 1.072174928 | AA50: 1.34240797 | AB50: 1.592671617
A51: Cytidine | B51: 687293.6133 | C51: 583512.2833 | D51: 372547.331 | F51: 91503.20211 | G51: 42109.64863 | H51: 107620.3002 | K51: Cytidine | L51: 0.001959836406 | M51: 0.001830909925 | N51: 0.001307480974 | P51: 0.0003103228654 | Q51: 0.0001796542323 | R51: 0.0004829024539 | U51: Cytidine | V51: 1.153245798 | W51: 1.077380322 | X51: 0.7693738797 | Z51: 0.1826063336 | AA51: 0.1057157056 | AB51: 0.2841590371
A52: Cytosine | B52: 63865.89967 | C52: 49583.86222 | D52: 23459.10478 | F52: 0 | G52: 0 | H52: 0 | K52: Cytosine | L52: 0.0001821153475 | M52: 0.0001555812758 | N52: 8.233137271e-05 | P52: 0 | Q52: 0 | R52: 0 | U52: Cytosine | V52: 1.300737208 | W52: 1.111220756 | X52: 0.5880420364 | Z52: 0 | AA52: 0 | AB52: 0
A53: D-2-Hydroxyglutaric acid | B53: 159829.4743 | C53: 200725.8741 | D53: 125230.9352 | F53: 236839.7694 | G53: 149655.9653 | H53: 119686.8334 | K53: D-2-Hydroxyglutaric acid | L53: 0.0004557580871 | M53: 0.0006298256363 | N53: 0.0004395067459 | P53: 0.0008032155617 | Q53: 0.0006384837782 | R53: 0.0005370461279 | U53: D-2-Hydroxyglutaric acid | V53: 0.8965201007 | W53: 1.238927753 | X53: 0.8645521458 | Z53: 1.580002455 | AA53: 1.255959153 | AB53: 1.056421515
A54: dCDP | B54: 12080.23302 | C54: 12110.06416 | D54: 11588.57086 | F54: 0 | G54: 0 | H54: 0 | K54: dCDP | L54: 3.444711256e-05 | M54: 3.799823464e-05 | N54: 4.06709018e-05 | P54: 0 | Q54: 0 | R54: 0 | U54: dCDP | V54: 0.9135852594 | W54: 1.007765948 | X54: 1.078648792 | Z54: 0 | AA54: 0 | AB54: 0
A55: dCMP | B55: 0 | C55: 0 | D55: 0 | F55: 0 | G55: 0 | H55: 0 | K55: dCMP | L55: 0 | M55: 0 | N55: 0 | P55: 0 | Q55: 0 | R55: 0 | U55: dCMP
A56: dCTP | B56: 0 | C56: 0 | D56: 0 | F56: 0 | G56: 0 | H56: 0 | K56: dCTP | L56: 0 | M56: 0 | N56: 0 | P56: 0 | Q56: 0 | R56: 0 | U56: dCTP
A57: Deoxyadenosine monophosphate | B57: 83604.79177 | C57: 46035.17292 | D57: 43452.0072 | F57: 0 | G57: 0 | H57: 0 | K57: Deoxyadenosine monophosphate | L57: 0.0002384013345 | M57: 0.0001444464108 | N57: 0.0001524978653 | P57: 0 | Q57: 0 | R57: 0 | U57: Deoxyadenosine monophosphate | V57: 1.335966877 | W57: 0.8094569637 | X57: 0.8545761593 | Z57: 0 | AA57: 0 | AB57: 0
A58: Deoxyadenosine triphosphate | B58: 0 | C58: 0 | D58: 0 | F58: 0 | G58: 0 | H58: 0 | K58: Deoxyadenosine triphosphate | L58: 0 | M58: 0 | N58: 0 | P58: 0 | Q58: 0 | R58: 0 | U58: Deoxyadenosine triphosphate
A59: Deoxyadenosine | B59: 0 | C59: 0 | D59: 0 | F59: 0 | G59: 0 | H59: 0 | K59: Deoxyadenosine | L59: 0 | M59: 0 | N59: 0 | P59: 0 | Q59: 0 | R59: 0 | U59: Deoxyadenosine
A60: Deoxyinosine | B60: 0 | C60: 0 | D60: 0 | F60: 0 | G60: 0 | H60: 0 | K60: Deoxyinosine | L60: 0 | M60: 0 | N60: 0 | P60: 0 | Q60: 0 | R60: 0 | U60: Deoxyinosine | Z60: =P60/AVERAGE($L60:$N60) -> 
A61: Deoxyribose 5-phosphate | B61: 47639.82823 | C61: 64457.88107 | D61: 58532.75093 | F61: 28086.63604 | G61: 38821.75736 | H61: 46690.42629 | K61: Deoxyribose 5-phosphate | L61: 0.0001358462641 | M61: 0.000202252082 | N61: 0.0002054247926 | P61: 9.52526816e-05 | Q61: 0.0001656269583 | R61: 0.0002095043535 | U61: Deoxyribose 5-phosphate | V61: 0.7498094623 | W61: 1.116339311 | X61: 1.133851227 | Z61: 0.5257513884 | AA61: 0.9141853207 | AB61: 1.156368544
A62: Deoxyuridine | B62: 204998.1467 | C62: 178278.4351 | D62: 86080.53363 | F62: 80333.68786 | G62: 11324.72668 | H62: 13666.56421 | K62: Deoxyuridine | L62: 0.0005845577833 | M62: 0.0005593914055 | N62: 0.000302105667 | P62: 0.0002724427083 | Q62: 4.831517585e-05 | R62: 6.132316467e-05 | U62: Deoxyuridine | V62: 1.212729478 | W62: 1.160519056 | X62: 0.6267514662 | Z62: 0.5652123926 | AA62: 0.1002351515 | AB62: 0.1272216564
A63: D-Erythrose 4-phosphate | B63: 0 | C63: 0 | D63: 0 | F63: 0 | G63: 0 | H63: 0 | K63: D-Erythrose 4-phosphate | L63: 0 | M63: 0 | N63: 0 | P63: 0 | Q63: 0 | R63: 0 | U63: D-Erythrose 4-phosphate
A64: D-Fructose | B64: 0 | C64: 0 | D64: 0 | F64: 0 | G64: 0 | H64: 0 | K64: D-Fructose | L64: 0 | M64: 0 | N64: 0 | P64: 0 | Q64: 0 | R64: 0 | U64: D-Fructose
A65: D-Glucose | B65: 11963346.27 | C65: 7072124.638 | D65: 17157432.16 | F65: 11572499.49 | G65: 8214885.996 | H65: 16001981.31 | K65: D-Glucose | L65: 0.03411380681 | M65: 0.02219048949 | N65: 0.0602152109 | P65: 0.03924683637 | Q65: 0.03504752676 | R65: 0.07180240182 | U65: D-Glucose | V65: 0.8783200589 | W65: 0.5713332477 | X65: 1.550346693 | Z65: 1.010478949 | AA65: 0.9023603241 | AB65: 1.848679338
A66: D-Glucuronic acid | B66: 0 | C66: 0 | D66: 0 | F66: 0 | G66: 0 | H66: 0 | K66: D-Glucuronic acid | L66: =B66/B$206 -> 0 | M66: =C66/C$206 -> 0 | N66: =D66/D$206 -> 0 | P66: =F66/F$206 -> 0 | Q66: =G66/G$206 -> 0 | R66: =H66/H$206 -> 0 | U66: D-Glucuronic acid | V66: =L66/AVERAGE($L66:$N66) ->  | W66: =M66/AVERAGE($L66:$N66) ->  | X66: =N66/AVERAGE($L66:$N66) -> 
A67: D-Glyceraldehyde 3-phosphate | B67: 860387.4542 | C67: 926905.9744 | D67: 1210496.492 | F67: 829578.5943 | G67: 677170.6296 | H67: 957674.6071 | K67: D-Glyceraldehyde 3-phosphate | L67: 0.002453418194 | M67: 0.0029083901 | N67: 0.004248322295 | P67: 0.002813422924 | Q67: 0.00288904262 | R67: 0.004297176432 | U67: D-Glyceraldehyde 3-phosphate | V67: 0.7658849705 | W67: 0.9079138123 | X67: 1.326201217 | Z67: 0.8782678543 | AA67: 0.9018740985 | AB67: 1.341452041
A68: D-Ribose 5-phosphate | B68: 525755.395 | C68: 593044.3816 | D68: 538084.1795 | F68: 638977.3882 | G68: 582849.3651 | H68: 455224.4127 | K68: D-Ribose 5-phosphate | L68: 0.001499205789 | M68: 0.001860819173 | N68: 0.001888444148 | P68: 0.002167020273 | Q68: 0.002486635692 | R68: 0.002042634944 | U68: D-Ribose 5-phosphate | V68: 0.8569389041 | W68: 1.063635396 | X68: 1.0794257 | Z68: 1.238658489 | AA68: 1.421349144 | AB68: 1.167560427
A69: D-Ribose | B69: 0 | C69: 0 | D69: 0 | F69: 0 | G69: 0 | H69: 0 | K69: D-Ribose | L69: 0 | M69: 0 | N69: 0 | P69: 0 | Q69: 0 | R69: 0 | U69: D-Ribose
A70: D-Ribulose 5-phosphate | B70: 412530.6918 | C70: 398239.7031 | D70: 412439.6844 | F70: 94353.61485 | G70: 124190.464 | H70: 198592.4315 | K70: D-Ribulose 5-phosphate | L70: 0.001176342472 | M70: 0.00124957271 | N70: 0.001447485985 | P70: 0.000319989721 | Q70: 0.0005298391984 | R70: 0.0008911030009 | U70: D-Ribulose 5-phosphate | V70: 0.9110926715 | W70: 0.9678104508 | X70: 1.121096878 | Z70: 0.2478362354 | AA70: 0.4103674076 | AB70: 0.6901709603
A71: D-Ribulose | B71: 0 | C71: 0 | D71: 0 | F71: 0 | G71: 0 | H71: 0 | K71: D-Ribulose | L71: 0 | M71: 0 | N71: 0 | P71: 0 | Q71: 0 | R71: 0 | U71: D-Ribulose
A72: D-Sedoheptulose 7-phosphate | B72: 319352.1557 | C72: 273488.8154 | D72: 302409.5368 | F72: 381236.1246 | G72: 307431.7177 | H72: 325190.8608 | K72: D-Sedoheptulose 7-phosphate | L72: 0.0009106413458 | M72: 0.0008581368393 | N72: 0.001061327468 | P72: 0.001292919634 | Q72: 0.001311609359 | R72: 0.001459162113 | U72: D-Sedoheptulose 7-phosphate | V72: 0.9653081447 | W72: 0.909651735 | X72: 1.12504012 | Z72: 1.370535018 | AA72: 1.390346707 | AB72: 1.546757215
A73: FAD | B73: 0 | C73: 0 | D73: 0 | F73: 0 | G73: 0 | H73: 0 | K73: FAD | L73: 0 | M73: 0 | N73: 0 | P73: 0 | Q73: 0 | R73: 0 | U73: FAD
A74: Flavin Mononucleotide | B74: 0 | C74: 0 | D74: 0 | F74: 0 | G74: 0 | H74: 0 | K74: Flavin Mononucleotide | L74: 0 | M74: 0 | N74: 0 | P74: 0 | Q74: 0 | R74: 0 | U74: Flavin Mononucleotide
A75: Fructose 1,6-bisphosphate | B75: 270128.5636 | C75: 255959.94 | D75: 435842.8466 | F75: 424172.6209 | G75: 262526.7752 | H75: 372866.6457 | K75: Fructose 1,6-bisphosphate | L75: 0.000770278936 | M75: 0.0008031357829 | N75: 0.001529621023 | P75: 0.001438533954 | Q75: 0.001120029442 | R75: 0.001673087863 | U75: Fructose 1,6-bisphosphate | V75: 0.7447019629 | W75: 0.7764678042 | X75: 1.478830233 | Z75: 1.390767694 | AA75: 1.082839067 | AB75: 1.617533283
A76: Fructose 6-phosphate | B76: 1015833.003 | C76: 969423.8423 | D76: 951607.6911 | F76: 799365.4676 | G76: 760897.893 | H76: 707767.4571 | K76: Fructose 6-phosphate | L76: 0.0028966754 | M76: 0.003041800122 | N76: 0.0033397339 | P76: 0.002710958487 | Q76: 0.0032462519 | R76: 0.003175819442 | U76: Fructose 6-phosphate | V76: 0.9366059555 | W76: 0.983530329 | X76: 1.079863716 | Z76: 0.8765565738 | AA76: 1.049637409 | AB76: 1.026863901
A77: Fumaric acid | B77: 774098.5651 | C77: 671386.9617 | D77: 423010.9296 | F77: 604759.5745 | G77: 419390.4466 | H77: 275937.5654 | K77: Fumaric acid | L77: 0.002207363084 | M77: 0.002106637832 | N77: 0.001484586511 | P77: 0.002050974389 | Q77: 0.001789263772 | R77: 0.001238157923 | U77: Fumaric acid | V77: 1.142017661 | W77: 1.089905702 | X77: 0.7680766374 | Z77: 1.061107251 | AA77: 0.9257067144 | AB77: 0.6405825241
A78: Galactonic acid | B78: 117862.4491 | C78: 91841.35527 | D78: 161007.0123 | F78: 111025.0956 | G78: 60742.14115 | H78: 99601.31898 | K78: Galactonic acid | L78: 0.0003360879747 | M78: 0.0002881743087 | N78: 0.0005650653964 | P78: 0.0003765291817 | Q78: 0.0002591468486 | R78: 0.0004469205274 | U78: Galactonic acid | V78: 0.8477595714 | W78: 0.7269005345 | X78: 1.425339894 | Z78: 0.9497698272 | AA78: 0.6536806962 | AB78: 1.127327317
A79: GDP-glucose | B79: 0 | C79: 0 | D79: 0 | F79: 0 | G79: 0 | H79: 0 | K79: GDP-glucose | L79: 0 | M79: 0 | N79: 0 | P79: 0 | Q79: 0 | R79: 0 | U79: GDP-glucose
A80: Gluconic acid | B80: 1255604.387 | C80: 947819.6324 | D80: 918478.9692 | F80: 1830126.43 | G80: 1085207.938 | H80: 936648.5364 | K80: Gluconic acid | L80: 0.003580390011 | M80: 0.002974011724 | N80: 0.003223466328 | P80: 0.006206668888 | Q80: 0.004629870002 | R80: 0.004202830467 | U80: Gluconic acid | V80: 1.09851861 | W80: 0.9124724444 | X80: 0.9890089456 | Z80: 1.904301279 | AA80: 1.420515179 | AB80: 1.289492895
A81: Glucosamine 6-phosphate | B81: 93609.74191 | C81: 99595.89477 | D81: 99591.74401 | F81: 83384.51296 | G81: 62143.61521 | H81: 59134.30333 | K81: Glucosamine 6-phosphate | L81: 0.0002669307215 | M81: 0.0003125060388 | N81: 0.000349524207 | P81: 0.0002827892401 | Q81: 0.0002651260186 | R81: 0.0002653412054 | U81: Glucosamine 6-phosphate | V81: 0.8620299376 | W81: 1.009211527 | X81: 1.128758536 | Z81: 0.913243667 | AA81: 0.8562018037 | AB81: 0.856896731
A82: Glucosamine | B82: 0 | C82: 0 | D82: 0 | F82: 0 | G82: 0 | H82: 0 | K82: Glucosamine | L82: 0 | M82: 0 | N82: 0 | P82: 0 | Q82: 0 | R82: 0 | U82: Glucosamine
A83: Glucose 6-phosphate | B83: 500281.8395 | C83: 433484.221 | D83: 668935.5567 | F83: 527122.2291 | G83: 308488.425 | H83: 500153.4914 | K83: Glucose 6-phosphate | L83: 0.001426567253 | M83: 0.001360160849 | N83: 0.002347676229 | P83: 0.001787676024 | Q83: 0.001316117635 | R83: 0.002244235965 | U83: Glucose 6-phosphate | V83: 0.8335342299 | W83: 0.7947333874 | X83: 1.371732383 | Z83: 1.044527802 | AA83: 0.7689992161 | AB83: 1.31129289
A84: Glutathione | B84: 7925326.987 | C84: 7518552.778 | D84: 6515382.3 | F84: 8207480.204 | G84: 5521036.967 | H84: 4703727.695 | K84: Glutathione | L84: 0.02259928516 | M84: 0.02359126499 | N84: 0.02286619091 | P84: 0.02783475021 | Q84: 0.02355464104 | R84: 0.02110607052 | U84: Glutathione | V84: 0.9817702723 | W84: 1.024864393 | X84: 0.9933653351 | Z84: 1.209212154 | AA84: 1.023273355 | AB84: 0.9169012408
A85: Glycerol 3-phosphate | B85: 210493.1034 | C85: 181956.4033 | D85: 242674.0726 | F85: 244270.6997 | G85: 180231.7069 | H85: 206032.869 | K85: Glycerol 3-phosphate | L85: 0.0006002268015 | M85: 0.000570931914 | N85: 0.0008516816693 | P85: 0.0008284167297 | Q85: 0.0007689303994 | R85: 0.0009244889469 | U85: Glycerol 3-phosphate | V85: 0.8901742412 | W85: 0.8467280735 | X85: 1.263097685 | Z85: 1.228594311 | AA85: 1.140372328 | AB85: 1.371075475
A86: Glycerophosphocholine | B86: 2270992.794 | C86: 2078364.057 | D86: 2072399.764 | F86: 3298380.875 | G86: 257525.5553 | H86: 287172.8967 | K86: Glycerophosphocholine | L86: 0.006475797635 | M86: 0.006521366366 | N86: 0.007273232246 | P86: 0.01118608946 | Q86: 0.001098692519 | R86: 0.001288571916 | U86: Glycerophosphocholine | V86: 0.9584120936 | W86: 0.9651562239 | X86: 1.076431683 | Z86: 1.65553095 | AA86: 0.1626054823 | AB86: 0.1907074584
A87: Glycine | B87: 2177566.684 | C87: 2281037.343 | D87: 1934017.759 | F87: 2981937.391 | G87: 2537193.697 | H87: 2405317.136 | K87: Glycine | L87: 0.006209390543 | M87: 0.007157302475 | N87: 0.0067875709 | P87: 0.01011290681 | Q87: 0.01082454024 | R87: 0.01079288522 | U87: Glycine | V87: 0.9242794331 | W87: 1.065377903 | X87: 1.010342664 | Z87: 1.505325153 | AA87: 1.611253124 | AB87: 1.606541215
A88: Guanidoacetic acid | B88: 10790.74502 | C88: 11769.73815 | D88: 17945.69063 | F88: 84167.91046 | G88: 35391.52703 | H88: 29097.42523 | K88: Guanidoacetic acid | L88: 3.077010251e-05 | M88: 3.693038005e-05 | N88: 6.298165928e-05 | P88: 0.000285446045 | Q88: 0.0001509924168 | R88: 0.0001305628958 | U88: Guanidoacetic acid | V88: 0.7063727778 | W88: 0.8477909728 | X88: 1.445836249 | Z88: 6.552832108 | AA88: 3.466252115 | AB88: 2.997262532
A89: Guanine | B89: 50591.0111 | C89: 30922.66874 | D89: 24190.47742 | F89: 0 | G89: 0 | H89: 13257.03806 | K89: Guanine | L89: 0.0001442616422 | M89: 9.702729954e-05 | N89: 8.489817625e-05 | P89: 0 | Q89: 0 | R89: 5.948558214e-05 | U89: Guanine | V89: 1.326799566 | W89: 0.8923770515 | X89: 0.7808233823 | Z89: 0 | AA89: 0 | AB89: 0.5470993076
A90: Guanosine diphosphate | B90: 488592.4645 | C90: 393533.5738 | D90: 530545.4631 | F90: 212097.4195 | G90: 241476.7646 | H90: 320603.5499 | K90: Guanosine diphosphate | L90: 0.001393234683 | M90: 0.001234806098 | N90: 0.001861986494 | P90: 0.0007193046519 | Q90: 0.001030222863 | R90: 0.001438578415 | U90: Guanosine diphosphate | V90: 0.9308861155 | W90: 0.8250324704 | X90: 1.244081414 | Z90: 0.480601525 | AA90: 0.6883407159 | AB90: 0.9611824118
A91: Guanosine monophosphate | B91: 1164597.519 | C91: 1022474.556 | D91: 982657.8686 | F91: 158724.3424 | G91: 210176.0821 | H91: 324646.7447 | K91: Guanosine monophosphate | L91: 0.003320881457 | M91: 0.003208259476 | N91: 0.003448706674 | P91: 0.0005382958368 | Q91: 0.0008966833949 | R91: 0.001456720612 | U91: Guanosine monophosphate | V91: 0.998476301 | W91: 0.9646146952 | X91: 1.036909004 | Z91: 0.1618472815 | AA91: 0.2696022519 | AB91: 0.4379864284
A92: Guanosine triphosphate | B92: 139727.7994 | C92: 98495.32931 | D92: 210190.5491 | F92: 172944.4744 | G92: 183212.8588 | H92: 220422.431 | K92: Guanosine triphosphate | L92: 0.000398437615 | M92: 0.0003090527503 | N92: 0.0007376784665 | P92: 0.0005865218221 | Q92: 0.0007816490182 | R92: 0.000989056271 | U92: Guanosine triphosphate | V92: 0.8271094828 | W92: 0.6415570489 | X92: 1.531333468 | Z92: 1.217550107 | AA92: 1.622611146 | AB92: 2.053164134
A93: Guanosine | B93: 37264.36454 | C93: 0 | D93: 13033.90924 | F93: 0 | G93: 0 | H93: 0 | K93: Guanosine | L93: 0.0001062603476 | M93: 0 | N93: 4.574341815e-05 | P93: 0 | Q93: 0 | R93: 0 | U93: Guanosine | V93: 2.097191746 | W93: 0 | X93: 0.9028082544 | Z93: 0 | AA93: 0 | AB93: 0
A94: Hexanoylcarnitine | B94: 0 | C94: 0 | D94: 0 | F94: 0 | G94: 0 | H94: 0 | K94: Hexanoylcarnitine | L94: 0 | M94: 0 | N94: 0 | P94: 0 | Q94: 0 | R94: 0 | U94: Hexanoylcarnitine
A95: Hippuric acid | B95: 0 | C95: 0 | D95: 0 | F95: 0 | G95: 0 | H95: 0 | K95: Hippuric acid | L95: 0 | M95: 0 | N95: 0 | P95: 0 | Q95: 0 | R95: 0 | U95: Hippuric acid
A96: Hypotaurine | B96: 0 | C96: 0 | D96: 0 | F96: 13407.26179 | G96: 0 | H96: 0 | K96: Hypotaurine | L96: 0 | M96: 0 | N96: 0 | P96: 4.54692273e-05 | Q96: 0 | R96: 0 | U96: Hypotaurine
A97: Hypoxanthine | B97: 1202474.446 | C97: 922678.4958 | D97: 577048.375 | F97: 211145.9175 | G97: 261206.5103 | H97: 372034.0232 | K97: Hypoxanthine | L97: 0.003428888544 | M97: 0.002895125371 | N97: 0.002025191723 | P97: 0.0007160777394 | Q97: 0.001114396738 | R97: 0.001669351807 | U97: Hypoxanthine | V97: 1.232053213 | W97: 1.040263767 | X97: 0.7276830196 | Z97: 0.2572979169 | AA97: 0.4004201549 | AB97: 0.5998241797
A98: IDP | B98: 0 | C98: 0 | D98: 0 | F98: 0 | G98: 0 | H98: 0 | K98: IDP | L98: 0 | M98: 0 | N98: 0 | P98: 0 | Q98: 0 | R98: 0 | U98: IDP
A99: Imidazoleacetic acid | B99: 0 | C99: 0 | D99: 0 | F99: 0 | G99: 0 | H99: 0 | K99: Imidazoleacetic acid | L99: 0 | M99: 0 | N99: 0 | P99: 0 | Q99: 0 | R99: 0 | U99: Imidazoleacetic acid
A100: Indoxyl sulfate | B100: 0 | C100: 0 | D100: 0 | F100: 0 | G100: 0 | H100: 0 | K100: Indoxyl sulfate | L100: 0 | M100: 0 | N100: 0 | P100: 0 | Q100: 0 | R100: 0 | U100: Indoxyl sulfate
A101: Inosine | B101: 471832.4552 | C101: 321765.0384 | D101: 370143.5041 | F101: 58041.17989 | G101: 76748.08362 | H101: 162493.8904 | K101: Inosine | L101: 0.001345443061 | M101: 0.001009615083 | N101: 0.001299044575 | P101: 0.0001968401634 | Q101: 0.0003274336997 | R101: 0.0007291254366 | U101: Inosine | V101: 1.104602003 | W101: 0.8288889179 | X101: 1.066509079 | Z101: 0.1616047866 | AA101: 0.2688214248 | AB101: 0.5986083255
A102: Inosinic acid | B102: 345340.0726 | C102: 247997.9844 | D102: 242375.6082 | F102: 70105.29453 | G102: 57643.55031 | H102: 84613.13909 | K102: Inosinic acid | L102: 0.0009847465968 | M102: 0.0007781532353 | N102: 0.0008506341875 | P102: 0.0002377542575 | Q102: 0.0002459271952 | R102: 0.0003796671484 | U102: Inosinic acid | V102: 1.130362095 | W102: 0.8932195596 | X102: 0.9764183452 | Z102: 0.2729112256 | AA102: 0.2822927041 | AB102: 0.4358089225
A103: Isovalerylcarnitine | B103: 0 | C103: 0 | D103: 0 | F103: 0 | G103: 0 | H103: 0 | K103: Isovalerylcarnitine | L103: 0 | M103: 0 | N103: 0 | P103: 0 | Q103: 0 | R103: 0 | U103: Isovalerylcarnitine
A104: Kynurenic acid | B104: 0 | C104: 0 | D104: 0 | F104: 0 | G104: 0 | H104: 0 | K104: Kynurenic acid | L104: 0 | M104: 0 | N104: 0 | P104: 0 | Q104: 0 | R104: 0 | U104: Kynurenic acid
A105: L-Acetylcarnitine | B105: 1143474.397 | C105: 1152630.956 | D105: 1025382.322 | F105: 929682.055 | G105: 926725.4127 | H105: 708366.0095 | K105: L-Acetylcarnitine | L105: 0.0032606483 | M105: 0.00361665644 | N105: 0.00359865114 | P105: 0.003152912603 | Q105: 0.003953729086 | R105: 0.003178505203 | U105: L-Acetylcarnitine | V105: 0.9337520139 | W105: 1.035702082 | X105: 1.030545904 | Z105: 0.9028997372 | AA105: 1.132229593 | AB105: 0.9102286912
A106: L-Alanine | B106: 3516214.554 | C106: 3301254.893 | D106: 3152860.356 | F106: 2934109.581 | G106: 2504213.3 | H106: 2140351.046 | K106: L-Alanine | L106: 0.0100265813 | M106: 0.01035848005 | N106: 0.01106518444 | P106: 0.009950704146 | Q106: 0.01068383453 | R106: 0.00960395734 | U106: L-Alanine | V106: 0.9564231742 | W106: 0.988082585 | X106: 1.055494241 | Z106: 0.9491853461 | AA106: 1.019117745 | AB106: 0.9161095976
A107: L-Arginine | B107: 0 | C107: 0 | D107: 0 | F107: 0 | G107: 0 | H107: 0 | K107: L-Arginine | L107: 0 | M107: 0 | N107: 0 | P107: 0 | Q107: 0 | R107: 0 | U107: L-Arginine
A108: L-Asparagine | B108: 45491.63485 | C108: 67536.66658 | D108: 44903.57459 | F108: 73331.0058 | G108: 44719.47556 | H108: 64981.06132 | K108: L-Asparagine | L108: 0.0001297206323 | M108: 0.000211912511 | N108: 0.0001575922428 | P108: 0.0002486938961 | Q108: 0.0001907886509 | R108: 0.0002915761608 | U108: L-Asparagine | V108: 0.7795314659 | W108: 1.273447927 | X108: 0.9470206074 | Z108: 1.494478665 | AA108: 1.146508108 | AB108: 1.752171478
A109: L-Aspartic acid | B109: 11323549.73 | C109: 10212176.27 | D109: 9241590.699 | F109: 10756452.15 | G109: 9117040.648 | H109: 7562635.623 | K109: L-Aspartic acid | L109: 0.0322894096 | M109: 0.0320431556 | N109: 0.03243401039 | P109: 0.03647930318 | Q109: 0.03889642854 | R109: 0.03393426047 | U109: L-Aspartic acid | V109: 1.001050499 | W109: 0.9934160243 | X109: 1.005533477 | Z109: 1.130947426 | AA109: 1.205884211 | AB109: 1.05204489
A110: L-Carnitine | B110: 0 | C110: 0 | D110: 0 | F110: 0 | G110: 0 | H110: 0 | K110: L-Carnitine | L110: 0 | M110: 0 | N110: 0 | P110: 0 | Q110: 0 | R110: 0 | U110: L-Carnitine
A111: L-Cystathionine | B111: 0 | C111: 0 | D111: 0 | F111: 0 | G111: 0 | H111: 0 | K111: L-Cystathionine | L111: 0 | M111: 0 | N111: 0 | P111: 0 | Q111: 0 | R111: 0 | U111: L-Cystathionine
A112: L-Cysteine | B112: 0 | C112: 0 | D112: 0 | F112: 0 | G112: 0 | H112: 0 | K112: L-Cysteine | L112: 0 | M112: 0 | N112: 0 | P112: 0 | Q112: 0 | R112: 0 | U112: L-Cysteine
A113: L-Cystine | B113: 0 | C113: 0 | D113: 0 | F113: 0 | G113: 0 | H113: 0 | K113: L-Cystine | L113: 0 | M113: 0 | N113: 0 | P113: 0 | Q113: 0 | R113: 0 | U113: L-Cystine
A114: L-Dihydroorotic acid | B114: 63012.66102 | C114: 60960.69151 | D114: 52931.37661 | F114: 30534.56649 | G114: 30209.17375 | H114: 29865.1022 | K114: L-Dihydroorotic acid | L114: 0.0001796823144 | M114: 0.0001912788099 | N114: 0.0001857663767 | P114: 0.0001035545636 | Q114: 0.0001288827168 | R114: 0.0001340075349 | U114: L-Dihydroorotic acid | V114: 0.9682419894 | W114: 1.030731244 | X114: 1.001026767 | Z114: 0.5580175048 | AA114: 0.6945016185 | AB114: 0.7221173806
A115: L-Glutamic acid | B115: 95410033.58 | C115: 85151330.92 | D115: 71277440.59 | F115: 72476669.44 | G115: 64185910.46 | H115: 51901220.7 | K115: L-Glutamic acid | L115: 0.2720643022 | M115: 0.2671827507 | N115: 0.2501531743 | P115: 0.24579651 | Q115: 0.2738391519 | R115: 0.2328856803 | U115: L-Glutamic acid | V115: 1.033940552 | W115: 1.01538893 | X115: 0.9506705181 | Z115: 0.9341136532 | AA115: 1.040685609 | AB115: 0.885047935
A116: L-Glutamine | B116: 2265839.349 | C116: 1924141.289 | D116: 1531522.311 | F116: 1904897.602 | G116: 856531.9144 | H116: 949080.3277 | K116: L-Glutamine | L116: 0.006461102444 | M116: 0.006037455394 | N116: 0.005374984912 | P116: 0.006460246946 | Q116: 0.0036542595 | R116: 0.004258613089 | U116: L-Glutamine | V116: 1.084469241 | W116: 1.013361841 | X116: 0.9021689187 | Z116: 1.084325649 | AA116: 0.6133522969 | AB116: 0.7147905396
A117: L-Glyceric acid | B117: 23058.66458 | C117: 27196.45551 | D117: 29741.65087 | F117: 99365.45491 | G117: 35078.57663 | H117: 31866.95101 | K117: L-Glyceric acid | L117: 6.575240833e-05 | M117: 8.533541064e-05 | N117: 0.0001043804086 | P117: 0.0003369868155 | Q117: 0.0001496572629 | R117: 0.0001429900196 | U117: L-Glyceric acid | V117: 0.772139952 | W117: 1.002105954 | X117: 1.225754094 | Z117: 3.957284458 | AA117: 1.757446681 | AB117: 1.679152288
A118: L-Histidine | B118: 0 | C118: 0 | D118: 0 | F118: 0 | G118: 0 | H118: 0 | K118: L-Histidine | L118: 0 | M118: 0 | N118: 0 | P118: 0 | Q118: 0 | R118: 0 | U118: L-Histidine
A119: L-Homoserine | B119: 0 | C119: 0 | D119: 0 | F119: 0 | G119: 0 | H119: 0 | K119: L-Homoserine | L119: 0 | M119: 0 | N119: 0 | P119: 0 | Q119: 0 | R119: 0 | U119: L-Homoserine
A120: L-Isoleucine | B120: 0 | C120: 0 | D120: 0 | F120: 0 | G120: 0 | H120: 0 | K120: L-Isoleucine | L120: 0 | M120: 0 | N120: 0 | P120: 0 | Q120: 0 | R120: 0 | U120: L-Isoleucine
A121: L-Kynurenine | B121: 0 | C121: 0 | D121: 0 | F121: 0 | G121: 0 | H121: 0 | K121: L-Kynurenine | L121: 0 | M121: 0 | N121: 0 | P121: 0 | Q121: 0 | R121: 0 | U121: L-Kynurenine
A122: L-Lactic acid | B122: 49246305.29 | C122: 48302900.42 | D122: 29253898.52 | F122: 53379076.81 | G122: 27909283.52 | H122: 28382178.86 | K122: L-Lactic acid | L122: 0.1404271771 | M122: 0.1515619505 | N122: 0.1026686076 | P122: 0.1810291628 | Q122: 0.1190705947 | R122: 0.1273535178 | U122: L-Lactic acid | V122: 1.06746047 | W122: 1.15210171 | X122: 0.7804378206 | Z122: 1.376097413 | AA122: 0.9051179093 | AB122: 0.9680807426
A123: L-Leucine | B123: 0 | C123: 0 | D123: 0 | F123: 0 | G123: 0 | H123: 0 | K123: L-Leucine | L123: 0 | M123: 0 | N123: 0 | P123: 0 | Q123: 0 | R123: 0 | U123: L-Leucine
A124: L-Lysine | B124: 0 | C124: 0 | D124: 0 | F124: 0 | G124: 0 | H124: 0 | K124: L-Lysine | L124: 0 | M124: 0 | N124: 0 | P124: 0 | Q124: 0 | R124: 0 | U124: L-Lysine | Z124: =P124/AVERAGE($L124:$N124) -> 
A125: L-Methionine | B125: 51488.79727 | C125: 35489.36899 | D125: 34784.78449 | F125: 15292.80593 | G125: 0 | H125: 11697.20836 | K125: L-Methionine | L125: 0.0001468217039 | M125: 0.0001113564183 | N125: 0.0001220796396 | P125: 5.186383916e-05 | Q125: 0 | R125: 5.248647893e-05 | U125: L-Methionine | V125: 1.158332994 | W125: 0.8785336908 | X125: 0.9631333153 | Z125: =P125/AVERAGE($L125:$N125) -> 0.4091738108 | AA125: 0 | AB125: 0.4140860559
A126: L-Palmitoylcarnitine | B126: 0 | C126: 0 | D126: 0 | F126: 0 | G126: 0 | H126: 0 | K126: L-Palmitoylcarnitine | L126: 0 | M126: 0 | N126: 0 | P126: 0 | Q126: 0 | R126: 0 | U126: L-Palmitoylcarnitine
A127: L-Phenylalanine | B127: 0 | C127: 0 | D127: 0 | F127: 0 | G127: 0 | H127: 0 | K127: L-Phenylalanine | L127: 0 | M127: 0 | N127: 0 | P127: 0 | Q127: 0 | R127: 0 | U127: L-Phenylalanine
A128: L-Pipecolic acid | B128: 0 | C128: 0 | D128: 0 | F128: 0 | G128: 0 | H128: 0 | K128: L-Pipecolic acid | L128: 0 | M128: 0 | N128: 0 | P128: 0 | Q128: 0 | R128: 0 | U128: L-Pipecolic acid
A129: L-Proline | B129: 24125443.72 | C129: 24283690.12 | D129: 19063114.89 | F129: 19262103.41 | G129: 15414339.97 | H129: 11605430.28 | K129: L-Proline | L129: 0.06879435802 | M129: 0.0761959097 | N129: 0.06690333803 | P129: 0.06532526715 | Q129: 0.06576287157 | R129: 0.05207466201 | U129: L-Proline | V129: 0.9739938746 | W129: 1.078785404 | X129: 0.9472207214 | Z129: 0.9248783169 | AA129: 0.9310739417 | AB129: 0.7372756034
A130: L-Serine | B130: 7443171.391 | C130: 7069966.7 | D130: 7651604.913 | F130: 8011262.404 | G130: 6085984.388 | H130: 5868273.804 | K130: L-Serine | L130: =B130/B$206 -> 0.02122440538 | M130: =C130/C$206 -> 0.02218371844 | N130: =D130/D$206 -> 0.02685384382 | P130: =F130/F$206 -> 0.02716929951 | Q130: =G130/G$206 -> 0.02596490089 | R130: =H130/H$206 -> 0.02633149893 | U130: L-Serine | V130: =L130/AVERAGE($L130:$N130) -> 0.9062259183 | W130: =M130/AVERAGE($L130:$N130) -> 0.9471860461 | X130: =N130/AVERAGE($L130:$N130) -> 1.146588036 | Z130: 1.160057159 | AA130: 1.108632526 | AB130: 1.124285292
A131: L-Threonine | B131: 0 | C131: 0 | D131: 0 | F131: 0 | G131: 0 | H131: 0 | K131: L-Threonine | L131: 0 | M131: 0 | N131: 0 | P131: 0 | Q131: 0 | R131: 0 | U131: L-Threonine
A132: L-Tryptophan | B132: 0 | C132: 0 | D132: 0 | F132: 0 | G132: 0 | H132: 0 | K132: L-Tryptophan | L132: 0 | M132: 0 | N132: 0 | P132: 0 | Q132: 0 | R132: 0 | U132: L-Tryptophan
A133: L-Tyrosine | B133: 0 | C133: 0 | D133: 0 | F133: 0 | G133: 0 | H133: 0 | K133: L-Tyrosine | L133: 0 | M133: 0 | N133: 0 | P133: 0 | Q133: 0 | R133: 0 | U133: L-Tyrosine
A134: L-Valine | B134: 0 | C134: 0 | D134: 0 | F134: 0 | G134: 0 | H134: 0 | K134: L-Valine | L134: 0 | M134: 0 | N134: 0 | P134: 0 | Q134: 0 | R134: 0 | U134: L-Valine
A135: Malic acid | B135: 18328413.43 | C135: 16045813.84 | D135: 10324759.56 | F135: 14097241.49 | G135: 10857427.56 | H135: 7414662.84 | K135: Malic acid | L135: 0.0522639687 | M135: 0.05034759448 | N135: 0.03623546744 | P135: 0.0478092162 | Q135: 0.04632151719 | R135: 0.03327029261 | U135: Malic acid | V135: 1.129242054 | W135: 1.087835892 | X135: 0.7829220533 | Z135: 1.032990392 | AA135: 1.000846406 | AB135: 0.7188549686
A136: Myoinositol | B136: 64616.69654 | C136: 54384.4853 | D136: 75207.15731 | F136: 62964.56124 | G136: 75187.13826 | H136: 64421.77186 | K136: Myoinositol | L136: 0.0001842562652 | M136: 0.0001706443836 | N136: 0.0002639447906 | P136: 0.00021353726 | Q136: 0.0003207741704 | R136: 0.0002890665762 | U136: Myoinositol | V136: 0.8932259341 | W136: 0.8272391103 | X136: 1.279534956 | Z136: 1.035172499 | AA136: 1.555028849 | AB136: 1.401318768
A137: N6,N6,N6-Trimethyl-L-lysine | B137: 0 | C137: 0 | D137: 0 | F137: 0 | G137: 0 | H137: 0 | K137: N6,N6,N6-Trimethyl-L-lysine | L137: 0 | M137: 0 | N137: 0 | P137: 0 | Q137: 0 | R137: 0 | U137: N6,N6,N6-Trimethyl-L-lysine
A138: N6-Acetyl-L-lysine | B138: 0 | C138: 0 | D138: 0 | F138: 0 | G138: 0 | H138: 0 | K138: N6-Acetyl-L-lysine | L138: 0 | M138: 0 | N138: 0 | P138: 0 | Q138: 0 | R138: 0 | U138: N6-Acetyl-L-lysine
A139: N-Acetylasparagine | B139: 41000.67201 | C139: 49321.43794 | D139: 33818.22927 | F139: 19163.15949 | G139: 17543.76528 | H139: 0 | K139: N-Acetylasparagine | L139: 0.0001169145298 | M139: 0.0001547578566 | N139: 0.0001186874463 | P139: 6.498970992e-05 | Q139: 7.484773172e-05 | R139: 0 | U139: N-Acetylasparagine | V139: 0.8985135256 | W139: 1.189347701 | X139: 0.9121387732 | Z139: 0.4994600198 | AA139: 0.575221056 | AB139: 0
A140: N-Acetylaspartylglutamic acid | B140: 0 | C140: 0 | D140: 0 | F140: 0 | G140: 0 | H140: 0 | K140: N-Acetylaspartylglutamic acid | L140: 0 | M140: 0 | N140: 0 | P140: 0 | Q140: 0 | R140: 0 | U140: N-Acetylaspartylglutamic acid
A141: N-Acetyl-D-glucosamine | B141: 0 | C141: 0 | D141: 0 | F141: 0 | G141: 0 | H141: 0 | K141: N-Acetyl-D-glucosamine | L141: 0 | M141: 0 | N141: 0 | P141: 0 | Q141: 0 | R141: 0 | U141: N-Acetyl-D-glucosamine
A142: N-Acetyl-glucosamine 1-phosphate | B142: 73871.93836 | C142: 75892.7244 | D142: 74286.32448 | F142: 81512.20552 | G142: 63549.66492 | H142: 67058.66303 | K142: N-Acetyl-glucosamine 1-phosphate | L142: 0.0002106478386 | M142: 0.0002381316491 | N142: 0.0002607130632 | P142: 0.000276439519 | Q142: 0.0002711247098 | R142: 0.0003008985559 | U142: N-Acetyl-glucosamine 1-phosphate | V142: 0.8906978868 | W142: 1.006909722 | X142: 1.102392391 | Z142: 1.168889731 | AA142: 1.146416729 | AB142: 1.272311692
A143: N-Acetylglutamic acid | B143: 10833.42129 | C143: 11297.15459 | D143: 0 | F143: 0 | G143: 0 | H143: 0 | K143: N-Acetylglutamic acid | L143: 3.089179504e-05 | M143: 3.544753565e-05 | N143: 0 | P143: 0 | Q143: 0 | R143: 0 | U143: N-Acetylglutamic acid | V143: 1.396990053 | W143: 1.603009947 | X143: 0 | Z143: 0 | AA143: 0 | AB143: 0
A144: N-Acetylglutamine | B144: 33091.78363 | C144: 24877.44564 | D144: 26315.01181 | F144: 17522.06039 | G144: 12588.79267 | H144: 10449.42194 | K144: N-Acetylglutamine | L144: 9.436211981e-05 | M144: 7.805896024e-05 | N144: 9.235437862e-05 | P144: 5.942410607e-05 | Q144: 5.370811575e-05 | R144: 4.688754337e-05 | U144: N-Acetylglutamine | V144: 1.069156337 | W144: 0.8844357475 | X144: 1.046407916 | Z144: 0.6732962303 | AA144: 0.6085320295 | AB144: 0.5312525217
A145: N-Acetyl-L-alanine | B145: 344545.7545 | C145: 305610.7471 | D145: 255979.5985 | F145: 170062.2388 | G145: 143536.0383 | H145: 102162.8325 | K145: N-Acetyl-L-alanine | L145: 0.0009824815771 | M145: 0.0009589271144 | N145: 0.000898378345 | P145: 0.0005767470429 | Q145: 0.0006123740665 | R145: 0.0004584142807 | U145: N-Acetyl-L-alanine | V145: 1.037910482 | W145: 1.013027141 | X145: 0.949062377 | Z145: 0.6092855226 | AA145: 0.6469225248 | AB145: 0.4842767519
A146: N-Acetyl-L-aspartic acid | B146: 0 | C146: 0 | D146: 0 | F146: 0 | G146: 0 | H146: 0 | K146: N-Acetyl-L-aspartic acid | L146: 0 | M146: 0 | N146: 0 | P146: 0 | Q146: 0 | R146: 0 | U146: N-Acetyl-L-aspartic acid
A147: N-Acetyl-L-methionine | B147: 76045.16488 | C147: 72826.21322 | D147: 48852.40573 | F147: 38420.17145 | G147: 36064.94307 | H147: 23746.02499 | K147: N-Acetyl-L-methionine | L147: 0.0002168448531 | M147: 0.0002285097339 | N147: 0.0001714509425 | P147: 0.00013029771 | Q147: 0.0001538654411 | R147: 0.0001065506574 | U147: N-Acetyl-L-methionine | V147: 1.05468341 | W147: 1.111418703 | X147: 0.8338978866 | Z147: 0.6337380445 | AA147: 0.7483660591 | AB147: 0.5182378512
A148: N-Acetylornithine | B148: 0 | C148: 0 | D148: 0 | F148: 0 | G148: 0 | H148: 0 | K148: N-Acetylornithine | L148: 0 | M148: 0 | N148: 0 | P148: 0 | Q148: 0 | R148: 0 | U148: N-Acetylornithine
A149: N-Acetylputrescine | B149: 0 | C149: 0 | D149: 0 | F149: 0 | G149: 0 | H149: 0 | K149: N-Acetylputrescine | L149: 0 | M149: 0 | N149: 0 | P149: 0 | Q149: 0 | R149: 0 | U149: N-Acetylputrescine
A150: N-acetyltryptophan | B150: 0 | C150: 0 | D150: 0 | F150: 0 | G150: 0 | H150: 0 | K150: N-acetyltryptophan | L150: 0 | M150: 0 | N150: 0 | P150: 0 | Q150: 0 | R150: 0 | U150: N-acetyltryptophan
A151: NAD | B151: 3042806.925 | C151: 3086987.444 | D151: 2522958.395 | F151: 3703991.388 | G151: 3048777.285 | H151: 2474976.5 | K151: NAD | L151: 0.008676646591 | M151: 0.009686164474 | N151: 0.008854499347 | P151: 0.0125616721 | Q151: 0.01300713163 | R151: 0.01110545336 | U151: NAD | V151: 0.9563744315 | W151: 1.0676475 | X151: 0.9759780683 | Z151: 1.384597366 | AA151: 1.433697684 | AB151: 1.224087156
A152: NADH | B152: 0 | C152: 0 | D152: 0 | F152: 0 | G152: 0 | H152: 0 | K152: NADH | L152: 0 | M152: 0 | N152: 0 | P152: 0 | Q152: 0 | R152: 0 | U152: NADH
A153: NADP | B153: 47438.13339 | C153: 16670.15525 | D153: 26308.1327 | F153: 59376.99722 | G153: 27110.09405 | H153: 10800.9801 | K153: NADP | L153: 0.0001352711258 | M153: 5.230661559e-05 | N153: 9.233023592e-05 | P153: 0.0002013704383 | Q153: 0.0001156609778 | R153: 4.846501804e-05 | U153: NADP | V153: 1.449809974 | W153: 0.5606122707 | X153: 0.9895777548 | Z153: 2.158249724 | AA153: 1.23963217 | AB153: 0.5194387652
A154: NADPH | B154: 0 | C154: 0 | D154: 0 | F154: 0 | G154: 0 | H154: 0 | K154: NADPH | L154: 0 | M154: 0 | N154: 0 | P154: 0 | Q154: 0 | R154: 0 | U154: NADPH
A155: N-Formyl-L-methionine | B155: 0 | C155: 0 | D155: 0 | F155: 0 | G155: 0 | H155: 0 | K155: N-Formyl-L-methionine | L155: 0 | M155: 0 | N155: 0 | P155: 0 | Q155: 0 | R155: 0 | U155: N-Formyl-L-methionine
A156: Niacinamide | B156: 0 | C156: 0 | D156: 0 | F156: 0 | G156: 0 | H156: 0 | K156: Niacinamide | L156: 0 | M156: 0 | N156: 0 | P156: 0 | Q156: 0 | R156: 0 | U156: Niacinamide
A157: Nicotinamide riboside | B157: 0 | C157: 0 | D157: 0 | F157: 0 | G157: 0 | H157: 0 | K157: Nicotinamide riboside | L157: 0 | M157: 0 | N157: 0 | P157: 0 | Q157: 0 | R157: 0 | U157: Nicotinamide riboside
A158: Nicotinamide ribotide | B158: 0 | C158: 0 | D158: 0 | F158: 0 | G158: 0 | H158: 0 | K158: Nicotinamide ribotide | L158: 0 | M158: 0 | N158: 0 | P158: 0 | Q158: 0 | R158: 0 | U158: Nicotinamide ribotide
A159: Nicotinic acid adenine dinucleotide | B159: 0 | C159: 0 | D159: 0 | F159: 0 | G159: 0 | H159: 0 | K159: Nicotinic acid adenine dinucleotide | L159: 0 | M159: 0 | N159: 0 | P159: 0 | Q159: 0 | R159: 0 | U159: Nicotinic acid adenine dinucleotide
A160: Nicotinic acid mononucleotide | B160: 0 | C160: 0 | D160: 0 | F160: 0 | G160: 0 | H160: 0 | K160: Nicotinic acid mononucleotide | L160: 0 | M160: 0 | N160: 0 | P160: 0 | Q160: 0 | R160: 0 | U160: Nicotinic acid mononucleotide
A161: Nicotinic acid | B161: 0 | C161: 0 | D161: 0 | F161: 0 | G161: 0 | H161: 0 | K161: Nicotinic acid | L161: 0 | M161: 0 | N161: 0 | P161: 0 | Q161: 0 | R161: 0 | U161: Nicotinic acid
A162: O-Phosphoethanolamine | B162: 19966.25671 | C162: 13796.18434 | D162: 14842.2268 | F162: 15058.31067 | G162: 19804.73042 | H162: 16170.15852 | K162: O-Phosphoethanolamine | L162: 5.693432331e-05 | M162: 4.328884164e-05 | N162: 5.208983541e-05 | P162: 5.106857474e-05 | Q162: 8.449378602e-05 | R162: 7.255702885e-05 | U162: O-Phosphoethanolamine | V162: 1.121394559 | W162: 0.8526292871 | X162: 1.025976153 | Z162: 1.005861114 | AA162: 1.664213543 | AB162: 1.429103793
A163: Ornithine | B163: 201383.2397 | C163: 217345.5614 | D163: 166743.9825 | F163: 125875.6862 | G163: 68711.82335 | H163: 73539.08169 | K163: Ornithine | L163: 0.0005742497778 | M163: 0.0006819738965 | N163: 0.0005851996955 | P163: 0.0004268932969 | Q163: 0.0002931482517 | R163: 0.0003299768067 | U163: Ornithine | V163: 0.9355530953 | W163: 1.111054483 | X163: 0.953392422 | Z163: 0.695483674 | AA163: 0.4775896567 | AB163: 0.5375897995
A164: Orotic acid | B164: 420950.6777 | C164: 330660.587 | D164: 264054.2412 | F164: 167011.7442 | G164: 152611.0695 | H164: 119804.8724 | K164: Orotic acid | L164: 0.001200352291 | M164: 0.001037527003 | N164: 0.0009267168697 | P164: 0.0005664016322 | Q164: 0.0006510912681 | R164: 0.0005375757801 | U164: Orotic acid | V164: 1.137919876 | W164: 0.9835634147 | X164: 0.8785167097 | Z164: 0.5369420959 | AA164: 0.6172268762 | AB164: 0.5096155266
A165: Oxalacetic acid | B165: 0 | C165: 0 | D165: 0 | F165: 0 | G165: 0 | H165: 0 | K165: Oxalacetic acid | L165: 0 | M165: 0 | N165: 0 | P165: 0 | Q165: 0 | R165: 0 | U165: Oxalacetic acid
A166: Oxidized glutathione | B166: 76148.1395 | C166: 93969.00338 | D166: 97616.6856 | F166: 128821.2431 | G166: 79036.59339 | H166: 80229.86826 | K166: Oxidized glutathione | L166: 0.000217138488 | M166: 0.0002948503156 | N166: 0.0003425926011 | P166: 0.0004368828233 | Q166: 0.0003371972689 | R166: 0.0003599989981 | U166: Oxidized glutathione | V166: 0.7622626241 | W166: 1.035069266 | X166: 1.20266811 | Z166: 1.53367305 | AA166: 1.183727847 | AB166: 1.263773104
A167: Oxoglutaric acid | B167: 487894.4165 | C167: 434817.9069 | D167: 317444.7306 | F167: 714462.3088 | G167: 743057.2648 | H167: 374856.6607 | K167: Oxoglutaric acid | L167: 0.00139124418 | M167: 0.001364345608 | N167: 0.001114094535 | P167: 0.00242301893 | Q167: 0.003170137648 | R167: 0.001682017249 | U167: Oxoglutaric acid | V167: 1.07857184 | W167: 1.057718533 | X167: 0.8637096273 | Z167: =P167/AVERAGE($L167:$N167) -> 1.878462475 | AA167: 2.457671518 | AB167: 1.303995707
A168: Palmitic acid | B168: 40122.16256 | C168: 14207.02231 | D168: 12275.78888 | F168: 40714.34821 | G168: 0 | H168: 0 | K168: Palmitic acid | L168: 0.0001144094363 | M168: 4.457794445e-05 | N168: 4.308274162e-05 | P168: 0.0001380781536 | Q168: 0 | R168: 0 | U168: Palmitic acid | V168: 1.698560405 | W168: 0.6618189359 | X168: 0.6396206591 | Z168: 2.049954026 | AA168: 0 | AB168: 0
A169: Pantothenic acid | B169: 0 | C169: 0 | D169: 0 | F169: 0 | G169: 0 | H169: 0 | K169: Pantothenic acid | L169: 0 | M169: 0 | N169: 0 | P169: 0 | Q169: 0 | R169: 0 | U169: Pantothenic acid
A170: Phosphocreatine | B170: 0 | C170: 0 | D170: 0 | F170: 0 | G170: 0 | H170: 0 | K170: Phosphocreatine | L170: 0 | M170: 0 | N170: 0 | P170: 0 | Q170: 0 | R170: 0 | U170: Phosphocreatine
A171: Phosphoenolpyruvic acid | B171: 716138.8388 | C171: 846587.5898 | D171: 1351688.855 | F171: 2082265.925 | G171: 1837917.716 | H171: 2883734.398 | K171: Phosphoenolpyruvic acid | L171: 0.00204208935 | M171: 0.002656371879 | N171: 0.004743846791 | P171: 0.007061771755 | Q171: 0.007841188591 | R171: 0.01293958866 | U171: Phosphoenolpyruvic acid | V171: 0.6488104429 | W171: 0.8439796309 | X171: 1.507209926 | Z171: 2.243658565 | AA171: 2.491294048 | AB171: 4.111152264
A172: Phosphorylcholine | B172: 0 | C172: 0 | D172: 0 | F172: 0 | G172: 0 | H172: 0 | K172: Phosphorylcholine | L172: 0 | M172: 0 | N172: 0 | P172: 0 | Q172: 0 | R172: 0 | U172: Phosphorylcholine
A173: Phosphoserine | B173: 116035.1848 | C173: 131186.5295 | D173: 267115.3572 | F173: 807193.4748 | G173: 795228.0536 | H173: 827200.4934 | K173: Phosphoserine | L173: 0.0003308774811 | M173: 0.0004116292421 | N173: 0.0009374600709 | P173: 0.002737506297 | Q173: 0.003392716163 | R173: 0.003711726758 | U173: Phosphoserine | V173: 0.5908643234 | W173: 0.735066747 | X173: 1.67406893 | Z173: 4.888500726 | AA173: 6.058541468 | AB173: 6.628214507
A174: Propionylcarnitine | B174: 16077.00279 | C174: 17312.35415 | D174: 14692.38697 | F174: 0 | G174: 0 | H174: 10865.92884 | K174: Propionylcarnitine | L174: 4.584401011e-05 | M174: 5.432166887e-05 | N174: 5.156396202e-05 | P174: 0 | Q174: 0 | R174: 4.87564492e-05 | U174: Propionylcarnitine | V174: 0.9064282327 | W174: 1.074048588 | X174: 1.01952318 | Z174: 0 | AA174: 0 | AB174: 0.964013008
A175: Purine | B175: 0 | C175: 0 | D175: 0 | F175: 0 | G175: 0 | H175: 0 | K175: Purine | L175: 0 | M175: 0 | N175: 0 | P175: 0 | Q175: 0 | R175: 0 | U175: Purine
A176: Pyridoxine | B176: 0 | C176: 0 | D176: 0 | F176: 0 | G176: 0 | H176: 0 | K176: Pyridoxine | L176: 0 | M176: 0 | N176: 0 | P176: 0 | Q176: 0 | R176: 0 | U176: Pyridoxine
A177: Pyroglutamic acid | B177: 700496.3504 | C177: 593563.7305 | D177: 437796.5878 | F177: 423852.0511 | G177: 384913.4305 | H177: 217293.7616 | K177: Pyroglutamic acid | L177: 0.001997484369 | M177: 0.001862448754 | N177: 0.001536477815 | P177: 0.001437446777 | Q177: 0.001642172973 | R177: 0.0009750176357 | U177: Pyroglutamic acid | V177: 1.11045159 | W177: 1.03538191 | X177: 0.8541665001 | Z177: 0.7991126662 | AA177: 0.9129250858 | AB177: 0.5420367242
A178: Pyruvic acid | B178: 1039005.61 | C178: 596887.4997 | D178: 871330.3784 | F178: 1728129.877 | G178: 1642749.945 | H178: 1396892.234 | K178: Pyruvic acid | L178: 0.002962752717 | M178: 0.001872877879 | N178: 0.003057995044 | P178: 0.005860758999 | Q178: 0.007008535807 | R178: 0.006267987416 | U178: Pyruvic acid | V178: 1.12600452 | W178: 0.7117937806 | X178: 1.162201699 | Z178: 2.227401932 | AA178: 2.663618518 | AB178: 2.382170514
A179: Riboflavin | B179: 0 | C179: 0 | D179: 0 | F179: 0 | G179: 0 | H179: 0 | K179: Riboflavin | L179: 0 | M179: 0 | N179: 0 | P179: 0 | Q179: 0 | R179: 0 | U179: Riboflavin
A180: S-Adenosylhomocysteine | B180: 212244.7579 | C180: 189692.3872 | D180: 197981.6293 | F180: 71301.61951 | G180: 85288.52681 | H180: 79980.9641 | K180: S-Adenosylhomocysteine | L180: 0.0006052216917 | M180: 0.0005952054212 | N180: 0.0006948304065 | P180: 0.0002418114597 | Q180: 0.0003638701654 | R180: 0.0003588821416 | U180: S-Adenosylhomocysteine | V180: 0.9580044171 | W180: 0.942149679 | X180: 1.099845904 | Z180: 0.3827629606 | AA180: 0.5759694843 | AB180: 0.5680739497
A181: S-Adenosylmethionine | B181: 7132845.369 | C181: 6212039.851 | D181: 6953124.17 | F181: 3174628.913 | G181: 2310429.069 | H181: 3137854.733 | K181: S-Adenosylmethionine | L181: 0.0203395023 | M181: 0.01949176691 | N181: 0.02440247669 | P181: 0.01076639853 | Q181: 0.009857084404 | R181: 0.01407985061 | U181: S-Adenosylmethionine | V181: 0.9499447066 | W181: 0.9103517149 | X181: 1.139703579 | Z181: 0.5028384245 | AA181: 0.4603694335 | AB181: 0.6575912902
A182: Sedoheptulose 1,7-bisphosphate | B182: 10931.38094 | C182: 0 | D182: 14875.71341 | F182: 23488.24973 | G182: 10713.54854 | H182: 20191.35091 | K182: Sedoheptulose 1,7-bisphosphate | L182: 3.117112965e-05 | M182: 0 | N182: 5.220735901e-05 | P182: 7.965776925e-05 | Q182: 4.570767986e-05 | R182: 9.060049899e-05 | U182: Sedoheptulose 1,7-bisphosphate | V182: 1.121552938 | W182: 0 | X182: 1.878447062 | Z182: 2.866126642 | AA182: 1.644585333 | AB182: 3.259851567
A183: Succinic acid | B183: 1396097.895 | C183: 1522778.058 | D183: 614664.3371 | F183: 649064.6481 | G183: 358219.2761 | H183: 289247.1922 | K183: Succinic acid | L183: 0.003981011067 | M183: 0.004778081867 | N183: 0.002157207579 | P183: 0.002201230086 | Q183: 0.001528286536 | R183: 0.001297879476 | U183: Succinic acid | V183: 1.094055004 | W183: 1.313104708 | X183: 0.5928402877 | Z183: 0.6049384816 | AA183: 0.420001227 | AB183: 0.3566811324
A184: Succinyl-CoA | B184: 0 | C184: 0 | D184: 0 | F184: 0 | G184: 0 | H184: 0 | K184: Succinyl-CoA | L184: 0 | M184: 0 | N184: 0 | P184: 0 | Q184: 0 | R184: 0 | U184: Succinyl-CoA
A185: Taurine | B185: 0 | C185: 0 | D185: 0 | F185: 0 | G185: 0 | H185: 0 | K185: Taurine | L185: 0 | M185: 0 | N185: 0 | P185: 0 | Q185: 0 | R185: 0 | U185: Taurine
A186: Thiamine monophosphate | B186: 0 | C186: 0 | D186: 0 | F186: 0 | G186: 0 | H186: 0 | K186: Thiamine monophosphate | L186: 0 | M186: 0 | N186: 0 | P186: 0 | Q186: 0 | R186: 0 | U186: Thiamine monophosphate
A187: Thiamine | B187: 0 | C187: 0 | D187: 0 | F187: 0 | G187: 0 | H187: 0 | K187: Thiamine | L187: 0 | M187: 0 | N187: 0 | P187: 0 | Q187: 0 | R187: 0 | U187: Thiamine
A188: Thymidine 5-triphosphate | B188: 129330.7794 | C188: 114221.1555 | D188: 139659.4555 | F188: 140879.3276 | G188: 106445.5432 | H188: 118886.591 | K188: Thymidine 5-triphosphate | L188: 0.0003687902301 | M188: 0.0003583963067 | N188: 0.0004901446493 | P188: 0.0004777764668 | Q188: 0.0004541332678 | R188: 0.0005334553649 | U188: Thymidine 5-triphosphate | V188: 0.9088493772 | W188: 0.8832345152 | X188: 1.207916108 | Z188: 1.177435867 | AA188: 1.119169392 | AB188: 1.314651356
A189: Thymidine | B189: 0 | C189: 0 | D189: 0 | F189: 0 | G189: 0 | H189: 0 | K189: Thymidine | L189: 0 | M189: 0 | N189: 0 | P189: 0 | Q189: 0 | R189: 0 | U189: Thymidine
A190: Thymine | B190: 0 | C190: 0 | D190: 0 | F190: 0 | G190: 0 | H190: 0 | K190: Thymine | L190: 0 | M190: 0 | N190: 0 | P190: 0 | Q190: 0 | R190: 0 | U190: Thymine
A191: Uracil | B191: 197322.891 | C191: 169851.607 | D191: 67853.31057 | F191: 29495.17537 | G191: 0 | H191: 0 | K191: Uracil | L191: 0.000562671583 | M191: 0.0005329502085 | N191: 0.00023813595 | P191: 0.000100029585 | Q191: 0 | R191: 0 | U191: Uracil | V191: 1.265608211 | W191: 1.198756398 | X191: 0.5356353914 | Z191: 0.224994949 | AA191: 0 | AB191: 0
A192: Ureidopropionic acid | B192: 0 | C192: 0 | D192: 0 | F192: 0 | G192: 0 | H192: 0 | K192: Ureidopropionic acid | L192: 0 | M192: 0 | N192: 0 | P192: 0 | Q192: 0 | R192: 0 | U192: Ureidopropionic acid
A193: Ureidosuccinic acid | B193: 308506.3416 | C193: 311469.9608 | D193: 275403.5723 | F193: 244200.2857 | G193: 274450.1463 | H193: 240311.2971 | K193: Ureidosuccinic acid | L193: 0.0008797142122 | M193: 0.0009773118045 | N193: 0.0009665481429 | P193: 0.0008281779288 | Q193: 0.001170898641 | R193: 0.001078299492 | U193: Ureidosuccinic acid | V193: 0.9346815374 | W193: 1.038377336 | X193: 1.026941127 | Z193: 0.8799251041 | AA193: 1.24406009 | AB193: 1.145675053
A194: Uric acid | B194: 105618.1904 | C194: 78662.67836 | D194: 51520.48922 | F194: 15914.95774 | G194: 13905.25284 | H194: 13966.67368 | K194: Uric acid | L194: =B194/B$206 -> 0.0003011731387 | M194: =C194/C$206 -> 0.0002468230449 | N194: =D194/D$206 -> 0.0001808147685 | P194: =F194/F$206 -> 5.397379737e-05 | Q194: =G194/G$206 -> 5.932458725e-05 | R194: =H194/H$206 -> 6.26697842e-05 | U194: Uric acid | V194: =L194/AVERAGE($L194:$N194) -> 1.239717122 | W194: =M194/AVERAGE($L194:$N194) -> 1.015996168 | X194: =N194/AVERAGE($L194:$N194) -> 0.7442867097 | Z194: 0.2221720072 | AA194: 0.2441974304 | AB194: 0.2579672438
A195: Uridine 5-diphosphate | B195: 4725602.031 | C195: 4282087.952 | D195: 4795819.215 | F195: 2525474.103 | G195: 2930408.754 | H195: 3287519.413 | K195: Uridine 5-diphosphate | L195: 0.01347518254 | M195: 0.01343607933 | N195: 0.01683126372 | P195: 0.008564862673 | Q195: 0.0125021308 | R195: 0.01475141017 | U195: Uridine 5-diphosphate | V195: 0.9241704056 | W195: 0.9214885846 | X195: 1.15434101 | Z195: 0.5874052233 | AA195: 0.8574354565 | AB195: 1.011698111
A196: Uridine 5-monophosphate | B196: 1363181.307 | C196: 1258276.204 | D196: 1314371.204 | F196: 215813.0272 | G196: 272984.6634 | H196: 499961.212 | K196: Uridine 5-monophosphate | L196: 0.003887148523 | M196: 0.003948143778 | N196: 0.004612877877 | P196: 0.0007319057195 | Q196: 0.001164646387 | R196: 0.002243373189 | U196: Uridine 5-monophosphate | V196: 0.9367999796 | W196: 0.9514997918 | X196: 1.111700229 | Z196: 0.1763887485 | AA196: 0.2806789361 | AB196: 0.5406513143
A197: Uridine diphosphate glucose | B197: 8654100.821 | C197: 7706733.62 | D197: 7687538.912 | F197: 9497686.402 | G197: 9103958.803 | H197: 7907052.901 | K197: Uridine diphosphate glucose | L197: 0.02467740354 | M197: 0.02418172758 | N197: 0.02697995671 | P197: 0.03221034008 | Q197: 0.03884061689 | R197: 0.03547969333 | U197: Uridine diphosphate glucose | V197: 0.9761748558 | W197: 0.9565671847 | X197: 1.067257959 | Z197: 1.274158525 | AA197: 1.536435287 | AB197: 1.403485762
A198: Uridine diphosphate glucuronic acid | B198: 93927.81814 | C198: 63357.68587 | D198: 65020.12625 | F198: 135859.5958 | G198: 74140.99397 | H198: 87062.04686 | K198: Uridine diphosphate glucuronic acid | L198: 0.0002678377246 | M198: 0.0001987999554 | N198: 0.000228192691 | P198: 0.0004607526086 | Q198: 0.0003163109593 | R198: 0.0003906556289 | U198: Uridine diphosphate glucuronic acid | V198: 1.15641631 | W198: 0.8583387991 | X198: 0.9852448908 | Z198: 1.989345722 | AA198: 1.365704376 | AB198: 1.686694963
A199: Uridine diphosphate-N-acetylglucosamine | B199: 14281587.46 | C199: 12484877.42 | D199: 13010169.98 | F199: 12220148.32 | G199: 10469436.84 | H199: 10925420.8 | K199: Uridine diphosphate-N-acetylglucosamine | L199: 0.04072433453 | M199: 0.03917430126 | N199: 0.04566010355 | P199: 0.04144326487 | Q199: 0.04466621545 | R199: 0.04902339525 | U199: Uridine diphosphate-N-acetylglucosamine | V199: 0.9730346468 | W199: 0.9359993927 | X199: 1.09096596 | Z199: 0.9902121929 | AA199: 1.067218794 | AB199: 1.17132576
A200: Uridine triphosphate | B200: 998006.8876 | C200: 824260.1649 | D200: 1335404.072 | F200: 1303493.706 | G200: 1191132.312 | H200: 1258342.822 | K200: Uridine triphosphate | L200: 0.002845843747 | M200: 0.002586314221 | N200: 0.004686694203 | P200: 0.004420652966 | Q200: 0.005081779786 | R200: 0.005646303118 | U200: Uridine triphosphate | V200: 0.843725266 | W200: 0.7667809088 | X200: 1.389493825 | Z200: 1.3106189 | AA200: 1.506627343 | AB200: 1.67399514
... 5 more rows

Sheet d6 Isotope Sums Batch 2
A1: Compound | B1: NTC_4 | C1: NTC_5 | D1: NTC_6 | F1: Pkm2_4 | G1: Pkm2_5 | H1: Pkm2_6 | J1: NORMALIZED BY SUM | K1: Compound | L1: NTC_4 | M1: NTC_5 | N1: NTC_6 | P1: Pkm2_4 | Q1: Pkm2_5 | R1: Pkm2_6 | T1: FOLD OF NTC | U1: Compound | V1: NTC_4 | W1: NTC_5 | X1: NTC_6 | Z1: Pkm2_4 | AA1: Pkm2_5 | AB1: Pkm2_6
A2: 1-Methyladenosine | B2: 0 | C2: 0 | D2: 0 | F2: 0 | G2: 0 | H2: 0 | K2: 1-Methyladenosine | L2: 0 | M2: 0 | N2: 0 | P2: 0 | Q2: 0 | R2: 0 | U2: 1-Methyladenosine | V2: =L2/AVERAGE($L2:$N2) ->  | W2: =M2/AVERAGE($L2:$N2) ->  | X2: =N2/AVERAGE($L2:$N2) ->  | Z2: =P2/AVERAGE($L2:$N2) ->  | AA2: =Q2/AVERAGE($L2:$N2) ->  | AB2: =R2/AVERAGE($L2:$N2) -> 
A3: 1-Methylnicotinamide | B3: 0 | C3: 0 | D3: 0 | F3: 0 | G3: 0 | H3: 0 | K3: 1-Methylnicotinamide | L3: 0 | M3: 0 | N3: 0 | P3: 0 | Q3: 0 | R3: 0 | U3: 1-Methylnicotinamide
A4: 2-Hydroxycaproic acid | B4: 0 | C4: 0 | D4: 0 | F4: 0 | G4: 0 | H4: 0 | K4: 2-Hydroxycaproic acid | L4: 0 | M4: 0 | N4: 0 | P4: 0 | Q4: 0 | R4: 0 | U4: 2-Hydroxycaproic acid
A5: 2-Hydroxyvaleric acid | B5: 0 | C5: 0 | D5: 0 | F5: 0 | G5: 0 | H5: 0 | K5: 2-Hydroxyvaleric acid | L5: 0 | M5: 0 | N5: 0 | P5: 0 | Q5: 0 | R5: 0 | U5: 2-Hydroxyvaleric acid
A6: 3-Hydroxymethylglutaric acid | B6: 2581893.545 | C6: 2737870.796 | D6: 2914723.996 | F6: 2027762.033 | G6: 2202457.649 | H6: 2323566.916 | K6: 3-Hydroxymethylglutaric acid | L6: 0.007871413236 | M6: 0.008982412953 | N6: 0.009970197638 | P6: 0.006535610519 | Q6: 0.006735655537 | R6: 0.008122960055 | U6: 3-Hydroxymethylglutaric acid | V6: 0.8803392012 | W6: 1.004593458 | X6: 1.115067341 | Z6: 0.7309429668 | AA6: 0.7533160103 | AB6: 0.9084722085
A7: 3-Indolepropionic acid | B7: 0 | C7: 0 | D7: 0 | F7: 0 | G7: 0 | H7: 0 | K7: 3-Indolepropionic acid | L7: 0 | M7: 0 | N7: 0 | P7: 0 | Q7: 0 | R7: 0 | U7: 3-Indolepropionic acid
A8: 3-Methylhistidine | B8: 0 | C8: 0 | D8: 0 | F8: 0 | G8: 0 | H8: 0 | K8: 3-Methylhistidine | L8: 0 | M8: 0 | N8: 0 | P8: 0 | Q8: 0 | R8: 0 | U8: 3-Methylhistidine
A9: 3-Phosphoglyceric acid | B9: 1294041.629 | C9: 505414.368 | D9: 356748.759 | F9: 2410802.531 | G9: 959838.1093 | H9: 1244845.503 | K9: 3-Phosphoglyceric acid | L9: 0.003945141901 | M9: 0.001658164648 | N9: 0.001220306156 | P9: 0.00777017526 | Q9: 0.002935420292 | R9: 0.004351856718 | U9: 3-Phosphoglyceric acid | V9: 1.73448087 | W9: 0.7290117655 | X9: 0.5365073643 | Z9: 3.416156043 | AA9: 1.290556961 | AB9: 1.91329296
A10: 4-Acetamidobutanoic acid | B10: 0 | C10: 0 | D10: 0 | F10: 0 | G10: 0 | H10: 0 | K10: 4-Acetamidobutanoic acid | L10: 0 | M10: 0 | N10: 0 | P10: 0 | Q10: 0 | R10: 0 | U10: 4-Acetamidobutanoic acid
A11: 4-Guanidinobutanoic acid | B11: 0 | C11: 0 | D11: 0 | F11: 0 | G11: 0 | H11: 0 | K11: 4-Guanidinobutanoic acid | L11: 0 | M11: 0 | N11: 0 | P11: 0 | Q11: 0 | R11: 0 | U11: 4-Guanidinobutanoic acid
A12: 4-Hydroxyproline | B12: 0 | C12: 0 | D12: 0 | F12: 0 | G12: 0 | H12: 0 | K12: 4-Hydroxyproline | L12: 0 | M12: 0 | N12: 0 | P12: 0 | Q12: 0 | R12: 0 | U12: 4-Hydroxyproline
A13: 4-Pyridoxic acid | B13: 0 | C13: 0 | D13: 0 | F13: 0 | G13: 0 | H13: 0 | K13: 4-Pyridoxic acid | L13: 0 | M13: 0 | N13: 0 | P13: 0 | Q13: 0 | R13: 0 | U13: 4-Pyridoxic acid
A14: 4-Trimethylammoniobutanoic acid | B14: 0 | C14: 0 | D14: 0 | F14: 0 | G14: 0 | H14: 0 | K14: 4-Trimethylammoniobutanoic acid | L14: 0 | M14: 0 | N14: 0 | P14: 0 | Q14: 0 | R14: 0 | U14: 4-Trimethylammoniobutanoic acid
A15: 5-Thymidylic acid | B15: 566102.9661 | C15: 231582.5122 | D15: 599561.2187 | F15: 999416.2361 | G15: 782081.367 | H15: 964965.2949 | K15: 5-Thymidylic acid | L15: 0.001725876882 | M15: 0.0007597764511 | N15: 0.002050878181 | P15: 0.003221184321 | Q15: 0.002391796588 | R15: 0.003373423201 | U15: 5-Thymidylic acid | V15: 1.141319228 | W15: 0.5024387786 | X15: 1.356241993 | Z15: 2.130163305 | AA15: 1.581690713 | AB15: 2.230838598
A16: 6-Phosphogluconic acid | B16: 0 | C16: 0 | D16: 0 | F16: 0 | G16: 0 | H16: 0 | K16: 6-Phosphogluconic acid | L16: 0 | M16: 0 | N16: 0 | P16: 0 | Q16: 0 | R16: 0 | U16: 6-Phosphogluconic acid
A17: 6-Phosphonoglucono-D-lactone | B17: 0 | C17: 0 | D17: 0 | F17: 0 | G17: 0 | H17: 0 | K17: 6-Phosphonoglucono-D-lactone | L17: 0 | M17: 0 | N17: 0 | P17: 0 | Q17: 0 | R17: 0 | U17: 6-Phosphonoglucono-D-lactone
A18: Acetylcholine | B18: 0 | C18: 0 | D18: 0 | F18: 0 | G18: 0 | H18: 0 | K18: Acetylcholine | L18: 0 | M18: 0 | N18: 0 | P18: 0 | Q18: 0 | R18: 0 | U18: Acetylcholine
A19: Acetyl-CoA | B19: 24568.03141 | C19: 19300.06621 | D19: 19298.79783 | F19: 27049.54018 | G19: 30544.76275 | H19: 21271.71171 | K19: Acetyl-CoA | L19: 7.490050396e-05 | M19: 6.331970266e-05 | N19: 6.601408188e-05 | P19: 8.718244868e-05 | Q19: 9.341337411e-05 | R19: 7.436379961e-05 | U19: Acetyl-CoA | V19: 1.100214433 | W19: 0.9301038988 | X19: 0.9696816685 | Z19: 1.280624071 | AA19: 1.372150212 | AB19: 1.092330776
A20: Acetylcysteine | B20: 0 | C20: 0 | D20: 0 | F20: 0 | G20: 0 | H20: 0 | K20: Acetylcysteine | L20: 0 | M20: 0 | N20: 0 | P20: 0 | Q20: 0 | R20: 0 | U20: Acetylcysteine
A21: Adenine | B21: 233790.1617 | C21: 168647.4955 | D21: 174002.4158 | F21: 287768.0195 | G21: 242105.1147 | H21: 236315.3446 | K21: Adenine | L21: 0.0007127555577 | M21: 0.0005532991003 | N21: 0.0005951981999 | P21: 0.0009274952705 | Q21: 0.0007404168053 | R21: 0.0008261350646 | U21: Adenine | V21: 1.148831909 | W21: 0.891817194 | X21: 0.9593508975 | Z21: 1.494953144 | AA21: 1.193416793 | AB21: 1.331578986
A22: Adenosine monophosphate | B22: 11768910.49 | C22: 12553813.27 | D22: 14334279.24 | F22: 12115418.52 | G22: 12873077.63 | H22: 12106544.38 | K22: Adenosine monophosphate | L22: 0.03587985184 | M22: 0.04118658011 | N22: 0.04903229166 | P22: 0.03904879144 | Q22: 0.0393690279 | R22: 0.04232328138 | U22: Adenosine monophosphate | V22: 0.8536133628 | W22: 0.9798651152 | X22: 1.166521522 | Z22: 0.9290052347 | AA22: 0.9366239429 | AB22: 1.006908242
A23: Adenosine triphosphate | B23: 2183573.119 | C23: 1464709.927 | D23: 1092398.874 | F23: 935131.7378 | G23: 639635.4969 | H23: 596091.0683 | K23: Adenosine triphosphate | L23: 0.006657054622 | M23: 0.004805423777 | N23: 0.003736694345 | P23: 0.003013991151 | Q23: 0.001956162189 | R23: 0.0020838754 | U23: Adenosine triphosphate | V23: 1.313963872 | W23: 0.9484905246 | X23: 0.7375456036 | Z23: 0.5948990517 | AA23: 0.3861056562 | AB23: 0.411313583
A24: Adenosine | B24: 565058.7576 | C24: 647572.6791 | D24: 1320761.201 | F24: 1533250.006 | G24: 1708435.992 | H24: 2325798.428 | K24: Adenosine | L24: 0.001722693406 | M24: 0.00212455797 | N24: 0.004517837786 | P24: 0.004941765704 | Q24: 0.005224816173 | R24: 0.0081307612 | U24: Adenosine | V24: 0.6178153177 | W24: 0.7619373549 | X24: 1.620247327 | Z24: 1.772282019 | AA24: 1.873793359 | AB24: 2.915962177
A25: ADP | B25: 4055199.274 | C25: 4532166.008 | D25: 3803089.074 | F25: 3338355.435 | G25: 2649136.87 | H25: 2448229.937 | K25: ADP | L25: 0.01236307721 | M25: 0.01486914091 | N25: 0.01300896749 | P25: 0.01075973933 | Q25: 0.00810171012 | R25: 0.008558769643 | U25: ADP | V25: 0.9216734316 | W25: 1.108501702 | X25: 0.9698248667 | Z25: 0.8021438113 | AA25: 0.6039864381 | AB25: 0.6380604483
A26: ADP-glucose | B26: 158902.859 | C26: 154229.4295 | D26: 162679.6042 | F26: 152282.1771 | G26: 164479.6097 | H26: 157344.9697 | K26: ADP-glucose | L26: 0.0004844468009 | M26: 0.0005059962755 | N26: 0.0005564670302 | P26: 0.0004908154815 | Q26: 0.0005030189772 | R26: 0.0005500624469 | U26: ADP-glucose | V26: 0.9395118673 | W26: 0.9813038392 | X26: 1.079184294 | Z26: 0.9518629675 | AA26: 0.975529816 | AB26: 1.066763565
A27: AICAR | B27: 0 | C27: 0 | D27: 0 | F27: 0 | G27: 0 | H27: 0 | K27: AICAR | L27: 0 | M27: 0 | N27: 0 | P27: 0 | Q27: 0 | R27: 0 | U27: AICAR
A28: Allantoin | B28: 0 | C28: 0 | D28: 0 | F28: 0 | G28: 0 | H28: 0 | K28: Allantoin | L28: 0 | M28: 0 | N28: 0 | P28: 0 | Q28: 0 | R28: 0 | U28: Allantoin
A29: Aminoadipic acid | B29: 0 | C29: 0 | D29: 0 | F29: 0 | G29: 0 | H29: 0 | K29: Aminoadipic acid | L29: 0 | M29: 0 | N29: 0 | P29: 0 | Q29: 0 | R29: 0 | U29: Aminoadipic acid
A30: Anserine | B30: 0 | C30: 0 | D30: 0 | F30: 0 | G30: 0 | H30: 0 | K30: Anserine | L30: 0 | M30: 0 | N30: 0 | P30: 0 | Q30: 0 | R30: 0 | U30: Anserine
A31: Argininosuccinic acid | B31: 84230.08495 | C31: 78225.96686 | D31: 68615.20091 | F31: 48563.73077 | G31: 49111.83104 | H31: 45353.80912 | K31: Argininosuccinic acid | L31: 0.0002567920769 | M31: 0.0002566439362 | N31: 0.0002347073394 | P31: 0.0001565241012 | Q31: 0.0001501960216 | R31: 0.0001585524296 | U31: Argininosuccinic acid | V31: 1.029717404 | W31: 1.029123371 | X31: 0.9411592255 | Z31: 0.6276501718 | AA31: 0.6022750364 | AB31: 0.6357836197
A32: Ascorbic acid | B32: 0 | C32: 0 | D32: 0 | F32: 0 | G32: 0 | H32: 0 | K32: Ascorbic acid | L32: 0 | M32: 0 | N32: 0 | P32: 0 | Q32: 0 | R32: 0 | U32: Ascorbic acid
A33: Asymmetric dimethylarginine | B33: 0 | C33: 0 | D33: 0 | F33: 0 | G33: 0 | H33: 0 | K33: Asymmetric dimethylarginine | L33: 0 | M33: 0 | N33: 0 | P33: 0 | Q33: 0 | R33: 0 | U33: Asymmetric dimethylarginine
A34: Betaine | B34: 0 | C34: 0 | D34: 16094.47429 | F34: 0 | G34: 0 | H34: 0 | K34: Betaine | L34: 0 | M34: 0 | N34: 5.505327083e-05 | P34: 0 | Q34: 0 | R34: 0 | U34: Betaine | V34: 0 | W34: 0 | X34: 3 | Z34: 0 | AA34: 0 | AB34: 0
A35: Butyrylcarnitine | B35: 156011.4529 | C35: 109574.5027 | D35: 96409.74704 | F35: 88250.20613 | G35: 129500.6109 | H35: 91340.98429 | K35: Butyrylcarnitine | L35: 0.0004756317774 | M35: 0.0003594922863 | N35: 0.0003297822482 | P35: 0.0002844362239 | Q35: 0.0003960446218 | R35: 0.0003193190442 | U35: Butyrylcarnitine | V35: 1.224901365 | W35: 0.9258056618 | X35: 0.8492929728 | Z35: 0.7325127033 | AA35: 1.019939418 | AB35: 0.8223469328
A36: Caprylic acid | B36: 0 | C36: 0 | D36: 0 | F36: 0 | G36: 0 | H36: 0 | K36: Caprylic acid | L36: 0 | M36: 0 | N36: 0 | P36: 0 | Q36: 0 | R36: 0 | U36: Caprylic acid
A37: Carnosine | B37: 0 | C37: 37559.69903 | D37: 0 | F37: 0 | G37: 0 | H37: 19768.05903 | K37: Carnosine | L37: 0 | M37: 0.000123225949 | N37: 0 | P37: 0 | Q37: 0 | R37: 6.910717858e-05 | U37: Carnosine | V37: 0 | W37: 3 | X37: 0 | Z37: 0 | AA37: 0 | AB37: 1.682450308
A38: CDP | B38: 269587.7883 | C38: 285823.2441 | D38: 273068.662 | F38: 254271.811 | G38: 209000.8435 | H38: 227385.4255 | K38: CDP | L38: 0.000821891704 | M38: 0.0009377295722 | N38: 0.0009340673534 | P38: 0.0008195347856 | Q38: 0.0006391758267 | R38: 0.000794916951 | U38: CDP | V38: 0.9153526822 | W38: 1.044362992 | X38: 1.040284326 | Z38: 0.912727748 | AA38: 0.711859366 | AB38: 0.8853105095
A39: CDP-Ethanolamine | B39: 332223.033 | C39: 258313.2911 | D39: 204047.9247 | F39: 234336.7666 | G39: 244541.1653 | H39: 200724.5887 | K39: CDP-Ethanolamine | L39: 0.001012847638 | M39: 0.0008474748536 | N39: 0.0006979728234 | P39: 0.0007552828253 | Q39: 0.0007478668454 | R39: 0.0007017133031 | U39: CDP-Ethanolamine | V39: 1.187721721 | W39: 0.9937963555 | X39: 0.8184819233 | Z39: 0.885686833 | AA39: 0.8769904408 | AB39: 0.8228682188
A40: Choline | B40: 0 | C40: 0 | D40: 0 | F40: 0 | G40: 0 | H40: 0 | K40: Choline | L40: 0 | M40: 0 | N40: 0 | P40: 0 | Q40: 0 | R40: 0 | U40: Choline
A41: cis-Aconitic acid | B41: 3271922.915 | C41: 2552509.639 | D41: 3291002.552 | F41: 3434342.176 | G41: 3238192.928 | H41: 3065491.418 | K41: cis-Aconitic acid | L41: 0.009975104278 | M41: 0.008374279631 | N41: 0.01125730804 | P41: 0.01106911092 | Q41: 0.009903187983 | R41: 0.01071665471 | U41: cis-Aconitic acid | V41: 1.010761786 | W41: 0.848552717 | X41: 1.140685497 | Z41: 1.121615776 | AA41: 1.00347462 | AB41: 1.085901937
A42: Citicoline | B42: 515569.6727 | C42: 410866.6701 | D42: 229031.2831 | F42: 341082.624 | G42: 619904.1484 | H42: 709884.7243 | K42: Citicoline | L42: 0.00157181614 | M42: 0.001347972338 | N42: 0.0007834316942 | P42: 0.001099331751 | Q42: 0.001895818887 | R42: 0.002481686763 | U42: Citicoline | V42: 1.273337312 | W42: 1.092000158 | X42: 0.6346625296 | Z42: 0.8905749856 | AA42: 1.535813804 | AB42: 2.010428746
A43: Citric acid | B43: 25101691.73 | C43: 22804298.25 | D43: 23435115.79 | F43: 21883060.24 | G43: 21845826.89 | H43: 20476008.61 | K43: Citric acid | L43: 0.07652747301 | M43: 0.07481639538 | N43: 0.08016290272 | P43: 0.07053054373 | Q43: 0.06680989526 | R43: 0.07158210027 | U43: Citric acid | V43: 0.9916877071 | W43: 0.9695145635 | X43: 1.038797729 | Z43: 0.9139759938 | AA43: 0.8657616571 | AB43: 0.9276026778
A44: Citrulline | B44: 0 | C44: 0 | D44: 0 | F44: 0 | G44: 0 | H44: 0 | K44: Citrulline | L44: 0 | M44: 0 | N44: 0 | P44: 0 | Q44: 0 | R44: 0 | U44: Citrulline
A45: Coenzyme A | B45: 19894.30511 | C45: 0 | D45: 47237.2473 | F45: 19415.18116 | G45: 27396.99694 | H45: 24972.4746 | K45: Coenzyme A | L45: 6.065172472e-05 | M45: 0 | N45: 0.0001615812311 | P45: 6.257640699e-05 | Q45: 8.378673441e-05 | R45: 8.730130052e-05 | U45: Coenzyme A | V45: 0.8187587368 | W45: 0 | X45: 2.181241263 | Z45: 0.8447406925 | AA45: 1.131066283 | AB45: 1.178510634
A46: Creatine | B46: 13218.50608 | C46: 0 | D46: 0 | F46: 0 | G46: 0 | H46: 0 | K46: Creatine | L46: 4.029923076e-05 | M46: 0 | N46: 0 | P46: 0 | Q46: 0 | R46: 0 | U46: Creatine | V46: 3 | W46: 0 | X46: 0 | Z46: 0 | AA46: 0 | AB46: 0
A47: Creatinine | B47: 0 | C47: 0 | D47: 0 | F47: 0 | G47: 0 | H47: 0 | K47: Creatinine | L47: 0 | M47: 0 | N47: 0 | P47: 0 | Q47: 0 | R47: 0 | U47: Creatinine
A48: Cyclic AMP | B48: 0 | C48: 0 | D48: 0 | F48: 0 | G48: 0 | H48: 0 | K48: Cyclic AMP | L48: 0 | M48: 0 | N48: 0 | P48: 0 | Q48: 0 | R48: 0 | U48: Cyclic AMP
A49: Cytidine monophosphate | B49: 384666.5802 | C49: 420489.3856 | D49: 488495.9533 | F49: 509642.1871 | G49: 540600.5058 | H49: 542970.9096 | K49: Cytidine monophosphate | L49: 0.001172732167 | M49: 0.001379542566 | N49: 0.0016709648 | P49: 0.001642610319 | Q49: 0.001653288903 | R49: 0.001898172581 | U49: Cytidine monophosphate | V49: 0.8330563475 | W49: 0.979965182 | X49: 1.18697847 | Z49: 1.166836718 | AA49: 1.174422305 | AB49: 1.34837669
A50: Cytidine triphosphate | B50: 152007.3146 | C50: 110238.2461 | D50: 69650.47412 | F50: 53071.34349 | G50: 49056.81093 | H50: 43483.95308 | K50: Cytidine triphosphate | L50: 0.0004634243695 | M50: 0.0003616698972 | N50: 0.0002382486279 | P50: 0.0001710524338 | Q50: 0.0001500277566 | R50: 0.0001520155978 | U50: Cytidine triphosphate | V50: 1.307455117 | W50: 1.020376115 | X50: 0.6721687681 | Z50: 0.482588734 | AA50: 0.4232719964 | AB50: 0.4288802754
A51: Cytidine | B51: 345991.2216 | C51: 278251.8233 | D51: 389445.1569 | F51: 514783.164 | G51: 805217.2714 | H51: 868995.9686 | K51: Cytidine | L51: 0.001054822685 | M51: 0.0009128892369 | N51: 0.001332148495 | P51: 0.001659180026 | Q51: 0.002462551856 | R51: 0.003037923932 | U51: Cytidine | V51: 0.9589702761 | W51: 0.8299344108 | X51: 1.211095313 | Z51: 1.508409281 | AA51: 2.238778201 | AB51: 2.76186585
A52: Cytosine | B52: 41977.10434 | C52: 10666.72493 | D52: 0 | F52: 0 | G52: 0 | H52: 0 | K52: Cytosine | L52: 0.0001279755068 | M52: 3.499541624e-05 | N52: 0 | P52: 0 | Q52: 0 | R52: 0 | U52: Cytosine | V52: 2.355797667 | W52: 0.6442023325 | X52: 0 | Z52: 0 | AA52: 0 | AB52: 0
A53: D-2-Hydroxyglutaric acid | B53: 0 | C53: 0 | D53: 0 | F53: 0 | G53: 0 | H53: 0 | K53: D-2-Hydroxyglutaric acid | L53: 0 | M53: 0 | N53: 0 | P53: 0 | Q53: 0 | R53: 0 | U53: D-2-Hydroxyglutaric acid
A54: dCDP | B54: 0 | C54: 11424.07337 | D54: 13554.14948 | F54: 0 | G54: 0 | H54: 0 | K54: dCDP | L54: 0 | M54: 3.748012679e-05 | N54: 4.636375497e-05 | P54: 0 | Q54: 0 | R54: 0 | U54: dCDP | V54: 0 | W54: 1.3410684 | X54: 1.6589316 | Z54: 0 | AA54: 0 | AB54: 0
A55: dCMP | B55: 24428.54693 | C55: 0 | D55: 20706.27017 | F55: 36663.6493 | G55: 49542.92068 | H55: 43659.26663 | K55: dCMP | L55: 7.447525792e-05 | M55: 0 | N55: 7.082852656e-05 | P55: 0.0001181693553 | Q55: 0.0001515143994 | R55: 0.0001526284767 | U55: dCMP | V55: 1.537645936 | W55: 0 | X55: 1.462354064 | Z55: 2.439771731 | AA55: 3.128226838 | AB55: 3.151228522
A56: dCTP | B56: 0 | C56: 0 | D56: 0 | F56: 0 | G56: 0 | H56: 0 | K56: dCTP | L56: 0 | M56: 0 | N56: 0 | P56: 0 | Q56: 0 | R56: 0 | U56: dCTP
A57: Deoxyadenosine monophosphate | B57: 26438.44347 | C57: 25714.2932 | D57: 27090.23038 | F57: 11913.29183 | G57: 30212.85833 | H57: 0 | K57: Deoxyadenosine monophosphate | L57: 8.060282514e-05 | M57: 8.436351367e-05 | N57: 9.266570396e-05 | P57: 3.839732381e-05 | Q57: 9.2398329e-05 | R57: 0 | U57: Deoxyadenosine monophosphate | V57: 0.9385807481 | W57: 0.9823721393 | X57: 1.079047113 | Z57: 0.4471181853 | AA57: 1.075933661 | AB57: 0
A58: Deoxyadenosine triphosphate | B58: 0 | C58: 0 | D58: 0 | F58: 0 | G58: 0 | H58: 0 | K58: Deoxyadenosine triphosphate | L58: 0 | M58: 0 | N58: 0 | P58: 0 | Q58: 0 | R58: 0 | U58: Deoxyadenosine triphosphate
A59: Deoxyadenosine | B59: 0 | C59: 0 | D59: 0 | F59: 0 | G59: 0 | H59: 0 | K59: Deoxyadenosine | L59: 0 | M59: 0 | N59: 0 | P59: 0 | Q59: 0 | R59: 0 | U59: Deoxyadenosine
A60: Deoxyinosine | B60: 0 | C60: 0 | D60: 0 | F60: 0 | G60: 0 | H60: 0 | K60: Deoxyinosine | L60: 0 | M60: 0 | N60: 0 | P60: 0 | Q60: 0 | R60: 0 | U60: Deoxyinosine
A61: Deoxyribose 5-phosphate | B61: 0 | C61: 0 | D61: 0 | F61: 0 | G61: 0 | H61: 0 | K61: Deoxyribose 5-phosphate | L61: 0 | M61: 0 | N61: 0 | P61: 0 | Q61: 0 | R61: 0 | U61: Deoxyribose 5-phosphate
A62: Deoxyuridine | B62: 62581.65525 | C62: 52783.5928 | D62: 38761.09588 | F62: 14934.32318 | G62: 72831.73081 | H62: 19376.36914 | K62: Deoxyuridine | L62: 0.0001907925563 | M62: 0.0001731725355 | N62: 0.0001325874378 | P62: 4.813430673e-05 | Q62: 0.0002227372912 | R62: 6.77378695e-05 | U62: Deoxyuridine | V62: 1.152703158 | W62: 1.046249038 | X62: 0.8010478041 | Z62: 0.2908109648 | AA62: 1.345702285 | AB62: 0.4092489644
A63: D-Erythrose 4-phosphate | B63: 0 | C63: 0 | D63: 0 | F63: 0 | G63: 0 | H63: 0 | K63: D-Erythrose 4-phosphate | L63: 0 | M63: 0 | N63: 0 | P63: 0 | Q63: 0 | R63: 0 | U63: D-Erythrose 4-phosphate
A64: D-Fructose | B64: 0 | C64: 0 | D64: 0 | F64: 0 | G64: 0 | H64: 0 | K64: D-Fructose | L64: 0 | M64: 0 | N64: 0 | P64: 0 | Q64: 0 | R64: 0 | U64: D-Fructose
A65: D-Glucose | B65: 18850272.84 | C65: 1374136.657 | D65: 1372136.063 | F65: 1533679.652 | G65: 3254926.525 | H65: 3129701.042 | K65: D-Glucose | L65: 0.05746878583 | M65: 0.004508270778 | N65: 0.004693572274 | P65: 0.00494315048 | Q65: 0.009954363425 | R65: 0.0109411252 | U65: D-Glucose | V65: 2.585941671 | W65: 0.2028601284 | X65: 0.2111982001 | Z65: 0.2224285519 | AA65: 0.4479197328 | AB65: 0.4923213739
A66: D-Glucuronic acid | B66: 0 | C66: 0 | D66: 0 | F66: 0 | G66: 0 | H66: 0 | K66: D-Glucuronic acid | L66: 0 | M66: 0 | N66: 0 | P66: 0 | Q66: 0 | R66: 0 | U66: D-Glucuronic acid | V66: =L66/AVERAGE($L66:$N66) ->  | W66: =M66/AVERAGE($L66:$N66) ->  | X66: =N66/AVERAGE($L66:$N66) ->  | Z66: =P66/AVERAGE($L66:$N66) ->  | AA66: =Q66/AVERAGE($L66:$N66) ->  | AB66: =R66/AVERAGE($L66:$N66) -> 
A67: D-Glyceraldehyde 3-phosphate | B67: 658729.8888 | C67: 334938.2255 | D67: 263391.5062 | F67: 477445.0323 | G67: 425786.1142 | H67: 410031.839 | K67: D-Glyceraldehyde 3-phosphate | L67: 0.00200826838 | M67: 0.001098866119 | N67: 0.0009009653665 | P67: 0.001538836769 | Q67: 0.001302158341 | R67: 0.001433430742 | U67: D-Glyceraldehyde 3-phosphate | V67: 1.503157442 | W67: 0.8224840865 | X67: 0.6743584717 | Z67: 1.15179523 | AA67: 0.9746451319 | AB67: 1.072900469
A68: D-Ribose 5-phosphate | B68: 556724.9796 | C68: 495074.468 | D68: 511968.7605 | F68: 752788.089 | G68: 498659.7675 | H68: 539530.4978 | K68: D-Ribose 5-phosphate | L68: 0.001697286235 | M68: 0.00162424148 | N68: 0.001751256632 | P68: 0.002426285567 | Q68: 0.001525023841 | R68: 0.001886145242 | U68: D-Ribose 5-phosphate | V68: 1.003760136 | W68: 0.9605621109 | X68: 1.035677753 | Z68: 1.434883923 | AA68: 0.9018856728 | AB68: 1.11544969
A69: D-Ribose | B69: 0 | C69: 0 | D69: 0 | F69: 0 | G69: 0 | H69: 0 | K69: D-Ribose | L69: 0 | M69: 0 | N69: 0 | P69: 0 | Q69: 0 | R69: 0 | U69: D-Ribose
A70: D-Ribulose 5-phosphate | B70: 552673.5829 | C70: 492921.8645 | D70: 345561.2197 | F70: 688145.1435 | G70: 495305.8897 | H70: 600875.541 | K70: D-Ribulose 5-phosphate | L70: 0.001684934751 | M70: 0.001617179213 | N70: 0.001182037703 | P70: 0.002217937098 | Q70: 0.00151476686 | R70: 0.002100601443 | U70: D-Ribulose 5-phosphate | V70: 1.127259876 | W70: 1.081929872 | X70: 0.7908102518 | Z70: 1.483850634 | AA70: 1.013413666 | AB70: 1.405350398
A71: D-Ribulose | B71: 0 | C71: 0 | D71: 0 | F71: 0 | G71: 0 | H71: 0 | K71: D-Ribulose | L71: 0 | M71: 0 | N71: 0 | P71: 0 | Q71: 0 | R71: 0 | U71: D-Ribulose
A72: D-Sedoheptulose 7-phosphate | B72: 366134.4018 | C72: 426944.0996 | D72: 535368.9667 | F72: 690615.4974 | G72: 662750.2797 | H72: 679411.79 | K72: D-Sedoheptulose 7-phosphate | L72: 0.001116233155 | M72: 0.001400719207 | N72: 0.001831300122 | P72: 0.002225899211 | Q72: 0.002026852863 | R72: 0.0023751564 | U72: D-Sedoheptulose 7-phosphate | V72: 0.7701253497 | W72: 0.9664014767 | X72: 1.263473174 | Z72: 1.535719846 | AA72: 1.398391333 | AB72: 1.638697207
A73: FAD | B73: 0 | C73: 0 | D73: 0 | F73: 0 | G73: 0 | H73: 0 | K73: FAD | L73: 0 | M73: 0 | N73: 0 | P73: 0 | Q73: 0 | R73: 0 | U73: FAD
A74: Flavin Mononucleotide | B74: 0 | C74: 0 | D74: 0 | F74: 0 | G74: 0 | H74: 0 | K74: Flavin Mononucleotide | L74: 0 | M74: 0 | N74: 0 | P74: 0 | Q74: 0 | R74: 0 | U74: Flavin Mononucleotide
A75: Fructose 1,6-bisphosphate | B75: 184476.8164 | C75: 120907.0678 | D75: 62898.01971 | F75: 105267.777 | G75: 95928.01953 | H75: 64986.27766 | K75: Fructose 1,6-bisphosphate | L75: 0.0005624140692 | M75: 0.0003966721926 | N75: 0.0002151509675 | P75: 0.0003392849751 | Q75: 0.0002933714054 | R75: 0.0002271855972 | U75: Fructose 1,6-bisphosphate | V75: 1.436883592 | W75: 1.013437956 | X75: 0.5496784519 | Z75: 0.8668222228 | AA75: 0.7495199388 | AB75: 0.580425126
A76: Fructose 6-phosphate | B76: 1109653.359 | C76: 1258523.831 | D76: 962188.7038 | F76: 1221223.819 | G76: 1180100.086 | H76: 1038457.166 | K76: Fructose 6-phosphate | L76: 0.003382997784 | M76: 0.004128967947 | N76: 0.003291293294 | P76: 0.003936084761 | Q76: 0.003609035424 | R76: 0.003630343511 | U76: Fructose 6-phosphate | V76: 0.9394381203 | W76: 1.146589544 | X76: 0.9139723356 | Z76: 1.093027045 | AA76: 1.002207412 | AB76: 1.00812454
A77: Fumaric acid | B77: 641141.8759 | C77: 561054.7356 | D77: 613966.5036 | F77: 551793.8795 | G77: 555341.2642 | H77: 655552.4443 | K77: Fumaric acid | L77: 0.001954647843 | M77: 0.001840709697 | N77: 0.002100153357 | P77: 0.001778467998 | Q77: 0.001698369756 | R77: 0.002291746488 | U77: Fumaric acid | V77: 0.9946455247 | W77: 0.9366667601 | X77: 1.068687715 | Z77: 0.9049943402 | AA77: 0.8642354086 | AB77: 1.166182131
A78: Galactonic acid | B78: 0 | C78: 0 | D78: 0 | F78: 0 | G78: 0 | H78: 0 | K78: Galactonic acid | L78: 0 | M78: 0 | N78: 0 | P78: 0 | Q78: 0 | R78: 0 | U78: Galactonic acid
A79: GDP-glucose | B79: 114194.6037 | C79: 153580.8242 | D79: 155378.5266 | F79: 152426.8997 | G79: 166986.1622 | H79: 146843.6045 | K79: GDP-glucose | L79: 0.00034814484 | M79: 0.0005038683295 | N79: 0.0005314927317 | P79: 0.0004912819321 | Q79: 0.0005106846293 | R79: 0.0005133507134 | U79: GDP-glucose | V79: 0.7549187315 | W79: 1.092590199 | X79: 1.152491069 | Z79: 1.065297803 | AA79: 1.107370693 | AB79: 1.11315184
A80: Gluconic acid | B80: 765006.8225 | C80: 623346.9297 | D80: 596093.5537 | F80: 1958656.025 | G80: 1145376.62 | H80: 879976.4414 | K80: Gluconic acid | L80: 0.002332274637 | M80: 0.002045078074 | N80: 0.002039016576 | P80: 0.006312877306 | Q80: 0.003502842552 | R80: 0.003076310578 | U80: Gluconic acid | V80: 1.090464653 | W80: 0.9561847126 | X80: 0.953350634 | Z80: 2.951611896 | AA80: 1.637768524 | AB80: 1.438341735
A81: Glucosamine 6-phosphate | B81: 0 | C81: 0 | D81: 0 | F81: 0 | G81: 0 | H81: 0 | K81: Glucosamine 6-phosphate | L81: 0 | M81: 0 | N81: 0 | P81: 0 | Q81: 0 | R81: 0 | U81: Glucosamine 6-phosphate
A82: Glucosamine | B82: 0 | C82: 0 | D82: 0 | F82: 0 | G82: 0 | H82: 0 | K82: Glucosamine | L82: 0 | M82: 0 | N82: 0 | P82: 0 | Q82: 0 | R82: 0 | U82: Glucosamine
A83: Glucose 6-phosphate | B83: 505830.1194 | C83: 174361.2688 | D83: 176261.0636 | F83: 770800.3065 | G83: 199402.6276 | H83: 389828.338 | K83: Glucose 6-phosphate | L83: 0.001542123185 | M83: 0.0005720448612 | N83: 0.0006029242024 | P83: 0.00248434013 | Q83: 0.000609822129 | R83: 0.001362801302 | U83: Glucose 6-phosphate | V83: 1.702691382 | W83: 0.6316070367 | X83: 0.6657015815 | Z83: 2.743013378 | AA83: 0.6733177306 | AB83: 1.504698233
A84: Glutathione | B84: 7681237.437 | C84: 6863883.634 | D84: 7171615.691 | F84: 8474573.617 | G84: 6164815.701 | H84: 6396476.757 | K84: Glutathione | L84: 0.02341777188 | M84: 0.02251904558 | N84: 0.02453145681 | P84: 0.02731410865 | Q84: 0.01885351804 | R84: 0.0223614499 | U84: Glutathione | V84: 0.9969495685 | W84: 0.9586886787 | X84: 1.044361753 | Z84: 1.162825779 | AA84: 0.8026385588 | AB84: 0.9519794602
A85: Glycerol 3-phosphate | B85: 265636.6454 | C85: 189618.3846 | D85: 229785.8149 | F85: 347274.5054 | G85: 208639.6673 | H85: 342060.2178 | K85: Glycerol 3-phosphate | L85: 0.0008098458634 | M85: 0.0006221004425 | N85: 0.0007860126695 | P85: 0.001119288592 | Q85: 0.0006380712615 | R85: 0.001195808679 | U85: Glycerol 3-phosphate | V85: 1.095393385 | W85: 0.8414498862 | X85: 1.063156729 | Z85: 1.513944042 | AA85: 0.8630519346 | AB85: 1.617444722
A86: Glycerophosphocholine | B86: 2363698.581 | C86: 306946.3564 | D86: 329395.859 | F86: 4217699.894 | G86: 386533.5145 | H86: 352653.627 | K86: Glycerophosphocholine | L86: 0.007206202725 | M86: 0.001007030328 | N86: 0.001126741956 | P86: 0.01359392441 | Q86: 0.001182114266 | R86: 0.00123284219 | U86: Glycerophosphocholine | V86: 2.314632336 | W86: 0.3234581444 | X86: 0.3619095195 | Z86: 4.366368559 | AA86: 0.3796951056 | AB86: 0.3959889149
A87: Glycine | B87: 2311397.111 | C87: 1921922.241 | D87: 2128743.282 | F87: 3721975.232 | G87: 3220868.669 | H87: 3765882.383 | K87: Glycine | L87: 0.007046751347 | M87: 0.006305447013 | N87: 0.007281647001 | P87: 0.01199617119 | Q87: 0.00985020615 | R87: 0.01316515223 | U87: Glycine | V87: 1.024542623 | W87: 0.9167627608 | X87: 1.058694617 | Z87: 1.744149621 | AA87: 1.432143061 | AB87: 1.914110337
A88: Guanidoacetic acid | B88: 38619.84875 | C88: 0 | D88: 0 | F88: 148785.107 | G88: 33110.90069 | H88: 26947.40834 | K88: Guanidoacetic acid | L88: 0.0001177402489 | M88: 0 | N88: 0 | P88: 0.0004795441945 | Q88: 0.0001012612531 | R88: 9.42054735e-05 | U88: Guanidoacetic acid | V88: 3 | W88: 0 | X88: 0 | Z88: 12.21869834 | AA88: 2.580118203 | AB88: 2.400338229
A89: Guanine | B89: 25396.21397 | C89: 14830.85832 | D89: 0 | F89: 41746.91508 | G89: 65824.2173 | H89: 0 | K89: Guanine | L89: 7.742538233e-05 | M89: 4.865711488e-05 | N89: 0 | P89: 0.0001345530555 | Q89: 0.0002013065967 | R89: 0 | U89: Guanine | V89: 1.842255286 | W89: 1.157744714 | X89: 0 | Z89: 3.201547998 | AA89: 4.789878084 | AB89: 0
A90: Guanosine diphosphate | B90: 350295.6089 | C90: 392196.6759 | D90: 383196.3346 | F90: 304003.1449 | G90: 271101.7932 | H90: 293728.246 | K90: Guanosine diphosphate | L90: 0.001067945461 | M90: 0.001286719777 | N90: 0.001310773574 | P90: 0.0009798221486 | Q90: 0.0008290957582 | R90: 0.001026844888 | U90: Guanosine diphosphate | V90: 0.874066257 | W90: 1.053123386 | X90: 1.072810357 | Z90: 0.8019412125 | AA90: 0.6785783098 | AB90: 0.8404272503
A91: Guanosine monophosphate | B91: 917093.3552 | C91: 1004251.443 | D91: 1228184.928 | F91: 1658635.3 | G91: 1819154.503 | H91: 1664319.616 | K91: Guanosine monophosphate | L91: 0.002795940518 | M91: 0.003294750498 | N91: 0.004201168443 | P91: 0.00534589076 | Q91: 0.005563420528 | R91: 0.005818296715 | U91: Guanosine monophosphate | V91: 0.8149957341 | W91: 0.9603951097 | X91: 1.224609156 | Z91: 1.558287144 | AA91: 1.621695443 | AB91: 1.695989944
A92: Guanosine triphosphate | B92: 193460.2026 | C92: 171501.6471 | D92: 130222.3039 | F92: 92240.34222 | G92: 77198.05308 | H92: 44314.69309 | K92: Guanosine triphosphate | L92: 0.0005898016991 | M92: 0.0005626630074 | N92: 0.000445442556 | P92: 0.0002972966952 | Q92: 0.0002360905754 | R92: 0.0001549197827 | U92: Guanosine triphosphate | V92: 1.107326526 | W92: 1.056374836 | X92: 0.8362986384 | Z92: 0.5581613567 | AA92: 0.443249582 | AB92: 0.2908550196
A93: Guanosine | B93: 0 | C93: 0 | D93: 19237.17328 | F93: 87178.39426 | G93: 122736.1872 | H93: 173500.7545 | K93: Guanosine | L93: 0 | M93: 0 | N93: 6.580328699e-05 | P93: 0.0002809817037 | Q93: 0.0003753573555 | R93: 0.0006065414723 | U93: Guanosine | V93: 0 | W93: 0 | X93: 3 | Z93: 12.81007606 | AA93: 17.11270239 | AB93: 27.65248516
A94: Hexanoylcarnitine | B94: 0 | C94: 0 | D94: 0 | F94: 0 | G94: 0 | H94: 0 | K94: Hexanoylcarnitine | L94: 0 | M94: 0 | N94: 0 | P94: 0 | Q94: 0 | R94: 0 | U94: Hexanoylcarnitine
A95: Hippuric acid | B95: 0 | C95: 0 | D95: 0 | F95: 0 | G95: 0 | H95: 0 | K95: Hippuric acid | L95: 0 | M95: 0 | N95: 0 | P95: 0 | Q95: 0 | R95: 0 | U95: Hippuric acid
A96: Hypotaurine | B96: 0 | C96: 0 | D96: 0 | F96: 0 | G96: 0 | H96: 0 | K96: Hypotaurine | L96: 0 | M96: 0 | N96: 0 | P96: 0 | Q96: 0 | R96: 0 | U96: Hypotaurine
A97: Hypoxanthine | B97: 481874.4374 | C97: 519500.2796 | D97: 654061.3991 | F97: 1914691.658 | G97: 2180971.849 | H97: 2344794.808 | K97: Hypoxanthine | L97: 0.00146908955 | M97: 0.00170437774 | N97: 0.002237303232 | P97: 0.006171177258 | Q97: 0.006669946691 | R97: 0.008197170663 | U97: Hypoxanthine | V97: 0.814536235 | W97: 0.9449916976 | X97: 1.240472067 | Z97: 3.421607274 | AA97: 3.698149828 | AB97: 4.544918675
A98: IDP | B98: 0 | C98: 0 | D98: 0 | F98: 0 | G98: 0 | H98: 0 | K98: IDP | L98: 0 | M98: 0 | N98: 0 | P98: 0 | Q98: 0 | R98: 0 | U98: IDP
A99: Imidazoleacetic acid | B99: 0 | C99: 0 | D99: 0 | F99: 0 | G99: 0 | H99: 0 | K99: Imidazoleacetic acid | L99: 0 | M99: 0 | N99: 0 | P99: 0 | Q99: 0 | R99: 0 | U99: Imidazoleacetic acid
A100: Indoxyl sulfate | B100: 0 | C100: 0 | D100: 0 | F100: 0 | G100: 0 | H100: 0 | K100: Indoxyl sulfate | L100: 0 | M100: 0 | N100: 0 | P100: 0 | Q100: 0 | R100: 0 | U100: Indoxyl sulfate
A101: Inosine | B101: 153830.1095 | C101: 147995.7903 | D101: 280993.9997 | F101: 797169.438 | G101: 1122461.202 | H101: 1504886.979 | K101: Inosine | L101: 0.0004689815203 | M101: 0.0004855449373 | N101: 0.0009611770159 | P101: 0.002569329577 | Q101: 0.003432761584 | R101: 0.005260935991 | U101: Inosine | V101: 0.7344271075 | W101: 0.7603654908 | X101: 1.505207402 | Z101: 4.02358133 | AA101: 5.375719622 | AB101: 8.238648722
A102: Inosinic acid | B102: 201376.4361 | C102: 90990.31727 | D102: 100714.8929 | F102: 137020.5852 | G102: 116054.2009 | H102: 176500.9982 | K102: Inosinic acid | L102: 0.0006139359031 | M102: 0.0002985212471 | N102: 0.000344508567 | P102: 0.0004416263661 | Q102: 0.0003549222031 | R102: 0.0006170300273 | U102: Inosinic acid | V102: 1.465280782 | W102: 0.7124806421 | X102: 0.8222385758 | Z102: 1.054029621 | AA102: 0.8470928002 | AB102: 1.472665528
A103: Isovalerylcarnitine | B103: 0 | C103: 0 | D103: 0 | F103: 0 | G103: 0 | H103: 0 | K103: Isovalerylcarnitine | L103: 0 | M103: 0 | N103: 0 | P103: 0 | Q103: 0 | R103: 0 | U103: Isovalerylcarnitine
A104: Kynurenic acid | B104: 0 | C104: 0 | D104: 0 | F104: 0 | G104: 0 | H104: 0 | K104: Kynurenic acid | L104: 0 | M104: 0 | N104: 0 | P104: 0 | Q104: 0 | R104: 0 | U104: Kynurenic acid
A105: L-Acetylcarnitine | B105: 1237977.954 | C105: 1069719.264 | D105: 1286173.77 | F105: 1428943.513 | G105: 1400836.254 | H105: 1358173.863 | K105: L-Acetylcarnitine | L105: 0.003774220697 | M105: 0.00350953748 | N105: 0.004399526921 | P105: 0.004605579009 | Q105: 0.004284100752 | R105: 0.004748041452 | U105: L-Acetylcarnitine | V105: 0.9691334241 | W105: 0.9011688366 | X105: 1.129697739 | Z105: 1.182607196 | AA105: 1.100058943 | AB105: 1.219188288
A106: L-Alanine | B106: 3370899.472 | C106: 3263761.948 | D106: 3702204.108 | F106: 4894560.063 | G106: 5345808.767 | H106: 5149109.419 | K106: L-Alanine | L106: 0.01027685389 | M106: 0.01070775788 | N106: 0.01266387716 | P106: 0.01577548929 | Q106: 0.01634879401 | R106: 0.0180007771 | U106: L-Alanine | V106: 0.9162539731 | W106: 0.9546721014 | X106: 1.129073925 | Z106: 1.406496083 | AA106: 1.45761024 | AB106: 1.604896178
A107: L-Arginine | B107: 0 | C107: 0 | D107: 0 | F107: 0 | G107: 0 | H107: 0 | K107: L-Arginine | L107: 0 | M107: 0 | N107: 0 | P107: 0 | Q107: 0 | R107: 0 | U107: L-Arginine
A108: L-Asparagine | B108: 41495.22741 | C108: 40982.87137 | D108: 98767.11352 | F108: 62695.2154 | G108: 60667.69601 | H108: 56145.59761 | K108: L-Asparagine | L108: 0.0001265064096 | M108: 0.0001344567009 | N108: 0.000337845931 | P108: 0.0002020708065 | Q108: 0.0001855366902 | R108: 0.0001962794544 | U108: L-Asparagine | V108: 0.6337900775 | W108: 0.6736205947 | X108: 1.692589328 | Z108: 1.012363504 | AA108: 0.9295285008 | AB108: 0.9833491523
A109: L-Aspartic acid | B109: 13141201.65 | C109: 11784154.92 | D109: 12360729.45 | F109: 11843621.35 | G109: 12263936.75 | H109: 12420927.86 | K109: L-Aspartic acid | L109: 0.04006355289 | M109: 0.03866148321 | N109: 0.04228150443 | P109: 0.03817277127 | Q109: 0.03750612573 | R109: 0.04342233493 | U109: L-Aspartic acid | V109: 0.9932575393 | W109: 0.9584973598 | X109: 1.048245101 | Z109: 0.9463811898 | AA109: 0.9298536814 | AB109: 1.076528626
A110: L-Carnitine | B110: 0 | C110: 0 | D110: 0 | F110: 0 | G110: 0 | H110: 0 | K110: L-Carnitine | L110: 0 | M110: 0 | N110: 0 | P110: 0 | Q110: 0 | R110: 0 | U110: L-Carnitine
A111: L-Cystathionine | B111: 0 | C111: 0 | D111: 0 | F111: 0 | G111: 0 | H111: 0 | K111: L-Cystathionine | L111: 0 | M111: 0 | N111: 0 | P111: 0 | Q111: 0 | R111: 0 | U111: L-Cystathionine
A112: L-Cysteine | B112: 0 | C112: 0 | D112: 0 | F112: 0 | G112: 0 | H112: 0 | K112: L-Cysteine | L112: 0 | M112: 0 | N112: 0 | P112: 0 | Q112: 0 | R112: 0 | U112: L-Cysteine
A113: L-Cystine | B113: 0 | C113: 0 | D113: 0 | F113: 0 | G113: 0 | H113: 0 | K113: L-Cystine | L113: 0 | M113: 0 | N113: 0 | P113: 0 | Q113: 0 | R113: 0 | U113: L-Cystine
A114: L-Dihydroorotic acid | B114: 37801.33895 | C114: 19886.68144 | D114: 35784.31937 | F114: 19598.59963 | G114: 23698.58337 | H114: 19542.58294 | K114: L-Dihydroorotic acid | L114: 0.0001152448599 | M114: 6.524427127e-05 | N114: 0.0001224049814 | P114: 6.31675768e-05 | Q114: 7.247607887e-05 | R114: 6.831893649e-05 | U114: L-Dihydroorotic acid | V114: 1.141437107 | W114: 0.6462087102 | X114: 1.212354182 | Z114: 0.6256401909 | AA114: 0.7178357968 | AB114: 0.6766615823
A115: L-Glutamic acid | B115: 88036828.14 | C115: 91490090.26 | D115: 92710771.86 | F115: 83224663.99 | G115: 85645256.81 | H115: 83929177.86 | K115: L-Glutamic acid | L115: 0.2683976866 | M115: 0.3001609035 | N115: 0.317129416 | P115: 0.2682385707 | Q115: 0.2619241957 | R115: 0.2934081022 | U115: L-Glutamic acid | V115: 0.9091159123 | W115: 1.016704194 | X115: 1.074179894 | Z115: 0.9085769556 | AA115: 0.8871889216 | AB115: 0.9938311239
A116: L-Glutamine | B116: 1747244.768 | C116: 934232.194 | D116: 973228.0533 | F116: 2448364.027 | G116: 1660108.722 | H116: 1569495.972 | K116: L-Glutamine | L116: 0.005326821325 | M116: 0.003065031181 | N116: 0.003329054844 | P116: 0.007891238436 | Q116: 0.005077019533 | R116: 0.00548680264 | U116: L-Glutamine | V116: 1.363415263 | W116: 0.7845035601 | X116: 0.8520811772 | Z116: 2.019785209 | AA116: 1.299477774 | AB116: 1.404362941
A117: L-Glyceric acid | B117: 38235.68393 | C117: 0 | D117: 11292.35931 | F117: 100108.7564 | G117: 50674.86799 | H117: 37359.49074 | K117: L-Glyceric acid | L117: 0.0001165690465 | M117: 0 | N117: 3.862700356e-05 | P117: 0.0003226571119 | Q117: 0.0001549761719 | R117: 0.0001306050834 | U117: L-Glyceric acid | V117: 2.253325 | W117: 0 | X117: 0.7466750001 | Z117: 6.237087448 | AA117: 2.995749669 | AB117: 2.524647052
A118: L-Histidine | B118: 0 | C118: 0 | D118: 0 | F118: 0 | G118: 0 | H118: 0 | K118: L-Histidine | L118: 0 | M118: 0 | N118: 0 | P118: 0 | Q118: 0 | R118: 0 | U118: L-Histidine
A119: L-Homoserine | B119: 0 | C119: 0 | D119: 0 | F119: 0 | G119: 0 | H119: 0 | K119: L-Homoserine | L119: 0 | M119: 0 | N119: 0 | P119: 0 | Q119: 0 | R119: 0 | U119: L-Homoserine
A120: L-Isoleucine | B120: 0 | C120: 0 | D120: 0 | F120: 0 | G120: 0 | H120: 0 | K120: L-Isoleucine | L120: 0 | M120: 0 | N120: 0 | P120: 0 | Q120: 0 | R120: 0 | U120: L-Isoleucine
A121: L-Kynurenine | B121: 0 | C121: 0 | D121: 0 | F121: 0 | G121: 0 | H121: 0 | K121: L-Kynurenine | L121: 0 | M121: 0 | N121: 0 | P121: 0 | Q121: 0 | R121: 0 | U121: L-Kynurenine
A122: L-Lactic acid | B122: 39288031.26 | C122: 51501650.46 | D122: 32282889.19 | F122: 45227929.31 | G122: 70239703.57 | H122: 34643734.76 | K122: L-Lactic acid | L122: 0.1197773355 | M122: 0.1689667361 | N122: 0.1104278779 | P122: 0.1457725935 | Q122: 0.2148102364 | R122: 0.1211110692 | U122: L-Lactic acid | V122: 0.9001935305 | W122: 1.269879331 | X122: 0.8299271384 | Z122: 1.095562404 | AA122: 1.614418824 | AB122: 0.9102172839
A123: L-Leucine | B123: 0 | C123: 0 | D123: 0 | F123: 0 | G123: 0 | H123: 0 | K123: L-Leucine | L123: 0 | M123: 0 | N123: 0 | P123: 0 | Q123: 0 | R123: 0 | U123: L-Leucine
A124: L-Lysine | B124: 0 | C124: 0 | D124: 0 | F124: 0 | G124: 0 | H124: 0 | K124: L-Lysine | L124: 0 | M124: 0 | N124: 0 | P124: 0 | Q124: 0 | R124: 0 | U124: L-Lysine
A125: L-Methionine | B125: 41429.12484 | C125: 36781.46188 | D125: 55585.50661 | F125: 38162.675 | G125: 50963.55402 | H125: 63368.63827 | K125: L-Methionine | L125: 0.0001263048828 | M125: 0.0001206727067 | N125: 0.0001901375525 | P125: 0.0001230008138 | Q125: 0.0001558590445 | R125: 0.00022153049 | U125: L-Methionine | V125: 0.8668531745 | W125: 0.8281985348 | X125: 1.304948291 | Z125: 0.8441767531 | AA125: 1.069688713 | AB125: 1.520403679
A126: L-Palmitoylcarnitine | B126: 0 | C126: 0 | D126: 0 | F126: 0 | G126: 0 | H126: 0 | K126: L-Palmitoylcarnitine | L126: 0 | M126: 0 | N126: 0 | P126: 0 | Q126: 0 | R126: 0 | U126: L-Palmitoylcarnitine
A127: L-Phenylalanine | B127: 0 | C127: 0 | D127: 0 | F127: 0 | G127: 0 | H127: 0 | K127: L-Phenylalanine | L127: 0 | M127: 0 | N127: 0 | P127: 0 | Q127: 0 | R127: 0 | U127: L-Phenylalanine
A128: L-Pipecolic acid | B128: 0 | C128: 0 | D128: 0 | F128: 0 | G128: 0 | H128: 0 | K128: L-Pipecolic acid | L128: 0 | M128: 0 | N128: 0 | P128: 0 | Q128: 0 | R128: 0 | U128: L-Pipecolic acid
A129: L-Proline | B129: 25036141.1 | C129: 21957410.6 | D129: 23747796.8 | F129: 21269332.48 | G129: 22365429.14 | H129: 18761138.3 | K129: L-Proline | L129: 0.07632762894 | M129: 0.07203792438 | N129: 0.08123246933 | P129: 0.06855245876 | Q129: 0.06839896634 | R129: 0.06558708335 | U129: L-Proline | V129: 0.9973208139 | W129: 0.9412701844 | X129: 1.061409002 | Z129: 0.8957279941 | AA129: 0.8937224139 | AB129: 0.8569814661
A130: L-Serine | B130: 3228172.682 | C130: 2835462.668 | D130: 2636514.063 | F130: 4133709.546 | G130: 3662046.417 | H130: 3650016.09 | K130: L-Serine | L130: 0.009841723036 | M130: 0.009302592595 | N130: 0.009018543889 | P130: 0.01332321799 | Q130: 0.01119943588 | R130: 0.01276009513 | U130: L-Serine | V130: =L130/AVERAGE($L130:$N130) -> 1.048372559 | W130: =M130/AVERAGE($L130:$N130) -> 0.9909426195 | X130: =N130/AVERAGE($L130:$N130) -> 0.9606848213 | Z130: =P130/AVERAGE($L130:$N130) -> 1.4192328 | AA130: =Q130/AVERAGE($L130:$N130) -> 1.193000577 | AB130: =R130/AVERAGE($L130:$N130) -> 1.359247109
A131: L-Threonine | B131: 0 | C131: 0 | D131: 0 | F131: 0 | G131: 0 | H131: 0 | K131: L-Threonine | L131: 0 | M131: 0 | N131: 0 | P131: 0 | Q131: 0 | R131: 0 | U131: L-Threonine
A132: L-Tryptophan | B132: 0 | C132: 0 | D132: 0 | F132: 0 | G132: 0 | H132: 0 | K132: L-Tryptophan | L132: 0 | M132: 0 | N132: 0 | P132: 0 | Q132: 0 | R132: 0 | U132: L-Tryptophan
A133: L-Tyrosine | B133: 0 | C133: 0 | D133: 0 | F133: 0 | G133: 0 | H133: 0 | K133: L-Tyrosine | L133: 0 | M133: 0 | N133: 0 | P133: 0 | Q133: 0 | R133: 0 | U133: L-Tyrosine
A134: L-Valine | B134: 0 | C134: 50356.35038 | D134: 0 | F134: 0 | G134: 0 | H134: 0 | K134: L-Valine | L134: 0 | M134: 0.0001652092329 | N134: 0 | P134: 0 | Q134: 0 | R134: 0 | U134: L-Valine | V134: 0 | W134: 3 | X134: 0 | Z134: 0 | AA134: 0 | AB134: 0
A135: Malic acid | B135: 16327394.51 | C135: 13804389.51 | D135: 14968989.13 | F135: 14033930.22 | G135: 13288055.25 | H135: 15311560.98 | K135: Malic acid | L135: 0.04977729214 | M135: 0.04528947358 | N135: 0.05120340048 | P135: 0.04523228096 | Q135: 0.04063813121 | R135: 0.05352770233 | U135: Malic acid | V135: 1.020931884 | W135: 0.9288867599 | X135: 1.050181356 | Z135: 0.9277137396 | AA135: 0.8334877629 | AB135: 1.097852769
A136: Myoinositol | B136: 0 | C136: 0 | D136: 0 | F136: 0 | G136: 0 | H136: 0 | K136: Myoinositol | L136: 0 | M136: 0 | N136: 0 | P136: 0 | Q136: 0 | R136: 0 | U136: Myoinositol
A137: N6,N6,N6-Trimethyl-L-lysine | B137: 0 | C137: 0 | D137: 0 | F137: 0 | G137: 0 | H137: 0 | K137: N6,N6,N6-Trimethyl-L-lysine | L137: 0 | M137: 0 | N137: 0 | P137: 0 | Q137: 0 | R137: 0 | U137: N6,N6,N6-Trimethyl-L-lysine
A138: N6-Acetyl-L-lysine | B138: 0 | C138: 0 | D138: 0 | F138: 0 | G138: 0 | H138: 0 | K138: N6-Acetyl-L-lysine | L138: 0 | M138: 0 | N138: 0 | P138: 0 | Q138: 0 | R138: 0 | U138: N6-Acetyl-L-lysine
A139: N-Acetylasparagine | B139: 41030.93028 | C139: 30138.05244 | D139: 43494.37388 | F139: 16561.93369 | G139: 0 | H139: 22967.47769 | K139: N-Acetylasparagine | L139: 0.000125090908 | M139: 9.887699338e-05 | N139: 0.0001487782392 | P139: 5.338020255e-05 | Q139: 0 | R139: 8.029202968e-05 | U139: N-Acetylasparagine | V139: 1.006778295 | W139: 0.795798931 | X139: 1.197422774 | Z139: 0.4296237848 | AA139: 0 | AB139: 0.6462202096
A140: N-Acetylaspartylglutamic acid | B140: 0 | C140: 0 | D140: 0 | F140: 0 | G140: 0 | H140: 0 | K140: N-Acetylaspartylglutamic acid | L140: 0 | M140: 0 | N140: 0 | P140: 0 | Q140: 0 | R140: 0 | U140: N-Acetylaspartylglutamic acid
A141: N-Acetyl-D-glucosamine | B141: 0 | C141: 0 | D141: 0 | F141: 0 | G141: 0 | H141: 0 | K141: N-Acetyl-D-glucosamine | L141: 0 | M141: 0 | N141: 0 | P141: 0 | Q141: 0 | R141: 0 | U141: N-Acetyl-D-glucosamine
A142: N-Acetyl-glucosamine 1-phosphate | B142: 99293.2002 | C142: 70241.31958 | D142: 79368.49786 | F142: 97615.20215 | G142: 89694.7876 | H142: 113046.1324 | K142: N-Acetyl-glucosamine 1-phosphate | L142: 0.0003027149636 | M142: 0.0002304478866 | N142: 0.0002714904091 | P142: 0.0003146202225 | Q142: 0.0002743086538 | R142: 0.0003951980947 | U142: N-Acetyl-glucosamine 1-phosphate | V142: 1.128616432 | W142: 0.8591820786 | X142: 1.012201489 | Z142: 1.173002976 | AA142: 1.02270879 | AB142: 1.473422584
A143: N-Acetylglutamic acid | B143: 30615.74008 | C143: 19406.40982 | D143: 27708.9879 | F143: 30486.66644 | G143: 37832.51927 | H143: 37310.7479 | K143: N-Acetylglutamic acid | L143: 9.333814022e-05 | M143: 6.366859503e-05 | N143: 9.478224564e-05 | P143: 9.826053288e-05 | Q143: 0.0001157011205 | R143: 0.0001304346833 | U143: N-Acetylglutamic acid | V143: 1.112099583 | W143: 0.7585946947 | X143: 1.129305722 | Z143: 1.170748607 | AA143: 1.378548658 | AB143: 1.554095213
A144: N-Acetylglutamine | B144: 14509.86742 | C144: 15706.42578 | D144: 18172.61418 | F144: 0 | G144: 0 | H144: 0 | K144: N-Acetylglutamine | L144: 4.423620125e-05 | M144: 5.152967867e-05 | N144: 6.216182227e-05 | P144: 0 | Q144: 0 | R144: 0 | U144: N-Acetylglutamine | V144: 0.8403123828 | W144: 0.9788595279 | X144: 1.180828089 | Z144: 0 | AA144: 0 | AB144: 0
A145: N-Acetyl-L-alanine | B145: 338819.3608 | C145: 293624.3802 | D145: 321894.4019 | F145: 230708.867 | G145: 206233.7701 | H145: 181381.1138 | K145: N-Acetyl-L-alanine | L145: 0.001032957849 | M145: 0.0009633235576 | N145: 0.001101082233 | P145: 0.0007435898658 | Q145: 0.0006307134378 | R145: 0.0006340904286 | U145: N-Acetyl-L-alanine | V145: 1.000487481 | W145: 0.9330420995 | X145: 1.066470419 | Z145: 0.7202155954 | AA145: 0.6108873654 | AB145: 0.6141582027
A146: N-Acetyl-L-aspartic acid | B146: 0 | C146: 0 | D146: 0 | F146: 0 | G146: 0 | H146: 0 | K146: N-Acetyl-L-aspartic acid | L146: 0 | M146: 0 | N146: 0 | P146: 0 | Q146: 0 | R146: 0 | U146: N-Acetyl-L-aspartic acid
A147: N-Acetyl-L-methionine | B147: 0 | C147: 0 | D147: 0 | F147: 0 | G147: 0 | H147: 0 | K147: N-Acetyl-L-methionine | L147: 0 | M147: 0 | N147: 0 | P147: 0 | Q147: 0 | R147: 0 | U147: N-Acetyl-L-methionine
A148: N-Acetylornithine | B148: 0 | C148: 0 | D148: 0 | F148: 0 | G148: 0 | H148: 0 | K148: N-Acetylornithine | L148: 0 | M148: 0 | N148: 0 | P148: 0 | Q148: 0 | R148: 0 | U148: N-Acetylornithine
A149: N-Acetylputrescine | B149: 0 | C149: 0 | D149: 0 | F149: 0 | G149: 0 | H149: 0 | K149: N-Acetylputrescine | L149: 0 | M149: 0 | N149: 0 | P149: 0 | Q149: 0 | R149: 0 | U149: N-Acetylputrescine
A150: N-acetyltryptophan | B150: 0 | C150: 0 | D150: 0 | F150: 0 | G150: 0 | H150: 0 | K150: N-acetyltryptophan | L150: 0 | M150: 0 | N150: 0 | P150: 0 | Q150: 0 | R150: 0 | U150: N-acetyltryptophan
A151: NAD | B151: 3233988.582 | C151: 1990781.695 | D151: 1929563.367 | F151: 2046492.483 | G151: 1257457.307 | H151: 1381137.62 | K151: NAD | L151: 0.009859453958 | M151: 0.006531361271 | N151: 0.006600325848 | P151: 0.006595979992 | Q151: 0.003845612776 | R151: 0.004828320476 | U151: NAD | V151: 1.28651126 | W151: 0.8522449472 | X151: 0.8612437928 | Z151: 0.8606767237 | AA151: 0.5017949431 | AB151: 0.6300235981
A152: NADH | B152: 0 | C152: 0 | D152: 0 | F152: 0 | G152: 0 | H152: 0 | K152: NADH | L152: 0 | M152: 0 | N152: 0 | P152: 0 | Q152: 0 | R152: 0 | U152: NADH
A153: NADP | B153: 0 | C153: 0 | D153: 0 | F153: 0 | G153: 0 | H153: 0 | K153: NADP | L153: 0 | M153: 0 | N153: 0 | P153: 0 | Q153: 0 | R153: 0 | U153: NADP
A154: NADPH | B154: 0 | C154: 0 | D154: 0 | F154: 0 | G154: 0 | H154: 0 | K154: NADPH | L154: 0 | M154: 0 | N154: 0 | P154: 0 | Q154: 0 | R154: 0 | U154: NADPH
A155: N-Formyl-L-methionine | B155: 0 | C155: 0 | D155: 0 | F155: 0 | G155: 0 | H155: 0 | K155: N-Formyl-L-methionine | L155: 0 | M155: 0 | N155: 0 | P155: 0 | Q155: 0 | R155: 0 | U155: N-Formyl-L-methionine
A156: Niacinamide | B156: 0 | C156: 0 | D156: 0 | F156: 0 | G156: 0 | H156: 0 | K156: Niacinamide | L156: 0 | M156: 0 | N156: 0 | P156: 0 | Q156: 0 | R156: 0 | U156: Niacinamide
